Workbook

Sheet Anterpoleh (hidden)
P1: سال | Q1: ماه | R1: روز | T1: =[3]!J_DIFF(T2,T3) -> 0 | U1: ستون سه ماهه | Y1: وضعیت | Z1: شروع | AC1: پایان | AF1: شروع | AG1: پایان | AH1: وضعیت | AI1: قبلی | AJ1: فعلی | AK1: اول | AL1: قبلی
J2: تحویل زمین | O2: شروع پ | P2: 1398 | Q2: 6 | R2: 1 | S2: =[3]!YMD2Str(P2,Q2,R2,"long") -> 13980601 | T2: =[3]!FDate(S2) -> 1398/06/01 | U2: =IFERROR((((1422-P2)*4)-V2)+1,"") -> 95 | V2: =INT(Q2/3.0000001)+1 -> 2 | W2: =457-((P2-1397)*12)-(Q2) -> 439 | X2: اول | AF2: // | AG2: // | AK2: دوم | AL2: اول | AM2: 109516130 | AN2: 0
J3: موقت شماره | O3: پایان پ | P3: =LEFT(T3,4) -> 1398 | Q3: =MID(T3,6,2)*1 -> 6 | T3: =[3]!J_ADDDAY(K8,B7+D7,1) -> 1398/06/01 | U3: =IFERROR((((1422-P3)*4)-V3)+1,"") -> 95 | V3: =INT(Q3/3.0000001)+1 -> 2 | W3: =457-((P3-1397)*12)-(Q3) -> 439 | X3: دوم | AK3: سوم | AL3: دوم | AM3: 459089800 | AN3: 181205320
J4: ماقبل قطعی | S4: مدت مجاز باقی مانده | T4: =IFERROR([3]!J_DIFF(T7,T3)+S7,0) -> 0 | X4: سوم | AK4: چهارم | AL4: سوم | AM4: 699872159 | AN4: 9360407999
J5: قطعی | K5: سه ماهه | L5: 0.95 | S5: مدت تاخیر تا پایان وضعیت | T5: =T9-T4 -> 0 | X5: چهارم | AK5: پنجم | AL5: چهارم | AM5: 0 | AN5: 12251104233
G6: جمع مدت پیمان | K6: ماهیانه | L6: 0.975 | O6: اول | P6: سال | Q6: ماه | R6: روز | S6: روز اول | T6: TRUE | U6: چندمین روز | X6: پنجم | AK6: ششم | AL6: پنجم | AM6: 0 | AN6: 13057465628
B7: 0 | D7: 0 | G7: =R2 -> 1 | H7: =A7+C7+Q2 -> 6 | I7: =ROUNDDOWN(H7/12.000001,0) -> 0 | L7: 1 | M7: شروع ص | N7: =IF(VLOOKUP(O6,X2:AJ11,12,0)=0,"",VLOOKUP(O6,X2:AJ11,12,0)) ->  | O7: =VLOOKUP(O6,X2:AH11,2,0) -> 0 | P7: =VLOOKUP(O6,X2:AH11,5,0) -> 0 | Q7: =VLOOKUP(O6,X2:AI11,4,0) -> 0 | R7: =VLOOKUP(O6,X2:AI11,3,0) -> 0 | S7: =IF(T6,1,0) -> 1 | T7: =VLOOKUP(O6,X2:AI11,9,0) -> // | U7: =[3]!JDayOfYear(P7,Q7,R7) -> 0 | X7: ششم | AK7: هفتم | AL7: ششم
A8: مبنای تعدیل | C8: چهارم | D8: 1394 | E8: 4 | F8: =IF(IFERROR(HLOOKUP(D8&"-"&E8,shtip,2,0),"")="سه ماهه",IFERROR((((1422-D8)*4)-E8)+1,""),457-((D8-1397)*12)-(E8*3)) -> 109 | G8: =G7 -> 1 | H8: =H7-(I7*12) -> 6 | I8: =P2+I7 -> 1398 | J8: =[3]!YMD2Str(I8,H8,G8,"long") -> 13980601 | K8: =[3]!FDate(J8) -> 1398/06/01 | L8: 0.95 | M8: پایان ص | N8: =IF(VLOOKUP(O6,X2:AJ11,13,0)=0,"",VLOOKUP(O6,X2:AJ11,13,0)) ->  | O8: =VLOOKUP(O6,X2:AH11,11,0) -> 0 | P8: =VLOOKUP(O6,X2:AI11,8,0) -> 0 | Q8: =VLOOKUP(O6,X2:AI11,7,0) -> 0 | R8: =VLOOKUP(O6,X2:AI11,6,0) -> 0 | T8: =VLOOKUP(O6,X2:AI11,10,0) -> // | U8: =U7+T9 -> 0 | X8: هفتم | AK8: هشتم | AL8: هفتم
A9: علی الحساب | C9: چهارم | D9: 1398 | E9: 4 | F9: =IF(IFERROR(HLOOKUP(D9&"-"&E9,shtip,2,0),"")="سه ماهه",IFERROR((((1422-D9)*4)-E9)+1,""),457-((D9-1397)*12)-(E9*3)) -> 93 | O9: دوره | T9: =IFERROR([3]!J_DIFF(T7,T8)+S7,0) -> 0 | X9: هشتم | AK9: نهم | AL9: هشتم | AN9: 0
C10: =IF(F9>167,VLOOKUP(E9*3,month_n,8,0),"") ->  | X10: نهم | AK10: دهم | AL10: نهم
K11: =SUM(K13:K72) -> 0 | L11: =T4 -> 0 | Q11: =MAX(Q13:Q144) -> 0 | X11: دهم | AH11: =IF(U19>0," مدت کارکرد در دوره های سه ماهه "&S19&" "&T19&" سال "&R19&" روز "&AA19,"") ->  | AL11: دهم
A12: =IF(A13=$P$3*1,IF(A13<$P$3*1,A13+1,$P$3),"") -> 1398 | B12: سال | C12: ماه | D12: ماهانه | E12: چندمین روز | F12: گذشته | G12: روز اول | H12: سال | I12: سه ماهه | J12: ماه | K12: ماهیانه | L12: ماهیانه مجاز | M12: سه ماهه مجاز | N12: مجاز نزولی | O12: شروع تاخیر | Q12: ردیف | R12: سال | S12: سه ماهه کارکرد | T12: ماه | U12: روز | V12: نوع شاخص | W12: سه ماهه ملاک | X12: ماه ملاک | Y12: سال ملاک | Z12: سه ماهه | AA12: نسبت | AB12: حاصل نسبت | AC12: ستون شاخص | AD12: ملاک | AE12: =IF(AG12="","",AF12) -> 1 | AF12: =IF(AG12>0,1,0) -> 1 | AG12: 4-2 | AH12: مدت کارکرد در دوره های سه ماهه مربوط به صورت وضعیت
A13: =P2 -> 1398 | B13: =P7 -> 0 | C13: 1 | D13: 31 | E13: =SUM($D$13:D13) -> 31 | F13: =IF($U$7>E13,D13,$U$7) -> 0 | G13: =IF(D13-F13>0,S7,0) -> 1 | H13: =B13 -> 0 | I13: اول | J13: فروردین | K13: =IF(E13>$U$8,$U$8-F13,D13-F13+G13) -> 0 | L13: =IF(N13>K13,K13,N13) -> 0 | M13: =IF(P13="ماهیانه",0,SUM(L13:L15)) -> 0 | N13: =T4 -> 0 | O13: =IF(N13=0,$T$5,0) -> 0 | P13: =IFERROR(HLOOKUP(H13&"-1",shtip,2,0),"") ->  | Q13: =COUNT(R13) -> 0 | R13: =IF(U13>0,H13,"") ->  | S13: =IF(AND(P13="ماهیانه",L13>0),I13,IF(M13>0,I13,IF(O13>0,"میانگین",""))) ->  | T13: =IF(AND(P13="ماهیانه",L13>0),J13,"") ->  | U13: =IF(O13=0,IF(T13<>"",L13,M13),IF(O13>0,O13,0)) -> 0 | V13: =IF(U13>0,IF(S13="میانگین",S13,IF(HLOOKUP(H13&"-"&Z13,shtip,2,0)="","علی الحساب","قطعی")),0) -> 0 | W13: =IF(V13="علی الحساب",$C$9,IF(V13="قطعی",S13,V13)) -> 0 | X13: =IF(V13="علی الحساب",$C$10,+IF(V13="قطعی",T13,"")) ->  | Y13: =IF(V13="علی الحساب",$D$9,+IF(V13="قطعی",H13,0)) -> 0 | Z13: 1 | AA13: =IF(U13>0,"("&U13&"/"&$T$9&")",0) -> 0 | AB13: =U13/$T$9 ->  | AC13: =IF(U13>0,IF(W13="میانگین",166,IF(V13="علی الحساب",$F$9,IF(X13="",(((1422-Y13)*4)-Z13)+1,457-((Y13-1397)*12)-VLOOKUP(X13,mount_kd,2,0)))),"") ->  | AD13: =IF(IF(X13<>"",X13&Y13,W13&Y13)="0"&"0",0,IF(X13<>"",X13&Y13,W13&Y13)) -> 0 | AE13: =IF(AG13="","",AF13) ->  | AF13: =IF(AG13="",AF12,AF12+1) -> 1 | AG13: =IF(AH13="","",Q13&"-4-2") ->  | AH13: =IF(U13>0," مدت کارکرد در دوره های سه ماهه "&S13&" "&T13&" سال "&R13,"") ->  | AI13: =IF(U13>0," روز "&U13,"") -> 
A14: =IF(AND(A13<$B$13*1,A13<>""),A13+1,"") ->  | C14: 2 | D14: 31 | E14: =SUM($D$13:D14) -> 62 | F14: =IF($U$7>E14,D14,$U$7-F13) -> 0 | G14: =IF(D14-F14>0,IF(SUM($G$13:G13)>0,0,$S$7),0) -> 0 | H14: =H13 -> 0 | I14: اول | J14: اردیبهشت | K14: =IF(E14>$U$8,$T$9-SUM($K$13:K13),D14-F14+G14) -> 0 | L14: =IF(N14>K14,K14,N14) -> 0 | N14: =IF($T$4-SUM($K$13:K13)>0,$T$4-SUM($K$13:K13),0) -> 0 | O14: =IF(N14=0,IF(SUM($O$13:O13)>0,0,$T$5),0) -> 0 | Q14: =IF(R14<>"",COUNT($R$13:R14),0) -> 0 | R14: =IF(U14>0,H14,"") ->  | S14: =IF(AND(P13="ماهیانه",L14>0),I14,IF(M14>0,I14,IF(O14>0,"میانگین",""))) ->  | T14: =IF(AND(P13="ماهیانه",L14>0),J14,"") ->  | U14: =IF(O14=0,IF(T14<>"",L14,M14),IF(O14>0,O14,0)) -> 0 | V14: 0 | W14: =IF(V14="علی الحساب",$C$9,IF(V14="قطعی",S14,V14)) -> 0 | X14: =IF(V14="علی الحساب",$C$10,+IF(V14="قطعی",T14,"")) ->  | Y14: =IF(V14="علی الحساب",$D$9,+IF(V14="قطعی",H14,0)) -> 0 | Z14: 1 | AA14: =IF(U14>0,"("&U14&"/"&$T$9&")",0) -> 0 | AB14: =U14/$T$9 ->  | AD14: =IF(IF(X14<>"",X14&Y14,W14&Y14)="0"&"0",0,IF(X14<>"",X14&Y14,W14&Y14)) -> 0 | AE14: =IF(AG14="","",AF14) ->  | AF14: =IF(AG14="",AF13,AF13+1) -> 1 | AG14: =IF(AH14="","",Q14&"-4-2") ->  | AH14: =IF(U14>0," مدت کارکرد در دوره های سه ماهه "&S14&" "&T14&" سال "&R14,"") ->  | AI14: =IF(U14>0," روز "&U14,"") -> 
A15: =IF(AND(A14<$B$13*1,A14<>""),A14+1,"") ->  | C15: 3 | D15: 31 | E15: =SUM($D$13:D15) -> 93 | F15: =IF($U$7>E15,D15,$U$7-SUM($F$13:F14)) -> 0 | G15: =IF(D15-F15>0,IF(SUM($G$13:G14)>0,0,$S$7),0) -> 0 | H15: =H14 -> 0 | I15: اول | J15: خرداد | K15: =IF(E15>$U$8,$T$9-SUM($K$13:K14),D15-F15+G15) -> 0 | L15: 0 | N15: =IF($T$4-SUM($K$13:K14)>0,$T$4-SUM($K$13:K14),0) -> 0 | O15: =IF(N15=0,IF(SUM($O$13:O14)>0,0,$T$5),0) -> 0 | Q15: =IF(R15<>"",COUNT($R$13:R15),0) -> 0 | R15: =IF(U15>0,H15,"") ->  | S15: =IF(AND(P13="ماهیانه",L15>0),I15,IF(M15>0,I15,IF(O15>0,"میانگین",""))) ->  | T15: =IF(AND(P13="ماهیانه",L15>0),J15,"") ->  | U15: =IF(O15=0,IF(T15<>"",L15,M15),IF(O15>0,O15,0)) -> 0 | V15: 0 | W15: =IF(V15="علی الحساب",$C$9,IF(V15="قطعی",S15,V15)) -> 0 | Y15: 0 | Z15: 1 | AA15: 0 | AD15: 0 | AE15: =IF(AG15="","",AF15) ->  | AF15: =IF(AG15="",AF14,AF14+1) -> 1
C16: 4 | D16: 31 | E16: =SUM($D$13:D16) -> 124 | F16: =IF($U$7>E16,D16,$U$7-SUM($F$13:F15)) -> 0 | G16: =IF(D16-F16>0,IF(SUM($G$13:G15)>0,0,$S$7),0) -> 0 | H16: 0 | I16: دوم | J16: تیر | K16: =IF(E16>$U$8,$T$9-SUM($K$13:K15),D16-F16+G16) -> 0 | L16: 0 | M16: =IF(P16="ماهیانه",0,SUM(L16:L18)) -> 0 | N16: =IF($T$4-SUM($K$13:K15)>0,$T$4-SUM($K$13:K15),0) -> 0 | O16: =IF(N16=0,IF(SUM($O$13:O15)>0,0,$T$5),0) -> 0 | P16: =IFERROR(HLOOKUP(H16&"-2",shtip,2,0),"") ->  | Q16: =IF(R16<>"",COUNT($R$13:R16),0) -> 0 | R16: =IF(U16>0,H16,"") ->  | S16: =IF(AND(P16="ماهیانه",L16>0),I16,IF(M16>0,I16,IF(O16>0,"میانگین",""))) ->  | T16: =IF(AND(P16="ماهیانه",L16>0),J16,"") ->  | U16: =IF(O16=0,IF(T16<>"",L16,M16),IF(O16>0,O16,0)) -> 0 | V16: 0 | W16: 0 | X16: =IF(V16="علی الحساب",$C$10,+IF(V16="قطعی",T16,"")) ->  | Y16: 0 | Z16: 2 | AA16: 0 | AD16: 0 | AE16: =IF(AG16="","",AF16) ->  | AF16: =IF(AG16="",AF15,AF15+1) -> 1
C17: 5 | D17: 31 | E17: =SUM($D$13:D17) -> 155 | F17: =IF($U$7>E17,D17,$U$7-SUM($F$13:F16)) -> 0 | G17: =IF(D17-F17>0,IF(SUM($G$13:G16)>0,0,$S$7),0) -> 0 | H17: 0 | I17: دوم | J17: مرداد | K17: =IF(E17>$U$8,$T$9-SUM($K$13:K16),D17-F17+G17) -> 0 | L17: 0 | N17: =IF($T$4-SUM($K$13:K16)>0,$T$4-SUM($K$13:K16),0) -> 0 | O17: =IF(N17=0,IF(SUM($O$13:O16)>0,0,$T$5),0) -> 0 | Q17: =IF(R17<>"",COUNT($R$13:R17),0) -> 0 | S17: =IF(AND(P16="ماهیانه",L17>0),I17,IF(M17>0,I17,IF(O17>0,"میانگین",""))) ->  | T17: =IF(AND(P16="ماهیانه",L17>0),J17,"") ->  | U17: =IF(O17=0,IF(T17<>"",L17,M17),IF(O17>0,O17,0)) -> 0 | V17: 0 | W17: 0 | X17: =IF(V17="علی الحساب",$C$10,+IF(V17="قطعی",T17,"")) ->  | Y17: 0 | Z17: 2 | AA17: 0 | AD17: 0 | AF17: 1
C18: 6 | D18: 31 | E18: =SUM($D$13:D18) -> 186 | F18: =IF($U$7>E18,D18,$U$7-SUM($F$13:F17)) -> 0 | G18: =IF(D18-F18>0,IF(SUM($G$13:G17)>0,0,$S$7),0) -> 0 | H18: 0 | I18: دوم | J18: شهریور | K18: =IF(E18>$U$8,$T$9-SUM($K$13:K17),D18-F18+G18) -> 0 | L18: 0 | N18: =IF($T$4-SUM($K$13:K17)>0,$T$4-SUM($K$13:K17),0) -> 0 | O18: =IF(N18=0,IF(SUM($O$13:O17)>0,0,$T$5),0) -> 0 | Q18: =IF(R18<>"",COUNT($R$13:R18),0) -> 0 | S18: =IF(AND(P16="ماهیانه",L18>0),I18,IF(M18>0,I18,IF(O18>0,"میانگین",""))) ->  | T18: =IF(AND(P16="ماهیانه",L18>0),J18,"") ->  | U18: 0 | V18: 0 | W18: 0 | Y18: 0 | Z18: 2 | AA18: 0 | AD18: 0 | AF18: 1
C19: 7 | D19: 30 | E19: =SUM($D$13:D19) -> 216 | F19: =IF($U$7>E19,D19,$U$7-SUM($F$13:F18)) -> 0 | G19: =IF(D19-F19>0,IF(SUM($G$13:G18)>0,0,$S$7),0) -> 0 | H19: 0 | I19: سوم | J19: مهر | K19: =IF(E19>$U$8,$T$9-SUM($K$13:K18),D19-F19+G19) -> 0 | L19: 0 | M19: =IF(P19="ماهیانه",0,SUM(L19:L21)) -> 0 | N19: =IF($T$4-SUM($K$13:K18)>0,$T$4-SUM($K$13:K18),0) -> 0 | O19: =IF(N19=0,IF(SUM($O$13:O18)>0,0,$T$5),0) -> 0 | P19: =IFERROR(HLOOKUP(H19&"-3",shtip,2,0),"") ->  | Q19: =IF(R19<>"",COUNT($R$13:R19),0) -> 0 | S19: =IF(AND(P19="ماهیانه",L19>0),I19,IF(M19>0,I19,IF(O19>0,"میانگین",""))) ->  | T19: =IF(AND(P19="ماهیانه",L19>0),J19,"") ->  | U19: 0 | V19: 0 | W19: =IF(V19="علی الحساب",$C$9,IF(V19="قطعی",S19,V19)) -> 0 | Y19: 0 | Z19: 3 | AA19: 0 | AD19: 0 | AF19: 1
C20: 8 | D20: 30 | E20: =SUM($D$13:D20) -> 246 | F20: =IF($U$7>E20,D20,$U$7-SUM($F$13:F19)) -> 0 | G20: =IF(D20-F20>0,IF(SUM($G$13:G19)>0,0,$S$7),0) -> 0 | H20: 0 | I20: سوم | J20: آبان | K20: =IF(E20>$U$8,$T$9-SUM($K$13:K19),D20-F20+G20) -> 0 | L20: 0 | N20: =IF($T$4-SUM($K$13:K19)>0,$T$4-SUM($K$13:K19),0) -> 0 | O20: =IF(N20=0,IF(SUM($O$13:O19)>0,0,$T$5),0) -> 0 | Q20: =IF(R20<>"",COUNT($R$13:R20),0) -> 0 | S20: =IF(AND(P19="ماهیانه",L20>0),I20,IF(M20>0,I20,IF(O20>0,"میانگین",""))) ->  | T20: =IF(AND(P19="ماهیانه",L20>0),J20,"") ->  | U20: 0 | V20: 0 | W20: 0 | Y20: 0 | Z20: 3 | AA20: 0 | AD20: 0 | AF20: 1
C21: 9 | D21: 30 | E21: =SUM($D$13:D21) -> 276 | F21: =IF($U$7>E21,D21,$U$7-SUM($F$13:F20)) -> 0 | G21: =IF(D21-F21>0,IF(SUM($G$13:G20)>0,0,$S$7),0) -> 0 | H21: 0 | I21: سوم | J21: آذر | K21: =IF(E21>$U$8,$T$9-SUM($K$13:K20),D21-F21+G21) -> 0 | L21: 0 | N21: =IF($T$4-SUM($K$13:K20)>0,$T$4-SUM($K$13:K20),0) -> 0 | O21: =IF(N21=0,IF(SUM($O$13:O20)>0,0,$T$5),0) -> 0 | Q21: =IF(R21<>"",COUNT($R$13:R21),0) -> 0 | S21: =IF(AND(P19="ماهیانه",L21>0),I21,IF(M21>0,I21,IF(O21>0,"میانگین",""))) ->  | T21: =IF(AND(P19="ماهیانه",L21>0),J21,"") ->  | U21: 0 | V21: 0 | W21: 0 | Y21: 0 | Z21: 3 | AA21: 0 | AD21: 0 | AF21: 1
C22: 10 | D22: 30 | E22: =SUM($D$13:D22) -> 306 | F22: =IF($U$7>E22,D22,$U$7-SUM($F$13:F21)) -> 0 | G22: =IF(D22-F22>0,IF(SUM($G$13:G21)>0,0,$S$7),0) -> 0 | H22: 0 | I22: چهارم | J22: دی | K22: =IF(E22>$U$8,$T$9-SUM($K$13:K21),D22-F22+G22) -> 0 | L22: 0 | M22: =IF(P22="ماهیانه",0,SUM(L22:L24)) -> 0 | N22: =IF($T$4-SUM($K$13:K21)>0,$T$4-SUM($K$13:K21),0) -> 0 | O22: =IF(N22=0,IF(SUM($O$13:O21)>0,0,$T$5),0) -> 0 | P22: =IFERROR(HLOOKUP(H22&"-4",shtip,2,0),"") ->  | Q22: =IF(R22<>"",COUNT($R$13:R22),0) -> 0 | S22: =IF(AND(P22="ماهیانه",L22>0),I22,IF(M22>0,I22,IF(O22>0,"میانگین",""))) ->  | T22: =IF(AND(P22="ماهیانه",L22>0),J22,"") ->  | U22: 0 | V22: 0 | W22: 0 | Y22: 0 | Z22: 4 | AA22: 0 | AD22: 0 | AF22: 1
C23: 11 | D23: 30 | E23: =SUM($D$13:D23) -> 336 | F23: =IF($U$7>E23,D23,$U$7-SUM($F$13:F22)) -> 0 | G23: =IF(D23-F23>0,IF(SUM($G$13:G22)>0,0,$S$7),0) -> 0 | H23: 0 | I23: چهارم | J23: بهمن | K23: =IF(E23>$U$8,$T$9-SUM($K$13:K22),D23-F23+G23) -> 0 | L23: 0 | N23: =IF($T$4-SUM($K$13:K22)>0,$T$4-SUM($K$13:K22),0) -> 0 | O23: =IF(N23=0,IF(SUM($O$13:O22)>0,0,$T$5),0) -> 0 | Q23: =IF(R23<>"",COUNT($R$13:R23),0) -> 0 | S23: =IF(AND(P22="ماهیانه",L23>0),I23,IF(M23>0,I23,IF(O23>0,"میانگین",""))) ->  | T23: =IF(AND(P22="ماهیانه",L23>0),J23,"") ->  | U23: 0 | V23: 0 | W23: 0 | Y23: 0 | Z23: 4 | AA23: 0 | AD23: 0 | AE23: =IF(AG23="","",AF23) ->  | AF23: =IF(AG23="",AF22,AF22+1) -> 1 | AG23: =IF(AH23="","",Q23&"-4-2") -> 
C24: 12 | D24: =29+[3]!Jleap(B13) -> 29 | E24: =SUM($D$13:D24) -> 365 | F24: =IF($U$7>E24,D24,$U$7-SUM($F$13:F23)) -> 0 | G24: =IF(D24-F24>0,IF(SUM($G$13:G23)>0,0,$S$7),0) -> 0 | H24: 0 | I24: چهارم | J24: اسفند | K24: =IF(E24>$U$8,$T$9-SUM($K$13:K23),D24-F24+G24) -> 0 | L24: 0 | N24: =IF($T$4-SUM($K$13:K23)>0,$T$4-SUM($K$13:K23),0) -> 0 | O24: =IF(N24=0,IF(SUM($O$13:O23)>0,0,$T$5),0) -> 0 | Q24: =IF(R24<>"",COUNT($R$13:R24),0) -> 0 | S24: =IF(AND(P22="ماهیانه",L24>0),I24,IF(M24>0,I24,IF(O24>0,"میانگین",""))) ->  | T24: =IF(AND(P22="ماهیانه",L24>0),J24,"") ->  | U24: 0 | V24: 0 | W24: 0 | Y24: 0 | Z24: 4 | AA24: 0 | AD24: 0 | AF24: 1
B25: =IF(B13+1<=$P$8,B13+1,0) -> 0 | C25: 1 | D25: 31 | E25: =SUM($D$13:D25) -> 396 | F25: =IF($U$7>E25,D25,$U$7-SUM($F$13:F24)) -> 0 | G25: =IF(D25-F25>0,IF(SUM($G$13:G24)>0,0,$S$7),0) -> 0 | H25: =B25 -> 0 | I25: اول | J25: فروردین | K25: =IF(E25>$U$8,$T$9-SUM($K$13:K24),D25-F25+G25) -> 0 | L25: 0 | M25: =SUM(L25:L27) -> 0 | N25: =IF($T$4-SUM($K$13:K24)>0,$T$4-SUM($K$13:K24),0) -> 0 | O25: =IF(N25=0,IF(SUM($O$13:O24)>0,0,$T$5),0) -> 0 | P25: =IFERROR(HLOOKUP(H25&"-1",shtip,2,0),"") ->  | Q25: =IF(R25<>"",COUNT($R$13:R25),0) -> 0 | S25: =IF(AND(P25="ماهیانه",L25>0),I25,IF(M25>0,I25,IF(O25>0,"میانگین",""))) ->  | T25: =IF(AND(P25="ماهیانه",L25>0),J25,"") ->  | U25: 0 | V25: =IF(U25>0,IF(S25="میانگین",S25,IF(HLOOKUP(H25&"-"&Z25,shtip,2,0)="","علی الحساب","قطعی")),0) -> 0 | W25: 0 | Y25: 0 | Z25: 1 | AA25: 0 | AD25: 0 | AF25: 1
C26: 2 | D26: 31 | E26: =SUM($D$13:D26) -> 427 | F26: =IF($U$7>E26,D26,$U$7-SUM($F$13:F25)) -> 0 | G26: =IF(D26-F26>0,IF(SUM($G$13:G25)>0,0,$S$7),0) -> 0 | H26: =H25 -> 0 | I26: اول | J26: اردیبهشت | K26: =IF(E26>$U$8,$T$9-SUM($K$13:K25),D26-F26+G26) -> 0 | L26: 0 | N26: =IF($T$4-SUM($K$13:K25)>0,$T$4-SUM($K$13:K25),0) -> 0 | O26: =IF(N26=0,IF(SUM($O$13:O25)>0,0,$T$5),0) -> 0 | Q26: =IF(R26<>"",COUNT($R$13:R26),0) -> 0 | S26: =IF(AND(P25="ماهیانه",L26>0),I26,IF(M26>0,I26,IF(O26>0,"میانگین",""))) ->  | T26: =IF(AND(P25="ماهیانه",L26>0),J26,"") ->  | U26: 0 | V26: 0 | W26: =IF(V26="علی الحساب",$C$9,IF(V26="قطعی",S26,V26)) -> 0 | X26: =IF(V26="علی الحساب",$C$10,+IF(V26="قطعی",T26,"")) ->  | Y26: 0 | Z26: 1 | AA26: 0 | AD26: 0 | AF26: 1
C27: 3 | D27: 31 | E27: =SUM($D$13:D27) -> 458 | F27: =IF($U$7>E27,D27,$U$7-SUM($F$13:F26)) -> 0 | G27: =IF(D27-F27>0,IF(SUM($G$13:G26)>0,0,$S$7),0) -> 0 | H27: =H26 -> 0 | I27: اول | J27: خرداد | K27: =IF(E27>$U$8,$T$9-SUM($K$13:K26),D27-F27+G27) -> 0 | L27: 0 | N27: =IF($T$4-SUM($K$13:K26)>0,$T$4-SUM($K$13:K26),0) -> 0 | O27: =IF(N27=0,IF(SUM($O$13:O26)>0,0,$T$5),0) -> 0 | Q27: =IF(R27<>"",COUNT($R$13:R27),0) -> 0 | S27: =IF(AND(P25="ماهیانه",L27>0),I27,IF(M27>0,I27,IF(O27>0,"میانگین",""))) ->  | T27: =IF(AND(P25="ماهیانه",L27>0),J27,"") ->  | U27: 0 | V27: 0 | W27: =IF(V27="علی الحساب",$C$9,IF(V27="قطعی",S27,V27)) -> 0 | X27: =IF(V27="علی الحساب",$C$10,+IF(V27="قطعی",T27,"")) ->  | Y27: 0 | Z27: 1 | AA27: 0 | AD27: 0 | AF27: 1
C28: 4 | D28: 31 | E28: =SUM($D$13:D28) -> 489 | F28: =IF($U$7>E28,D28,$U$7-SUM($F$13:F27)) -> 0 | G28: =IF(D28-F28>0,IF(SUM($G$13:G27)>0,0,$S$7),0) -> 0 | H28: 0 | I28: دوم | J28: تیر | K28: =IF(E28>$U$8,$T$9-SUM($K$13:K27),D28-F28+G28) -> 0 | L28: 0 | M28: =SUM(L28:L30) -> 0 | N28: =IF($T$4-SUM($K$13:K27)>0,$T$4-SUM($K$13:K27),0) -> 0 | O28: =IF(N28=0,IF(SUM($O$13:O27)>0,0,$T$5),0) -> 0 | P28: =IFERROR(HLOOKUP(H28&"-2",shtip,2,0),"") ->  | Q28: =IF(R28<>"",COUNT($R$13:R28),0) -> 0 | R28: =IF(U28>0,H28,"") ->  | S28: =IF(AND(P28="ماهیانه",L28>0),I28,IF(M28>0,I28,IF(O28>0,"میانگین",""))) ->  | T28: =IF(AND(P28="ماهیانه",L28>0),J28,"") ->  | U28: =IF(O28=0,IF(T28<>"",L28,M28),IF(O28>0,O28,0)) -> 0 | V28: 0 | W28: =IF(V28="علی الحساب",$C$9,IF(V28="قطعی",S28,V28)) -> 0 | X28: =IF(V28="علی الحساب",$C$10,+IF(V28="قطعی",T28,"")) ->  | Y28: =IF(V28="علی الحساب",$D$9,+IF(V28="قطعی",H28,0)) -> 0 | Z28: 2 | AA28: =IF(U28>0,"("&U28&"/"&$T$9&")",0) -> 0 | AB28: =U28/$T$9 ->  | AD28: =IF(IF(X28<>"",X28&Y28,W28&Y28)="0"&"0",0,IF(X28<>"",X28&Y28,W28&Y28)) -> 0 | AF28: 1
C29: 5 | D29: 31 | E29: =SUM($D$13:D29) -> 520 | F29: =IF($U$7>E29,D29,$U$7-SUM($F$13:F28)) -> 0 | G29: =IF(D29-F29>0,IF(SUM($G$13:G28)>0,0,$S$7),0) -> 0 | H29: 0 | I29: دوم | J29: مرداد | K29: =IF(E29>$U$8,$T$9-SUM($K$13:K28),D29-F29+G29) -> 0 | L29: 0 | N29: =IF($T$4-SUM($K$13:K28)>0,$T$4-SUM($K$13:K28),0) -> 0 | O29: =IF(N29=0,IF(SUM($O$13:O28)>0,0,$T$5),0) -> 0 | Q29: =IF(R29<>"",COUNT($R$13:R29),0) -> 0 | S29: =IF(AND(P28="ماهیانه",L29>0),I29,IF(M29>0,I29,IF(O29>0,"میانگین",""))) ->  | T29: =IF(AND(P28="ماهیانه",L29>0),J29,"") ->  | U29: 0 | V29: 0 | W29: =IF(V29="علی الحساب",$C$9,IF(V29="قطعی",S29,V29)) -> 0 | X29: =IF(V29="علی الحساب",$C$10,+IF(V29="قطعی",T29,"")) ->  | Y29: 0 | Z29: 2 | AA29: 0 | AD29: 0 | AF29: 1
C30: 6 | D30: 31 | E30: =SUM($D$13:D30) -> 551 | F30: =IF($U$7>E30,D30,$U$7-SUM($F$13:F29)) -> 0 | G30: =IF(D30-F30>0,IF(SUM($G$13:G29)>0,0,$S$7),0) -> 0 | H30: 0 | I30: دوم | J30: شهریور | K30: =IF(E30>$U$8,$T$9-SUM($K$13:K29),D30-F30+G30) -> 0 | L30: 0 | N30: =IF($T$4-SUM($K$13:K29)>0,$T$4-SUM($K$13:K29),0) -> 0 | O30: =IF(N30=0,IF(SUM($O$13:O29)>0,0,$T$5),0) -> 0 | Q30: =IF(R30<>"",COUNT($R$13:R30),0) -> 0 | S30: =IF(AND(P28="ماهیانه",L30>0),I30,IF(M30>0,I30,IF(O30>0,"میانگین",""))) ->  | T30: =IF(AND(P28="ماهیانه",L30>0),J30,"") ->  | U30: 0 | V30: 0 | W30: 0 | Y30: 0 | Z30: 2 | AA30: 0 | AD30: 0 | AF30: 1
C31: 7 | D31: 30 | E31: =SUM($D$13:D31) -> 581 | F31: =IF($U$7>E31,D31,$U$7-SUM($F$13:F30)) -> 0 | G31: =IF(D31-F31>0,IF(SUM($G$13:G30)>0,0,$S$7),0) -> 0 | H31: 0 | I31: سوم | J31: مهر | K31: =IF(E31>$U$8,$T$9-SUM($K$13:K30),D31-F31+G31) -> 0 | L31: 0 | M31: =SUM(L31:L33) -> 0 | N31: =IF($T$4-SUM($K$13:K30)>0,$T$4-SUM($K$13:K30),0) -> 0 | O31: =IF(N31=0,IF(SUM($O$13:O30)>0,0,$T$5),0) -> 0 | P31: =IFERROR(HLOOKUP(H31&"-3",shtip,2,0),"") ->  | Q31: =IF(R31<>"",COUNT($R$13:R31),0) -> 0 | S31: =IF(AND(P31="ماهیانه",L31>0),I31,IF(M31>0,I31,IF(O31>0,"میانگین",""))) ->  | T31: =IF(AND(P31="ماهیانه",L31>0),J31,"") ->  | U31: 0 | V31: 0 | W31: 0 | Y31: 0 | Z31: 3 | AA31: 0 | AD31: 0 | AF31: 1
C32: 8 | D32: 30 | E32: =SUM($D$13:D32) -> 611 | F32: =IF($U$7>E32,D32,$U$7-SUM($F$13:F31)) -> 0 | H32: 0 | I32: سوم | J32: آبان | K32: =IF(E32>$U$8,$T$9-SUM($K$13:K31),D32-F32+G32) -> 0 | L32: 0 | N32: =IF($T$4-SUM($K$13:K31)>0,$T$4-SUM($K$13:K31),0) -> 0 | O32: =IF(N32=0,IF(SUM($O$13:O31)>0,0,$T$5),0) -> 0 | Q32: =IF(R32<>"",COUNT($R$13:R32),0) -> 0 | S32: =IF(AND(P31="ماهیانه",L32>0),I32,IF(M32>0,I32,IF(O32>0,"میانگین",""))) ->  | T32: =IF(AND(P31="ماهیانه",L32>0),J32,"") ->  | U32: 0 | V32: 0 | W32: 0 | Y32: 0 | Z32: 3 | AA32: 0 | AD32: 0 | AF32: 1
C33: 9 | D33: 30 | E33: =SUM($D$13:D33) -> 641 | F33: =IF($U$7>E33,D33,$U$7-SUM($F$13:F32)) -> 0 | H33: 0 | I33: سوم | J33: آذر | K33: =IF(E33>$U$8,$T$9-SUM($K$13:K32),D33-F33+G33) -> 0 | L33: 0 | N33: =IF($T$4-SUM($K$13:K32)>0,$T$4-SUM($K$13:K32),0) -> 0 | O33: =IF(N33=0,IF(SUM($O$13:O32)>0,0,$T$5),0) -> 0 | Q33: =IF(R33<>"",COUNT($R$13:R33),0) -> 0 | S33: =IF(AND(P31="ماهیانه",L33>0),I33,IF(M33>0,I33,IF(O33>0,"میانگین",""))) ->  | T33: =IF(AND(P31="ماهیانه",L33>0),J33,"") ->  | U33: 0 | V33: 0 | W33: 0 | Y33: 0 | Z33: 3 | AA33: 0 | AD33: 0 | AF33: 1
C34: 10 | D34: 30 | E34: =SUM($D$13:D34) -> 671 | F34: =IF($U$7>E34,D34,$U$7-SUM($F$13:F33)) -> 0 | H34: 0 | I34: چهارم | J34: دی | K34: =IF(E34>$U$8,$T$9-SUM($K$13:K33),D34-F34+G34) -> 0 | L34: 0 | M34: =SUM(L34:L36) -> 0 | N34: =IF($T$4-SUM($K$13:K33)>0,$T$4-SUM($K$13:K33),0) -> 0 | O34: =IF(N34=0,IF(SUM($O$13:O33)>0,0,$T$5),0) -> 0 | P34: =IFERROR(HLOOKUP(H34&"-4",shtip,2,0),"") ->  | Q34: =IF(R34<>"",COUNT($R$13:R34),0) -> 0 | S34: =IF(AND(P34="ماهیانه",L34>0),I34,IF(M34>0,I34,IF(O34>0,"میانگین",""))) ->  | T34: =IF(AND(P34="ماهیانه",L34>0),J34,"") ->  | U34: 0 | V34: 0 | W34: 0 | Y34: 0 | Z34: 4 | AA34: 0 | AD34: 0 | AF34: 1
C35: 11 | D35: 30 | E35: =SUM($D$13:D35) -> 701 | F35: =IF($U$7>E35,D35,$U$7-SUM($F$13:F34)) -> 0 | H35: 0 | I35: چهارم | J35: بهمن | K35: =IF(E35>$U$8,$T$9-SUM($K$13:K34),D35-F35+G35) -> 0 | L35: 0 | N35: =IF($T$4-SUM($K$13:K34)>0,$T$4-SUM($K$13:K34),0) -> 0 | O35: =IF(N35=0,IF(SUM($O$13:O34)>0,0,$T$5),0) -> 0 | Q35: =IF(R35<>"",COUNT($R$13:R35),0) -> 0 | S35: =IF(AND(P34="ماهیانه",L35>0),I35,IF(M35>0,I35,IF(O35>0,"میانگین",""))) ->  | T35: =IF(AND(P34="ماهیانه",L35>0),J35,"") ->  | U35: 0 | V35: 0 | W35: 0 | Y35: 0 | Z35: 4 | AA35: 0 | AD35: 0 | AF35: 1
C36: 12 | D36: =29+[3]!Jleap(B25) -> 29 | E36: =SUM($D$13:D36) -> 730 | F36: =IF($U$7>E36,D36,$U$7-SUM($F$13:F35)) -> 0 | H36: 0 | I36: چهارم | J36: اسفند | K36: =IF(E36>$U$8,$T$9-SUM($K$13:K35),D36-F36+G36) -> 0 | L36: 0 | N36: =IF($T$4-SUM($K$13:K35)>0,$T$4-SUM($K$13:K35),0) -> 0 | O36: =IF(N36=0,IF(SUM($O$13:O35)>0,0,$T$5),0) -> 0 | Q36: =IF(R36<>"",COUNT($R$13:R36),0) -> 0 | S36: =IF(AND(P34="ماهیانه",L36>0),I36,IF(M36>0,I36,IF(O36>0,"میانگین",""))) ->  | T36: =IF(AND(P34="ماهیانه",L36>0),J36,"") ->  | U36: 0 | V36: 0 | W36: 0 | Y36: 0 | Z36: 4 | AA36: 0 | AD36: 0 | AF36: 1
B37: =IF(B25=0,0,IF(B25+1<=$P$8,B25+1,0)) -> 0 | C37: 1 | D37: 31 | E37: =SUM($D$13:D37) -> 761 | F37: =IF($U$7>E37,D37,$U$7-SUM($F$13:F36)) -> 0 | H37: =B37 -> 0 | I37: اول | J37: فروردین | K37: =IF(E37>$U$8,$T$9-SUM($K$13:K36),D37-F37+G37) -> 0 | L37: =IF(N37>K37,K37,N37) -> 0 | M37: =SUM(L37:L39) -> 0 | N37: =IF($T$4-SUM($K$13:K36)>0,$T$4-SUM($K$13:K36),0) -> 0 | O37: =IF(N37=0,IF(SUM($O$13:O36)>0,0,$T$5),0) -> 0 | P37: =IFERROR(HLOOKUP(H37&"-1",shtip,2,0),"") ->  | Q37: =IF(R37<>"",COUNT($R$13:R37),0) -> 0 | R37: =IF(U37>0,H37,"") ->  | S37: =IF(AND(P37="ماهیانه",L37>0),I37,IF(M37>0,I37,IF(O37>0,"میانگین",""))) ->  | T37: =IF(AND(P37="ماهیانه",L37>0),J37,"") ->  | U37: =IF(O37=0,IF(T37<>"",L37,M37),IF(O37>0,O37,0)) -> 0 | V37: 0 | W37: =IF(V37="علی الحساب",$C$9,IF(V37="قطعی",S37,V37)) -> 0 | X37: =IF(V37="علی الحساب",$C$10,+IF(V37="قطعی",T37,"")) ->  | Y37: =IF(V37="علی الحساب",$D$9,+IF(V37="قطعی",H37,0)) -> 0 | Z37: 1 | AA37: =IF(U37>0,"("&U37&"/"&$T$9&")",0) -> 0 | AB37: =U37/$T$9 ->  | AD37: =IF(IF(X37<>"",X37&Y37,W37&Y37)="0"&"0",0,IF(X37<>"",X37&Y37,W37&Y37)) -> 0 | AF37: 1
C38: 2 | D38: 31 | E38: =SUM($D$13:D38) -> 792 | F38: =IF($U$7>E38,D38,$U$7-SUM($F$13:F37)) -> 0 | H38: =H37 -> 0 | I38: اول | J38: اردیبهشت | K38: =IF(E38>$U$8,$T$9-SUM($K$13:K37),D38-F38+G38) -> 0 | L38: 0 | N38: =IF($T$4-SUM($K$13:K37)>0,$T$4-SUM($K$13:K37),0) -> 0 | O38: =IF(N38=0,IF(SUM($O$13:O37)>0,0,$T$5),0) -> 0 | Q38: =IF(R38<>"",COUNT($R$13:R38),0) -> 0 | S38: =IF(AND(P37="ماهیانه",L38>0),I38,IF(M38>0,I38,IF(O38>0,"میانگین",""))) ->  | T38: =IF(AND(P37="ماهیانه",L38>0),J38,"") ->  | U38: 0 | V38: 0 | W38: 0 | Y38: 0 | Z38: 1 | AA38: 0 | AD38: 0 | AF38: 1
C39: 3 | D39: 31 | E39: =SUM($D$13:D39) -> 823 | F39: =IF($U$7>E39,D39,$U$7-SUM($F$13:F38)) -> 0 | H39: =H38 -> 0 | I39: اول | J39: خرداد | K39: =IF(E39>$U$8,$T$9-SUM($K$13:K38),D39-F39+G39) -> 0 | L39: 0 | N39: =IF($T$4-SUM($K$13:K38)>0,$T$4-SUM($K$13:K38),0) -> 0 | O39: =IF(N39=0,IF(SUM($O$13:O38)>0,0,$T$5),0) -> 0 | Q39: =IF(R39<>"",COUNT($R$13:R39),0) -> 0 | S39: =IF(AND(P37="ماهیانه",L39>0),I39,IF(M39>0,I39,IF(O39>0,"میانگین",""))) ->  | T39: =IF(AND(P37="ماهیانه",L39>0),J39,"") ->  | U39: 0 | V39: 0 | W39: 0 | Y39: 0 | Z39: 1 | AA39: 0 | AD39: 0 | AF39: 1
C40: 4 | D40: 31 | E40: =SUM($D$13:D40) -> 854 | F40: =IF($U$7>E40,D40,$U$7-SUM($F$13:F39)) -> 0 | H40: 0 | I40: دوم | J40: تیر | K40: =IF(E40>$U$8,$T$9-SUM($K$13:K39),D40-F40+G40) -> 0 | L40: 0 | M40: =SUM(L40:L42) -> 0 | N40: =IF($T$4-SUM($K$13:K39)>0,$T$4-SUM($K$13:K39),0) -> 0 | O40: =IF(N40=0,IF(SUM($O$13:O39)>0,0,$T$5),0) -> 0 | P40: =IFERROR(HLOOKUP(H40&"-2",shtip,2,0),"") ->  | Q40: =IF(R40<>"",COUNT($R$13:R40),0) -> 0 | S40: =IF(AND(P40="ماهیانه",L40>0),I40,IF(M40>0,I40,IF(O40>0,"میانگین",""))) ->  | T40: =IF(AND(P40="ماهیانه",L40>0),J40,"") ->  | U40: 0 | V40: 0 | W40: 0 | Y40: 0 | Z40: 2 | AA40: 0 | AD40: 0 | AF40: 1
C41: 5 | D41: 31 | E41: =SUM($D$13:D41) -> 885 | F41: =IF($U$7>E41,D41,$U$7-SUM($F$13:F40)) -> 0 | H41: 0 | I41: دوم | J41: مرداد | K41: =IF(E41>$U$8,$T$9-SUM($K$13:K40),D41-F41+G41) -> 0 | L41: 0 | N41: =IF($T$4-SUM($K$13:K40)>0,$T$4-SUM($K$13:K40),0) -> 0 | O41: =IF(N41=0,IF(SUM($O$13:O40)>0,0,$T$5),0) -> 0 | Q41: =IF(R41<>"",COUNT($R$13:R41),0) -> 0 | S41: =IF(AND(P40="ماهیانه",L41>0),I41,IF(M41>0,I41,IF(O41>0,"میانگین",""))) ->  | T41: =IF(AND(P40="ماهیانه",L41>0),J41,"") ->  | U41: 0 | V41: 0 | W41: 0 | Y41: 0 | Z41: 2 | AA41: 0 | AD41: 0 | AF41: 1
C42: 6 | D42: 31 | E42: =SUM($D$13:D42) -> 916 | F42: =IF($U$7>E42,D42,$U$7-SUM($F$13:F41)) -> 0 | H42: 0 | I42: دوم | J42: شهریور | K42: =IF(E42>$U$8,$T$9-SUM($K$13:K41),D42-F42+G42) -> 0 | L42: 0 | N42: =IF($T$4-SUM($K$13:K41)>0,$T$4-SUM($K$13:K41),0) -> 0 | O42: =IF(N42=0,IF(SUM($O$13:O41)>0,0,$T$5),0) -> 0 | Q42: =IF(R42<>"",COUNT($R$13:R42),0) -> 0 | S42: =IF(AND(P40="ماهیانه",L42>0),I42,IF(M42>0,I42,IF(O42>0,"میانگین",""))) ->  | T42: =IF(AND(P40="ماهیانه",L42>0),J42,"") ->  | U42: 0 | V42: 0 | W42: 0 | Y42: 0 | Z42: 2 | AA42: 0 | AD42: 0 | AF42: 1
C43: 7 | D43: 30 | E43: =SUM($D$13:D43) -> 946 | F43: =IF($U$7>E43,D43,$U$7-SUM($F$13:F42)) -> 0 | H43: 0 | I43: سوم | J43: مهر | K43: =IF(E43>$U$8,$T$9-SUM($K$13:K42),D43-F43+G43) -> 0 | L43: 0 | M43: =SUM(L43:L45) -> 0 | N43: =IF($T$4-SUM($K$13:K42)>0,$T$4-SUM($K$13:K42),0) -> 0 | O43: =IF(N43=0,IF(SUM($O$13:O42)>0,0,$T$5),0) -> 0 | P43: =IFERROR(HLOOKUP(H43&"-3",shtip,2,0),"") ->  | Q43: =IF(R43<>"",COUNT($R$13:R43),0) -> 0 | S43: =IF(AND(P43="ماهیانه",L43>0),I43,IF(M43>0,I43,IF(O43>0,"میانگین",""))) ->  | T43: =IF(AND(P43="ماهیانه",L43>0),J43,"") ->  | U43: 0 | V43: 0 | W43: 0 | Y43: 0 | Z43: 3 | AA43: 0 | AD43: 0 | AF43: 1
C44: 8 | D44: 30 | E44: =SUM($D$13:D44) -> 976 | F44: =IF($U$7>E44,D44,$U$7-SUM($F$13:F43)) -> 0 | H44: 0 | I44: سوم | J44: آبان | K44: =IF(E44>$U$8,$T$9-SUM($K$13:K43),D44-F44+G44) -> 0 | L44: 0 | N44: =IF($T$4-SUM($K$13:K43)>0,$T$4-SUM($K$13:K43),0) -> 0 | O44: =IF(N44=0,IF(SUM($O$13:O43)>0,0,$T$5),0) -> 0 | Q44: =IF(R44<>"",COUNT($R$13:R44),0) -> 0 | S44: =IF(AND(P43="ماهیانه",L44>0),I44,IF(M44>0,I44,IF(O44>0,"میانگین",""))) ->  | T44: =IF(AND(P43="ماهیانه",L44>0),J44,"") ->  | U44: 0 | V44: 0 | W44: 0 | Y44: 0 | Z44: 3 | AA44: 0 | AD44: 0 | AF44: 1
C45: 9 | D45: 30 | E45: =SUM($D$13:D45) -> 1006 | F45: =IF($U$7>E45,D45,$U$7-SUM($F$13:F44)) -> 0 | H45: 0 | I45: سوم | J45: آذر | K45: =IF(E45>$U$8,$T$9-SUM($K$13:K44),D45-F45+G45) -> 0 | L45: 0 | N45: =IF($T$4-SUM($K$13:K44)>0,$T$4-SUM($K$13:K44),0) -> 0 | O45: =IF(N45=0,IF(SUM($O$13:O44)>0,0,$T$5),0) -> 0 | Q45: =IF(R45<>"",COUNT($R$13:R45),0) -> 0 | S45: =IF(AND(P43="ماهیانه",L45>0),I45,IF(M45>0,I45,IF(O45>0,"میانگین",""))) ->  | T45: =IF(AND(P43="ماهیانه",L45>0),J45,"") ->  | U45: 0 | V45: =IF(U45>0,IF(S45="میانگین",S45,IF(HLOOKUP(H45&"-"&Z45,shtip,2,0)="","علی الحساب","قطعی")),0) -> 0 | W45: 0 | Y45: 0 | Z45: 3 | AA45: 0 | AC45: =IF(U45>0,IF(W45="میانگین",166,IF(V45="علی الحساب",$F$9,IF(X45="",(((1422-Y45)*4)-Z45)+1,457-((Y45-1397)*12)-VLOOKUP(X45,mount_kd,2,0)))),"") ->  | AD45: 0 | AF45: 1
C46: 10 | D46: 30 | E46: =SUM($D$13:D46) -> 1036 | F46: =IF($U$7>E46,D46,$U$7-SUM($F$13:F45)) -> 0 | H46: 0 | I46: چهارم | J46: دی | K46: =IF(E46>$U$8,$T$9-SUM($K$13:K45),D46-F46+G46) -> 0 | L46: 0 | M46: =SUM(L46:L48) -> 0 | N46: =IF($T$4-SUM($K$13:K45)>0,$T$4-SUM($K$13:K45),0) -> 0 | O46: =IF(N46=0,IF(SUM($O$13:O45)>0,0,$T$5),0) -> 0 | P46: =IFERROR(HLOOKUP(H46&"-4",shtip,2,0),"") ->  | Q46: =IF(R46<>"",COUNT($R$13:R46),0) -> 0 | S46: =IF(AND(P46="ماهیانه",L46>0),I46,IF(M46>0,I46,IF(O46>0,"میانگین",""))) ->  | T46: =IF(AND(P46="ماهیانه",L46>0),J46,"") ->  | U46: 0 | V46: 0 | W46: 0 | Y46: 0 | Z46: 4 | AA46: 0 | AD46: 0 | AF46: 1
C47: 11 | D47: 30 | E47: =SUM($D$13:D47) -> 1066 | F47: =IF($U$7>E47,D47,$U$7-SUM($F$13:F46)) -> 0 | H47: 0 | I47: چهارم | J47: بهمن | K47: =IF(E47>$U$8,$T$9-SUM($K$13:K46),D47-F47+G47) -> 0 | L47: 0 | N47: =IF($T$4-SUM($K$13:K46)>0,$T$4-SUM($K$13:K46),0) -> 0 | O47: =IF(N47=0,IF(SUM($O$13:O46)>0,0,$T$5),0) -> 0 | Q47: =IF(R47<>"",COUNT($R$13:R47),0) -> 0 | S47: =IF(AND(P46="ماهیانه",L47>0),I47,IF(M47>0,I47,IF(O47>0,"میانگین",""))) ->  | T47: =IF(AND(P46="ماهیانه",L47>0),J47,"") ->  | U47: 0 | V47: 0 | W47: 0 | Y47: 0 | Z47: 4 | AA47: 0 | AD47: 0 | AF47: 1
C48: 12 | D48: =29+[3]!Jleap(B37) -> 29 | E48: =SUM($D$13:D48) -> 1095 | F48: =IF($U$7>E48,D48,$U$7-SUM($F$13:F47)) -> 0 | H48: 0 | I48: چهارم | J48: اسفند | K48: =IF(E48>$U$8,$T$9-SUM($K$13:K47),D48-F48+G48) -> 0 | L48: 0 | N48: =IF($T$4-SUM($K$13:K47)>0,$T$4-SUM($K$13:K47),0) -> 0 | O48: =IF(N48=0,IF(SUM($O$13:O47)>0,0,$T$5),0) -> 0 | Q48: =IF(R48<>"",COUNT($R$13:R48),0) -> 0 | S48: =IF(AND(P46="ماهیانه",L48>0),I48,IF(M48>0,I48,IF(O48>0,"میانگین",""))) ->  | T48: =IF(AND(P46="ماهیانه",L48>0),J48,"") ->  | U48: 0 | V48: 0 | W48: 0 | Y48: 0 | Z48: 4 | AA48: 0 | AD48: 0 | AF48: 1
B49: =IF(B37=0,0,IF(B37+1<=$P$8,B37+1,0)) -> 0 | C49: 1 | D49: 31 | E49: =SUM($D$13:D49) -> 1126 | F49: =IF($U$7>E49,D49,$U$7-SUM($F$13:F48)) -> 0 | H49: =B49 -> 0 | I49: اول | J49: فروردین | K49: =IF(E49>$U$8,$T$9-SUM($K$13:K48),D49-F49+G49) -> 0 | L49: 0 | M49: =SUM(L49:L51) -> 0 | N49: =IF($T$4-SUM($K$13:K48)>0,$T$4-SUM($K$13:K48),0) -> 0 | O49: =IF(N49=0,IF(SUM($O$13:O48)>0,0,$T$5),0) -> 0 | P49: =IFERROR(HLOOKUP(H49&"-1",shtip,2,0),"") ->  | Q49: =IF(R49<>"",COUNT($R$13:R49),0) -> 0 | S49: =IF(AND(P49="ماهیانه",L49>0),I49,IF(M49>0,I49,IF(O49>0,"میانگین",""))) ->  | T49: =IF(AND(P49="ماهیانه",L49>0),J49,"") ->  | U49: 0 | V49: 0 | W49: 0 | Y49: 0 | Z49: 1 | AA49: 0 | AD49: 0 | AF49: 1
C50: 2 | D50: 31 | E50: =SUM($D$13:D50) -> 1157 | F50: =IF($U$7>E50,D50,$U$7-SUM($F$13:F49)) -> 0 | H50: =H49 -> 0 | I50: اول | J50: اردیبهشت | K50: =IF(E50>$U$8,$T$9-SUM($K$13:K49),D50-F50+G50) -> 0 | L50: 0 | N50: =IF($T$4-SUM($K$13:K49)>0,$T$4-SUM($K$13:K49),0) -> 0 | O50: =IF(N50=0,IF(SUM($O$13:O49)>0,0,$T$5),0) -> 0 | Q50: =IF(R50<>"",COUNT($R$13:R50),0) -> 0 | S50: =IF(AND(P49="ماهیانه",L50>0),I50,IF(M50>0,I50,IF(O50>0,"میانگین",""))) ->  | T50: =IF(AND(P49="ماهیانه",L50>0),J50,"") ->  | U50: 0 | V50: 0 | W50: 0 | Y50: 0 | Z50: 1 | AA50: 0 | AD50: 0 | AF50: 1
C51: 3 | D51: 31 | E51: =SUM($D$13:D51) -> 1188 | F51: =IF($U$7>E51,D51,$U$7-SUM($F$13:F50)) -> 0 | H51: =H50 -> 0 | I51: اول | J51: خرداد | K51: =IF(E51>$U$8,$T$9-SUM($K$13:K50),D51-F51+G51) -> 0 | L51: 0 | N51: =IF($T$4-SUM($K$13:K50)>0,$T$4-SUM($K$13:K50),0) -> 0 | O51: =IF(N51=0,IF(SUM($O$13:O50)>0,0,$T$5),0) -> 0 | Q51: =IF(R51<>"",COUNT($R$13:R51),0) -> 0 | S51: =IF(AND(P49="ماهیانه",L51>0),I51,IF(M51>0,I51,IF(O51>0,"میانگین",""))) ->  | T51: =IF(AND(P49="ماهیانه",L51>0),J51,"") ->  | U51: 0 | V51: 0 | W51: 0 | Y51: 0 | Z51: 1 | AA51: 0 | AD51: 0 | AF51: 1
C52: 4 | D52: 31 | E52: =SUM($D$13:D52) -> 1219 | F52: =IF($U$7>E52,D52,$U$7-SUM($F$13:F51)) -> 0 | H52: 0 | I52: دوم | J52: تیر | K52: =IF(E52>$U$8,$T$9-SUM($K$13:K51),D52-F52+G52) -> 0 | L52: 0 | M52: =SUM(L52:L54) -> 0 | N52: =IF($T$4-SUM($K$13:K51)>0,$T$4-SUM($K$13:K51),0) -> 0 | O52: =IF(N52=0,IF(SUM($O$13:O51)>0,0,$T$5),0) -> 0 | P52: =IFERROR(HLOOKUP(H52&"-2",shtip,2,0),"") ->  | Q52: =IF(R52<>"",COUNT($R$13:R52),0) -> 0 | S52: =IF(AND(P52="ماهیانه",L52>0),I52,IF(M52>0,I52,IF(O52>0,"میانگین",""))) ->  | T52: =IF(AND(P52="ماهیانه",L52>0),J52,"") ->  | U52: 0 | V52: 0 | W52: 0 | Y52: 0 | Z52: 2 | AA52: 0 | AD52: 0 | AF52: 1
C53: 5 | D53: 31 | E53: =SUM($D$13:D53) -> 1250 | F53: =IF($U$7>E53,D53,$U$7-SUM($F$13:F52)) -> 0 | H53: 0 | I53: دوم | J53: مرداد | K53: =IF(E53>$U$8,$T$9-SUM($K$13:K52),D53-F53+G53) -> 0 | L53: 0 | N53: =IF($T$4-SUM($K$13:K52)>0,$T$4-SUM($K$13:K52),0) -> 0 | O53: =IF(N53=0,IF(SUM($O$13:O52)>0,0,$T$5),0) -> 0 | Q53: =IF(R53<>"",COUNT($R$13:R53),0) -> 0 | S53: =IF(AND(P52="ماهیانه",L53>0),I53,IF(M53>0,I53,IF(O53>0,"میانگین",""))) ->  | T53: =IF(AND(P52="ماهیانه",L53>0),J53,"") ->  | U53: 0 | V53: 0 | W53: 0 | Y53: 0 | Z53: 2 | AA53: 0 | AD53: 0 | AF53: 1
C54: 6 | D54: 31 | E54: =SUM($D$13:D54) -> 1281 | F54: =IF($U$7>E54,D54,$U$7-SUM($F$13:F53)) -> 0 | H54: 0 | I54: دوم | J54: شهریور | K54: =IF(E54>$U$8,$T$9-SUM($K$13:K53),D54-F54+G54) -> 0 | L54: 0 | N54: =IF($T$4-SUM($K$13:K53)>0,$T$4-SUM($K$13:K53),0) -> 0 | O54: =IF(N54=0,IF(SUM($O$13:O53)>0,0,$T$5),0) -> 0 | Q54: =IF(R54<>"",COUNT($R$13:R54),0) -> 0 | S54: =IF(AND(P52="ماهیانه",L54>0),I54,IF(M54>0,I54,IF(O54>0,"میانگین",""))) ->  | T54: =IF(AND(P52="ماهیانه",L54>0),J54,"") ->  | U54: 0 | V54: 0 | W54: 0 | Y54: 0 | Z54: 2 | AA54: 0 | AD54: 0 | AF54: 1
C55: 7 | D55: 30 | E55: =SUM($D$13:D55) -> 1311 | F55: =IF($U$7>E55,D55,$U$7-SUM($F$13:F54)) -> 0 | H55: 0 | I55: سوم | J55: مهر | K55: =IF(E55>$U$8,$T$9-SUM($K$13:K54),D55-F55+G55) -> 0 | L55: 0 | M55: =SUM(L55:L57) -> 0 | N55: =IF($T$4-SUM($K$13:K54)>0,$T$4-SUM($K$13:K54),0) -> 0 | O55: =IF(N55=0,IF(SUM($O$13:O54)>0,0,$T$5),0) -> 0 | P55: =IFERROR(HLOOKUP(H55&"-3",shtip,2,0),"") ->  | Q55: =IF(R55<>"",COUNT($R$13:R55),0) -> 0 | S55: =IF(AND(P55="ماهیانه",L55>0),I55,IF(M55>0,I55,IF(O55>0,"میانگین",""))) ->  | T55: =IF(AND(P55="ماهیانه",L55>0),J55,"") ->  | U55: 0 | V55: 0 | W55: 0 | Y55: 0 | Z55: 3 | AA55: 0 | AD55: 0 | AF55: 1
C56: 8 | D56: 30 | E56: =SUM($D$13:D56) -> 1341 | F56: =IF($U$7>E56,D56,$U$7-SUM($F$13:F55)) -> 0 | H56: 0 | I56: سوم | J56: آبان | K56: =IF(E56>$U$8,$T$9-SUM($K$13:K55),D56-F56+G56) -> 0 | L56: 0 | N56: =IF($T$4-SUM($K$13:K55)>0,$T$4-SUM($K$13:K55),0) -> 0 | O56: =IF(N56=0,IF(SUM($O$13:O55)>0,0,$T$5),0) -> 0 | Q56: =IF(R56<>"",COUNT($R$13:R56),0) -> 0 | S56: =IF(AND(P55="ماهیانه",L56>0),I56,IF(M56>0,I56,IF(O56>0,"میانگین",""))) ->  | T56: =IF(AND(P55="ماهیانه",L56>0),J56,"") ->  | U56: 0 | V56: 0 | W56: 0 | Y56: 0 | Z56: 3 | AA56: 0 | AD56: 0 | AF56: 1
C57: 9 | D57: 30 | E57: =SUM($D$13:D57) -> 1371 | F57: =IF($U$7>E57,D57,$U$7-SUM($F$13:F56)) -> 0 | H57: 0 | I57: سوم | J57: آذر | K57: =IF(E57>$U$8,$T$9-SUM($K$13:K56),D57-F57+G57) -> 0 | L57: 0 | N57: =IF($T$4-SUM($K$13:K56)>0,$T$4-SUM($K$13:K56),0) -> 0 | O57: =IF(N57=0,IF(SUM($O$13:O56)>0,0,$T$5),0) -> 0 | Q57: =IF(R57<>"",COUNT($R$13:R57),0) -> 0 | S57: =IF(AND(P55="ماهیانه",L57>0),I57,IF(M57>0,I57,IF(O57>0,"میانگین",""))) ->  | T57: =IF(AND(P55="ماهیانه",L57>0),J57,"") ->  | U57: 0 | V57: 0 | W57: 0 | Y57: 0 | Z57: 3 | AA57: 0 | AD57: 0 | AF57: 1
C58: 10 | D58: 30 | E58: =SUM($D$13:D58) -> 1401 | F58: =IF($U$7>E58,D58,$U$7-SUM($F$13:F57)) -> 0 | H58: 0 | I58: چهارم | J58: دی | K58: =IF(E58>$U$8,$T$9-SUM($K$13:K57),D58-F58+G58) -> 0 | L58: 0 | M58: =SUM(L58:L60) -> 0 | N58: =IF($T$4-SUM($K$13:K57)>0,$T$4-SUM($K$13:K57),0) -> 0 | O58: =IF(N58=0,IF(SUM($O$13:O57)>0,0,$T$5),0) -> 0 | P58: =IFERROR(HLOOKUP(H58&"-4",shtip,2,0),"") ->  | Q58: =IF(R58<>"",COUNT($R$13:R58),0) -> 0 | S58: =IF(AND(P58="ماهیانه",L58>0),I58,IF(M58>0,I58,IF(O58>0,"میانگین",""))) ->  | T58: =IF(AND(P58="ماهیانه",L58>0),J58,"") ->  | U58: 0 | V58: 0 | W58: 0 | Y58: 0 | Z58: 4 | AA58: 0 | AD58: 0 | AF58: 1
C59: 11 | D59: 30 | E59: =SUM($D$13:D59) -> 1431 | F59: =IF($U$7>E59,D59,$U$7-SUM($F$13:F58)) -> 0 | H59: 0 | I59: چهارم | J59: بهمن | K59: =IF(E59>$U$8,$T$9-SUM($K$13:K58),D59-F59+G59) -> 0 | L59: 0 | N59: =IF($T$4-SUM($K$13:K58)>0,$T$4-SUM($K$13:K58),0) -> 0 | O59: =IF(N59=0,IF(SUM($O$13:O58)>0,0,$T$5),0) -> 0 | Q59: =IF(R59<>"",COUNT($R$13:R59),0) -> 0 | S59: =IF(AND(P58="ماهیانه",L59>0),I59,IF(M59>0,I59,IF(O59>0,"میانگین",""))) ->  | T59: =IF(AND(P58="ماهیانه",L59>0),J59,"") ->  | U59: 0 | V59: 0 | W59: 0 | Y59: 0 | Z59: 4 | AA59: 0 | AD59: 0 | AF59: 1
C60: 12 | D60: =29+[3]!Jleap(B49) -> 29 | E60: =SUM($D$13:D60) -> 1460 | F60: =IF($U$7>E60,D60,$U$7-SUM($F$13:F59)) -> 0 | H60: 0 | I60: چهارم | J60: اسفند | K60: =IF(E60>$U$8,$T$9-SUM($K$13:K59),D60-F60+G60) -> 0 | L60: 0 | N60: =IF($T$4-SUM($K$13:K59)>0,$T$4-SUM($K$13:K59),0) -> 0 | O60: =IF(N60=0,IF(SUM($O$13:O59)>0,0,$T$5),0) -> 0 | Q60: =IF(R60<>"",COUNT($R$13:R60),0) -> 0 | S60: =IF(AND(P58="ماهیانه",L60>0),I60,IF(M60>0,I60,IF(O60>0,"میانگین",""))) ->  | T60: =IF(AND(P58="ماهیانه",L60>0),J60,"") ->  | U60: 0 | V60: 0 | W60: 0 | Y60: 0 | Z60: 4 | AA60: 0 | AD60: 0 | AF60: 1
B61: =IF(B49=0,0,IF(B49+1<=$P$8,B49+1,0)) -> 0 | C61: 1 | D61: 31 | E61: =SUM($D$13:D61) -> 1491 | F61: =IF($U$7>E61,D61,$U$7-SUM($F$13:F60)) -> 0 | H61: =B61 -> 0 | I61: اول | J61: فروردین | K61: =IF(E61>$U$8,$T$9-SUM($K$13:K60),D61-F61+G61) -> 0 | L61: 0 | M61: =SUM(L61:L63) -> 0 | N61: =IF($T$4-SUM($K$13:K60)>0,$T$4-SUM($K$13:K60),0) -> 0 | O61: =IF(N61=0,IF(SUM($O$13:O60)>0,0,$T$5),0) -> 0 | P61: =IFERROR(HLOOKUP(H61&"-1",shtip,2,0),"") ->  | Q61: =IF(R61<>"",COUNT($R$13:R61),0) -> 0 | S61: =IF(AND(P61="ماهیانه",L61>0),I61,IF(M61>0,I61,IF(O61>0,"میانگین",""))) ->  | T61: =IF(AND(P61="ماهیانه",L61>0),J61,"") ->  | U61: 0 | V61: 0 | W61: 0 | Y61: 0 | Z61: 1 | AA61: 0 | AD61: 0 | AF61: 1
C62: 2 | D62: 31 | E62: =SUM($D$13:D62) -> 1522 | F62: =IF($U$7>E62,D62,$U$7-SUM($F$13:F61)) -> 0 | H62: =H61 -> 0 | I62: اول | J62: اردیبهشت | K62: =IF(E62>$U$8,$T$9-SUM($K$13:K61),D62-F62+G62) -> 0 | L62: 0 | N62: =IF($T$4-SUM($K$13:K61)>0,$T$4-SUM($K$13:K61),0) -> 0 | O62: =IF(N62=0,IF(SUM($O$13:O61)>0,0,$T$5),0) -> 0 | Q62: =IF(R62<>"",COUNT($R$13:R62),0) -> 0 | S62: =IF(AND(P61="ماهیانه",L62>0),I62,IF(M62>0,I62,IF(O62>0,"میانگین",""))) ->  | T62: =IF(AND(P61="ماهیانه",L62>0),J62,"") ->  | U62: 0 | V62: 0 | W62: 0 | Y62: 0 | Z62: 1 | AA62: 0 | AD62: 0 | AF62: 1
C63: 3 | D63: 31 | E63: =SUM($D$13:D63) -> 1553 | F63: =IF($U$7>E63,D63,$U$7-SUM($F$13:F62)) -> 0 | H63: =H62 -> 0 | I63: اول | J63: خرداد | K63: =IF(E63>$U$8,$T$9-SUM($K$13:K62),D63-F63+G63) -> 0 | L63: 0 | N63: =IF($T$4-SUM($K$13:K62)>0,$T$4-SUM($K$13:K62),0) -> 0 | O63: =IF(N63=0,IF(SUM($O$13:O62)>0,0,$T$5),0) -> 0 | Q63: =IF(R63<>"",COUNT($R$13:R63),0) -> 0 | S63: =IF(AND(P61="ماهیانه",L63>0),I63,IF(M63>0,I63,IF(O63>0,"میانگین",""))) ->  | T63: =IF(AND(P61="ماهیانه",L63>0),J63,"") ->  | U63: 0 | V63: 0 | W63: 0 | Y63: 0 | Z63: 1 | AA63: 0 | AD63: 0 | AF63: 1
C64: 4 | D64: 31 | E64: =SUM($D$13:D64) -> 1584 | F64: =IF($U$7>E64,D64,$U$7-SUM($F$13:F63)) -> 0 | H64: 0 | I64: دوم | J64: تیر | K64: =IF(E64>$U$8,$T$9-SUM($K$13:K63),D64-F64+G64) -> 0 | L64: 0 | M64: =SUM(L64:L66) -> 0 | N64: =IF($T$4-SUM($K$13:K63)>0,$T$4-SUM($K$13:K63),0) -> 0 | O64: =IF(N64=0,IF(SUM($O$13:O63)>0,0,$T$5),0) -> 0 | P64: =IFERROR(HLOOKUP(H64&"-2",shtip,2,0),"") ->  | Q64: =IF(R64<>"",COUNT($R$13:R64),0) -> 0 | S64: =IF(AND(P64="ماهیانه",L64>0),I64,IF(M64>0,I64,IF(O64>0,"میانگین",""))) ->  | T64: =IF(AND(P64="ماهیانه",L64>0),J64,"") ->  | U64: 0 | V64: 0 | W64: 0 | Y64: 0 | Z64: 2 | AA64: 0 | AD64: 0 | AF64: 1
C65: 5 | D65: 31 | E65: =SUM($D$13:D65) -> 1615 | F65: =IF($U$7>E65,D65,$U$7-SUM($F$13:F64)) -> 0 | H65: 0 | I65: دوم | J65: مرداد | K65: =IF(E65>$U$8,$T$9-SUM($K$13:K64),D65-F65+G65) -> 0 | L65: 0 | N65: =IF($T$4-SUM($K$13:K64)>0,$T$4-SUM($K$13:K64),0) -> 0 | O65: =IF(N65=0,IF(SUM($O$13:O64)>0,0,$T$5),0) -> 0 | Q65: =IF(R65<>"",COUNT($R$13:R65),0) -> 0 | S65: =IF(AND(P64="ماهیانه",L65>0),I65,IF(M65>0,I65,IF(O65>0,"میانگین",""))) ->  | T65: =IF(AND(P64="ماهیانه",L65>0),J65,"") ->  | U65: 0 | V65: 0 | W65: 0 | Y65: 0 | Z65: 2 | AA65: 0 | AD65: 0 | AF65: 1
C66: 6 | D66: 31 | E66: =SUM($D$13:D66) -> 1646 | F66: =IF($U$7>E66,D66,$U$7-SUM($F$13:F65)) -> 0 | H66: 0 | I66: دوم | J66: شهریور | K66: =IF(E66>$U$8,$T$9-SUM($K$13:K65),D66-F66+G66) -> 0 | L66: 0 | N66: =IF($T$4-SUM($K$13:K65)>0,$T$4-SUM($K$13:K65),0) -> 0 | O66: =IF(N66=0,IF(SUM($O$13:O65)>0,0,$T$5),0) -> 0 | Q66: =IF(R66<>"",COUNT($R$13:R66),0) -> 0 | S66: =IF(AND(P64="ماهیانه",L66>0),I66,IF(M66>0,I66,IF(O66>0,"میانگین",""))) ->  | T66: =IF(AND(P64="ماهیانه",L66>0),J66,"") ->  | U66: 0 | V66: 0 | W66: 0 | Y66: 0 | Z66: 2 | AA66: 0 | AD66: 0 | AF66: 1
C67: 7 | D67: 30 | E67: =SUM($D$13:D67) -> 1676 | F67: =IF($U$7>E67,D67,$U$7-SUM($F$13:F66)) -> 0 | H67: 0 | I67: سوم | J67: مهر | K67: =IF(E67>$U$8,$T$9-SUM($K$13:K66),D67-F67+G67) -> 0 | L67: 0 | M67: =SUM(L67:L69) -> 0 | N67: =IF($T$4-SUM($K$13:K66)>0,$T$4-SUM($K$13:K66),0) -> 0 | O67: =IF(N67=0,IF(SUM($O$13:O66)>0,0,$T$5),0) -> 0 | P67: =IFERROR(HLOOKUP(H67&"-3",shtip,2,0),"") ->  | Q67: =IF(R67<>"",COUNT($R$13:R67),0) -> 0 | S67: =IF(AND(P67="ماهیانه",L67>0),I67,IF(M67>0,I67,IF(O67>0,"میانگین",""))) ->  | T67: =IF(AND(P67="ماهیانه",L67>0),J67,"") ->  | U67: 0 | V67: 0 | W67: 0 | Y67: 0 | Z67: 3 | AA67: 0 | AD67: 0 | AF67: 1
C68: 8 | D68: 30 | E68: =SUM($D$13:D68) -> 1706 | F68: =IF($U$7>E68,D68,$U$7-SUM($F$13:F67)) -> 0 | H68: 0 | I68: سوم | J68: آبان | K68: =IF(E68>$U$8,$T$9-SUM($K$13:K67),D68-F68+G68) -> 0 | L68: 0 | N68: =IF($T$4-SUM($K$13:K67)>0,$T$4-SUM($K$13:K67),0) -> 0 | O68: =IF(N68=0,IF(SUM($O$13:O67)>0,0,$T$5),0) -> 0 | Q68: =IF(R68<>"",COUNT($R$13:R68),0) -> 0 | S68: =IF(AND(P67="ماهیانه",L68>0),I68,IF(M68>0,I68,IF(O68>0,"میانگین",""))) ->  | T68: =IF(AND(P67="ماهیانه",L68>0),J68,"") ->  | U68: 0 | V68: 0 | W68: 0 | Y68: 0 | Z68: 3 | AA68: 0 | AD68: 0 | AF68: 1
C69: 9 | D69: 30 | E69: =SUM($D$13:D69) -> 1736 | F69: =IF($U$7>E69,D69,$U$7-SUM($F$13:F68)) -> 0 | H69: 0 | I69: سوم | J69: آذر | K69: =IF(E69>$U$8,$T$9-SUM($K$13:K68),D69-F69+G69) -> 0 | L69: 0 | N69: =IF($T$4-SUM($K$13:K68)>0,$T$4-SUM($K$13:K68),0) -> 0 | O69: =IF(N69=0,IF(SUM($O$13:O68)>0,0,$T$5),0) -> 0 | Q69: =IF(R69<>"",COUNT($R$13:R69),0) -> 0 | S69: =IF(AND(P67="ماهیانه",L69>0),I69,IF(M69>0,I69,IF(O69>0,"میانگین",""))) ->  | T69: =IF(AND(P67="ماهیانه",L69>0),J69,"") ->  | U69: 0 | V69: 0 | W69: 0 | Y69: 0 | Z69: 3 | AA69: 0 | AD69: 0 | AF69: 1
C70: 10 | D70: 30 | E70: =SUM($D$13:D70) -> 1766 | F70: =IF($U$7>E70,D70,$U$7-SUM($F$13:F69)) -> 0 | H70: 0 | I70: چهارم | J70: دی | K70: =IF(E70>$U$8,$T$9-SUM($K$13:K69),D70-F70+G70) -> 0 | L70: 0 | M70: =SUM(L70:L72) -> 0 | N70: =IF($T$4-SUM($K$13:K69)>0,$T$4-SUM($K$13:K69),0) -> 0 | O70: =IF(N70=0,IF(SUM($O$13:O69)>0,0,$T$5),0) -> 0 | P70: =IFERROR(HLOOKUP(H70&"-4",shtip,2,0),"") ->  | Q70: =IF(R70<>"",COUNT($R$13:R70),0) -> 0 | S70: =IF(AND(P70="ماهیانه",L70>0),I70,IF(M70>0,I70,IF(O70>0,"میانگین",""))) ->  | T70: =IF(AND(P70="ماهیانه",L70>0),J70,"") ->  | U70: 0 | V70: 0 | W70: 0 | Y70: 0 | Z70: 4 | AA70: 0 | AD70: 0 | AF70: 1
C71: 11 | D71: 30 | E71: =SUM($D$13:D71) -> 1796 | F71: =IF($U$7>E71,D71,$U$7-SUM($F$13:F70)) -> 0 | H71: 0 | I71: چهارم | J71: بهمن | K71: =IF(E71>$U$8,$T$9-SUM($K$13:K70),D71-F71+G71) -> 0 | L71: 0 | N71: =IF($T$4-SUM($K$13:K70)>0,$T$4-SUM($K$13:K70),0) -> 0 | O71: =IF(N71=0,IF(SUM($O$13:O70)>0,0,$T$5),0) -> 0 | Q71: =IF(R71<>"",COUNT($R$13:R71),0) -> 0 | S71: =IF(AND(P70="ماهیانه",L71>0),I71,IF(M71>0,I71,IF(O71>0,"میانگین",""))) ->  | T71: =IF(AND(P70="ماهیانه",L71>0),J71,"") ->  | U71: 0 | V71: 0 | W71: 0 | Y71: 0 | Z71: 4 | AA71: 0 | AD71: 0 | AF71: 1
C72: 12 | D72: =29+[3]!Jleap(B61) -> 29 | E72: =SUM($D$13:D72) -> 1825 | F72: =IF($U$7>E72,D72,$U$7-SUM($F$13:F71)) -> 0 | H72: 0 | I72: چهارم | J72: اسفند | K72: =IF(E72>$U$8,$T$9-SUM($K$13:K71),D72-F72+G72) -> 0 | L72: 0 | N72: =IF($T$4-SUM($K$13:K71)>0,$T$4-SUM($K$13:K71),0) -> 0 | O72: =IF(N72=0,IF(SUM($O$13:O71)>0,0,$T$5),0) -> 0 | Q72: =IF(R72<>"",COUNT($R$13:R72),0) -> 0 | S72: =IF(AND(P70="ماهیانه",L72>0),I72,IF(M72>0,I72,IF(O72>0,"میانگین",""))) ->  | T72: =IF(AND(P70="ماهیانه",L72>0),J72,"") ->  | U72: 0 | V72: 0 | W72: 0 | Y72: 0 | Z72: 4 | AA72: 0 | AD72: 0 | AF72: 1
B73: =IF(B61=0,0,IF(B61+1<=$P$8,B61+1,0)) -> 0 | C73: 13 | D73: 31 | E73: =SUM($D$13:D73) -> 1856 | F73: =IF($U$7>E73,D73,$U$7-SUM($F$13:F72)) -> 0 | H73: =B73 -> 0 | I73: اول | J73: فروردین | K73: =IF(E73>$U$8,$T$9-SUM($K$13:K72),D73-F73+G73) -> 0 | L73: 0 | M73: =SUM(L73:L75) -> 0 | N73: =IF($T$4-SUM($K$13:K72)>0,$T$4-SUM($K$13:K72),0) -> 0 | O73: =IF(N73=0,IF(SUM($O$13:O72)>0,0,$T$5),0) -> 0 | P73: =IFERROR(HLOOKUP(H73&"-1",shtip,2,0),"") ->  | Q73: =IF(R73<>"",COUNT($R$13:R73),0) -> 0 | S73: =IF(AND(P73="ماهیانه",L73>0),I73,IF(M73>0,I73,IF(O73>0,"میانگین",""))) ->  | T73: =IF(AND(P73="ماهیانه",L73>0),J73,"") ->  | U73: 0 | V73: 0 | W73: 0 | Y73: 0 | Z73: 1 | AA73: 0 | AD73: 0 | AF73: 1
C74: 14 | D74: 31 | E74: =SUM($D$13:D74) -> 1887 | F74: =IF($U$7>E74,D74,$U$7-SUM($F$13:F73)) -> 0 | H74: =H73 -> 0 | I74: اول | J74: اردیبهشت | K74: =IF(E74>$U$8,$T$9-SUM($K$13:K73),D74-F74+G74) -> 0 | L74: 0 | N74: =IF($T$4-SUM($K$13:K73)>0,$T$4-SUM($K$13:K73),0) -> 0 | O74: =IF(N74=0,IF(SUM($O$13:O73)>0,0,$T$5),0) -> 0 | Q74: =IF(R74<>"",COUNT($R$13:R74),0) -> 0 | S74: =IF(AND(P73="ماهیانه",L74>0),I74,IF(M74>0,I74,IF(O74>0,"میانگین",""))) ->  | T74: =IF(AND(P73="ماهیانه",L74>0),J74,"") ->  | U74: 0 | V74: 0 | W74: 0 | Y74: 0 | Z74: 1 | AA74: 0 | AD74: 0 | AF74: 1
C75: 15 | D75: 31 | E75: =SUM($D$13:D75) -> 1918 | F75: =IF($U$7>E75,D75,$U$7-SUM($F$13:F74)) -> 0 | H75: 0 | I75: اول | J75: خرداد | K75: =IF(E75>$U$8,$T$9-SUM($K$13:K74),D75-F75+G75) -> 0 | L75: 0 | N75: =IF($T$4-SUM($K$13:K74)>0,$T$4-SUM($K$13:K74),0) -> 0 | O75: =IF(N75=0,IF(SUM($O$13:O74)>0,0,$T$5),0) -> 0 | Q75: =IF(R75<>"",COUNT($R$13:R75),0) -> 0 | S75: =IF(AND(P73="ماهیانه",L75>0),I75,IF(M75>0,I75,IF(O75>0,"میانگین",""))) ->  | T75: =IF(AND(P73="ماهیانه",L75>0),J75,"") ->  | U75: 0 | V75: 0 | W75: 0 | Y75: 0 | Z75: 1 | AA75: 0 | AD75: 0 | AF75: 1
C76: 16 | D76: 31 | E76: =SUM($D$13:D76) -> 1949 | F76: =IF($U$7>E76,D76,$U$7-SUM($F$13:F75)) -> 0 | H76: 0 | I76: دوم | J76: تیر | K76: =IF(E76>$U$8,$T$9-SUM($K$13:K75),D76-F76+G76) -> 0 | L76: 0 | M76: =SUM(L76:L78) -> 0 | N76: =IF($T$4-SUM($K$13:K75)>0,$T$4-SUM($K$13:K75),0) -> 0 | O76: =IF(N76=0,IF(SUM($O$13:O75)>0,0,$T$5),0) -> 0 | P76: =IFERROR(HLOOKUP(H76&"-2",shtip,2,0),"") ->  | Q76: =IF(R76<>"",COUNT($R$13:R76),0) -> 0 | S76: =IF(AND(P76="ماهیانه",L76>0),I76,IF(M76>0,I76,IF(O76>0,"میانگین",""))) ->  | T76: =IF(AND(P76="ماهیانه",L76>0),J76,"") ->  | U76: 0 | V76: 0 | W76: 0 | Y76: 0 | Z76: 2 | AA76: 0 | AD76: 0 | AF76: 1
C77: 17 | D77: 31 | E77: =SUM($D$13:D77) -> 1980 | F77: =IF($U$7>E77,D77,$U$7-SUM($F$13:F76)) -> 0 | H77: 0 | I77: دوم | J77: مرداد | K77: =IF(E77>$U$8,$T$9-SUM($K$13:K76),D77-F77+G77) -> 0 | L77: 0 | N77: =IF($T$4-SUM($K$13:K76)>0,$T$4-SUM($K$13:K76),0) -> 0 | O77: =IF(N77=0,IF(SUM($O$13:O76)>0,0,$T$5),0) -> 0 | Q77: =IF(R77<>"",COUNT($R$13:R77),0) -> 0 | S77: =IF(AND(P76="ماهیانه",L77>0),I77,IF(M77>0,I77,IF(O77>0,"میانگین",""))) ->  | T77: =IF(AND(P76="ماهیانه",L77>0),J77,"") ->  | U77: 0 | V77: =IF(U77>0,IF(S77="میانگین",S77,IF(HLOOKUP(H77&"-"&Z77,shtip,2,0)="","علی الحساب","قطعی")),0) -> 0 | W77: 0 | Y77: 0 | Z77: 2 | AA77: 0 | AC77: =IF(U77>0,IF(W77="میانگین",166,IF(V77="علی الحساب",$F$9,IF(X77="",(((1422-Y77)*4)-Z77)+1,457-((Y77-1397)*12)-VLOOKUP(X77,mount_kd,2,0)))),"") ->  | AD77: 0 | AF77: 1
C78: 18 | D78: 31 | E78: =SUM($D$13:D78) -> 2011 | F78: =IF($U$7>E78,D78,$U$7-SUM($F$13:F77)) -> 0 | H78: 0 | I78: دوم | J78: شهریور | K78: =IF(E78>$U$8,$T$9-SUM($K$13:K77),D78-F78+G78) -> 0 | L78: 0 | N78: =IF($T$4-SUM($K$13:K77)>0,$T$4-SUM($K$13:K77),0) -> 0 | O78: =IF(N78=0,IF(SUM($O$13:O77)>0,0,$T$5),0) -> 0 | Q78: =IF(R78<>"",COUNT($R$13:R78),0) -> 0 | S78: =IF(AND(P76="ماهیانه",L78>0),I78,IF(M78>0,I78,IF(O78>0,"میانگین",""))) ->  | T78: =IF(AND(P76="ماهیانه",L78>0),J78,"") ->  | U78: 0 | V78: 0 | W78: 0 | Y78: 0 | Z78: 2 | AA78: 0 | AD78: 0 | AF78: 1 | AH78: =IF(U78>0," مدت کارکرد در دوره های سه ماهه "&S78&" "&T78&" سال "&R78,"") ->  | AI78: =IF(U78>0," روز "&U78,"") -> 
C79: 19 | D79: 30 | E79: =SUM($D$13:D79) -> 2041 | F79: =IF($U$7>E79,D79,$U$7-SUM($F$13:F78)) -> 0 | H79: 0 | I79: سوم | J79: مهر | K79: =IF(E79>$U$8,$T$9-SUM($K$13:K78),D79-F79+G79) -> 0 | L79: 0 | M79: =SUM(L79:L81) -> 0 | N79: =IF($T$4-SUM($K$13:K78)>0,$T$4-SUM($K$13:K78),0) -> 0 | O79: =IF(N79=0,IF(SUM($O$13:O78)>0,0,$T$5),0) -> 0 | P79: =IFERROR(HLOOKUP(H79&"-3",shtip,2,0),"") ->  | Q79: =IF(R79<>"",COUNT($R$13:R79),0) -> 0 | S79: =IF(AND(P79="ماهیانه",L79>0),I79,IF(M79>0,I79,IF(O79>0,"میانگین",""))) ->  | T79: =IF(AND(P79="ماهیانه",L79>0),J79,"") ->  | U79: 0 | V79: 0 | W79: 0 | Y79: 0 | Z79: 3 | AA79: 0 | AD79: 0 | AF79: 1
C80: 20 | D80: 30 | E80: =SUM($D$13:D80) -> 2071 | F80: =IF($U$7>E80,D80,$U$7-SUM($F$13:F79)) -> 0 | H80: 0 | I80: سوم | J80: آبان | K80: =IF(E80>$U$8,$T$9-SUM($K$13:K79),D80-F80+G80) -> 0 | L80: 0 | N80: =IF($T$4-SUM($K$13:K79)>0,$T$4-SUM($K$13:K79),0) -> 0 | O80: =IF(N80=0,IF(SUM($O$13:O79)>0,0,$T$5),0) -> 0 | Q80: =IF(R80<>"",COUNT($R$13:R80),0) -> 0 | S80: =IF(AND(P79="ماهیانه",L80>0),I80,IF(M80>0,I80,IF(O80>0,"میانگین",""))) ->  | T80: =IF(AND(P79="ماهیانه",L80>0),J80,"") ->  | U80: 0 | V80: 0 | W80: 0 | Y80: 0 | Z80: 3 | AA80: 0 | AD80: 0 | AF80: 1
C81: 21 | D81: 30 | E81: =SUM($D$13:D81) -> 2101 | F81: =IF($U$7>E81,D81,$U$7-SUM($F$13:F80)) -> 0 | H81: 0 | I81: سوم | J81: آذر | K81: =IF(E81>$U$8,$T$9-SUM($K$13:K80),D81-F81+G81) -> 0 | L81: 0 | N81: =IF($T$4-SUM($K$13:K80)>0,$T$4-SUM($K$13:K80),0) -> 0 | O81: =IF(N81=0,IF(SUM($O$13:O80)>0,0,$T$5),0) -> 0 | Q81: =IF(R81<>"",COUNT($R$13:R81),0) -> 0 | S81: =IF(AND(P79="ماهیانه",L81>0),I81,IF(M81>0,I81,IF(O81>0,"میانگین",""))) ->  | T81: =IF(AND(P79="ماهیانه",L81>0),J81,"") ->  | U81: 0 | V81: 0 | W81: 0 | Y81: 0 | Z81: 3 | AA81: 0 | AD81: 0 | AF81: 1
C82: 22 | D82: 30 | E82: =SUM($D$13:D82) -> 2131 | F82: =IF($U$7>E82,D82,$U$7-SUM($F$13:F81)) -> 0 | H82: 0 | I82: چهارم | J82: دی | K82: =IF(E82>$U$8,$T$9-SUM($K$13:K81),D82-F82+G82) -> 0 | L82: 0 | M82: =SUM(L82:L84) -> 0 | N82: =IF($T$4-SUM($K$13:K81)>0,$T$4-SUM($K$13:K81),0) -> 0 | O82: =IF(N82=0,IF(SUM($O$13:O81)>0,0,$T$5),0) -> 0 | P82: =IFERROR(HLOOKUP(H82&"-4",shtip,2,0),"") ->  | Q82: =IF(R82<>"",COUNT($R$13:R82),0) -> 0 | S82: =IF(AND(P82="ماهیانه",L82>0),I82,IF(M82>0,I82,IF(O82>0,"میانگین",""))) ->  | T82: =IF(AND(P82="ماهیانه",L82>0),J82,"") ->  | U82: 0 | V82: 0 | W82: 0 | Y82: 0 | Z82: 4 | AA82: 0 | AD82: 0 | AF82: 1
C83: 23 | D83: 30 | E83: =SUM($D$13:D83) -> 2161 | F83: =IF($U$7>E83,D83,$U$7-SUM($F$13:F82)) -> 0 | H83: 0 | I83: چهارم | J83: بهمن | K83: =IF(E83>$U$8,$T$9-SUM($K$13:K82),D83-F83+G83) -> 0 | L83: 0 | N83: =IF($T$4-SUM($K$13:K82)>0,$T$4-SUM($K$13:K82),0) -> 0 | O83: =IF(N83=0,IF(SUM($O$13:O82)>0,0,$T$5),0) -> 0 | Q83: =IF(R83<>"",COUNT($R$13:R83),0) -> 0 | S83: =IF(AND(P82="ماهیانه",L83>0),I83,IF(M83>0,I83,IF(O83>0,"میانگین",""))) ->  | T83: =IF(AND(P82="ماهیانه",L83>0),J83,"") ->  | U83: 0 | V83: 0 | W83: 0 | Y83: 0 | Z83: 4 | AA83: 0 | AD83: 0 | AF83: 1
C84: 24 | D84: =29+[3]!Jleap(B73) -> 29 | E84: =SUM($D$13:D84) -> 2190 | F84: =IF($U$7>E84,D84,$U$7-SUM($F$13:F83)) -> 0 | H84: 0 | I84: چهارم | J84: اسفند | K84: =IF(E84>$U$8,$T$9-SUM($K$13:K83),D84-F84+G84) -> 0 | L84: 0 | N84: =IF($T$4-SUM($K$13:K83)>0,$T$4-SUM($K$13:K83),0) -> 0 | O84: =IF(N84=0,IF(SUM($O$13:O83)>0,0,$T$5),0) -> 0 | Q84: =IF(R84<>"",COUNT($R$13:R84),0) -> 0 | S84: =IF(AND(P82="ماهیانه",L84>0),I84,IF(M84>0,I84,IF(O84>0,"میانگین",""))) ->  | T84: =IF(AND(P82="ماهیانه",L84>0),J84,"") ->  | U84: 0 | V84: 0 | W84: 0 | Y84: 0 | Z84: 4 | AA84: 0 | AD84: 0 | AF84: 1
B85: =IF(B73=0,0,IF(B73+1<=$P$8,B73+1,0)) -> 0 | C85: 25 | D85: 31 | E85: =SUM($D$13:D85) -> 2221 | F85: =IF($U$7>E85,D85,$U$7-SUM($F$13:F84)) -> 0 | H85: =B85 -> 0 | I85: اول | J85: فروردین | K85: =IF(E85>$U$8,$T$9-SUM($K$13:K84),D85-F85+G85) -> 0 | L85: 0 | M85: =SUM(L85:L87) -> 0 | N85: =IF($T$4-SUM($K$13:K84)>0,$T$4-SUM($K$13:K84),0) -> 0 | O85: =IF(N85=0,IF(SUM($O$13:O84)>0,0,$T$5),0) -> 0 | P85: =IFERROR(HLOOKUP(H85&"-1",shtip,2,0),"") ->  | Q85: =IF(R85<>"",COUNT($R$13:R85),0) -> 0 | S85: =IF(AND(P85="ماهیانه",L85>0),I85,IF(M85>0,I85,IF(O85>0,"میانگین",""))) ->  | T85: =IF(AND(P85="ماهیانه",L85>0),J85,"") ->  | U85: 0 | V85: 0 | W85: 0 | Y85: 0 | Z85: 1 | AA85: 0 | AD85: 0 | AF85: 1
C86: 26 | D86: 31 | E86: =SUM($D$13:D86) -> 2252 | F86: =IF($U$7>E86,D86,$U$7-SUM($F$13:F85)) -> 0 | H86: =H85 -> 0 | I86: اول | J86: اردیبهشت | K86: =IF(E86>$U$8,$T$9-SUM($K$13:K85),D86-F86+G86) -> 0 | L86: 0 | N86: =IF($T$4-SUM($K$13:K85)>0,$T$4-SUM($K$13:K85),0) -> 0 | O86: =IF(N86=0,IF(SUM($O$13:O85)>0,0,$T$5),0) -> 0 | Q86: =IF(R86<>"",COUNT($R$13:R86),0) -> 0 | S86: =IF(AND(P85="ماهیانه",L86>0),I86,IF(M86>0,I86,IF(O86>0,"میانگین",""))) ->  | T86: =IF(AND(P85="ماهیانه",L86>0),J86,"") ->  | U86: 0 | V86: 0 | W86: 0 | Y86: 0 | Z86: 1 | AA86: 0 | AD86: 0 | AF86: 1
C87: 27 | D87: 31 | E87: =SUM($D$13:D87) -> 2283 | F87: =IF($U$7>E87,D87,$U$7-SUM($F$13:F86)) -> 0 | H87: 0 | I87: اول | J87: خرداد | K87: =IF(E87>$U$8,$T$9-SUM($K$13:K86),D87-F87+G87) -> 0 | L87: 0 | N87: =IF($T$4-SUM($K$13:K86)>0,$T$4-SUM($K$13:K86),0) -> 0 | O87: =IF(N87=0,IF(SUM($O$13:O86)>0,0,$T$5),0) -> 0 | Q87: =IF(R87<>"",COUNT($R$13:R87),0) -> 0 | S87: =IF(AND(P85="ماهیانه",L87>0),I87,IF(M87>0,I87,IF(O87>0,"میانگین",""))) ->  | T87: =IF(AND(P85="ماهیانه",L87>0),J87,"") ->  | U87: 0 | V87: 0 | W87: 0 | Y87: 0 | Z87: 1 | AA87: 0 | AD87: 0 | AE87: =IF(AG87="","",AF87) ->  | AF87: =IF(AG87="",AF86,AF86+1) -> 1 | AG87: =IF(AH87="","",Q87&"-4-2") -> 
C88: 28 | D88: 31 | E88: =SUM($D$13:D88) -> 2314 | F88: =IF($U$7>E88,D88,$U$7-SUM($F$13:F87)) -> 0 | H88: 0 | I88: دوم | J88: تیر | K88: =IF(E88>$U$8,$T$9-SUM($K$13:K87),D88-F88+G88) -> 0 | L88: 0 | M88: =SUM(L88:L90) -> 0 | N88: =IF($T$4-SUM($K$13:K87)>0,$T$4-SUM($K$13:K87),0) -> 0 | O88: =IF(N88=0,IF(SUM($O$13:O87)>0,0,$T$5),0) -> 0 | P88: =IFERROR(HLOOKUP(H88&"-2",shtip,2,0),"") ->  | Q88: =IF(R88<>"",COUNT($R$13:R88),0) -> 0 | S88: =IF(AND(P88="ماهیانه",L88>0),I88,IF(M88>0,I88,IF(O88>0,"میانگین",""))) ->  | T88: =IF(AND(P88="ماهیانه",L88>0),J88,"") ->  | U88: 0 | V88: 0 | W88: 0 | Y88: 0 | Z88: 2 | AA88: 0 | AD88: 0 | AF88: 1
C89: 29 | D89: 31 | E89: =SUM($D$13:D89) -> 2345 | F89: =IF($U$7>E89,D89,$U$7-SUM($F$13:F88)) -> 0 | H89: 0 | I89: دوم | J89: مرداد | K89: =IF(E89>$U$8,$T$9-SUM($K$13:K88),D89-F89+G89) -> 0 | L89: 0 | N89: =IF($T$4-SUM($K$13:K88)>0,$T$4-SUM($K$13:K88),0) -> 0 | O89: =IF(N89=0,IF(SUM($O$13:O88)>0,0,$T$5),0) -> 0 | Q89: =IF(R89<>"",COUNT($R$13:R89),0) -> 0 | S89: =IF(AND(P88="ماهیانه",L89>0),I89,IF(M89>0,I89,IF(O89>0,"میانگین",""))) ->  | T89: =IF(AND(P88="ماهیانه",L89>0),J89,"") ->  | U89: 0 | V89: 0 | W89: 0 | Y89: 0 | Z89: 2 | AA89: 0 | AD89: 0 | AF89: 1
C90: 30 | D90: 31 | E90: =SUM($D$13:D90) -> 2376 | F90: =IF($U$7>E90,D90,$U$7-SUM($F$13:F89)) -> 0 | H90: 0 | I90: دوم | J90: شهریور | K90: =IF(E90>$U$8,$T$9-SUM($K$13:K89),D90-F90+G90) -> 0 | L90: 0 | N90: =IF($T$4-SUM($K$13:K89)>0,$T$4-SUM($K$13:K89),0) -> 0 | O90: =IF(N90=0,IF(SUM($O$13:O89)>0,0,$T$5),0) -> 0 | Q90: =IF(R90<>"",COUNT($R$13:R90),0) -> 0 | S90: =IF(AND(P88="ماهیانه",L90>0),I90,IF(M90>0,I90,IF(O90>0,"میانگین",""))) ->  | T90: =IF(AND(P88="ماهیانه",L90>0),J90,"") ->  | U90: 0 | V90: 0 | W90: 0 | Y90: 0 | Z90: 2 | AA90: 0 | AD90: 0 | AF90: 1
C91: 31 | D91: 30 | E91: =SUM($D$13:D91) -> 2406 | F91: =IF($U$7>E91,D91,$U$7-SUM($F$13:F90)) -> 0 | H91: 0 | I91: سوم | J91: مهر | K91: =IF(E91>$U$8,$T$9-SUM($K$13:K90),D91-F91+G91) -> 0 | L91: 0 | M91: =SUM(L91:L93) -> 0 | N91: =IF($T$4-SUM($K$13:K90)>0,$T$4-SUM($K$13:K90),0) -> 0 | O91: =IF(N91=0,IF(SUM($O$13:O90)>0,0,$T$5),0) -> 0 | P91: =IFERROR(HLOOKUP(H91&"-3",shtip,2,0),"") ->  | Q91: =IF(R91<>"",COUNT($R$13:R91),0) -> 0 | S91: =IF(AND(P91="ماهیانه",L91>0),I91,IF(M91>0,I91,IF(O91>0,"میانگین",""))) ->  | T91: =IF(AND(P91="ماهیانه",L91>0),J91,"") ->  | U91: 0 | V91: 0 | W91: 0 | Y91: 0 | Z91: 3 | AA91: 0 | AD91: 0 | AF91: 1
C92: 32 | D92: 30 | E92: =SUM($D$13:D92) -> 2436 | F92: =IF($U$7>E92,D92,$U$7-SUM($F$13:F91)) -> 0 | H92: 0 | I92: سوم | J92: آبان | K92: =IF(E92>$U$8,$T$9-SUM($K$13:K91),D92-F92+G92) -> 0 | L92: 0 | N92: =IF($T$4-SUM($K$13:K91)>0,$T$4-SUM($K$13:K91),0) -> 0 | O92: =IF(N92=0,IF(SUM($O$13:O91)>0,0,$T$5),0) -> 0 | Q92: =IF(R92<>"",COUNT($R$13:R92),0) -> 0 | S92: =IF(AND(P91="ماهیانه",L92>0),I92,IF(M92>0,I92,IF(O92>0,"میانگین",""))) ->  | T92: =IF(AND(P91="ماهیانه",L92>0),J92,"") ->  | U92: 0 | V92: 0 | W92: 0 | Y92: 0 | Z92: 3 | AA92: 0 | AD92: 0 | AF92: 1
C93: 33 | D93: 30 | E93: =SUM($D$13:D93) -> 2466 | F93: =IF($U$7>E93,D93,$U$7-SUM($F$13:F92)) -> 0 | H93: 0 | I93: سوم | J93: آذر | K93: =IF(E93>$U$8,$T$9-SUM($K$13:K92),D93-F93+G93) -> 0 | L93: 0 | N93: =IF($T$4-SUM($K$13:K92)>0,$T$4-SUM($K$13:K92),0) -> 0 | O93: =IF(N93=0,IF(SUM($O$13:O92)>0,0,$T$5),0) -> 0 | Q93: =IF(R93<>"",COUNT($R$13:R93),0) -> 0 | S93: =IF(AND(P91="ماهیانه",L93>0),I93,IF(M93>0,I93,IF(O93>0,"میانگین",""))) ->  | T93: =IF(AND(P91="ماهیانه",L93>0),J93,"") ->  | U93: 0 | V93: 0 | W93: 0 | Y93: 0 | Z93: 3 | AA93: 0 | AD93: 0 | AF93: 1
C94: 34 | D94: 30 | E94: =SUM($D$13:D94) -> 2496 | F94: =IF($U$7>E94,D94,$U$7-SUM($F$13:F93)) -> 0 | H94: 0 | I94: چهارم | J94: دی | K94: =IF(E94>$U$8,$T$9-SUM($K$13:K93),D94-F94+G94) -> 0 | L94: 0 | M94: =SUM(L94:L96) -> 0 | N94: =IF($T$4-SUM($K$13:K93)>0,$T$4-SUM($K$13:K93),0) -> 0 | O94: =IF(N94=0,IF(SUM($O$13:O93)>0,0,$T$5),0) -> 0 | P94: =IFERROR(HLOOKUP(H94&"-4",shtip,2,0),"") ->  | Q94: =IF(R94<>"",COUNT($R$13:R94),0) -> 0 | S94: =IF(AND(P94="ماهیانه",L94>0),I94,IF(M94>0,I94,IF(O94>0,"میانگین",""))) ->  | T94: =IF(AND(P94="ماهیانه",L94>0),J94,"") ->  | U94: 0 | V94: 0 | W94: 0 | Y94: 0 | Z94: 4 | AA94: 0 | AD94: 0 | AF94: 1
C95: 35 | D95: 30 | E95: =SUM($D$13:D95) -> 2526 | F95: =IF($U$7>E95,D95,$U$7-SUM($F$13:F94)) -> 0 | H95: 0 | I95: چهارم | J95: بهمن | K95: =IF(E95>$U$8,$T$9-SUM($K$13:K94),D95-F95+G95) -> 0 | L95: 0 | N95: =IF($T$4-SUM($K$13:K94)>0,$T$4-SUM($K$13:K94),0) -> 0 | O95: =IF(N95=0,IF(SUM($O$13:O94)>0,0,$T$5),0) -> 0 | Q95: =IF(R95<>"",COUNT($R$13:R95),0) -> 0 | S95: =IF(AND(P94="ماهیانه",L95>0),I95,IF(M95>0,I95,IF(O95>0,"میانگین",""))) ->  | T95: =IF(AND(P94="ماهیانه",L95>0),J95,"") ->  | U95: 0 | V95: 0 | W95: 0 | Y95: 0 | Z95: 4 | AA95: 0 | AD95: 0 | AF95: 1
C96: 36 | D96: =29+[3]!Jleap(B85) -> 29 | E96: =SUM($D$13:D96) -> 2555 | F96: =IF($U$7>E96,D96,$U$7-SUM($F$13:F95)) -> 0 | H96: 0 | I96: چهارم | J96: اسفند | K96: =IF(E96>$U$8,$T$9-SUM($K$13:K95),D96-F96+G96) -> 0 | L96: 0 | N96: =IF($T$4-SUM($K$13:K95)>0,$T$4-SUM($K$13:K95),0) -> 0 | O96: =IF(N96=0,IF(SUM($O$13:O95)>0,0,$T$5),0) -> 0 | Q96: =IF(R96<>"",COUNT($R$13:R96),0) -> 0 | S96: =IF(AND(P94="ماهیانه",L96>0),I96,IF(M96>0,I96,IF(O96>0,"میانگین",""))) ->  | T96: =IF(AND(P94="ماهیانه",L96>0),J96,"") ->  | U96: 0 | V96: 0 | W96: 0 | Y96: 0 | Z96: 4 | AA96: 0 | AD96: 0 | AF96: 1
B97: =IF(B85=0,0,IF(B85+1<=$P$8,B85+1,0)) -> 0 | C97: 37 | D97: 31 | E97: =SUM($D$13:D97) -> 2586 | F97: =IF($U$7>E97,D97,$U$7-SUM($F$13:F96)) -> 0 | H97: =B97 -> 0 | I97: اول | J97: فروردین | K97: =IF(E97>$U$8,$T$9-SUM($K$13:K96),D97-F97+G97) -> 0 | L97: 0 | M97: =SUM(L97:L99) -> 0 | N97: =IF($T$4-SUM($K$13:K96)>0,$T$4-SUM($K$13:K96),0) -> 0 | O97: =IF(N97=0,IF(SUM($O$13:O96)>0,0,$T$5),0) -> 0 | P97: =IFERROR(HLOOKUP(H97&"-1",shtip,2,0),"") ->  | Q97: =IF(R97<>"",COUNT($R$13:R97),0) -> 0 | S97: =IF(AND(P97="ماهیانه",L97>0),I97,IF(M97>0,I97,IF(O97>0,"میانگین",""))) ->  | T97: =IF(AND(P97="ماهیانه",L97>0),J97,"") ->  | U97: 0 | V97: 0 | W97: 0 | Y97: 0 | Z97: 1 | AA97: 0 | AD97: 0 | AF97: 1
C98: 38 | D98: 31 | E98: =SUM($D$13:D98) -> 2617 | F98: =IF($U$7>E98,D98,$U$7-SUM($F$13:F97)) -> 0 | H98: =H97 -> 0 | I98: اول | J98: اردیبهشت | K98: =IF(E98>$U$8,$T$9-SUM($K$13:K97),D98-F98+G98) -> 0 | L98: 0 | N98: =IF($T$4-SUM($K$13:K97)>0,$T$4-SUM($K$13:K97),0) -> 0 | O98: =IF(N98=0,IF(SUM($O$13:O97)>0,0,$T$5),0) -> 0 | Q98: =IF(R98<>"",COUNT($R$13:R98),0) -> 0 | S98: =IF(AND(P97="ماهیانه",L98>0),I98,IF(M98>0,I98,IF(O98>0,"میانگین",""))) ->  | T98: =IF(AND(P97="ماهیانه",L98>0),J98,"") ->  | U98: 0 | V98: 0 | W98: 0 | Y98: 0 | Z98: 1 | AA98: 0 | AD98: 0 | AF98: 1
C99: 39 | D99: 31 | E99: =SUM($D$13:D99) -> 2648 | F99: =IF($U$7>E99,D99,$U$7-SUM($F$13:F98)) -> 0 | H99: 0 | I99: اول | J99: خرداد | K99: =IF(E99>$U$8,$T$9-SUM($K$13:K98),D99-F99+G99) -> 0 | L99: 0 | N99: =IF($T$4-SUM($K$13:K98)>0,$T$4-SUM($K$13:K98),0) -> 0 | O99: =IF(N99=0,IF(SUM($O$13:O98)>0,0,$T$5),0) -> 0 | Q99: =IF(R99<>"",COUNT($R$13:R99),0) -> 0 | S99: =IF(AND(P97="ماهیانه",L99>0),I99,IF(M99>0,I99,IF(O99>0,"میانگین",""))) ->  | T99: =IF(AND(P97="ماهیانه",L99>0),J99,"") ->  | U99: 0 | V99: 0 | W99: 0 | Y99: 0 | Z99: 1 | AA99: 0 | AD99: 0 | AF99: 1
C100: 40 | D100: 31 | E100: =SUM($D$13:D100) -> 2679 | F100: =IF($U$7>E100,D100,$U$7-SUM($F$13:F99)) -> 0 | H100: 0 | I100: دوم | J100: تیر | K100: =IF(E100>$U$8,$T$9-SUM($K$13:K99),D100-F100+G100) -> 0 | L100: 0 | M100: =SUM(L100:L102) -> 0 | N100: =IF($T$4-SUM($K$13:K99)>0,$T$4-SUM($K$13:K99),0) -> 0 | O100: =IF(N100=0,IF(SUM($O$13:O99)>0,0,$T$5),0) -> 0 | P100: =IFERROR(HLOOKUP(H100&"-2",shtip,2,0),"") ->  | Q100: =IF(R100<>"",COUNT($R$13:R100),0) -> 0 | S100: =IF(AND(P100="ماهیانه",L100>0),I100,IF(M100>0,I100,IF(O100>0,"میانگین",""))) ->  | T100: =IF(AND(P100="ماهیانه",L100>0),J100,"") ->  | U100: 0 | V100: 0 | W100: 0 | Y100: 0 | Z100: 2 | AA100: 0 | AD100: 0 | AF100: 1
C101: 41 | D101: 31 | E101: =SUM($D$13:D101) -> 2710 | F101: =IF($U$7>E101,D101,$U$7-SUM($F$13:F100)) -> 0 | H101: 0 | I101: دوم | J101: مرداد | K101: =IF(E101>$U$8,$T$9-SUM($K$13:K100),D101-F101+G101) -> 0 | L101: =IF(N101>K101,K101,N101) -> 0 | N101: =IF($T$4-SUM($K$13:K100)>0,$T$4-SUM($K$13:K100),0) -> 0 | O101: =IF(N101=0,IF(SUM($O$13:O100)>0,0,$T$5),0) -> 0 | Q101: =IF(R101<>"",COUNT($R$13:R101),0) -> 0 | R101: =IF(U101>0,H101,"") ->  | S101: =IF(AND(P100="ماهیانه",L101>0),I101,IF(M101>0,I101,IF(O101>0,"میانگین",""))) ->  | T101: =IF(AND(P100="ماهیانه",L101>0),J101,"") ->  | U101: =IF(O101=0,IF(T101<>"",L101,M101),IF(O101>0,O101,0)) -> 0 | V101: 0 | W101: =IF(V101="علی الحساب",$C$9,IF(V101="قطعی",S101,V101)) -> 0 | X101: =IF(V101="علی الحساب",$C$10,+IF(V101="قطعی",T101,"")) ->  | Y101: =IF(V101="علی الحساب",$D$9,+IF(V101="قطعی",H101,0)) -> 0 | Z101: 2 | AA101: =IF(U101>0,"("&U101&"/"&$T$9&")",0) -> 0 | AB101: =U101/$T$9 ->  | AD101: =IF(IF(X101<>"",X101&Y101,W101&Y101)="0"&"0",0,IF(X101<>"",X101&Y101,W101&Y101)) -> 0 | AF101: 1
C102: 42 | D102: 31 | E102: =SUM($D$13:D102) -> 2741 | F102: =IF($U$7>E102,D102,$U$7-SUM($F$13:F101)) -> 0 | H102: 0 | I102: دوم | J102: شهریور | K102: =IF(E102>$U$8,$T$9-SUM($K$13:K101),D102-F102+G102) -> 0 | L102: 0 | N102: =IF($T$4-SUM($K$13:K101)>0,$T$4-SUM($K$13:K101),0) -> 0 | O102: =IF(N102=0,IF(SUM($O$13:O101)>0,0,$T$5),0) -> 0 | Q102: =IF(R102<>"",COUNT($R$13:R102),0) -> 0 | S102: =IF(AND(P100="ماهیانه",L102>0),I102,IF(M102>0,I102,IF(O102>0,"میانگین",""))) ->  | T102: =IF(AND(P100="ماهیانه",L102>0),J102,"") ->  | U102: 0 | V102: 0 | W102: 0 | Y102: 0 | Z102: 2 | AA102: 0 | AD102: 0 | AF102: 1
C103: 43 | D103: 30 | E103: =SUM($D$13:D103) -> 2771 | F103: =IF($U$7>E103,D103,$U$7-SUM($F$13:F102)) -> 0 | H103: 0 | I103: سوم | J103: مهر | K103: =IF(E103>$U$8,$T$9-SUM($K$13:K102),D103-F103+G103) -> 0 | L103: 0 | M103: =SUM(L103:L105) -> 0 | N103: =IF($T$4-SUM($K$13:K102)>0,$T$4-SUM($K$13:K102),0) -> 0 | O103: =IF(N103=0,IF(SUM($O$13:O102)>0,0,$T$5),0) -> 0 | P103: =IFERROR(HLOOKUP(H103&"-3",shtip,2,0),"") ->  | Q103: =IF(R103<>"",COUNT($R$13:R103),0) -> 0 | S103: =IF(AND(P103="ماهیانه",L103>0),I103,IF(M103>0,I103,IF(O103>0,"میانگین",""))) ->  | T103: =IF(AND(P103="ماهیانه",L103>0),J103,"") ->  | U103: 0 | V103: 0 | W103: 0 | Y103: 0 | Z103: 3 | AA103: 0 | AD103: 0 | AF103: 1
C104: 44 | D104: 30 | E104: =SUM($D$13:D104) -> 2801 | F104: =IF($U$7>E104,D104,$U$7-SUM($F$13:F103)) -> 0 | H104: 0 | I104: سوم | J104: آبان | K104: =IF(E104>$U$8,$T$9-SUM($K$13:K103),D104-F104+G104) -> 0 | L104: 0 | N104: =IF($T$4-SUM($K$13:K103)>0,$T$4-SUM($K$13:K103),0) -> 0 | O104: =IF(N104=0,IF(SUM($O$13:O103)>0,0,$T$5),0) -> 0 | Q104: =IF(R104<>"",COUNT($R$13:R104),0) -> 0 | S104: =IF(AND(P103="ماهیانه",L104>0),I104,IF(M104>0,I104,IF(O104>0,"میانگین",""))) ->  | T104: =IF(AND(P103="ماهیانه",L104>0),J104,"") ->  | U104: 0 | V104: 0 | W104: 0 | Y104: 0 | Z104: 3 | AA104: 0 | AD104: 0 | AF104: 1
C105: 45 | D105: 30 | E105: =SUM($D$13:D105) -> 2831 | F105: =IF($U$7>E105,D105,$U$7-SUM($F$13:F104)) -> 0 | H105: 0 | I105: سوم | J105: آذر | K105: =IF(E105>$U$8,$T$9-SUM($K$13:K104),D105-F105+G105) -> 0 | L105: 0 | N105: =IF($T$4-SUM($K$13:K104)>0,$T$4-SUM($K$13:K104),0) -> 0 | O105: =IF(N105=0,IF(SUM($O$13:O104)>0,0,$T$5),0) -> 0 | Q105: =IF(R105<>"",COUNT($R$13:R105),0) -> 0 | S105: =IF(AND(P103="ماهیانه",L105>0),I105,IF(M105>0,I105,IF(O105>0,"میانگین",""))) ->  | T105: =IF(AND(P103="ماهیانه",L105>0),J105,"") ->  | U105: 0 | V105: 0 | W105: 0 | Y105: 0 | Z105: 3 | AA105: 0 | AD105: 0 | AF105: 1
C106: 46 | D106: 30 | E106: =SUM($D$13:D106) -> 2861 | F106: =IF($U$7>E106,D106,$U$7-SUM($F$13:F105)) -> 0 | H106: 0 | I106: چهارم | J106: دی | K106: =IF(E106>$U$8,$T$9-SUM($K$13:K105),D106-F106+G106) -> 0 | L106: 0 | M106: =SUM(L106:L108) -> 0 | N106: =IF($T$4-SUM($K$13:K105)>0,$T$4-SUM($K$13:K105),0) -> 0 | O106: =IF(N106=0,IF(SUM($O$13:O105)>0,0,$T$5),0) -> 0 | P106: =IFERROR(HLOOKUP(H106&"-4",shtip,2,0),"") ->  | Q106: =IF(R106<>"",COUNT($R$13:R106),0) -> 0 | S106: =IF(AND(P106="ماهیانه",L106>0),I106,IF(M106>0,I106,IF(O106>0,"میانگین",""))) ->  | T106: =IF(AND(P106="ماهیانه",L106>0),J106,"") ->  | U106: 0 | V106: 0 | W106: 0 | Y106: 0 | Z106: 4 | AA106: 0 | AD106: 0 | AF106: 1
C107: 47 | D107: 30 | E107: =SUM($D$13:D107) -> 2891 | F107: =IF($U$7>E107,D107,$U$7-SUM($F$13:F106)) -> 0 | H107: 0 | I107: چهارم | J107: بهمن | K107: =IF(E107>$U$8,$T$9-SUM($K$13:K106),D107-F107+G107) -> 0 | L107: 0 | N107: =IF($T$4-SUM($K$13:K106)>0,$T$4-SUM($K$13:K106),0) -> 0 | O107: =IF(N107=0,IF(SUM($O$13:O106)>0,0,$T$5),0) -> 0 | Q107: =IF(R107<>"",COUNT($R$13:R107),0) -> 0 | S107: =IF(AND(P106="ماهیانه",L107>0),I107,IF(M107>0,I107,IF(O107>0,"میانگین",""))) ->  | T107: =IF(AND(P106="ماهیانه",L107>0),J107,"") ->  | U107: 0 | V107: 0 | W107: 0 | Y107: 0 | Z107: 4 | AA107: 0 | AD107: 0 | AF107: 1
C108: 48 | D108: =29+[3]!Jleap(B97) -> 29 | E108: =SUM($D$13:D108) -> 2920 | F108: =IF($U$7>E108,D108,$U$7-SUM($F$13:F107)) -> 0 | H108: 0 | I108: چهارم | J108: اسفند | K108: =IF(E108>$U$8,$T$9-SUM($K$13:K107),D108-F108+G108) -> 0 | L108: 0 | N108: =IF($T$4-SUM($K$13:K107)>0,$T$4-SUM($K$13:K107),0) -> 0 | O108: =IF(N108=0,IF(SUM($O$13:O107)>0,0,$T$5),0) -> 0 | Q108: =IF(R108<>"",COUNT($R$13:R108),0) -> 0 | S108: =IF(AND(P106="ماهیانه",L108>0),I108,IF(M108>0,I108,IF(O108>0,"میانگین",""))) ->  | T108: =IF(AND(P106="ماهیانه",L108>0),J108,"") ->  | U108: 0 | V108: 0 | W108: 0 | Y108: 0 | Z108: 4 | AA108: 0 | AD108: 0 | AF108: 1
B109: =IF(B97=0,0,IF(B97+1<=$P$8,B97+1,0)) -> 0 | C109: 49 | D109: 31 | E109: =SUM($D$13:D109) -> 2951 | F109: =IF($U$7>E109,D109,$U$7-SUM($F$13:F108)) -> 0 | H109: =B109 -> 0 | I109: اول | J109: فروردین | K109: =IF(E109>$U$8,$T$9-SUM($K$13:K108),D109-F109+G109) -> 0 | L109: 0 | M109: =SUM(L109:L111) -> 0 | N109: =IF($T$4-SUM($K$13:K108)>0,$T$4-SUM($K$13:K108),0) -> 0 | O109: =IF(N109=0,IF(SUM($O$13:O108)>0,0,$T$5),0) -> 0 | P109: =IFERROR(HLOOKUP(H109&"-1",shtip,2,0),"") ->  | Q109: =IF(R109<>"",COUNT($R$13:R109),0) -> 0 | S109: =IF(AND(P109="ماهیانه",L109>0),I109,IF(M109>0,I109,IF(O109>0,"میانگین",""))) ->  | T109: =IF(AND(P109="ماهیانه",L109>0),J109,"") ->  | U109: 0 | V109: =IF(U109>0,IF(S109="میانگین",S109,IF(HLOOKUP(H109&"-"&Z109,shtip,2,0)="","علی الحساب","قطعی")),0) -> 0 | W109: 0 | Y109: 0 | Z109: 1 | AA109: 0 | AC109: =IF(U109>0,IF(W109="میانگین",166,IF(V109="علی الحساب",$F$9,IF(X109="",(((1422-Y109)*4)-Z109)+1,457-((Y109-1397)*12)-VLOOKUP(X109,mount_kd,2,0)))),"") ->  | AD109: 0 | AF109: 1
C110: 50 | D110: 31 | E110: =SUM($D$13:D110) -> 2982 | F110: =IF($U$7>E110,D110,$U$7-SUM($F$13:F109)) -> 0 | H110: =H109 -> 0 | I110: اول | J110: اردیبهشت | K110: =IF(E110>$U$8,$T$9-SUM($K$13:K109),D110-F110+G110) -> 0 | L110: 0 | N110: =IF($T$4-SUM($K$13:K109)>0,$T$4-SUM($K$13:K109),0) -> 0 | O110: =IF(N110=0,IF(SUM($O$13:O109)>0,0,$T$5),0) -> 0 | Q110: =IF(R110<>"",COUNT($R$13:R110),0) -> 0 | S110: =IF(AND(P109="ماهیانه",L110>0),I110,IF(M110>0,I110,IF(O110>0,"میانگین",""))) ->  | T110: =IF(AND(P109="ماهیانه",L110>0),J110,"") ->  | U110: 0 | V110: 0 | W110: 0 | Y110: 0 | Z110: 1 | AA110: 0 | AD110: 0 | AF110: 1
C111: 51 | D111: 31 | E111: =SUM($D$13:D111) -> 3013 | F111: =IF($U$7>E111,D111,$U$7-SUM($F$13:F110)) -> 0 | H111: 0 | I111: اول | J111: خرداد | K111: =IF(E111>$U$8,$T$9-SUM($K$13:K110),D111-F111+G111) -> 0 | L111: 0 | N111: =IF($T$4-SUM($K$13:K110)>0,$T$4-SUM($K$13:K110),0) -> 0 | O111: =IF(N111=0,IF(SUM($O$13:O110)>0,0,$T$5),0) -> 0 | Q111: =IF(R111<>"",COUNT($R$13:R111),0) -> 0 | S111: =IF(AND(P109="ماهیانه",L111>0),I111,IF(M111>0,I111,IF(O111>0,"میانگین",""))) ->  | T111: =IF(AND(P109="ماهیانه",L111>0),J111,"") ->  | U111: 0 | V111: 0 | W111: 0 | Y111: 0 | Z111: 1 | AA111: 0 | AD111: 0 | AF111: 1
C112: 52 | D112: 31 | E112: =SUM($D$13:D112) -> 3044 | F112: =IF($U$7>E112,D112,$U$7-SUM($F$13:F111)) -> 0 | H112: 0 | I112: دوم | J112: تیر | K112: =IF(E112>$U$8,$T$9-SUM($K$13:K111),D112-F112+G112) -> 0 | L112: 0 | M112: =SUM(L112:L114) -> 0 | N112: =IF($T$4-SUM($K$13:K111)>0,$T$4-SUM($K$13:K111),0) -> 0 | O112: =IF(N112=0,IF(SUM($O$13:O111)>0,0,$T$5),0) -> 0 | P112: =IFERROR(HLOOKUP(H112&"-2",shtip,2,0),"") ->  | Q112: =IF(R112<>"",COUNT($R$13:R112),0) -> 0 | S112: =IF(AND(P112="ماهیانه",L112>0),I112,IF(M112>0,I112,IF(O112>0,"میانگین",""))) ->  | T112: =IF(AND(P112="ماهیانه",L112>0),J112,"") ->  | U112: 0 | V112: 0 | W112: 0 | Y112: 0 | Z112: 2 | AA112: 0 | AD112: 0 | AF112: 1
C113: 53 | D113: 31 | E113: =SUM($D$13:D113) -> 3075 | F113: =IF($U$7>E113,D113,$U$7-SUM($F$13:F112)) -> 0 | H113: 0 | I113: دوم | J113: مرداد | K113: =IF(E113>$U$8,$T$9-SUM($K$13:K112),D113-F113+G113) -> 0 | L113: 0 | N113: =IF($T$4-SUM($K$13:K112)>0,$T$4-SUM($K$13:K112),0) -> 0 | O113: =IF(N113=0,IF(SUM($O$13:O112)>0,0,$T$5),0) -> 0 | Q113: =IF(R113<>"",COUNT($R$13:R113),0) -> 0 | S113: =IF(AND(P112="ماهیانه",L113>0),I113,IF(M113>0,I113,IF(O113>0,"میانگین",""))) ->  | T113: =IF(AND(P112="ماهیانه",L113>0),J113,"") ->  | U113: 0 | V113: 0 | W113: 0 | Y113: 0 | Z113: 2 | AA113: 0 | AD113: 0 | AF113: 1
C114: 54 | D114: 31 | E114: =SUM($D$13:D114) -> 3106 | F114: =IF($U$7>E114,D114,$U$7-SUM($F$13:F113)) -> 0 | H114: 0 | I114: دوم | J114: شهریور | K114: =IF(E114>$U$8,$T$9-SUM($K$13:K113),D114-F114+G114) -> 0 | L114: 0 | N114: =IF($T$4-SUM($K$13:K113)>0,$T$4-SUM($K$13:K113),0) -> 0 | O114: =IF(N114=0,IF(SUM($O$13:O113)>0,0,$T$5),0) -> 0 | Q114: =IF(R114<>"",COUNT($R$13:R114),0) -> 0 | S114: =IF(AND(P112="ماهیانه",L114>0),I114,IF(M114>0,I114,IF(O114>0,"میانگین",""))) ->  | T114: =IF(AND(P112="ماهیانه",L114>0),J114,"") ->  | U114: 0 | V114: 0 | W114: 0 | Y114: 0 | Z114: 2 | AA114: 0 | AD114: 0 | AF114: 1
C115: 55 | D115: 30 | E115: =SUM($D$13:D115) -> 3136 | F115: =IF($U$7>E115,D115,$U$7-SUM($F$13:F114)) -> 0 | H115: 0 | I115: سوم | J115: مهر | K115: =IF(E115>$U$8,$T$9-SUM($K$13:K114),D115-F115+G115) -> 0 | L115: 0 | M115: =SUM(L115:L117) -> 0 | N115: =IF($T$4-SUM($K$13:K114)>0,$T$4-SUM($K$13:K114),0) -> 0 | O115: =IF(N115=0,IF(SUM($O$13:O114)>0,0,$T$5),0) -> 0 | P115: =IFERROR(HLOOKUP(H115&"-3",shtip,2,0),"") ->  | Q115: =IF(R115<>"",COUNT($R$13:R115),0) -> 0 | S115: =IF(AND(P115="ماهیانه",L115>0),I115,IF(M115>0,I115,IF(O115>0,"میانگین",""))) ->  | T115: =IF(AND(P115="ماهیانه",L115>0),J115,"") ->  | U115: 0 | V115: 0 | W115: 0 | Y115: 0 | Z115: 3 | AA115: 0 | AD115: 0 | AF115: 1
C116: 56 | D116: 30 | E116: =SUM($D$13:D116) -> 3166 | F116: =IF($U$7>E116,D116,$U$7-SUM($F$13:F115)) -> 0 | H116: 0 | I116: سوم | J116: آبان | K116: =IF(E116>$U$8,$T$9-SUM($K$13:K115),D116-F116+G116) -> 0 | L116: 0 | N116: =IF($T$4-SUM($K$13:K115)>0,$T$4-SUM($K$13:K115),0) -> 0 | O116: =IF(N116=0,IF(SUM($O$13:O115)>0,0,$T$5),0) -> 0 | Q116: =IF(R116<>"",COUNT($R$13:R116),0) -> 0 | S116: =IF(AND(P115="ماهیانه",L116>0),I116,IF(M116>0,I116,IF(O116>0,"میانگین",""))) ->  | T116: =IF(AND(P115="ماهیانه",L116>0),J116,"") ->  | U116: 0 | V116: 0 | W116: 0 | Y116: 0 | Z116: 3 | AA116: 0 | AD116: 0 | AF116: 1
C117: 57 | D117: 30 | E117: =SUM($D$13:D117) -> 3196 | F117: =IF($U$7>E117,D117,$U$7-SUM($F$13:F116)) -> 0 | H117: 0 | I117: سوم | J117: آذر | K117: =IF(E117>$U$8,$T$9-SUM($K$13:K116),D117-F117+G117) -> 0 | L117: 0 | N117: =IF($T$4-SUM($K$13:K116)>0,$T$4-SUM($K$13:K116),0) -> 0 | O117: =IF(N117=0,IF(SUM($O$13:O116)>0,0,$T$5),0) -> 0 | Q117: =IF(R117<>"",COUNT($R$13:R117),0) -> 0 | S117: =IF(AND(P115="ماهیانه",L117>0),I117,IF(M117>0,I117,IF(O117>0,"میانگین",""))) ->  | T117: =IF(AND(P115="ماهیانه",L117>0),J117,"") ->  | U117: 0 | V117: 0 | W117: 0 | Y117: 0 | Z117: 3 | AA117: 0 | AD117: 0 | AF117: 1
C118: 58 | D118: 30 | E118: =SUM($D$13:D118) -> 3226 | F118: =IF($U$7>E118,D118,$U$7-SUM($F$13:F117)) -> 0 | H118: 0 | I118: چهارم | J118: دی | K118: =IF(E118>$U$8,$T$9-SUM($K$13:K117),D118-F118+G118) -> 0 | L118: 0 | M118: =SUM(L118:L120) -> 0 | N118: =IF($T$4-SUM($K$13:K117)>0,$T$4-SUM($K$13:K117),0) -> 0 | O118: =IF(N118=0,IF(SUM($O$13:O117)>0,0,$T$5),0) -> 0 | P118: =IFERROR(HLOOKUP(H118&"-4",shtip,2,0),"") ->  | Q118: =IF(R118<>"",COUNT($R$13:R118),0) -> 0 | S118: =IF(AND(P118="ماهیانه",L118>0),I118,IF(M118>0,I118,IF(O118>0,"میانگین",""))) ->  | T118: =IF(AND(P118="ماهیانه",L118>0),J118,"") ->  | U118: 0 | V118: 0 | W118: 0 | Y118: 0 | Z118: 4 | AA118: 0 | AD118: 0 | AF118: 1
C119: 59 | D119: 30 | E119: =SUM($D$13:D119) -> 3256 | F119: =IF($U$7>E119,D119,$U$7-SUM($F$13:F118)) -> 0 | H119: 0 | I119: چهارم | J119: بهمن | K119: =IF(E119>$U$8,$T$9-SUM($K$13:K118),D119-F119+G119) -> 0 | L119: 0 | N119: =IF($T$4-SUM($K$13:K118)>0,$T$4-SUM($K$13:K118),0) -> 0 | O119: =IF(N119=0,IF(SUM($O$13:O118)>0,0,$T$5),0) -> 0 | Q119: =IF(R119<>"",COUNT($R$13:R119),0) -> 0 | S119: =IF(AND(P118="ماهیانه",L119>0),I119,IF(M119>0,I119,IF(O119>0,"میانگین",""))) ->  | T119: =IF(AND(P118="ماهیانه",L119>0),J119,"") ->  | U119: 0 | V119: 0 | W119: 0 | Y119: 0 | Z119: 4 | AA119: 0 | AD119: 0 | AF119: 1
C120: 60 | D120: =29+[3]!Jleap(B109) -> 29 | E120: =SUM($D$13:D120) -> 3285 | F120: =IF($U$7>E120,D120,$U$7-SUM($F$13:F119)) -> 0 | H120: 0 | I120: چهارم | J120: اسفند | K120: =IF(E120>$U$8,$T$9-SUM($K$13:K119),D120-F120+G120) -> 0 | L120: 0 | N120: =IF($T$4-SUM($K$13:K119)>0,$T$4-SUM($K$13:K119),0) -> 0 | O120: =IF(N120=0,IF(SUM($O$13:O119)>0,0,$T$5),0) -> 0 | Q120: =IF(R120<>"",COUNT($R$13:R120),0) -> 0 | S120: =IF(AND(P118="ماهیانه",L120>0),I120,IF(M120>0,I120,IF(O120>0,"میانگین",""))) ->  | T120: =IF(AND(P118="ماهیانه",L120>0),J120,"") ->  | U120: 0 | V120: 0 | W120: 0 | Y120: 0 | Z120: 4 | AA120: 0 | AD120: 0 | AF120: 1
B121: =IF(B109=0,0,IF(B109+1<=$P$8,B109+1,0)) -> 0 | C121: 61 | D121: 31 | E121: =SUM($D$13:D121) -> 3316 | F121: =IF($U$7>E121,D121,$U$7-SUM($F$13:F120)) -> 0 | H121: =B121 -> 0 | I121: اول | J121: فروردین | K121: =IF(E121>$U$8,$T$9-SUM($K$13:K120),D121-F121+G121) -> 0 | L121: 0 | M121: =SUM(L121:L123) -> 0 | N121: =IF($T$4-SUM($K$13:K120)>0,$T$4-SUM($K$13:K120),0) -> 0 | O121: =IF(N121=0,IF(SUM($O$13:O120)>0,0,$T$5),0) -> 0 | P121: =IFERROR(HLOOKUP(H121&"-1",shtip,2,0),"") ->  | Q121: =IF(R121<>"",COUNT($R$13:R121),0) -> 0 | S121: =IF(AND(P121="ماهیانه",L121>0),I121,IF(M121>0,I121,IF(O121>0,"میانگین",""))) ->  | T121: =IF(AND(P121="ماهیانه",L121>0),J121,"") ->  | U121: 0 | V121: 0 | W121: 0 | Y121: 0 | Z121: 1 | AA121: 0 | AD121: 0 | AF121: 1
C122: 62 | D122: 31 | E122: =SUM($D$13:D122) -> 3347 | F122: =IF($U$7>E122,D122,$U$7-SUM($F$13:F121)) -> 0 | H122: =H121 -> 0 | I122: اول | J122: اردیبهشت | K122: =IF(E122>$U$8,$T$9-SUM($K$13:K121),D122-F122+G122) -> 0 | L122: 0 | N122: =IF($T$4-SUM($K$13:K121)>0,$T$4-SUM($K$13:K121),0) -> 0 | O122: =IF(N122=0,IF(SUM($O$13:O121)>0,0,$T$5),0) -> 0 | Q122: =IF(R122<>"",COUNT($R$13:R122),0) -> 0 | S122: =IF(AND(P121="ماهیانه",L122>0),I122,IF(M122>0,I122,IF(O122>0,"میانگین",""))) ->  | T122: =IF(AND(P121="ماهیانه",L122>0),J122,"") ->  | U122: 0 | V122: 0 | W122: 0 | Y122: 0 | Z122: 1 | AA122: 0 | AD122: 0 | AF122: 1
C123: 63 | D123: 31 | E123: =SUM($D$13:D123) -> 3378 | F123: =IF($U$7>E123,D123,$U$7-SUM($F$13:F122)) -> 0 | H123: 0 | I123: اول | J123: خرداد | K123: =IF(E123>$U$8,$T$9-SUM($K$13:K122),D123-F123+G123) -> 0 | L123: 0 | N123: =IF($T$4-SUM($K$13:K122)>0,$T$4-SUM($K$13:K122),0) -> 0 | O123: =IF(N123=0,IF(SUM($O$13:O122)>0,0,$T$5),0) -> 0 | Q123: =IF(R123<>"",COUNT($R$13:R123),0) -> 0 | S123: =IF(AND(P121="ماهیانه",L123>0),I123,IF(M123>0,I123,IF(O123>0,"میانگین",""))) ->  | T123: =IF(AND(P121="ماهیانه",L123>0),J123,"") ->  | U123: 0 | V123: 0 | W123: 0 | Y123: 0 | Z123: 1 | AA123: 0 | AD123: 0 | AF123: 1
C124: 64 | D124: 31 | E124: =SUM($D$13:D124) -> 3409 | F124: =IF($U$7>E124,D124,$U$7-SUM($F$13:F123)) -> 0 | H124: 0 | I124: دوم | J124: تیر | K124: =IF(E124>$U$8,$T$9-SUM($K$13:K123),D124-F124+G124) -> 0 | L124: 0 | M124: =SUM(L124:L126) -> 0 | N124: =IF($T$4-SUM($K$13:K123)>0,$T$4-SUM($K$13:K123),0) -> 0 | O124: =IF(N124=0,IF(SUM($O$13:O123)>0,0,$T$5),0) -> 0 | P124: =IFERROR(HLOOKUP(H124&"-2",shtip,2,0),"") ->  | Q124: =IF(R124<>"",COUNT($R$13:R124),0) -> 0 | S124: =IF(AND(P124="ماهیانه",L124>0),I124,IF(M124>0,I124,IF(O124>0,"میانگین",""))) ->  | T124: =IF(AND(P124="ماهیانه",L124>0),J124,"") ->  | U124: 0 | V124: 0 | W124: 0 | Y124: 0 | Z124: 2 | AA124: 0 | AD124: 0 | AF124: 1
C125: 65 | D125: 31 | E125: =SUM($D$13:D125) -> 3440 | F125: =IF($U$7>E125,D125,$U$7-SUM($F$13:F124)) -> 0 | H125: 0 | I125: دوم | J125: مرداد | K125: =IF(E125>$U$8,$T$9-SUM($K$13:K124),D125-F125+G125) -> 0 | L125: 0 | N125: =IF($T$4-SUM($K$13:K124)>0,$T$4-SUM($K$13:K124),0) -> 0 | O125: =IF(N125=0,IF(SUM($O$13:O124)>0,0,$T$5),0) -> 0 | Q125: =IF(R125<>"",COUNT($R$13:R125),0) -> 0 | S125: =IF(AND(P124="ماهیانه",L125>0),I125,IF(M125>0,I125,IF(O125>0,"میانگین",""))) ->  | T125: =IF(AND(P124="ماهیانه",L125>0),J125,"") ->  | U125: 0 | V125: 0 | W125: 0 | Y125: 0 | Z125: 2 | AA125: 0 | AD125: 0 | AF125: 1
C126: 66 | D126: 31 | E126: =SUM($D$13:D126) -> 3471 | F126: =IF($U$7>E126,D126,$U$7-SUM($F$13:F125)) -> 0 | H126: 0 | I126: دوم | J126: شهریور | K126: =IF(E126>$U$8,$T$9-SUM($K$13:K125),D126-F126+G126) -> 0 | L126: 0 | N126: =IF($T$4-SUM($K$13:K125)>0,$T$4-SUM($K$13:K125),0) -> 0 | O126: =IF(N126=0,IF(SUM($O$13:O125)>0,0,$T$5),0) -> 0 | Q126: =IF(R126<>"",COUNT($R$13:R126),0) -> 0 | S126: =IF(AND(P124="ماهیانه",L126>0),I126,IF(M126>0,I126,IF(O126>0,"میانگین",""))) ->  | T126: =IF(AND(P124="ماهیانه",L126>0),J126,"") ->  | U126: 0 | V126: 0 | W126: 0 | Y126: 0 | Z126: 2 | AA126: 0 | AD126: 0 | AF126: 1
C127: 67 | D127: 30 | E127: =SUM($D$13:D127) -> 3501 | F127: =IF($U$7>E127,D127,$U$7-SUM($F$13:F126)) -> 0 | H127: 0 | I127: سوم | J127: مهر | K127: =IF(E127>$U$8,$T$9-SUM($K$13:K126),D127-F127+G127) -> 0 | L127: 0 | M127: =SUM(L127:L129) -> 0 | N127: =IF($T$4-SUM($K$13:K126)>0,$T$4-SUM($K$13:K126),0) -> 0 | O127: =IF(N127=0,IF(SUM($O$13:O126)>0,0,$T$5),0) -> 0 | P127: =IFERROR(HLOOKUP(H127&"-3",shtip,2,0),"") ->  | Q127: =IF(R127<>"",COUNT($R$13:R127),0) -> 0 | S127: =IF(AND(P127="ماهیانه",L127>0),I127,IF(M127>0,I127,IF(O127>0,"میانگین",""))) ->  | T127: =IF(AND(P127="ماهیانه",L127>0),J127,"") ->  | U127: 0 | V127: 0 | W127: 0 | Y127: 0 | Z127: 3 | AA127: 0 | AD127: 0 | AF127: 1
C128: 68 | D128: 30 | E128: =SUM($D$13:D128) -> 3531 | F128: =IF($U$7>E128,D128,$U$7-SUM($F$13:F127)) -> 0 | H128: 0 | I128: سوم | J128: آبان | K128: =IF(E128>$U$8,$T$9-SUM($K$13:K127),D128-F128+G128) -> 0 | L128: 0 | N128: =IF($T$4-SUM($K$13:K127)>0,$T$4-SUM($K$13:K127),0) -> 0 | O128: =IF(N128=0,IF(SUM($O$13:O127)>0,0,$T$5),0) -> 0 | Q128: =IF(R128<>"",COUNT($R$13:R128),0) -> 0 | S128: =IF(AND(P127="ماهیانه",L128>0),I128,IF(M128>0,I128,IF(O128>0,"میانگین",""))) ->  | T128: =IF(AND(P127="ماهیانه",L128>0),J128,"") ->  | U128: 0 | V128: 0 | W128: 0 | Y128: 0 | Z128: 3 | AA128: 0 | AD128: 0 | AF128: 1
C129: 69 | D129: 30 | E129: =SUM($D$13:D129) -> 3561 | F129: =IF($U$7>E129,D129,$U$7-SUM($F$13:F128)) -> 0 | H129: 0 | I129: سوم | J129: آذر | K129: =IF(E129>$U$8,$T$9-SUM($K$13:K128),D129-F129+G129) -> 0 | L129: 0 | N129: =IF($T$4-SUM($K$13:K128)>0,$T$4-SUM($K$13:K128),0) -> 0 | O129: =IF(N129=0,IF(SUM($O$13:O128)>0,0,$T$5),0) -> 0 | Q129: =IF(R129<>"",COUNT($R$13:R129),0) -> 0 | S129: =IF(AND(P127="ماهیانه",L129>0),I129,IF(M129>0,I129,IF(O129>0,"میانگین",""))) ->  | T129: =IF(AND(P127="ماهیانه",L129>0),J129,"") ->  | U129: 0 | V129: 0 | W129: 0 | Y129: 0 | Z129: 3 | AA129: 0 | AD129: 0 | AF129: 1
C130: 70 | D130: 30 | E130: =SUM($D$13:D130) -> 3591 | F130: =IF($U$7>E130,D130,$U$7-SUM($F$13:F129)) -> 0 | H130: 0 | I130: چهارم | J130: دی | K130: =IF(E130>$U$8,$T$9-SUM($K$13:K129),D130-F130+G130) -> 0 | L130: 0 | M130: =SUM(L130:L132) -> 0 | N130: =IF($T$4-SUM($K$13:K129)>0,$T$4-SUM($K$13:K129),0) -> 0 | O130: =IF(N130=0,IF(SUM($O$13:O129)>0,0,$T$5),0) -> 0 | P130: =IFERROR(HLOOKUP(H130&"-4",shtip,2,0),"") ->  | Q130: =IF(R130<>"",COUNT($R$13:R130),0) -> 0 | S130: =IF(AND(P130="ماهیانه",L130>0),I130,IF(M130>0,I130,IF(O130>0,"میانگین",""))) ->  | T130: =IF(AND(P130="ماهیانه",L130>0),J130,"") ->  | U130: 0 | V130: 0 | W130: 0 | Y130: 0 | Z130: 4 | AA130: 0 | AD130: 0 | AF130: 1
C131: 71 | D131: 30 | E131: =SUM($D$13:D131) -> 3621 | F131: =IF($U$7>E131,D131,$U$7-SUM($F$13:F130)) -> 0 | H131: 0 | I131: چهارم | J131: بهمن | K131: =IF(E131>$U$8,$T$9-SUM($K$13:K130),D131-F131+G131) -> 0 | L131: 0 | N131: =IF($T$4-SUM($K$13:K130)>0,$T$4-SUM($K$13:K130),0) -> 0 | O131: =IF(N131=0,IF(SUM($O$13:O130)>0,0,$T$5),0) -> 0 | Q131: =IF(R131<>"",COUNT($R$13:R131),0) -> 0 | S131: =IF(AND(P130="ماهیانه",L131>0),I131,IF(M131>0,I131,IF(O131>0,"میانگین",""))) ->  | T131: =IF(AND(P130="ماهیانه",L131>0),J131,"") ->  | U131: 0 | V131: 0 | W131: 0 | Y131: 0 | Z131: 4 | AA131: 0 | AD131: 0 | AF131: 1
C132: 72 | D132: =29+[3]!Jleap(B121) -> 29 | E132: =SUM($D$13:D132) -> 3650 | F132: =IF($U$7>E132,D132,$U$7-SUM($F$13:F131)) -> 0 | H132: 0 | I132: چهارم | J132: اسفند | K132: =IF(E132>$U$8,$T$9-SUM($K$13:K131),D132-F132+G132) -> 0 | L132: 0 | N132: =IF($T$4-SUM($K$13:K131)>0,$T$4-SUM($K$13:K131),0) -> 0 | O132: =IF(N132=0,IF(SUM($O$13:O131)>0,0,$T$5),0) -> 0 | Q132: =IF(R132<>"",COUNT($R$13:R132),0) -> 0 | S132: =IF(AND(P130="ماهیانه",L132>0),I132,IF(M132>0,I132,IF(O132>0,"میانگین",""))) ->  | T132: =IF(AND(P130="ماهیانه",L132>0),J132,"") ->  | U132: 0 | V132: 0 | W132: 0 | Y132: 0 | Z132: 4 | AA132: 0 | AD132: 0 | AF132: 1
B133: =IF(B121=0,0,IF(B121+1<=$P$8,B121+1,0)) -> 0 | C133: 73 | D133: 31 | E133: =SUM($D$13:D133) -> 3681 | F133: =IF($U$7>E133,D133,$U$7-SUM($F$13:F132)) -> 0 | H133: =B133 -> 0 | I133: اول | J133: فروردین | K133: =IF(E133>$U$8,$T$9-SUM($K$13:K132),D133-F133+G133) -> 0 | L133: 0 | M133: =SUM(L133:L135) -> 0 | N133: =IF($T$4-SUM($K$13:K132)>0,$T$4-SUM($K$13:K132),0) -> 0 | O133: =IF(N133=0,IF(SUM($O$13:O132)>0,0,$T$5),0) -> 0 | P133: =IFERROR(HLOOKUP(H133&"-1",shtip,2,0),"") ->  | Q133: =IF(R133<>"",COUNT($R$13:R133),0) -> 0 | S133: =IF(AND(P133="ماهیانه",L133>0),I133,IF(M133>0,I133,IF(O133>0,"میانگین",""))) ->  | T133: =IF(AND(P133="ماهیانه",L133>0),J133,"") ->  | U133: 0 | V133: 0 | W133: 0 | Y133: 0 | Z133: 1 | AA133: 0 | AD133: 0 | AF133: 1
C134: 74 | D134: 31 | E134: =SUM($D$13:D134) -> 3712 | F134: =IF($U$7>E134,D134,$U$7-SUM($F$13:F133)) -> 0 | H134: =H133 -> 0 | I134: اول | J134: اردیبهشت | K134: =IF(E134>$U$8,$T$9-SUM($K$13:K133),D134-F134+G134) -> 0 | L134: 0 | N134: =IF($T$4-SUM($K$13:K133)>0,$T$4-SUM($K$13:K133),0) -> 0 | O134: =IF(N134=0,IF(SUM($O$13:O133)>0,0,$T$5),0) -> 0 | Q134: =IF(R134<>"",COUNT($R$13:R134),0) -> 0 | S134: =IF(AND(P133="ماهیانه",L134>0),I134,IF(M134>0,I134,IF(O134>0,"میانگین",""))) ->  | T134: =IF(AND(P133="ماهیانه",L134>0),J134,"") ->  | U134: 0 | V134: 0 | W134: 0 | Y134: 0 | Z134: 1 | AA134: 0 | AD134: 0 | AF134: 1
C135: 75 | D135: 31 | E135: =SUM($D$13:D135) -> 3743 | F135: =IF($U$7>E135,D135,$U$7-SUM($F$13:F134)) -> 0 | H135: 0 | I135: اول | J135: خرداد | K135: =IF(E135>$U$8,$T$9-SUM($K$13:K134),D135-F135+G135) -> 0 | L135: 0 | N135: =IF($T$4-SUM($K$13:K134)>0,$T$4-SUM($K$13:K134),0) -> 0 | O135: =IF(N135=0,IF(SUM($O$13:O134)>0,0,$T$5),0) -> 0 | Q135: =IF(R135<>"",COUNT($R$13:R135),0) -> 0 | S135: =IF(AND(P133="ماهیانه",L135>0),I135,IF(M135>0,I135,IF(O135>0,"میانگین",""))) ->  | T135: =IF(AND(P133="ماهیانه",L135>0),J135,"") ->  | U135: 0 | V135: 0 | W135: 0 | Y135: 0 | Z135: 1 | AA135: 0 | AD135: 0 | AF135: 1
C136: 76 | D136: 31 | E136: =SUM($D$13:D136) -> 3774 | F136: =IF($U$7>E136,D136,$U$7-SUM($F$13:F135)) -> 0 | H136: 0 | I136: دوم | J136: تیر | K136: =IF(E136>$U$8,$T$9-SUM($K$13:K135),D136-F136+G136) -> 0 | L136: 0 | M136: =SUM(L136:L138) -> 0 | N136: =IF($T$4-SUM($K$13:K135)>0,$T$4-SUM($K$13:K135),0) -> 0 | O136: =IF(N136=0,IF(SUM($O$13:O135)>0,0,$T$5),0) -> 0 | P136: =IFERROR(HLOOKUP(H136&"-2",shtip,2,0),"") ->  | Q136: =IF(R136<>"",COUNT($R$13:R136),0) -> 0 | S136: =IF(AND(P136="ماهیانه",L136>0),I136,IF(M136>0,I136,IF(O136>0,"میانگین",""))) ->  | T136: =IF(AND(P136="ماهیانه",L136>0),J136,"") ->  | U136: 0 | V136: 0 | W136: 0 | Y136: 0 | Z136: 2 | AA136: 0 | AD136: 0 | AF136: 1
C137: 77 | D137: 31 | E137: =SUM($D$13:D137) -> 3805 | F137: =IF($U$7>E137,D137,$U$7-SUM($F$13:F136)) -> 0 | H137: 0 | I137: دوم | J137: مرداد | K137: =IF(E137>$U$8,$T$9-SUM($K$13:K136),D137-F137+G137) -> 0 | L137: 0 | N137: =IF($T$4-SUM($K$13:K136)>0,$T$4-SUM($K$13:K136),0) -> 0 | O137: =IF(N137=0,IF(SUM($O$13:O136)>0,0,$T$5),0) -> 0 | Q137: =IF(R137<>"",COUNT($R$13:R137),0) -> 0 | S137: =IF(AND(P136="ماهیانه",L137>0),I137,IF(M137>0,I137,IF(O137>0,"میانگین",""))) ->  | T137: =IF(AND(P136="ماهیانه",L137>0),J137,"") ->  | U137: 0 | V137: 0 | W137: 0 | Y137: 0 | Z137: 2 | AA137: 0 | AD137: 0 | AF137: 1
C138: 78 | D138: 31 | E138: =SUM($D$13:D138) -> 3836 | F138: =IF($U$7>E138,D138,$U$7-SUM($F$13:F137)) -> 0 | H138: 0 | I138: دوم | J138: شهریور | K138: =IF(E138>$U$8,$T$9-SUM($K$13:K137),D138-F138+G138) -> 0 | L138: 0 | N138: =IF($T$4-SUM($K$13:K137)>0,$T$4-SUM($K$13:K137),0) -> 0 | O138: =IF(N138=0,IF(SUM($O$13:O137)>0,0,$T$5),0) -> 0 | Q138: =IF(R138<>"",COUNT($R$13:R138),0) -> 0 | S138: =IF(AND(P136="ماهیانه",L138>0),I138,IF(M138>0,I138,IF(O138>0,"میانگین",""))) ->  | T138: =IF(AND(P136="ماهیانه",L138>0),J138,"") ->  | U138: 0 | V138: 0 | W138: 0 | Y138: 0 | Z138: 2 | AA138: 0 | AD138: 0 | AF138: 1
C139: 79 | D139: 30 | E139: =SUM($D$13:D139) -> 3866 | F139: =IF($U$7>E139,D139,$U$7-SUM($F$13:F138)) -> 0 | H139: 0 | I139: سوم | J139: مهر | K139: =IF(E139>$U$8,$T$9-SUM($K$13:K138),D139-F139+G139) -> 0 | L139: 0 | M139: =SUM(L139:L141) -> 0 | N139: =IF($T$4-SUM($K$13:K138)>0,$T$4-SUM($K$13:K138),0) -> 0 | O139: =IF(N139=0,IF(SUM($O$13:O138)>0,0,$T$5),0) -> 0 | P139: =IFERROR(HLOOKUP(H139&"-3",shtip,2,0),"") ->  | Q139: =IF(R139<>"",COUNT($R$13:R139),0) -> 0 | S139: =IF(AND(P139="ماهیانه",L139>0),I139,IF(M139>0,I139,IF(O139>0,"میانگین",""))) ->  | T139: =IF(AND(P139="ماهیانه",L139>0),J139,"") ->  | U139: 0 | V139: 0 | W139: 0 | Y139: 0 | Z139: 3 | AA139: 0 | AD139: 0 | AF139: 1
C140: 80 | D140: 30 | E140: =SUM($D$13:D140) -> 3896 | F140: =IF($U$7>E140,D140,$U$7-SUM($F$13:F139)) -> 0 | H140: 0 | I140: سوم | J140: آبان | K140: =IF(E140>$U$8,$T$9-SUM($K$13:K139),D140-F140+G140) -> 0 | L140: 0 | N140: =IF($T$4-SUM($K$13:K139)>0,$T$4-SUM($K$13:K139),0) -> 0 | O140: =IF(N140=0,IF(SUM($O$13:O139)>0,0,$T$5),0) -> 0 | Q140: =IF(R140<>"",COUNT($R$13:R140),0) -> 0 | S140: =IF(AND(P139="ماهیانه",L140>0),I140,IF(M140>0,I140,IF(O140>0,"میانگین",""))) ->  | T140: =IF(AND(P139="ماهیانه",L140>0),J140,"") ->  | U140: 0 | V140: 0 | W140: 0 | Y140: 0 | Z140: 3 | AA140: 0 | AD140: 0 | AF140: 1
C141: 81 | D141: 30 | E141: =SUM($D$13:D141) -> 3926 | F141: =IF($U$7>E141,D141,$U$7-SUM($F$13:F140)) -> 0 | H141: 0 | I141: سوم | J141: آذر | K141: =IF(E141>$U$8,$T$9-SUM($K$13:K140),D141-F141+G141) -> 0 | L141: 0 | N141: =IF($T$4-SUM($K$13:K140)>0,$T$4-SUM($K$13:K140),0) -> 0 | O141: =IF(N141=0,IF(SUM($O$13:O140)>0,0,$T$5),0) -> 0 | Q141: =IF(R141<>"",COUNT($R$13:R141),0) -> 0 | S141: =IF(AND(P139="ماهیانه",L141>0),I141,IF(M141>0,I141,IF(O141>0,"میانگین",""))) ->  | T141: =IF(AND(P139="ماهیانه",L141>0),J141,"") ->  | U141: 0 | V141: =IF(U141>0,IF(S141="میانگین",S141,IF(HLOOKUP(H141&"-"&Z141,shtip,2,0)="","علی الحساب","قطعی")),0) -> 0 | W141: 0 | Y141: 0 | Z141: 3 | AA141: 0 | AD141: 0 | AF141: 1
C142: 82 | D142: 30 | E142: =SUM($D$13:D142) -> 3956 | F142: =IF($U$7>E142,D142,$U$7-SUM($F$13:F141)) -> 0 | H142: 0 | I142: چهارم | J142: دی | K142: =IF(E142>$U$8,$T$9-SUM($K$13:K141),D142-F142+G142) -> 0 | L142: 0 | M142: =SUM(L142:L144) -> 0 | N142: =IF($T$4-SUM($K$13:K141)>0,$T$4-SUM($K$13:K141),0) -> 0 | O142: =IF(N142=0,IF(SUM($O$13:O141)>0,0,$T$5),0) -> 0 | P142: =IFERROR(HLOOKUP(H142&"-4",shtip,2,0),"") ->  | Q142: =IF(R142<>"",COUNT($R$13:R142),0) -> 0 | S142: =IF(AND(P142="ماهیانه",L142>0),I142,IF(M142>0,I142,IF(O142>0,"میانگین",""))) ->  | T142: =IF(AND(P142="ماهیانه",L142>0),J142,"") ->  | U142: 0 | V142: =IF(U142>0,IF(S142="میانگین",S142,IF(HLOOKUP(H142&"-"&Z142,shtip,2,0)="","علی الحساب","قطعی")),0) -> 0 | W142: 0 | Y142: 0 | Z142: 4 | AA142: 0 | AD142: 0 | AF142: 1 | AH142: =IF(U142>0," مدت کارکرد در دوره های سه ماهه "&S142&" "&T142&" سال "&R142,"") ->  | AI142: =IF(U142>0," روز "&U142,"") -> 
C143: 83 | D143: 30 | E143: =SUM($D$13:D143) -> 3986 | F143: =IF($U$7>E143,D143,$U$7-SUM($F$13:F142)) -> 0 | H143: 0 | I143: چهارم | J143: بهمن | K143: =IF(E143>$U$8,$T$9-SUM($K$13:K142),D143-F143+G143) -> 0 | L143: 0 | N143: =IF($T$4-SUM($K$13:K142)>0,$T$4-SUM($K$13:K142),0) -> 0 | O143: =IF(N143=0,IF(SUM($O$13:O142)>0,0,$T$5),0) -> 0 | Q143: =IF(R143<>"",COUNT($R$13:R143),0) -> 0 | S143: =IF(AND(P142="ماهیانه",L143>0),I143,IF(M143>0,I143,IF(O143>0,"میانگین",""))) ->  | T143: =IF(AND(P142="ماهیانه",L143>0),J143,"") ->  | U143: 0 | V143: =IF(U143>0,IF(S143="میانگین",S143,IF(HLOOKUP(H143&"-"&Z143,shtip,2,0)="","علی الحساب","قطعی")),0) -> 0 | W143: 0 | Y143: 0 | Z143: 4 | AA143: 0 | AD143: 0 | AF143: 1 | AH143: =IF(U143>0," مدت کارکرد در دوره های سه ماهه "&S143&" "&T143&" سال "&R143,"") ->  | AI143: =IF(U143>0," روز "&U143,"") -> 
C144: 84 | D144: =29+[3]!Jleap(B133) -> 29 | E144: =SUM($D$13:D144) -> 4015 | F144: =IF($U$7>E144,D144,$U$7-SUM($F$13:F143)) -> 0 | H144: 0 | I144: چهارم | J144: اسفند | K144: =IF(E144>$U$8,$T$9-SUM($K$13:K143),D144-F144+G144) -> 0 | L144: 0 | N144: =IF($T$4-SUM($K$13:K143)>0,$T$4-SUM($K$13:K143),0) -> 0 | O144: =IF(N144=0,IF(SUM($O$13:O143)>0,0,$T$5),0) -> 0 | Q144: =IF(R144<>"",COUNT($R$13:R144),0) -> 0 | S144: =IF(AND(P142="ماهیانه",L144>0),I144,IF(M144>0,I144,IF(O144>0,"میانگین",""))) ->  | T144: =IF(AND(P142="ماهیانه",L144>0),J144,"") ->  | U144: 0 | V144: =IF(U144>0,IF(S144="میانگین",S144,IF(HLOOKUP(H144&"-"&Z144,shtip,2,0)="","علی الحساب","قطعی")),0) -> 0 | W144: 0 | Y144: 0 | Z144: 4 | AA144: 0 | AD144: 0 | AF144: 1 | AH144: =IF(U144>0," مدت کارکرد در دوره های سه ماهه "&S144&" "&T144&" سال "&R144,"") ->  | AI144: =IF(U144>0," روز "&U144,"") -> 
Q145: =MAX(Q13:Q144)+1 -> 1 | AE145: =IF(AG145="","",AF145) -> 2 | AF145: =IF(AG145="",AF144,AF144+1) -> 2 | AG145: 5-2 | AH145: نسبت مدت کارکرد در هردوره سه ماهه به مدت کارکرد:
AE146: =IF(AG146="","",AF146) ->  | AF146: =IF(AG146="",AF145,AF145+1) -> 2 | AG146: =IF(AH146="","",Q13&"-5-2") ->  | AH146: =IF(U13>0," مدت کارکرد در دوره های سه ماهه "&S13&" "&T13&" سال "&R13,"") ->  | AI146: =IF(U13>0," روز "&AA13,"") -> 
AF147: 2 | AG147: =IF(AH147="","",Q14&"-5-2") ->  | AH147: =IF(U14>0," مدت کارکرد در دوره های سه ماهه "&S14&" "&T14&" سال "&R14,"") ->  | AI147: =IF(U14>0," روز "&AA14,"") -> 
AF148: 2
E149: =COUNTIF(E150:E165,TRUE) -> 5 | G149: =E149 -> 5 | AF149: 2
A150: 1382 | B150: 1 | C150: اول | E150: TRUE | F150: ابنیه | G150: =IF(E150,1,0) -> 1 | H150: =IF(E150,F150,"") -> ابنیه | I150: =IF(H150<>"","بهای "&H150,"") -> بهای ابنیه | J150: =IFERROR(VLOOKUP(H150,Tadilmb,14,0),0) -> 0 | K150: فروردین | L150: 1 | AF150: 2
A151: 1383 | B151: 2 | C151: دوم | E151: TRUE | F151: تاسیسات مکانیکی | G151: =IF(E151,G150+1,0) -> 2 | H151: =IF(E151,F151,"") -> تاسیسات مکانیکی | I151: =IF(H151<>"","بهای "&H151,"") -> بهای تاسیسات مکانیکی | J151: 0 | K151: اردیبهشت | L151: 2 | AF151: 2
A152: 1384 | B152: 3 | C152: سوم | E152: TRUE | F152: تاسیسات برقی | G152: =IF(E152,MAX($G$150:G151)+1,0) -> 3 | H152: تاسیسات برقی | I152: بهای تاسیسات برقی | J152: 0 | K152: خرداد | L152: 3 | AF152: 2
A153: 1385 | B153: 4 | C153: چهارم | E153: TRUE | F153: راه، راه آهن و باند فرودگاه | G153: =IF(E153,MAX($G$150:G152)+1,0) -> 4 | H153: راه، راه آهن و باند فرودگاه | I153: بهای راه، راه آهن و باند فرودگاه | J153: 0 | K153: تیر | L153: 4 | AF153: 2
A154: 1386 | B154: 5 | E154: TRUE | F154: راهداری | G154: =IF(E154,MAX($G$150:G153)+1,0) -> 5 | H154: راهداری | I154: بهای راهداری | J154: 0 | K154: مرداد | L154: 5 | AF154: 2
A155: 1387 | B155: 6 | E155: FALSE | F155: نگهداری، تعمیر و روسازی و ابنیه خطوط راه آهن | G155: =IF(E155,MAX($G$150:G154)+1,0) -> 0 | J155: 0 | K155: شهریور | L155: 6 | AF155: 2
A156: 1388 | B156: 7 | E156: FALSE | F156: خطوط انتقال آب | G156: =IF(E156,MAX($G$150:G155)+1,0) -> 0 | J156: 0 | K156: مهر | L156: 7 | AF156: =IF(AG156="",AF155,AF155+1) -> 2
A157: 1389 | B157: 8 | E157: FALSE | F157: شبکه توزیع آب | G157: =IF(E157,MAX($G$150:G156)+1,0) -> 0 | J157: 0 | K157: آبان | L157: 8 | AF157: 2
A158: 1390 | B158: 9 | E158: FALSE | F158: چاه | G158: =IF(E158,MAX($G$150:G157)+1,0) -> 0 | J158: 0 | K158: آذر | L158: 9 | AF158: 2
A159: 1391 | B159: 10 | E159: FALSE | F159: آبیاری و زهکشی | G159: =IF(E159,MAX($G$150:G158)+1,0) -> 0 | J159: 0 | K159: دی | L159: 10 | AF159: 2
A160: 1392 | B160: 11 | E160: FALSE | F160: سد سازی | G160: =IF(E160,MAX($G$150:G159)+1,0) -> 0 | J160: 0 | K160: بهمن | L160: 11 | AF160: 2
A161: 1393 | B161: 12 | E161: FALSE | F161: آبیاری تحت فشار | G161: =IF(E161,MAX($G$150:G160)+1,0) -> 0 | J161: 0 | K161: اسفند | L161: 12 | AF161: 2
A162: 1394 | B162: 13 | E162: FALSE | F162: شبکه جمع آوری و انتقال فاضلاب | G162: =IF(E162,MAX($G$150:G161)+1,0) -> 0 | J162: 0 | AF162: 2
A163: 1395 | B163: 14 | E163: FALSE | F163: انتقال و توزیع آب روستایی | G163: =IF(E163,MAX($G$150:G162)+1,0) -> 0 | J163: 0 | AF163: 2
A164: 1396 | B164: 15 | E164: FALSE | F164: ساخت و ترمیم قنات | G164: =IF(E164,MAX($G$150:G163)+1,0) -> 0 | J164: 0 | AF164: 2
A165: 1397 | B165: 16 | E165: FALSE | F165: آبخیزداری و منابع طبیعی | G165: =IF(E165,MAX($G$150:G164)+1,0) -> 0 | J165: 0 | AF165: 2
A166: 1398 | B166: 17 | F166: کلیه رشته ها | G166: =IF(G165=0,0,IF(G149>G165,G165+1,0)) -> 0 | J166: 0 | AF166: 2
A167: 1399 | B167: 18 | F167: شاخصهای رشته ای | G167: =IF(G166=0,0,IF(G149>G166,G166+1,0)) -> 0 | J167: 0 | AF167: 2
A168: 1400 | B168: 19 | G168: =IF(G167=0,0,IF(G149>G167,G167+1,0)) -> 0 | J168: 0 | AF168: 2
A169: 1401 | B169: 20 | G169: =G149+1 -> 6 | I169: جـــمـع | J169: =SUM(J150:J168) -> 0 | AF169: 2
A170: 1402 | B170: 21 | AF170: 2
A171: 1403 | B171: 22 | AF171: 2
A172: 1404 | B172: 23 | AF172: 2
A173: 1405 | B173: 24 | AF173: 2
A174: 1406 | B174: 25 | AF174: 2
A175: 1407 | B175: 26 | AF175: 2
A176: 1408 | B176: 27 | AF176: 2
A177: 1409 | B177: 28 | AF177: 2
A178: 1410 | B178: 29 | AF178: 2
A179: 1411 | B179: 30 | AF179: 2
A180: 1412 | B180: 31 | AF180: 2
A181: 1413 | AF181: 2
A182: 1414 | AF182: 2
A183: 1415 | AF183: 2
A184: 1416 | AF184: 2
A185: 1417 | AF185: 2
A186: 1418 | AF186: 2
A187: 1419 | AF187: 2
A188: 1420 | AF188: 2
AF189: 2
AF190: 2
AF191: 2
AF192: 2
AF193: 2
AF194: 2
AF195: 2
AF196: 2
AF197: 2
AF198: 2
AF199: 2
AF200: 2
... 83 more rows

Sheet Tadil
I1: 1
I2: 1
I3: 1
I4: 1 | N4: صورت وضعیت | O4: 1 | U4: پ | AA4: ="تعدیل فصلی صورت وضعیت "&Anterpoleh!N8&Anterpoleh!O8&" از تاریخ : "&Anterpoleh!T7&" تا تاریخ : "&Anterpoleh!T8 -> تعدیل فصلی صورت وضعیت 0 از تاریخ : // تا تاریخ : //
I5: 1 | N5: ستون وضعیت فعلی | O5: =O4+7 -> 8 | U5: ="نام پروژه : "&Anterpoleh!A3 -> نام پروژه : | AA5: ="نام دستگاه اجرایی : "&Anterpoleh!A4 -> نام دستگاه اجرایی : | AF5: شماره پیمان: | AG5: =Anterpoleh!A1 -> 0
I6: 1 | N6: ستون وضعیت قبلی | O6: =O4+6 -> 7 | U6: ="نام پیمانکار : "&Anterpoleh!A6 -> نام پیمانکار : | AA6: ="نام مهندس مشاور : "&Anterpoleh!A5 -> نام مهندس مشاور : | AF6: تاریخ پیمان : | AG6: =Anterpoleh!A2 -> 0
I7: 1 | N7: ستون شماره فصل | O7: 4 | U7: ="دوره مبنای پیمان : سه ماهه "&Anterpoleh!C8&" سال "&Anterpoleh!D8 -> دوره مبنای پیمان : سه ماهه چهارم سال 1394 | AA7: فهرست بهای واحد پایه رشته | AB7: ابنیه | AG7: مبالغ بریال
I8: 1 | U8: دوره کارکرد | W8: شاخص | X8: فصل | Y8: ="مبلغ صورت وضعیت فعلی "&Anterpoleh!N8&Anterpoleh!O8 -> مبلغ صورت وضعیت فعلی 0 | Z8: ="مبلغ صورت وضعیت قبلی "&Anterpoleh!N7&Anterpoleh!O7 -> مبلغ صورت وضعیت قبلی 0 | AA8: مبلغ مابه التفاوت دو صورت وضعیت | AB8: نسبت مدت کارکرد در دوره بمدت کارکرد | AC8: مبلغ کارکرد در دوره | AD8: شاخص مبنا B | AE8: شاخص دوره کارکرد A | AF8: ضریب تعدیل | AG8: مبلغ تعدیل
D9: =Anterpoleh!Q11 -> 0 | I9: 1 | U9: سال | V9: سه ماهه | W9: ملاک | AF9: ="[(A÷B)-1]×"&AH11 -> [(A÷B)-1]×0.95
I10: 1 | U10: s | AK10: تمامی رشته ها | AM10: s
A11: 1 | B11: =VLOOKUP(A11,MALI,5,0) ->  | C11: =D11 -> 0 | D11: =D9 -> 0 | E11: =IF(D11=C11,1,0) -> 1 | F11: =IF(E11=0,F9,E11+F9) -> 1 | G11: =IF(K11=K12,F11,"end") -> 1 | H11: =IF(D11=C11,1,H10+1) -> 1 | I11: =IF(K11="",0,IF(J11="تمامی رشته ها",1,IF(J11=K11,1,0))) -> 0 | J11: =AB7 -> ابنیه | K11: =IFERROR(VLOOKUP(F11,MALI,5,0),"") ->  | L11: =IFERROR(VLOOKUP(F11,MALI,3,0),"") ->  | Q11: =VLOOKUP(H11,ANTR,12,0) -> 0 | R11: =Anterpoleh!F8 -> 109 | S11: =VLOOKUP(H11,ANTR,13,0) -> 0 | T11: =IF(G11="end",K11,0) -> 0 | U11: =VLOOKUP(H11,ANTR,2,0) -> 0 | V11: =VLOOKUP(H11,ANTR,3,0) -> 0 | W11: =VLOOKUP(H11,ANTR,14,0) -> 0 | X11: =IFERROR(VLOOKUP(G11,MALI,$O$7,0),0) -> 0 | Y11: =IF(G11="end",0,+VLOOKUP(G11,MALI,$O$5,0)) ->  | Z11: =IF(G11="end",0,+VLOOKUP(G11,MALI,$O$6,0)) ->  | AA11: =IF(Y11-Z11=0,0,Y11-Z11) ->  | AB11: =VLOOKUP(H11,ANTR,11,0) -> 0 | AC11: =IF(G11="end","جـمـع مبـلـغ",AA11*Q11) ->  | AD11: =IF(G11="end","تعـدیــل",VLOOKUP(L11,INDEX,R11,0)) -> 0 | AE11: =IF(G11="end","با احتسـاب",VLOOKUP(L11,INDEX,S11,0)) ->  | AF11: =IFERROR(IF(AE11="با احتسـاب","ضـرایـب",ROUND(((AE11/AD11)-1)*AH11,4)),0) -> 0 | AG11: =AI11+AJ11 ->  | AH11: =Anterpoleh!L8 -> 0.95 | AI11: =IF(AF11<1000000,AF11*AC11,0) ->  | AJ11: =SUMIF(K:K,T11,AI:AI) -> 0 | AK11: ابنیه
A12: 2 | C12: =D11 -> 0 | D12: =IF(D11=C11,IFERROR(IF(VLOOKUP(F11+1,MALI,5,0)=VLOOKUP(F11,MALI,5,0),IF(C12=D11,1,D11+1),0),0),IF(C12=D11,1,D11+1)) -> 0 | E12: =IF(D12=C12,1,0) -> 1 | F12: =IF(E12=0,F11,E12+F11) -> 2 | G12: =IF(K12=K13,F12,"end") -> 2 | H12: =IF(D12=C12,1,H11+1) -> 1 | I12: =IF(K12="",0,IF(J12="تمامی رشته ها",1,IF(J12=K12,1,0))) -> 0 | J12: =J11 -> ابنیه | K12: =IFERROR(VLOOKUP(F12,MALI,5,0),"") ->  | L12: =IFERROR(VLOOKUP(F12,MALI,3,0),"") ->  | Q12: =VLOOKUP(H12,ANTR,12,0) -> 0 | R12: =R11 -> 109 | S12: =VLOOKUP(H12,ANTR,13,0) -> 0 | T12: =IF(G12="end",K12,0) -> 0 | U12: =VLOOKUP(H12,ANTR,2,0) -> 0 | V12: =VLOOKUP(H12,ANTR,3,0) -> 0 | W12: 0 | X12: =IFERROR(VLOOKUP(G12,MALI,$O$7,0),0) -> 0 | Y12: =IF(G12="end",0,+VLOOKUP(G12,MALI,$O$5,0)) ->  | Z12: =IF(G12="end",0,+VLOOKUP(G12,MALI,$O$6,0)) ->  | AA12: =IF(Y12-Z12=0,0,Y12-Z12) ->  | AB12: =VLOOKUP(H12,ANTR,11,0) -> 0 | AC12: =IF(G12="end","جـمـع مبـلـغ",AA12*Q12) ->  | AD12: 0 | AF12: =IFERROR(IF(AE12="با احتسـاب","ضـرایـب",ROUND(((AE12/AD12)-1)*AH12,4)),0) -> 0 | AG12: =AI12+AJ12 ->  | AH12: =AH11 -> 0.95 | AI12: =IF(AF12<1000000,AF12*AC12,0) ->  | AJ12: 0 | AK12: راه ،باندفرودگاه و زیر سازی راه آهن
A13: 3 | C13: =C12 -> 0 | D13: =IF(D12=C12,IFERROR(IF(VLOOKUP(F12+1,MALI,5,0)=VLOOKUP(F12,MALI,5,0),IF(C13=D12,1,D12+1),0),0),IF(C13=D12,1,D12+1)) -> 0 | E13: =IF(D13=C13,1,0) -> 1 | F13: =IF(E13=0,F12,E13+F12) -> 3 | G13: =IF(K13=K14,F13,"end") -> 3 | H13: =IF(D13=C13,1,H12+1) -> 1 | I13: =IF(K13="",0,IF(J13="تمامی رشته ها",1,IF(J13=K13,1,0))) -> 0 | J13: =J12 -> ابنیه | K13: =IFERROR(VLOOKUP(F13,MALI,5,0),"") ->  | L13: =IFERROR(VLOOKUP(F13,MALI,3,0),"") ->  | Q13: =VLOOKUP(H13,ANTR,12,0) -> 0 | R13: =R12 -> 109 | S13: =VLOOKUP(H13,ANTR,13,0) -> 0 | T13: 0 | U13: =VLOOKUP(H13,ANTR,2,0) -> 0 | V13: =VLOOKUP(H13,ANTR,3,0) -> 0 | W13: 0 | X13: =IFERROR(VLOOKUP(G13,MALI,$O$7,0),0) -> 0 | Y13: =IF(G13="end",0,+VLOOKUP(G13,MALI,$O$5,0)) ->  | Z13: =IF(G13="end",0,+VLOOKUP(G13,MALI,$O$6,0)) ->  | AA13: =IF(Y13-Z13=0,0,Y13-Z13) ->  | AB13: =VLOOKUP(H13,ANTR,11,0) -> 0 | AC13: =IF(G13="end","جـمـع مبـلـغ",AA13*Q13) ->  | AD13: 0 | AF13: =IFERROR(IF(AE13="با احتسـاب","ضـرایـب",ROUND(((AE13/AD13)-1)*AH13,4)),0) -> 0 | AG13: =AI13+AJ13 ->  | AH13: =AH12 -> 0.95 | AI13: =IF(AF13<1000000,AF13*AC13,0) ->  | AJ13: 0 | AK13: تاسیسات مکانیکی
A14: 4 | C14: =C13 -> 0 | D14: =IF(D13=C13,IFERROR(IF(VLOOKUP(F13+1,MALI,5,0)=VLOOKUP(F13,MALI,5,0),IF(C14=D13,1,D13+1),0),0),IF(C14=D13,1,D13+1)) -> 0 | E14: =IF(D14=C14,1,0) -> 1 | F14: =IF(E14=0,F13,E14+F13) -> 4 | G14: =IF(K14=K15,F14,"end") -> 4 | H14: =IF(D14=C14,1,H13+1) -> 1 | I14: =IF(K14="",0,IF(J14="تمامی رشته ها",1,IF(J14=K14,1,0))) -> 0 | J14: =J13 -> ابنیه | K14: =IFERROR(VLOOKUP(F14,MALI,5,0),"") ->  | L14: =IFERROR(VLOOKUP(F14,MALI,3,0),"") ->  | Q14: =VLOOKUP(H14,ANTR,12,0) -> 0 | R14: 109 | S14: =VLOOKUP(H14,ANTR,13,0) -> 0 | T14: 0 | U14: =VLOOKUP(H14,ANTR,2,0) -> 0 | V14: =VLOOKUP(H14,ANTR,3,0) -> 0 | W14: 0 | X14: =IFERROR(VLOOKUP(G14,MALI,$O$7,0),0) -> 0 | Y14: =IF(G14="end",0,+VLOOKUP(G14,MALI,$O$5,0)) ->  | Z14: =IF(G14="end",0,+VLOOKUP(G14,MALI,$O$6,0)) ->  | AA14: =IF(Y14-Z14=0,0,Y14-Z14) ->  | AB14: =VLOOKUP(H14,ANTR,11,0) -> 0 | AC14: =IF(G14="end","جـمـع مبـلـغ",AA14*Q14) ->  | AD14: 0 | AF14: =IFERROR(IF(AE14="با احتسـاب","ضـرایـب",ROUND(((AE14/AD14)-1)*AH14,4)),0) -> 0 | AG14: =AI14+AJ14 ->  | AH14: 0.95 | AI14: =IF(AF14<1000000,AF14*AC14,0) ->  | AJ14: 0 | AK14: تاسیسات برقی
A15: 5 | C15: 0 | D15: 0 | E15: 1 | F15: 5 | G15: 5 | H15: 1 | I15: 0 | J15: ابنیه | Q15: 0 | R15: 109 | S15: 0 | T15: 0 | U15: 0 | V15: 0 | W15: 0 | X15: 0 | AB15: 0 | AD15: 0 | AF15: 0 | AH15: 0.95 | AJ15: 0 | AK15: چاهها و قناتها
A16: 6 | C16: 0 | D16: 0 | E16: 1 | F16: 6 | G16: 6 | H16: 1 | I16: 0 | J16: ابنیه | Q16: 0 | R16: 109 | S16: 0 | T16: 0 | U16: 0 | V16: 0 | W16: 0 | X16: 0 | AB16: 0 | AD16: 0 | AF16: 0 | AH16: 0.95 | AJ16: 0 | AK16: خطوط انتقال آب
A17: 7 | C17: 0 | D17: 0 | E17: 1 | F17: 7 | G17: 7 | H17: 1 | I17: 0 | J17: ابنیه | Q17: 0 | R17: 109 | S17: 0 | T17: 0 | U17: 0 | V17: 0 | W17: 0 | X17: 0 | AB17: 0 | AD17: 0 | AF17: 0 | AH17: 0.95 | AJ17: 0 | AK17: شبکه توزیع آب
A18: 8 | C18: 0 | D18: 0 | E18: 1 | F18: 8 | G18: 8 | H18: 1 | I18: 0 | J18: ابنیه | Q18: 0 | R18: 109 | S18: 0 | T18: 0 | U18: 0 | V18: 0 | W18: 0 | X18: 0 | AB18: 0 | AD18: 0 | AF18: 0 | AH18: 0.95 | AJ18: 0 | AK18: آبیاری و زهکشی
A19: 9 | C19: 0 | D19: 0 | E19: 1 | F19: 9 | G19: 9 | H19: 1 | I19: 0 | J19: ابنیه | Q19: 0 | R19: 109 | S19: 0 | T19: 0 | U19: 0 | V19: 0 | W19: 0 | X19: 0 | AB19: 0 | AD19: 0 | AF19: 0 | AH19: 0.95 | AJ19: 0 | AK19: شبکه جمع آوری و انتقال فاضلاب
A20: 10 | C20: 0 | D20: 0 | E20: 1 | F20: 10 | G20: 10 | H20: 1 | I20: 0 | J20: ابنیه | Q20: 0 | R20: 109 | S20: 0 | T20: 0 | U20: 0 | V20: 0 | W20: 0 | X20: 0 | AB20: 0 | AD20: 0 | AF20: 0 | AH20: 0.95 | AJ20: 0 | AK20: سد سازی
A21: 11 | C21: 0 | D21: 0 | E21: 1 | F21: 11 | G21: 11 | H21: 1 | I21: 0 | J21: ابنیه | Q21: 0 | R21: 109 | S21: 0 | T21: 0 | U21: 0 | V21: 0 | W21: 0 | X21: 0 | AB21: 0 | AD21: 0 | AF21: 0 | AH21: 0.95 | AJ21: 0 | AK21: انتقال و توزیع آب روستایی
A22: 12 | C22: 0 | D22: 0 | E22: 1 | F22: 12 | G22: 12 | H22: 1 | I22: 0 | J22: ابنیه | Q22: 0 | R22: 109 | S22: 0 | T22: 0 | U22: 0 | V22: 0 | W22: 0 | X22: 0 | AB22: 0 | AD22: 0 | AF22: 0 | AH22: 0.95 | AJ22: 0 | AK22: راهداری
A23: 13 | C23: 0 | D23: 0 | E23: 1 | F23: 13 | G23: 13 | H23: 1 | I23: 0 | J23: ابنیه | Q23: 0 | R23: 109 | S23: 0 | T23: 0 | U23: 0 | V23: 0 | W23: 0 | X23: 0 | AB23: 0 | AD23: 0 | AF23: 0 | AH23: 0.95 | AJ23: 0 | AK23: آبیاری تحت فشار
A24: 14 | C24: 0 | D24: 0 | E24: 1 | F24: 14 | G24: 14 | H24: 1 | I24: 0 | J24: ابنیه | Q24: 0 | R24: 109 | S24: 0 | T24: 0 | U24: 0 | V24: 0 | W24: 0 | X24: 0 | AB24: 0 | AD24: 0 | AF24: 0 | AH24: 0.95 | AJ24: 0 | AK24: آبخیزداری و منابع طبیعی
A25: 15 | C25: 0 | D25: 0 | E25: 1 | F25: 15 | G25: 15 | H25: 1 | I25: 0 | J25: ابنیه | Q25: 0 | R25: 109 | S25: 0 | T25: 0 | U25: 0 | V25: 0 | W25: 0 | X25: 0 | AB25: 0 | AD25: 0 | AF25: 0 | AH25: 0.95 | AJ25: 0 | AK25: ساخت و ترمیم قنات
A26: 16 | C26: 0 | D26: 0 | E26: 1 | F26: 16 | G26: 16 | H26: 1 | I26: 0 | J26: ابنیه | Q26: 0 | R26: 109 | S26: 0 | T26: 0 | U26: 0 | V26: 0 | W26: 0 | X26: 0 | AB26: 0 | AD26: =IF(G26="end","تعـدیــل",VLOOKUP(L26,INDEX,R26,0)) -> 0 | AF26: 0 | AH26: 0.95 | AJ26: 0
A27: 17 | C27: 0 | D27: 0 | E27: 1 | F27: 17 | G27: 17 | H27: 1 | I27: 0 | J27: ابنیه | Q27: 0 | R27: 109 | S27: 0 | T27: 0 | U27: 0 | V27: 0 | W27: 0 | X27: 0 | AB27: 0 | AD27: =IF(G27="end","تعـدیــل",VLOOKUP(L27,INDEX,R27,0)) -> 0 | AF27: 0 | AH27: 0.95 | AJ27: 0
A28: 18 | C28: 0 | D28: 0 | E28: 1 | F28: 18 | G28: 18 | H28: 1 | I28: 0 | J28: ابنیه | Q28: 0 | R28: 109 | S28: 0 | T28: 0 | U28: 0 | V28: 0 | W28: 0 | X28: 0 | AB28: 0 | AD28: 0 | AF28: 0 | AH28: 0.95 | AJ28: 0
A29: 19 | C29: 0 | D29: 0 | E29: 1 | F29: 19 | G29: 19 | H29: 1 | I29: 0 | J29: ابنیه | Q29: 0 | R29: 109 | S29: 0 | T29: 0 | U29: 0 | V29: 0 | W29: 0 | X29: 0 | AB29: 0 | AD29: 0 | AF29: 0 | AH29: 0.95 | AJ29: 0
A30: 20 | C30: 0 | D30: 0 | E30: 1 | F30: 20 | G30: 20 | H30: 1 | I30: 0 | J30: ابنیه | Q30: 0 | R30: 109 | S30: 0 | T30: 0 | U30: 0 | V30: 0 | W30: 0 | X30: 0 | AB30: 0 | AD30: 0 | AF30: 0 | AH30: 0.95 | AJ30: 0
A31: 21 | C31: 0 | D31: 0 | E31: 1 | F31: 21 | G31: 21 | H31: 1 | I31: 0 | J31: ابنیه | Q31: 0 | R31: 109 | S31: 0 | T31: 0 | U31: 0 | V31: 0 | W31: 0 | X31: 0 | AB31: 0 | AD31: 0 | AF31: 0 | AH31: 0.95 | AJ31: 0
A32: 22 | C32: 0 | D32: 0 | E32: 1 | F32: 22 | G32: 22 | H32: 1 | I32: 0 | J32: ابنیه | Q32: 0 | R32: 109 | S32: 0 | T32: 0 | U32: 0 | V32: 0 | W32: 0 | X32: 0 | AB32: 0 | AD32: 0 | AF32: 0 | AH32: 0.95 | AJ32: 0
A33: 23 | C33: 0 | D33: 0 | E33: 1 | F33: 23 | G33: 23 | H33: 1 | I33: 0 | J33: ابنیه | Q33: 0 | R33: 109 | S33: 0 | T33: 0 | U33: 0 | V33: 0 | W33: 0 | X33: 0 | AB33: 0 | AD33: 0 | AF33: 0 | AH33: 0.95 | AJ33: 0
A34: 24 | C34: 0 | D34: 0 | E34: 1 | F34: 24 | G34: 24 | H34: 1 | I34: 0 | J34: ابنیه | Q34: 0 | R34: 109 | S34: 0 | T34: 0 | U34: 0 | V34: 0 | W34: 0 | X34: 0 | AB34: 0 | AD34: 0 | AF34: 0 | AH34: 0.95 | AJ34: 0
A35: 25 | C35: 0 | D35: 0 | E35: 1 | F35: 25 | G35: 25 | H35: 1 | I35: 0 | J35: ابنیه | Q35: 0 | R35: 109 | S35: 0 | T35: 0 | U35: 0 | V35: 0 | W35: 0 | X35: 0 | AB35: 0 | AD35: 0 | AF35: 0 | AH35: 0.95 | AJ35: 0
A36: 26 | C36: 0 | D36: 0 | E36: 1 | F36: 26 | G36: 26 | H36: 1 | I36: 0 | J36: ابنیه | Q36: 0 | R36: 109 | S36: 0 | T36: 0 | U36: 0 | V36: 0 | W36: 0 | X36: 0 | AB36: 0 | AD36: 0 | AF36: 0 | AH36: 0.95 | AJ36: 0
A37: 27 | C37: 0 | D37: 0 | E37: 1 | F37: 27 | G37: 27 | H37: 1 | I37: 0 | J37: ابنیه | Q37: 0 | R37: 109 | S37: 0 | T37: 0 | U37: 0 | V37: 0 | W37: 0 | X37: 0 | AB37: 0 | AD37: 0 | AF37: 0 | AH37: 0.95 | AJ37: 0
A38: 28 | C38: 0 | D38: 0 | E38: 1 | F38: 28 | G38: 28 | H38: 1 | I38: 0 | J38: ابنیه | Q38: 0 | R38: 109 | S38: 0 | T38: 0 | U38: 0 | V38: 0 | W38: 0 | X38: 0 | AB38: 0 | AD38: 0 | AF38: 0 | AH38: 0.95 | AJ38: 0
A39: 29 | C39: 0 | D39: 0 | E39: 1 | F39: 29 | G39: 29 | H39: 1 | I39: 0 | J39: ابنیه | Q39: 0 | R39: 109 | S39: 0 | T39: 0 | U39: 0 | V39: 0 | W39: 0 | X39: 0 | AB39: 0 | AD39: 0 | AF39: 0 | AH39: 0.95 | AJ39: 0
A40: 30 | C40: 0 | D40: 0 | E40: 1 | F40: 30 | G40: 30 | H40: 1 | I40: 0 | J40: ابنیه | Q40: 0 | R40: 109 | S40: 0 | T40: 0 | U40: 0 | V40: 0 | W40: 0 | X40: 0 | AB40: 0 | AD40: 0 | AF40: 0 | AH40: 0.95 | AJ40: 0
A41: 31 | C41: 0 | D41: 0 | E41: 1 | F41: 31 | G41: 31 | H41: 1 | I41: 0 | J41: ابنیه | Q41: 0 | R41: 109 | S41: 0 | T41: 0 | U41: 0 | V41: 0 | W41: 0 | X41: 0 | AB41: 0 | AD41: 0 | AF41: 0 | AH41: 0.95 | AJ41: 0
A42: 32 | C42: 0 | D42: 0 | E42: 1 | F42: 32 | G42: 32 | H42: 1 | I42: 0 | J42: ابنیه | Q42: 0 | R42: 109 | S42: 0 | T42: 0 | U42: 0 | V42: 0 | W42: 0 | X42: 0 | AB42: 0 | AD42: 0 | AF42: 0 | AH42: 0.95 | AJ42: 0
A43: 33 | C43: 0 | D43: 0 | E43: 1 | F43: 33 | G43: 33 | H43: 1 | I43: 0 | J43: ابنیه | Q43: 0 | R43: 109 | S43: 0 | T43: 0 | U43: 0 | V43: 0 | W43: 0 | X43: 0 | AB43: 0 | AD43: 0 | AF43: 0 | AG43: =AI43+AJ43 ->  | AH43: 0.95 | AJ43: 0
A44: 34 | C44: 0 | D44: 0 | E44: 1 | F44: 34 | G44: 34 | H44: 1 | I44: 0 | J44: ابنیه | Q44: 0 | R44: 109 | S44: 0 | T44: 0 | U44: 0 | V44: 0 | W44: 0 | X44: 0 | AB44: 0 | AD44: 0 | AF44: 0 | AH44: 0.95 | AJ44: 0
A45: 35 | C45: 0 | D45: 0 | E45: 1 | F45: 35 | G45: 35 | H45: 1 | I45: 0 | J45: ابنیه | Q45: 0 | R45: 109 | S45: 0 | T45: 0 | U45: 0 | V45: 0 | W45: 0 | X45: 0 | AB45: 0 | AD45: 0 | AF45: 0 | AH45: 0.95 | AJ45: 0
A46: 36 | C46: 0 | D46: 0 | E46: 1 | F46: 36 | G46: 36 | H46: 1 | I46: 0 | J46: ابنیه | Q46: 0 | R46: 109 | S46: 0 | T46: 0 | U46: 0 | V46: 0 | W46: 0 | X46: 0 | AB46: 0 | AD46: 0 | AF46: 0 | AH46: 0.95 | AJ46: 0
A47: 37 | C47: 0 | D47: 0 | E47: 1 | F47: 37 | G47: 37 | H47: 1 | I47: 0 | J47: ابنیه | Q47: 0 | R47: 109 | S47: 0 | T47: 0 | U47: 0 | V47: 0 | W47: 0 | X47: 0 | AB47: 0 | AD47: 0 | AF47: 0 | AH47: 0.95 | AJ47: 0
A48: 38 | C48: 0 | D48: 0 | E48: 1 | F48: 38 | G48: 38 | H48: 1 | I48: 0 | J48: ابنیه | Q48: 0 | R48: 109 | S48: 0 | T48: 0 | U48: 0 | V48: 0 | W48: 0 | X48: 0 | AB48: 0 | AD48: 0 | AF48: 0 | AH48: 0.95 | AJ48: 0
A49: 39 | C49: 0 | D49: 0 | E49: 1 | F49: 39 | G49: 39 | H49: 1 | I49: 0 | J49: ابنیه | Q49: 0 | R49: 109 | S49: 0 | T49: 0 | U49: 0 | V49: 0 | W49: 0 | X49: 0 | AB49: 0 | AD49: 0 | AF49: 0 | AH49: 0.95 | AJ49: 0
A50: 40 | C50: 0 | D50: 0 | E50: 1 | F50: 40 | G50: 40 | H50: 1 | I50: 0 | J50: ابنیه | Q50: 0 | R50: 109 | S50: 0 | T50: 0 | U50: 0 | V50: 0 | W50: 0 | X50: 0 | AB50: 0 | AD50: 0 | AF50: 0 | AH50: 0.95 | AJ50: 0
A51: 41 | C51: 0 | D51: 0 | E51: 1 | F51: 41 | G51: 41 | H51: 1 | I51: 0 | J51: ابنیه | Q51: 0 | R51: 109 | S51: 0 | T51: 0 | U51: 0 | V51: 0 | W51: 0 | X51: 0 | AB51: 0 | AD51: 0 | AF51: 0 | AH51: 0.95 | AJ51: 0
A52: 42 | C52: 0 | D52: 0 | E52: 1 | F52: 42 | G52: 42 | H52: 1 | I52: 0 | J52: ابنیه | Q52: 0 | R52: 109 | S52: 0 | T52: 0 | U52: 0 | V52: 0 | W52: 0 | X52: 0 | AB52: 0 | AD52: 0 | AF52: 0 | AH52: 0.95 | AJ52: 0
A53: 43 | C53: 0 | D53: 0 | E53: 1 | F53: 43 | G53: 43 | H53: 1 | I53: 0 | J53: ابنیه | Q53: 0 | R53: 109 | S53: 0 | T53: 0 | U53: 0 | V53: 0 | W53: 0 | X53: 0 | AB53: 0 | AD53: 0 | AF53: 0 | AH53: 0.95 | AJ53: 0
A54: 44 | C54: 0 | D54: 0 | E54: 1 | F54: 44 | G54: 44 | H54: 1 | I54: 0 | J54: ابنیه | Q54: 0 | R54: 109 | S54: 0 | T54: 0 | U54: 0 | V54: 0 | W54: 0 | X54: 0 | AB54: 0 | AD54: 0 | AF54: 0 | AH54: 0.95 | AJ54: 0
A55: 45 | C55: 0 | D55: 0 | E55: 1 | F55: 45 | G55: 45 | H55: 1 | I55: 0 | J55: ابنیه | Q55: 0 | R55: 109 | S55: 0 | T55: 0 | U55: 0 | V55: 0 | W55: 0 | X55: 0 | AB55: 0 | AD55: 0 | AF55: 0 | AH55: 0.95 | AJ55: 0
A56: 46 | C56: 0 | D56: 0 | E56: 1 | F56: 46 | G56: 46 | H56: 1 | I56: 0 | J56: ابنیه | Q56: 0 | R56: 109 | S56: 0 | T56: 0 | U56: 0 | V56: 0 | W56: 0 | X56: 0 | AB56: 0 | AD56: 0 | AF56: 0 | AH56: 0.95 | AJ56: 0
A57: 47 | C57: 0 | D57: 0 | E57: 1 | F57: 47 | G57: 47 | H57: 1 | I57: 0 | J57: ابنیه | Q57: 0 | R57: 109 | S57: 0 | T57: 0 | U57: 0 | V57: 0 | W57: 0 | X57: 0 | AB57: 0 | AD57: 0 | AF57: 0 | AH57: 0.95 | AJ57: 0
A58: 48 | C58: 0 | D58: 0 | E58: 1 | F58: 48 | G58: 48 | H58: 1 | I58: 0 | J58: ابنیه | Q58: 0 | R58: 109 | S58: 0 | T58: 0 | U58: 0 | V58: 0 | W58: 0 | X58: 0 | AB58: 0 | AD58: 0 | AF58: 0 | AH58: 0.95 | AJ58: 0
A59: 49 | C59: 0 | D59: 0 | E59: 1 | F59: 49 | G59: 49 | H59: 1 | I59: 0 | J59: ابنیه | Q59: 0 | R59: 109 | S59: 0 | T59: 0 | U59: 0 | V59: 0 | W59: 0 | X59: 0 | AB59: 0 | AD59: 0 | AF59: 0 | AH59: 0.95 | AJ59: 0
A60: 50 | C60: 0 | D60: 0 | E60: 1 | F60: 50 | G60: 50 | H60: 1 | I60: 0 | J60: ابنیه | Q60: 0 | R60: 109 | S60: 0 | T60: 0 | U60: 0 | V60: 0 | W60: 0 | X60: 0 | AB60: 0 | AD60: 0 | AF60: 0 | AH60: 0.95 | AJ60: 0
A61: 51 | C61: 0 | D61: 0 | E61: 1 | F61: 51 | G61: 51 | H61: 1 | I61: 0 | J61: ابنیه | Q61: 0 | R61: 109 | S61: 0 | T61: 0 | U61: 0 | V61: 0 | W61: 0 | X61: 0 | AB61: 0 | AD61: 0 | AF61: 0 | AH61: 0.95 | AJ61: 0
A62: 52 | C62: 0 | D62: 0 | E62: 1 | F62: 52 | G62: 52 | H62: 1 | I62: 0 | J62: ابنیه | Q62: 0 | R62: 109 | S62: 0 | T62: 0 | U62: 0 | V62: 0 | W62: 0 | X62: 0 | AB62: 0 | AD62: 0 | AF62: 0 | AH62: 0.95 | AJ62: 0
A63: 53 | C63: 0 | D63: 0 | E63: 1 | F63: 53 | G63: 53 | H63: 1 | I63: 0 | J63: ابنیه | Q63: 0 | R63: 109 | S63: 0 | T63: 0 | U63: 0 | V63: 0 | W63: 0 | X63: 0 | AB63: 0 | AD63: 0 | AF63: 0 | AH63: 0.95 | AJ63: 0
A64: 54 | C64: 0 | D64: 0 | E64: 1 | F64: 54 | G64: 54 | H64: 1 | I64: 0 | J64: ابنیه | Q64: 0 | R64: 109 | S64: 0 | T64: 0 | U64: 0 | V64: 0 | W64: 0 | X64: 0 | AB64: 0 | AD64: 0 | AF64: 0 | AH64: 0.95 | AJ64: 0
A65: 55 | C65: 0 | D65: 0 | E65: 1 | F65: 55 | G65: 55 | H65: 1 | I65: 0 | J65: ابنیه | Q65: 0 | R65: 109 | S65: 0 | T65: 0 | U65: 0 | V65: 0 | W65: 0 | X65: 0 | AB65: 0 | AD65: 0 | AF65: 0 | AH65: 0.95 | AJ65: 0
A66: 56 | C66: 0 | D66: 0 | E66: 1 | F66: 56 | G66: 56 | H66: 1 | I66: 0 | J66: ابنیه | Q66: 0 | R66: 109 | S66: 0 | T66: 0 | U66: 0 | V66: 0 | W66: 0 | X66: 0 | AB66: 0 | AD66: 0 | AF66: 0 | AH66: 0.95 | AJ66: 0
A67: 57 | C67: 0 | D67: 0 | E67: 1 | F67: 57 | G67: 57 | H67: 1 | I67: 0 | J67: ابنیه | Q67: 0 | R67: 109 | S67: 0 | T67: 0 | U67: 0 | V67: 0 | W67: 0 | X67: 0 | AB67: 0 | AD67: 0 | AF67: 0 | AH67: 0.95 | AJ67: 0
A68: 58 | C68: 0 | D68: 0 | E68: 1 | F68: 58 | G68: 58 | H68: 1 | I68: 0 | J68: ابنیه | Q68: 0 | R68: 109 | S68: 0 | T68: 0 | U68: 0 | V68: 0 | W68: 0 | X68: 0 | AB68: 0 | AD68: 0 | AF68: 0 | AH68: 0.95 | AJ68: 0
A69: 59 | C69: 0 | D69: 0 | E69: 1 | F69: 59 | G69: 59 | H69: 1 | I69: 0 | J69: ابنیه | Q69: 0 | R69: 109 | S69: 0 | T69: 0 | U69: 0 | V69: 0 | W69: 0 | X69: 0 | AB69: 0 | AD69: 0 | AF69: 0 | AH69: 0.95 | AJ69: 0
A70: 60 | C70: 0 | D70: 0 | E70: 1 | F70: 60 | G70: 60 | H70: 1 | I70: 0 | J70: ابنیه | Q70: 0 | R70: 109 | S70: 0 | T70: 0 | U70: 0 | V70: 0 | W70: 0 | X70: 0 | AB70: 0 | AD70: 0 | AF70: 0 | AH70: 0.95 | AJ70: 0
A71: 61 | C71: 0 | D71: 0 | E71: 1 | F71: 61 | G71: 61 | H71: 1 | I71: 0 | J71: ابنیه | Q71: 0 | R71: 109 | S71: 0 | T71: 0 | U71: 0 | V71: 0 | W71: 0 | X71: 0 | AB71: 0 | AD71: 0 | AF71: 0 | AH71: 0.95 | AJ71: 0
A72: 62 | C72: 0 | D72: 0 | E72: 1 | F72: 62 | G72: 62 | H72: 1 | I72: 0 | J72: ابنیه | Q72: 0 | R72: 109 | S72: 0 | T72: 0 | U72: 0 | V72: 0 | W72: 0 | X72: 0 | AB72: 0 | AD72: 0 | AF72: 0 | AH72: 0.95 | AJ72: 0
A73: 63 | C73: 0 | D73: 0 | E73: 1 | F73: 63 | G73: 63 | H73: 1 | I73: 0 | J73: ابنیه | Q73: 0 | R73: 109 | S73: 0 | T73: 0 | U73: 0 | V73: 0 | W73: 0 | X73: 0 | AB73: 0 | AD73: 0 | AF73: 0 | AH73: 0.95 | AJ73: 0
A74: 64 | C74: 0 | D74: 0 | E74: 1 | F74: 64 | G74: 64 | H74: 1 | I74: 0 | J74: ابنیه | Q74: 0 | R74: 109 | S74: 0 | T74: 0 | U74: 0 | V74: 0 | W74: 0 | X74: 0 | AB74: 0 | AD74: 0 | AF74: 0 | AH74: 0.95 | AJ74: 0
A75: 65 | B75: =VLOOKUP(A75,MALI,5,0) ->  | C75: 0 | D75: 0 | E75: 1 | F75: 65 | G75: 65 | H75: 1 | I75: 0 | J75: ابنیه | Q75: 0 | R75: 109 | S75: 0 | T75: 0 | U75: 0 | V75: 0 | W75: =VLOOKUP(H75,ANTR,14,0) -> 0 | X75: 0 | AB75: 0 | AD75: =IF(G75="end","تعـدیــل",VLOOKUP(L75,INDEX,R75,0)) -> 0 | AE75: =IF(G75="end","با احتسـاب",VLOOKUP(L75,INDEX,S75,0)) ->  | AF75: 0 | AH75: 0.95 | AJ75: =SUMIF(K:K,T75,AI:AI) -> 0
A76: 66 | C76: 0 | D76: 0 | E76: 1 | F76: 66 | G76: 66 | H76: 1 | I76: 0 | J76: ابنیه | Q76: 0 | R76: 109 | S76: 0 | T76: =IF(G76="end",K76,0) -> 0 | U76: 0 | V76: 0 | W76: 0 | X76: 0 | AB76: 0 | AD76: 0 | AF76: 0 | AH76: 0.95 | AJ76: 0
A77: 67 | C77: 0 | D77: 0 | E77: 1 | F77: 67 | G77: 67 | H77: 1 | I77: 0 | J77: ابنیه | Q77: 0 | R77: =R76 -> 109 | S77: 0 | T77: 0 | U77: 0 | V77: 0 | W77: 0 | X77: 0 | AB77: 0 | AD77: 0 | AF77: 0 | AH77: =AH76 -> 0.95 | AJ77: 0
A78: 68 | C78: =C77 -> 0 | D78: =IF(D77=C77,IFERROR(IF(VLOOKUP(F77+1,MALI,5,0)=VLOOKUP(F77,MALI,5,0),IF(C78=D77,1,D77+1),0),0),IF(C78=D77,1,D77+1)) -> 0 | E78: =IF(D78=C78,1,0) -> 1 | F78: =IF(E78=0,F77,E78+F77) -> 68 | G78: =IF(K78=K79,F78,"end") -> 68 | H78: =IF(D78=C78,1,H77+1) -> 1 | I78: =IF(K78="",0,IF(J78="تمامی رشته ها",1,IF(J78=K78,1,0))) -> 0 | J78: =J77 -> ابنیه | K78: =IFERROR(VLOOKUP(F78,MALI,5,0),"") ->  | L78: =IFERROR(VLOOKUP(F78,MALI,3,0),"") ->  | Q78: =VLOOKUP(H78,ANTR,12,0) -> 0 | R78: 109 | S78: =VLOOKUP(H78,ANTR,13,0) -> 0 | T78: 0 | U78: =VLOOKUP(H78,ANTR,2,0) -> 0 | V78: =VLOOKUP(H78,ANTR,3,0) -> 0 | W78: 0 | X78: =IFERROR(VLOOKUP(G78,MALI,$O$7,0),0) -> 0 | Y78: =IF(G78="end",0,+VLOOKUP(G78,MALI,$O$5,0)) ->  | Z78: =IF(G78="end",0,+VLOOKUP(G78,MALI,$O$6,0)) ->  | AA78: =IF(Y78-Z78=0,0,Y78-Z78) ->  | AB78: =VLOOKUP(H78,ANTR,11,0) -> 0 | AC78: =IF(G78="end","جـمـع مبـلـغ",AA78*Q78) ->  | AD78: 0 | AF78: =IFERROR(IF(AE78="با احتسـاب","ضـرایـب",ROUND(((AE78/AD78)-1)*AH78,4)),0) -> 0 | AG78: =AI78+AJ78 ->  | AH78: 0.95 | AI78: =IF(AF78<1000000,AF78*AC78,0) ->  | AJ78: 0
A79: 69 | C79: 0 | D79: 0 | E79: 1 | F79: 69 | G79: 69 | H79: 1 | I79: 0 | J79: ابنیه | Q79: 0 | R79: 109 | S79: 0 | T79: 0 | U79: 0 | V79: 0 | W79: 0 | X79: 0 | AB79: 0 | AD79: 0 | AF79: 0 | AH79: 0.95 | AJ79: 0
A80: 70 | C80: 0 | D80: 0 | E80: 1 | F80: 70 | G80: 70 | H80: 1 | I80: 0 | J80: ابنیه | Q80: 0 | R80: 109 | S80: 0 | T80: 0 | U80: 0 | V80: 0 | W80: 0 | X80: 0 | AB80: 0 | AD80: 0 | AF80: 0 | AH80: 0.95 | AJ80: 0
A81: 71 | C81: 0 | D81: 0 | E81: 1 | F81: 71 | G81: 71 | H81: 1 | I81: 0 | J81: ابنیه | Q81: 0 | R81: 109 | S81: 0 | T81: 0 | U81: 0 | V81: 0 | W81: 0 | X81: 0 | AB81: 0 | AD81: 0 | AF81: 0 | AH81: 0.95 | AJ81: 0
A82: 72 | C82: 0 | D82: 0 | E82: 1 | F82: 72 | G82: 72 | H82: 1 | I82: 0 | J82: ابنیه | Q82: 0 | R82: 109 | S82: 0 | T82: 0 | U82: 0 | V82: 0 | W82: 0 | X82: 0 | AB82: 0 | AD82: 0 | AF82: 0 | AH82: 0.95 | AJ82: 0
A83: 73 | C83: 0 | D83: 0 | E83: 1 | F83: 73 | G83: 73 | H83: 1 | I83: 0 | J83: ابنیه | Q83: 0 | R83: 109 | S83: 0 | T83: 0 | U83: 0 | V83: 0 | W83: 0 | X83: 0 | AB83: 0 | AD83: 0 | AF83: 0 | AH83: 0.95 | AJ83: 0
A84: 74 | C84: 0 | D84: 0 | E84: 1 | F84: 74 | G84: 74 | H84: 1 | I84: 0 | J84: ابنیه | Q84: 0 | R84: 109 | S84: 0 | T84: 0 | U84: 0 | V84: 0 | W84: 0 | X84: 0 | AB84: 0 | AD84: 0 | AF84: 0 | AH84: 0.95 | AJ84: 0
A85: 75 | C85: 0 | D85: 0 | E85: 1 | F85: 75 | G85: 75 | H85: 1 | I85: 0 | J85: ابنیه | Q85: 0 | R85: 109 | S85: 0 | T85: 0 | U85: 0 | V85: 0 | W85: 0 | X85: 0 | AB85: 0 | AD85: 0 | AF85: 0 | AH85: 0.95 | AJ85: 0
A86: 76 | C86: 0 | D86: 0 | E86: 1 | F86: 76 | G86: 76 | H86: 1 | I86: 0 | J86: ابنیه | Q86: 0 | R86: 109 | S86: 0 | T86: 0 | U86: 0 | V86: 0 | W86: 0 | X86: 0 | AB86: 0 | AD86: 0 | AF86: 0 | AH86: 0.95 | AJ86: 0
A87: 77 | C87: 0 | D87: 0 | E87: 1 | F87: 77 | G87: 77 | H87: =IF(D87=C87,1,H86+1) -> 1 | I87: 0 | J87: ابنیه | Q87: 0 | R87: 109 | S87: =VLOOKUP(H87,ANTR,13,0) -> 0 | T87: 0 | U87: 0 | V87: 0 | W87: 0 | X87: 0 | AB87: 0 | AD87: 0 | AF87: 0 | AH87: 0.95 | AJ87: 0
A88: 78 | C88: 0 | D88: =IF(D87=C87,IFERROR(IF(VLOOKUP(F87+1,MALI,5,0)=VLOOKUP(F87,MALI,5,0),IF(C88=D87,1,D87+1),0),0),IF(C88=D87,1,D87+1)) -> 0 | E88: 1 | F88: 78 | G88: 78 | H88: =IF(D88=C88,1,H87+1) -> 1 | I88: 0 | J88: ابنیه | Q88: 0 | R88: 109 | S88: =VLOOKUP(H88,ANTR,13,0) -> 0 | T88: 0 | U88: 0 | V88: 0 | W88: 0 | X88: 0 | AB88: 0 | AD88: 0 | AE88: =IF(G88="end","با احتسـاب",VLOOKUP(L88,INDEX,S88,0)) ->  | AF88: 0 | AH88: 0.95 | AJ88: 0
A89: 79 | C89: 0 | D89: 0 | E89: 1 | F89: 79 | G89: 79 | H89: 1 | I89: 0 | J89: ابنیه | Q89: 0 | R89: 109 | S89: 0 | T89: 0 | U89: 0 | V89: 0 | W89: 0 | X89: 0 | AB89: 0 | AD89: 0 | AF89: 0 | AH89: 0.95 | AJ89: 0
A90: 80 | C90: 0 | D90: 0 | E90: 1 | F90: 80 | G90: 80 | H90: 1 | I90: 0 | J90: ابنیه | Q90: 0 | R90: 109 | S90: 0 | T90: 0 | U90: 0 | V90: 0 | W90: 0 | X90: 0 | AB90: 0 | AD90: 0 | AF90: 0 | AH90: 0.95 | AJ90: 0
A91: 81 | C91: 0 | D91: 0 | E91: 1 | F91: 81 | G91: 81 | H91: 1 | I91: 0 | J91: ابنیه | Q91: 0 | R91: 109 | S91: 0 | T91: 0 | U91: 0 | V91: 0 | W91: 0 | X91: 0 | AB91: 0 | AD91: 0 | AF91: 0 | AH91: 0.95 | AJ91: 0
A92: 82 | C92: 0 | D92: 0 | E92: 1 | F92: 82 | G92: 82 | H92: 1 | I92: 0 | J92: ابنیه | Q92: 0 | R92: 109 | S92: 0 | T92: 0 | U92: 0 | V92: 0 | W92: 0 | X92: 0 | AB92: 0 | AD92: 0 | AF92: 0 | AH92: 0.95 | AJ92: 0
A93: 83 | C93: 0 | D93: 0 | E93: 1 | F93: 83 | G93: 83 | H93: 1 | I93: 0 | J93: ابنیه | Q93: 0 | R93: 109 | S93: 0 | T93: 0 | U93: 0 | V93: 0 | W93: 0 | X93: 0 | AB93: 0 | AD93: 0 | AF93: 0 | AH93: 0.95 | AJ93: 0
A94: 84 | C94: 0 | D94: 0 | E94: 1 | F94: 84 | G94: 84 | H94: 1 | I94: 0 | J94: ابنیه | Q94: 0 | R94: 109 | S94: 0 | T94: 0 | U94: 0 | V94: 0 | W94: 0 | X94: 0 | AB94: 0 | AD94: 0 | AF94: 0 | AH94: 0.95 | AJ94: 0
A95: 85 | C95: 0 | D95: 0 | E95: 1 | F95: 85 | G95: 85 | H95: 1 | I95: 0 | J95: ابنیه | Q95: 0 | R95: 109 | S95: 0 | T95: 0 | U95: 0 | V95: 0 | W95: 0 | X95: 0 | AB95: 0 | AD95: 0 | AF95: 0 | AH95: 0.95 | AJ95: 0
A96: 86 | C96: 0 | D96: 0 | E96: 1 | F96: 86 | G96: 86 | H96: 1 | I96: 0 | J96: ابنیه | Q96: 0 | R96: 109 | S96: 0 | T96: 0 | U96: 0 | V96: 0 | W96: 0 | X96: 0 | AB96: 0 | AD96: 0 | AF96: 0 | AH96: 0.95 | AJ96: 0
A97: 87 | C97: 0 | D97: 0 | E97: 1 | F97: 87 | G97: 87 | H97: 1 | I97: 0 | J97: ابنیه | Q97: 0 | R97: 109 | S97: 0 | T97: 0 | U97: 0 | V97: 0 | W97: 0 | X97: 0 | AB97: 0 | AD97: 0 | AF97: 0 | AH97: 0.95 | AJ97: 0
A98: 88 | C98: 0 | D98: 0 | E98: 1 | F98: 88 | G98: 88 | H98: 1 | I98: 0 | J98: ابنیه | Q98: 0 | R98: 109 | S98: 0 | T98: 0 | U98: 0 | V98: 0 | W98: 0 | X98: 0 | AB98: 0 | AD98: 0 | AF98: 0 | AH98: 0.95 | AJ98: 0
A99: 89 | C99: 0 | D99: 0 | E99: 1 | F99: 89 | G99: 89 | H99: 1 | I99: 0 | J99: ابنیه | Q99: 0 | R99: 109 | S99: 0 | T99: 0 | U99: 0 | V99: 0 | W99: 0 | X99: 0 | AB99: 0 | AD99: 0 | AF99: 0 | AH99: 0.95 | AJ99: 0
A100: 90 | C100: 0 | D100: 0 | E100: 1 | F100: 90 | G100: 90 | H100: 1 | I100: 0 | J100: ابنیه | Q100: 0 | R100: 109 | S100: 0 | T100: 0 | U100: 0 | V100: 0 | W100: 0 | X100: 0 | AB100: 0 | AD100: 0 | AF100: 0 | AH100: 0.95 | AJ100: 0
A101: 91 | C101: 0 | D101: 0 | E101: 1 | F101: 91 | G101: 91 | H101: 1 | I101: 0 | J101: ابنیه | Q101: 0 | R101: 109 | S101: 0 | T101: 0 | U101: 0 | V101: 0 | W101: 0 | X101: 0 | AB101: 0 | AD101: 0 | AF101: 0 | AH101: 0.95 | AJ101: 0
A102: 92 | C102: 0 | D102: 0 | E102: 1 | F102: 92 | G102: 92 | H102: 1 | I102: 0 | J102: ابنیه | Q102: 0 | R102: 109 | S102: 0 | T102: 0 | U102: 0 | V102: 0 | W102: 0 | X102: 0 | AB102: 0 | AD102: 0 | AF102: 0 | AH102: 0.95 | AJ102: 0
A103: 93 | C103: 0 | D103: 0 | E103: 1 | F103: 93 | G103: 93 | H103: 1 | I103: 0 | J103: ابنیه | Q103: 0 | R103: 109 | S103: 0 | T103: 0 | U103: 0 | V103: 0 | W103: 0 | X103: 0 | AB103: 0 | AD103: 0 | AF103: 0 | AH103: 0.95 | AJ103: 0
A104: 94 | C104: 0 | D104: 0 | E104: 1 | F104: 94 | G104: 94 | H104: 1 | I104: 0 | J104: ابنیه | Q104: 0 | R104: 109 | S104: 0 | T104: 0 | U104: 0 | V104: 0 | W104: 0 | X104: 0 | AB104: 0 | AD104: 0 | AF104: 0 | AH104: 0.95 | AJ104: 0
A105: 95 | C105: 0 | D105: 0 | E105: 1 | F105: 95 | G105: 95 | H105: 1 | I105: 0 | J105: ابنیه | Q105: 0 | R105: 109 | S105: 0 | T105: 0 | U105: 0 | V105: 0 | W105: 0 | X105: 0 | AB105: 0 | AD105: 0 | AF105: 0 | AH105: 0.95 | AJ105: 0
A106: 96 | C106: 0 | D106: 0 | E106: 1 | F106: 96 | G106: 96 | H106: 1 | I106: 0 | J106: ابنیه | Q106: 0 | R106: 109 | S106: 0 | T106: 0 | U106: 0 | V106: 0 | W106: 0 | X106: 0 | AB106: 0 | AD106: 0 | AF106: 0 | AH106: 0.95 | AJ106: 0
A107: 97 | C107: 0 | D107: 0 | E107: 1 | F107: 97 | G107: 97 | H107: 1 | I107: 0 | J107: ابنیه | Q107: 0 | R107: 109 | S107: 0 | T107: 0 | U107: 0 | V107: 0 | W107: 0 | X107: 0 | AB107: 0 | AD107: 0 | AF107: 0 | AH107: 0.95 | AJ107: 0
A108: 98 | C108: 0 | D108: 0 | E108: 1 | F108: 98 | G108: 98 | H108: 1 | I108: 0 | J108: ابنیه | Q108: 0 | R108: 109 | S108: 0 | T108: 0 | U108: 0 | V108: 0 | W108: 0 | X108: 0 | AB108: 0 | AD108: 0 | AF108: 0 | AH108: 0.95 | AJ108: 0
A109: 99 | C109: 0 | D109: 0 | E109: 1 | F109: 99 | G109: 99 | H109: 1 | I109: 0 | J109: ابنیه | Q109: 0 | R109: 109 | S109: 0 | T109: 0 | U109: 0 | V109: 0 | W109: 0 | X109: 0 | AB109: 0 | AD109: 0 | AF109: 0 | AH109: 0.95 | AJ109: 0
A110: 100 | C110: 0 | D110: 0 | E110: 1 | F110: 100 | G110: 100 | H110: 1 | I110: 0 | J110: ابنیه | Q110: 0 | R110: 109 | S110: 0 | T110: 0 | U110: 0 | V110: 0 | W110: 0 | X110: 0 | AB110: 0 | AD110: 0 | AF110: 0 | AH110: 0.95 | AJ110: 0
A111: 101 | C111: 0 | D111: 0 | E111: 1 | F111: 101 | G111: 101 | H111: 1 | I111: 0 | J111: ابنیه | Q111: 0 | R111: 109 | S111: 0 | T111: 0 | U111: 0 | V111: 0 | W111: 0 | X111: 0 | AB111: 0 | AD111: 0 | AF111: 0 | AH111: 0.95 | AJ111: 0
A112: 102 | C112: 0 | D112: 0 | E112: 1 | F112: 102 | G112: 102 | H112: 1 | I112: 0 | J112: ابنیه | Q112: 0 | R112: 109 | S112: 0 | T112: 0 | U112: 0 | V112: 0 | W112: 0 | X112: 0 | AB112: 0 | AD112: 0 | AF112: 0 | AH112: 0.95 | AJ112: 0
A113: 103 | C113: 0 | D113: 0 | E113: 1 | F113: 103 | G113: 103 | H113: 1 | I113: 0 | J113: ابنیه | Q113: 0 | R113: 109 | S113: 0 | T113: 0 | U113: 0 | V113: 0 | W113: 0 | X113: 0 | AB113: 0 | AD113: 0 | AF113: 0 | AH113: 0.95 | AJ113: 0
A114: 104 | C114: 0 | D114: 0 | E114: 1 | F114: 104 | G114: 104 | H114: 1 | I114: 0 | J114: ابنیه | Q114: 0 | R114: 109 | S114: 0 | T114: 0 | U114: 0 | V114: 0 | W114: 0 | X114: 0 | AB114: 0 | AD114: 0 | AF114: 0 | AH114: 0.95 | AJ114: 0
A115: 105 | C115: 0 | D115: 0 | E115: 1 | F115: 105 | G115: 105 | H115: 1 | I115: 0 | J115: ابنیه | Q115: 0 | R115: 109 | S115: 0 | T115: 0 | U115: 0 | V115: 0 | W115: 0 | X115: 0 | AB115: 0 | AD115: 0 | AF115: 0 | AH115: 0.95 | AJ115: 0
A116: 106 | C116: 0 | D116: 0 | E116: 1 | F116: 106 | G116: 106 | H116: 1 | I116: 0 | J116: ابنیه | Q116: 0 | R116: 109 | S116: 0 | T116: 0 | U116: 0 | V116: 0 | W116: 0 | X116: 0 | AB116: 0 | AD116: 0 | AF116: 0 | AH116: 0.95 | AJ116: 0
A117: 107 | C117: 0 | D117: 0 | E117: 1 | F117: 107 | G117: 107 | H117: 1 | I117: 0 | J117: ابنیه | Q117: 0 | R117: 109 | S117: 0 | T117: 0 | U117: 0 | V117: 0 | W117: 0 | X117: 0 | AB117: 0 | AD117: 0 | AF117: 0 | AH117: 0.95 | AJ117: 0
A118: 108 | C118: 0 | D118: 0 | E118: 1 | F118: 108 | G118: 108 | H118: 1 | I118: 0 | J118: ابنیه | Q118: 0 | R118: 109 | S118: 0 | T118: 0 | U118: 0 | V118: 0 | W118: 0 | X118: 0 | AB118: 0 | AD118: 0 | AF118: 0 | AH118: 0.95 | AJ118: 0
A119: 109 | C119: 0 | D119: 0 | E119: 1 | F119: 109 | G119: 109 | H119: 1 | I119: 0 | J119: ابنیه | Q119: 0 | R119: 109 | S119: 0 | T119: 0 | U119: 0 | V119: 0 | W119: 0 | X119: 0 | AB119: 0 | AD119: 0 | AF119: 0 | AH119: 0.95 | AJ119: 0
A120: 110 | C120: 0 | D120: 0 | E120: 1 | F120: 110 | G120: 110 | H120: 1 | I120: 0 | J120: ابنیه | Q120: 0 | R120: 109 | S120: 0 | T120: 0 | U120: 0 | V120: 0 | W120: 0 | X120: 0 | AB120: 0 | AD120: 0 | AF120: 0 | AH120: 0.95 | AJ120: 0
A121: 111 | C121: 0 | D121: 0 | E121: 1 | F121: 111 | G121: 111 | H121: 1 | I121: 0 | J121: ابنیه | Q121: 0 | R121: 109 | S121: 0 | T121: 0 | U121: 0 | V121: 0 | W121: 0 | X121: 0 | AB121: 0 | AD121: 0 | AF121: 0 | AH121: 0.95 | AJ121: 0
A122: 112 | C122: 0 | D122: 0 | E122: 1 | F122: 112 | G122: 112 | H122: 1 | I122: 0 | J122: ابنیه | Q122: 0 | R122: 109 | S122: 0 | T122: 0 | U122: 0 | V122: 0 | W122: 0 | X122: 0 | AB122: 0 | AD122: 0 | AF122: 0 | AH122: 0.95 | AJ122: 0
A123: 113 | C123: 0 | D123: 0 | E123: 1 | F123: 113 | G123: 113 | H123: 1 | I123: 0 | J123: ابنیه | Q123: 0 | R123: 109 | S123: 0 | T123: 0 | U123: 0 | V123: 0 | W123: 0 | X123: 0 | AB123: 0 | AD123: 0 | AF123: 0 | AH123: 0.95 | AJ123: 0
A124: 114 | C124: 0 | D124: 0 | E124: 1 | F124: 114 | G124: 114 | H124: 1 | I124: 0 | J124: ابنیه | Q124: 0 | R124: 109 | S124: 0 | T124: 0 | U124: 0 | V124: 0 | W124: 0 | X124: 0 | AB124: 0 | AD124: 0 | AF124: 0 | AH124: 0.95 | AJ124: 0
A125: 115 | C125: 0 | D125: 0 | E125: 1 | F125: 115 | G125: 115 | H125: 1 | I125: 0 | J125: ابنیه | Q125: 0 | R125: 109 | S125: 0 | T125: 0 | U125: 0 | V125: 0 | W125: 0 | X125: 0 | AB125: 0 | AD125: 0 | AF125: 0 | AH125: 0.95 | AJ125: 0
A126: 116 | C126: 0 | D126: 0 | E126: 1 | F126: 116 | G126: 116 | H126: 1 | I126: 0 | J126: ابنیه | Q126: 0 | R126: 109 | S126: 0 | T126: 0 | U126: 0 | V126: 0 | W126: 0 | X126: 0 | AB126: 0 | AD126: 0 | AF126: 0 | AH126: 0.95 | AJ126: 0
A127: 117 | C127: 0 | D127: 0 | E127: 1 | F127: 117 | G127: 117 | H127: 1 | I127: 0 | J127: ابنیه | Q127: 0 | R127: 109 | S127: 0 | T127: 0 | U127: 0 | V127: 0 | W127: 0 | X127: 0 | AB127: 0 | AD127: 0 | AF127: 0 | AH127: 0.95 | AJ127: 0
A128: 118 | C128: 0 | D128: 0 | E128: 1 | F128: 118 | G128: 118 | H128: 1 | I128: 0 | J128: ابنیه | Q128: 0 | R128: 109 | S128: 0 | T128: 0 | U128: 0 | V128: 0 | W128: 0 | X128: 0 | AB128: 0 | AD128: 0 | AF128: 0 | AH128: 0.95 | AJ128: 0
A129: 119 | C129: 0 | D129: 0 | E129: 1 | F129: 119 | G129: 119 | H129: 1 | I129: 0 | J129: ابنیه | Q129: 0 | R129: 109 | S129: 0 | T129: 0 | U129: 0 | V129: 0 | W129: 0 | X129: 0 | AB129: 0 | AD129: 0 | AF129: 0 | AH129: 0.95 | AJ129: 0
A130: 120 | C130: 0 | D130: 0 | E130: 1 | F130: 120 | G130: 120 | H130: 1 | I130: 0 | J130: ابنیه | Q130: 0 | R130: 109 | S130: 0 | T130: 0 | U130: 0 | V130: 0 | W130: 0 | X130: 0 | AB130: 0 | AD130: 0 | AF130: 0 | AH130: 0.95 | AJ130: 0
A131: 121 | C131: 0 | D131: 0 | E131: 1 | F131: 121 | G131: 121 | H131: 1 | I131: 0 | J131: ابنیه | Q131: 0 | R131: 109 | S131: 0 | T131: 0 | U131: 0 | V131: 0 | W131: 0 | X131: 0 | AB131: 0 | AD131: 0 | AF131: 0 | AH131: 0.95 | AJ131: 0
A132: 122 | C132: 0 | D132: 0 | E132: 1 | F132: 122 | G132: 122 | H132: 1 | I132: 0 | J132: ابنیه | Q132: 0 | R132: 109 | S132: 0 | T132: 0 | U132: 0 | V132: 0 | W132: 0 | X132: 0 | AB132: 0 | AD132: 0 | AF132: 0 | AH132: 0.95 | AJ132: 0
A133: 123 | C133: 0 | D133: 0 | E133: 1 | F133: 123 | G133: 123 | H133: 1 | I133: 0 | J133: ابنیه | Q133: 0 | R133: 109 | S133: 0 | T133: 0 | U133: 0 | V133: 0 | W133: 0 | X133: 0 | AB133: 0 | AD133: 0 | AF133: 0 | AH133: 0.95 | AJ133: 0
A134: 124 | C134: 0 | D134: 0 | E134: 1 | F134: 124 | G134: 124 | H134: 1 | I134: 0 | J134: ابنیه | Q134: 0 | R134: 109 | S134: 0 | T134: 0 | U134: 0 | V134: 0 | W134: 0 | X134: 0 | AB134: 0 | AD134: 0 | AF134: 0 | AH134: 0.95 | AJ134: 0
A135: 125 | C135: 0 | D135: 0 | E135: 1 | F135: 125 | G135: 125 | H135: 1 | I135: 0 | J135: ابنیه | Q135: 0 | R135: 109 | S135: 0 | T135: 0 | U135: 0 | V135: 0 | W135: 0 | X135: 0 | AB135: 0 | AD135: 0 | AF135: 0 | AH135: 0.95 | AJ135: 0
A136: 126 | C136: 0 | D136: 0 | E136: 1 | F136: 126 | G136: 126 | H136: 1 | I136: 0 | J136: ابنیه | Q136: 0 | R136: 109 | S136: 0 | T136: 0 | U136: 0 | V136: 0 | W136: 0 | X136: 0 | AB136: 0 | AD136: 0 | AF136: 0 | AH136: 0.95 | AJ136: 0
A137: 127 | C137: 0 | D137: 0 | E137: 1 | F137: 127 | G137: 127 | H137: 1 | I137: 0 | J137: ابنیه | Q137: 0 | R137: 109 | S137: 0 | T137: 0 | U137: 0 | V137: 0 | W137: 0 | X137: 0 | AB137: 0 | AD137: 0 | AF137: 0 | AH137: 0.95 | AJ137: 0
A138: 128 | C138: 0 | D138: 0 | E138: 1 | F138: 128 | G138: 128 | H138: 1 | I138: 0 | J138: ابنیه | Q138: 0 | R138: 109 | S138: 0 | T138: 0 | U138: 0 | V138: 0 | W138: 0 | X138: 0 | AB138: 0 | AD138: 0 | AF138: 0 | AH138: 0.95 | AJ138: 0
A139: 129 | B139: =VLOOKUP(A139,MALI,5,0) ->  | C139: 0 | D139: 0 | E139: 1 | F139: 129 | G139: 129 | H139: 1 | I139: 0 | J139: ابنیه | Q139: 0 | R139: 109 | S139: 0 | T139: 0 | U139: 0 | V139: 0 | W139: =VLOOKUP(H139,ANTR,14,0) -> 0 | X139: 0 | AB139: 0 | AD139: =IF(G139="end","تعـدیــل",VLOOKUP(L139,INDEX,R139,0)) -> 0 | AE139: =IF(G139="end","با احتسـاب",VLOOKUP(L139,INDEX,S139,0)) ->  | AF139: 0 | AH139: 0.95 | AJ139: =SUMIF(K:K,T139,AI:AI) -> 0
A140: 130 | C140: 0 | D140: 0 | E140: 1 | F140: 130 | G140: 130 | H140: 1 | I140: 0 | J140: ابنیه | Q140: 0 | R140: 109 | S140: 0 | T140: =IF(G140="end",K140,0) -> 0 | U140: 0 | V140: 0 | W140: 0 | X140: 0 | AB140: 0 | AD140: 0 | AF140: 0 | AH140: 0.95 | AJ140: 0
A141: 131 | C141: 0 | D141: 0 | E141: 1 | F141: 131 | G141: 131 | H141: 1 | I141: 0 | J141: ابنیه | Q141: 0 | R141: =R140 -> 109 | S141: 0 | T141: 0 | U141: 0 | V141: 0 | W141: 0 | X141: 0 | AB141: 0 | AD141: 0 | AF141: 0 | AH141: =AH140 -> 0.95 | AJ141: 0
A142: 132 | C142: =C141 -> 0 | D142: =IF(D141=C141,IFERROR(IF(VLOOKUP(F141+1,MALI,5,0)=VLOOKUP(F141,MALI,5,0),IF(C142=D141,1,D141+1),0),0),IF(C142=D141,1,D141+1)) -> 0 | E142: =IF(D142=C142,1,0) -> 1 | F142: =IF(E142=0,F141,E142+F141) -> 132 | G142: =IF(K142=K143,F142,"end") -> 132 | H142: =IF(D142=C142,1,H141+1) -> 1 | I142: =IF(K142="",0,IF(J142="تمامی رشته ها",1,IF(J142=K142,1,0))) -> 0 | J142: =J141 -> ابنیه | K142: =IFERROR(VLOOKUP(F142,MALI,5,0),"") ->  | L142: =IFERROR(VLOOKUP(F142,MALI,3,0),"") ->  | Q142: =VLOOKUP(H142,ANTR,12,0) -> 0 | R142: 109 | S142: =VLOOKUP(H142,ANTR,13,0) -> 0 | T142: 0 | U142: =VLOOKUP(H142,ANTR,2,0) -> 0 | V142: =VLOOKUP(H142,ANTR,3,0) -> 0 | W142: 0 | X142: =IFERROR(VLOOKUP(G142,MALI,$O$7,0),0) -> 0 | Y142: =IF(G142="end",0,+VLOOKUP(G142,MALI,$O$5,0)) ->  | Z142: =IF(G142="end",0,+VLOOKUP(G142,MALI,$O$6,0)) ->  | AA142: =IF(Y142-Z142=0,0,Y142-Z142) ->  | AB142: =VLOOKUP(H142,ANTR,11,0) -> 0 | AC142: =IF(G142="end","جـمـع مبـلـغ",AA142*Q142) ->  | AD142: 0 | AF142: =IFERROR(IF(AE142="با احتسـاب","ضـرایـب",ROUND(((AE142/AD142)-1)*AH142,4)),0) -> 0 | AG142: =AI142+AJ142 ->  | AH142: 0.95 | AI142: =IF(AF142<1000000,AF142*AC142,0) ->  | AJ142: 0
A143: 133 | C143: 0 | D143: 0 | E143: 1 | F143: 133 | G143: 133 | H143: 1 | I143: 0 | J143: ابنیه | Q143: 0 | R143: 109 | S143: 0 | T143: 0 | U143: 0 | V143: 0 | W143: 0 | X143: 0 | AB143: 0 | AD143: 0 | AF143: 0 | AH143: 0.95 | AJ143: 0
A144: 134 | C144: 0 | D144: 0 | E144: 1 | F144: 134 | G144: 134 | H144: 1 | I144: 0 | J144: ابنیه | Q144: 0 | R144: 109 | S144: 0 | T144: 0 | U144: 0 | V144: 0 | W144: 0 | X144: 0 | AB144: 0 | AD144: 0 | AF144: 0 | AH144: 0.95 | AJ144: 0
A145: 135 | C145: 0 | D145: 0 | E145: 1 | F145: 135 | G145: 135 | H145: 1 | I145: 0 | J145: ابنیه | Q145: 0 | R145: 109 | S145: 0 | T145: 0 | U145: 0 | V145: 0 | W145: 0 | X145: 0 | AB145: 0 | AD145: 0 | AF145: 0 | AH145: 0.95 | AJ145: 0
A146: 136 | C146: 0 | D146: 0 | E146: 1 | F146: 136 | G146: 136 | H146: 1 | I146: 0 | J146: ابنیه | Q146: 0 | R146: 109 | S146: 0 | T146: 0 | U146: 0 | V146: 0 | W146: 0 | X146: 0 | AB146: 0 | AD146: 0 | AF146: 0 | AH146: 0.95 | AJ146: 0
A147: 137 | C147: 0 | D147: 0 | E147: 1 | F147: 137 | G147: 137 | H147: 1 | I147: 0 | J147: ابنیه | Q147: 0 | R147: 109 | S147: 0 | T147: 0 | U147: 0 | V147: 0 | W147: 0 | X147: 0 | AB147: 0 | AD147: 0 | AF147: 0 | AH147: 0.95 | AJ147: 0
A148: 138 | C148: 0 | D148: 0 | E148: 1 | F148: 138 | G148: 138 | H148: 1 | I148: 0 | J148: ابنیه | Q148: 0 | R148: 109 | S148: 0 | T148: 0 | U148: 0 | V148: 0 | W148: 0 | X148: 0 | AB148: 0 | AD148: 0 | AF148: 0 | AH148: 0.95 | AJ148: 0
A149: 139 | C149: 0 | D149: 0 | E149: 1 | F149: 139 | G149: 139 | H149: 1 | I149: 0 | J149: ابنیه | Q149: 0 | R149: 109 | S149: 0 | T149: 0 | U149: 0 | V149: 0 | W149: 0 | X149: 0 | AB149: 0 | AD149: 0 | AF149: 0 | AH149: 0.95 | AJ149: 0
A150: 140 | C150: 0 | D150: 0 | E150: 1 | F150: 140 | G150: 140 | H150: 1 | I150: 0 | J150: ابنیه | Q150: 0 | R150: 109 | S150: 0 | T150: 0 | U150: 0 | V150: 0 | W150: 0 | X150: 0 | AB150: 0 | AD150: 0 | AF150: 0 | AH150: 0.95 | AJ150: 0
A151: 141 | C151: 0 | D151: 0 | E151: 1 | F151: 141 | G151: 141 | H151: 1 | I151: 0 | J151: ابنیه | Q151: 0 | R151: 109 | S151: 0 | T151: 0 | U151: 0 | V151: 0 | W151: 0 | X151: 0 | AB151: 0 | AD151: 0 | AF151: 0 | AH151: 0.95 | AJ151: 0
A152: 142 | C152: 0 | D152: 0 | E152: 1 | F152: 142 | G152: 142 | H152: 1 | I152: 0 | J152: ابنیه | Q152: 0 | R152: 109 | S152: 0 | T152: 0 | U152: 0 | V152: 0 | W152: 0 | X152: 0 | AB152: 0 | AD152: 0 | AF152: 0 | AH152: 0.95 | AJ152: 0
A153: 143 | C153: 0 | D153: 0 | E153: 1 | F153: 143 | G153: 143 | H153: 1 | I153: 0 | J153: ابنیه | Q153: 0 | R153: 109 | S153: 0 | T153: 0 | U153: 0 | V153: 0 | W153: 0 | X153: 0 | AB153: 0 | AD153: 0 | AF153: 0 | AH153: 0.95 | AJ153: 0
A154: 144 | C154: 0 | D154: 0 | E154: 1 | F154: 144 | G154: 144 | H154: 1 | I154: 0 | J154: ابنیه | Q154: 0 | R154: 109 | S154: 0 | T154: 0 | U154: 0 | V154: 0 | W154: 0 | X154: 0 | AB154: 0 | AD154: 0 | AF154: 0 | AH154: 0.95 | AJ154: 0
A155: 145 | C155: 0 | D155: 0 | E155: 1 | F155: 145 | G155: 145 | H155: 1 | I155: 0 | J155: ابنیه | Q155: 0 | R155: 109 | S155: 0 | T155: 0 | U155: 0 | V155: 0 | W155: 0 | X155: 0 | AB155: 0 | AD155: 0 | AF155: 0 | AH155: 0.95 | AJ155: 0
A156: 146 | C156: 0 | D156: 0 | E156: 1 | F156: 146 | G156: 146 | H156: 1 | I156: 0 | J156: ابنیه | Q156: 0 | R156: 109 | S156: 0 | T156: 0 | U156: 0 | V156: 0 | W156: 0 | X156: 0 | AB156: 0 | AD156: 0 | AF156: 0 | AH156: 0.95 | AJ156: 0
A157: 147 | C157: 0 | D157: 0 | E157: 1 | F157: 147 | G157: 147 | H157: 1 | I157: 0 | J157: ابنیه | Q157: 0 | R157: 109 | S157: 0 | T157: 0 | U157: 0 | V157: 0 | W157: 0 | X157: 0 | AB157: 0 | AD157: 0 | AF157: 0 | AH157: 0.95 | AJ157: 0
A158: 148 | C158: 0 | D158: 0 | E158: 1 | F158: 148 | G158: 148 | H158: 1 | I158: 0 | J158: ابنیه | Q158: 0 | R158: 109 | S158: 0 | T158: 0 | U158: 0 | V158: 0 | W158: 0 | X158: 0 | AB158: 0 | AD158: 0 | AF158: 0 | AH158: 0.95 | AJ158: 0
A159: 149 | C159: 0 | D159: 0 | E159: 1 | F159: 149 | G159: 149 | H159: 1 | I159: 0 | J159: ابنیه | Q159: 0 | R159: 109 | S159: 0 | T159: 0 | U159: 0 | V159: 0 | W159: 0 | X159: 0 | AB159: 0 | AD159: 0 | AF159: 0 | AH159: 0.95 | AJ159: 0
A160: 150 | C160: 0 | D160: 0 | E160: 1 | F160: 150 | G160: 150 | H160: 1 | I160: 0 | J160: ابنیه | Q160: 0 | R160: 109 | S160: 0 | T160: 0 | U160: 0 | V160: 0 | W160: 0 | X160: 0 | AB160: 0 | AD160: 0 | AF160: 0 | AH160: 0.95 | AJ160: 0
A161: 151 | C161: 0 | D161: 0 | E161: 1 | F161: 151 | G161: 151 | H161: 1 | I161: 0 | J161: ابنیه | Q161: 0 | R161: 109 | S161: 0 | T161: 0 | U161: 0 | V161: 0 | W161: 0 | X161: 0 | AB161: 0 | AD161: 0 | AF161: 0 | AH161: 0.95 | AJ161: 0
A162: 152 | C162: 0 | D162: 0 | E162: 1 | F162: 152 | G162: 152 | H162: 1 | I162: 0 | J162: ابنیه | Q162: 0 | R162: 109 | S162: 0 | T162: 0 | U162: 0 | V162: 0 | W162: 0 | X162: 0 | AB162: 0 | AD162: 0 | AF162: 0 | AH162: 0.95 | AJ162: 0
A163: 153 | C163: 0 | D163: 0 | E163: 1 | F163: 153 | G163: 153 | H163: 1 | I163: 0 | J163: ابنیه | Q163: 0 | R163: 109 | S163: 0 | T163: 0 | U163: 0 | V163: 0 | W163: 0 | X163: 0 | AB163: 0 | AD163: 0 | AF163: 0 | AH163: 0.95 | AJ163: 0
A164: 154 | C164: 0 | D164: 0 | E164: 1 | F164: 154 | G164: 154 | H164: 1 | I164: 0 | J164: ابنیه | Q164: 0 | R164: 109 | S164: 0 | T164: 0 | U164: 0 | V164: 0 | W164: 0 | X164: 0 | AB164: 0 | AD164: 0 | AF164: 0 | AH164: 0.95 | AJ164: 0
A165: 155 | C165: 0 | D165: 0 | E165: 1 | F165: 155 | G165: 155 | H165: 1 | I165: 0 | J165: ابنیه | Q165: 0 | R165: 109 | S165: 0 | T165: 0 | U165: 0 | V165: 0 | W165: 0 | X165: 0 | AB165: 0 | AD165: 0 | AF165: 0 | AH165: 0.95 | AJ165: 0
A166: 156 | C166: 0 | D166: 0 | E166: 1 | F166: 156 | G166: 156 | H166: 1 | I166: 0 | J166: ابنیه | Q166: 0 | R166: 109 | S166: 0 | T166: 0 | U166: 0 | V166: 0 | W166: 0 | X166: 0 | AB166: 0 | AD166: 0 | AF166: 0 | AH166: 0.95 | AJ166: 0
A167: 157 | C167: 0 | D167: 0 | E167: 1 | F167: 157 | G167: 157 | H167: 1 | I167: 0 | J167: ابنیه | Q167: 0 | R167: 109 | S167: 0 | T167: 0 | U167: 0 | V167: 0 | W167: 0 | X167: 0 | AB167: 0 | AD167: 0 | AF167: 0 | AH167: 0.95 | AJ167: 0
A168: 158 | C168: 0 | D168: 0 | E168: 1 | F168: 158 | G168: 158 | H168: 1 | I168: 0 | J168: ابنیه | Q168: 0 | R168: 109 | S168: 0 | T168: 0 | U168: 0 | V168: 0 | W168: 0 | X168: 0 | AB168: 0 | AD168: 0 | AF168: 0 | AH168: 0.95 | AJ168: 0
A169: 159 | C169: 0 | D169: 0 | E169: 1 | F169: 159 | G169: 159 | H169: 1 | I169: 0 | J169: ابنیه | Q169: 0 | R169: 109 | S169: 0 | T169: 0 | U169: 0 | V169: 0 | W169: 0 | X169: 0 | AB169: 0 | AD169: 0 | AF169: 0 | AH169: 0.95 | AJ169: 0
A170: 160 | C170: 0 | D170: 0 | E170: 1 | F170: 160 | G170: 160 | H170: 1 | I170: 0 | J170: ابنیه | Q170: 0 | R170: 109 | S170: 0 | T170: 0 | U170: 0 | V170: 0 | W170: 0 | X170: 0 | AB170: 0 | AD170: 0 | AF170: 0 | AH170: 0.95 | AJ170: 0
A171: 161 | C171: 0 | D171: 0 | E171: 1 | F171: 161 | G171: 161 | H171: 1 | I171: 0 | J171: ابنیه | Q171: 0 | R171: 109 | S171: 0 | T171: 0 | U171: 0 | V171: 0 | W171: 0 | X171: 0 | AB171: 0 | AD171: 0 | AF171: 0 | AH171: 0.95 | AJ171: 0
A172: 162 | C172: 0 | D172: 0 | E172: 1 | F172: 162 | G172: 162 | H172: 1 | I172: 0 | J172: ابنیه | Q172: 0 | R172: 109 | S172: 0 | T172: 0 | U172: 0 | V172: 0 | W172: 0 | X172: 0 | AB172: 0 | AD172: 0 | AF172: 0 | AH172: 0.95 | AJ172: 0
A173: 163 | C173: 0 | D173: 0 | E173: 1 | F173: 163 | G173: 163 | H173: 1 | I173: 0 | J173: ابنیه | Q173: 0 | R173: 109 | S173: 0 | T173: 0 | U173: 0 | V173: 0 | W173: 0 | X173: 0 | AB173: 0 | AD173: 0 | AF173: 0 | AH173: 0.95 | AJ173: 0
A174: 164 | C174: 0 | D174: 0 | E174: 1 | F174: 164 | G174: 164 | H174: 1 | I174: 0 | J174: ابنیه | Q174: 0 | R174: 109 | S174: 0 | T174: 0 | U174: 0 | V174: 0 | W174: 0 | X174: 0 | AB174: 0 | AD174: 0 | AF174: 0 | AH174: 0.95 | AJ174: 0
A175: 165 | C175: 0 | D175: 0 | E175: 1 | F175: 165 | G175: 165 | H175: 1 | I175: 0 | J175: ابنیه | Q175: 0 | R175: 109 | S175: 0 | T175: 0 | U175: 0 | V175: 0 | W175: 0 | X175: 0 | AB175: 0 | AD175: 0 | AF175: 0 | AH175: 0.95 | AJ175: 0
A176: 166 | C176: 0 | D176: 0 | E176: 1 | F176: 166 | G176: 166 | H176: 1 | I176: 0 | J176: ابنیه | Q176: 0 | R176: 109 | S176: 0 | T176: 0 | U176: 0 | V176: 0 | W176: 0 | X176: 0 | AB176: 0 | AD176: 0 | AF176: 0 | AH176: 0.95 | AJ176: 0
A177: 167 | C177: 0 | D177: 0 | E177: 1 | F177: 167 | G177: 167 | H177: 1 | I177: 0 | J177: ابنیه | Q177: 0 | R177: 109 | S177: 0 | T177: 0 | U177: 0 | V177: 0 | W177: 0 | X177: 0 | AB177: 0 | AD177: 0 | AF177: 0 | AH177: 0.95 | AJ177: 0
A178: 168 | C178: 0 | D178: 0 | E178: 1 | F178: 168 | G178: 168 | H178: 1 | I178: 0 | J178: ابنیه | Q178: 0 | R178: 109 | S178: 0 | T178: 0 | U178: 0 | V178: 0 | W178: 0 | X178: 0 | AB178: 0 | AD178: 0 | AF178: 0 | AH178: 0.95 | AJ178: 0
A179: 169 | C179: 0 | D179: 0 | E179: 1 | F179: 169 | G179: 169 | H179: 1 | I179: 0 | J179: ابنیه | Q179: 0 | R179: 109 | S179: 0 | T179: 0 | U179: 0 | V179: 0 | W179: 0 | X179: 0 | AB179: 0 | AD179: 0 | AF179: 0 | AH179: 0.95 | AJ179: 0
A180: 170 | C180: 0 | D180: 0 | E180: 1 | F180: 170 | G180: 170 | H180: 1 | I180: 0 | J180: ابنیه | Q180: 0 | R180: 109 | S180: 0 | T180: 0 | U180: 0 | V180: 0 | W180: 0 | X180: 0 | AB180: 0 | AD180: 0 | AF180: 0 | AH180: 0.95 | AJ180: 0
A181: 171 | C181: 0 | D181: 0 | E181: 1 | F181: 171 | G181: 171 | H181: 1 | I181: 0 | J181: ابنیه | Q181: 0 | R181: 109 | S181: 0 | T181: 0 | U181: 0 | V181: 0 | W181: 0 | X181: 0 | AB181: 0 | AD181: 0 | AF181: 0 | AH181: 0.95 | AJ181: 0
A182: 172 | C182: 0 | D182: 0 | E182: 1 | F182: 172 | G182: 172 | H182: 1 | I182: 0 | J182: ابنیه | Q182: 0 | R182: 109 | S182: 0 | T182: 0 | U182: 0 | V182: 0 | W182: 0 | X182: 0 | AB182: 0 | AD182: 0 | AF182: 0 | AH182: 0.95 | AJ182: 0
A183: 173 | C183: 0 | D183: 0 | E183: 1 | F183: 173 | G183: 173 | H183: 1 | I183: 0 | J183: ابنیه | Q183: 0 | R183: 109 | S183: 0 | T183: 0 | U183: 0 | V183: 0 | W183: 0 | X183: 0 | AB183: 0 | AD183: 0 | AF183: 0 | AH183: 0.95 | AJ183: 0
A184: 174 | C184: 0 | D184: 0 | E184: 1 | F184: 174 | G184: 174 | H184: 1 | I184: 0 | J184: ابنیه | Q184: 0 | R184: 109 | S184: 0 | T184: 0 | U184: 0 | V184: 0 | W184: 0 | X184: 0 | AB184: 0 | AD184: 0 | AF184: 0 | AH184: 0.95 | AJ184: 0
A185: 175 | C185: 0 | D185: 0 | E185: 1 | F185: 175 | G185: 175 | H185: 1 | I185: 0 | J185: ابنیه | Q185: 0 | R185: 109 | S185: 0 | T185: 0 | U185: 0 | V185: 0 | W185: 0 | X185: 0 | AB185: 0 | AD185: 0 | AF185: 0 | AH185: 0.95 | AJ185: 0
A186: 176 | C186: 0 | D186: 0 | E186: 1 | F186: 176 | G186: 176 | H186: 1 | I186: 0 | J186: ابنیه | Q186: 0 | R186: 109 | S186: 0 | T186: 0 | U186: 0 | V186: 0 | W186: 0 | X186: 0 | AB186: 0 | AD186: 0 | AF186: 0 | AH186: 0.95 | AJ186: 0
A187: 177 | C187: 0 | D187: 0 | E187: 1 | F187: 177 | G187: 177 | H187: 1 | I187: 0 | J187: ابنیه | Q187: 0 | R187: 109 | S187: 0 | T187: 0 | U187: 0 | V187: 0 | W187: 0 | X187: 0 | AB187: 0 | AD187: 0 | AF187: 0 | AH187: 0.95 | AJ187: 0
A188: 178 | C188: 0 | D188: 0 | E188: 1 | F188: 178 | G188: 178 | H188: 1 | I188: 0 | J188: ابنیه | Q188: 0 | R188: 109 | S188: 0 | T188: 0 | U188: 0 | V188: 0 | W188: 0 | X188: 0 | AB188: 0 | AD188: 0 | AF188: 0 | AH188: 0.95 | AJ188: 0
A189: 179 | C189: 0 | D189: 0 | E189: 1 | F189: 179 | G189: 179 | H189: 1 | I189: 0 | J189: ابنیه | Q189: 0 | R189: 109 | S189: 0 | T189: 0 | U189: 0 | V189: 0 | W189: 0 | X189: 0 | AB189: 0 | AD189: 0 | AF189: 0 | AH189: 0.95 | AJ189: 0
A190: 180 | C190: 0 | D190: 0 | E190: 1 | F190: 180 | G190: 180 | H190: 1 | I190: 0 | J190: ابنیه | Q190: 0 | R190: 109 | S190: 0 | T190: 0 | U190: 0 | V190: 0 | W190: 0 | X190: 0 | AB190: 0 | AD190: 0 | AF190: 0 | AH190: 0.95 | AJ190: 0
A191: 181 | C191: 0 | D191: 0 | E191: 1 | F191: 181 | G191: 181 | H191: 1 | I191: 0 | J191: ابنیه | Q191: 0 | R191: 109 | S191: 0 | T191: 0 | U191: 0 | V191: 0 | W191: 0 | X191: 0 | AB191: 0 | AD191: 0 | AF191: 0 | AH191: 0.95 | AJ191: 0
A192: 182 | C192: 0 | D192: 0 | E192: 1 | F192: 182 | G192: 182 | H192: 1 | I192: 0 | J192: ابنیه | Q192: 0 | R192: 109 | S192: 0 | T192: 0 | U192: 0 | V192: 0 | W192: 0 | X192: 0 | AB192: 0 | AD192: 0 | AF192: 0 | AH192: 0.95 | AJ192: 0
A193: 183 | C193: 0 | D193: 0 | E193: 1 | F193: 183 | G193: 183 | H193: 1 | I193: 0 | J193: ابنیه | Q193: 0 | R193: 109 | S193: 0 | T193: 0 | U193: 0 | V193: 0 | W193: 0 | X193: 0 | AB193: 0 | AD193: 0 | AF193: 0 | AH193: 0.95 | AJ193: 0
A194: 184 | C194: 0 | D194: 0 | E194: 1 | F194: 184 | G194: 184 | H194: 1 | I194: 0 | J194: ابنیه | Q194: 0 | R194: 109 | S194: 0 | T194: 0 | U194: 0 | V194: 0 | W194: 0 | X194: 0 | AB194: 0 | AD194: 0 | AF194: 0 | AH194: 0.95 | AJ194: 0
A195: 185 | C195: 0 | D195: 0 | E195: 1 | F195: 185 | G195: 185 | H195: 1 | I195: 0 | J195: ابنیه | Q195: 0 | R195: 109 | S195: 0 | T195: 0 | U195: 0 | V195: 0 | W195: 0 | X195: 0 | AB195: 0 | AD195: 0 | AF195: 0 | AH195: 0.95 | AJ195: 0
A196: 186 | C196: 0 | D196: 0 | E196: 1 | F196: 186 | G196: 186 | H196: 1 | I196: 0 | J196: ابنیه | Q196: 0 | R196: 109 | S196: 0 | T196: 0 | U196: 0 | V196: 0 | W196: 0 | X196: 0 | AB196: 0 | AD196: 0 | AF196: 0 | AH196: 0.95 | AJ196: 0
A197: 187 | C197: 0 | D197: 0 | E197: 1 | F197: 187 | G197: 187 | H197: 1 | I197: 0 | J197: ابنیه | Q197: 0 | R197: 109 | S197: 0 | T197: 0 | U197: 0 | V197: 0 | W197: 0 | X197: 0 | AB197: 0 | AD197: 0 | AF197: 0 | AH197: 0.95 | AJ197: 0
A198: 188 | C198: 0 | D198: 0 | E198: 1 | F198: 188 | G198: 188 | H198: 1 | I198: 0 | J198: ابنیه | Q198: 0 | R198: 109 | S198: 0 | T198: 0 | U198: 0 | V198: 0 | W198: 0 | X198: 0 | AB198: 0 | AD198: 0 | AF198: 0 | AH198: 0.95 | AJ198: 0
A199: 189 | C199: 0 | D199: 0 | E199: 1 | F199: 189 | G199: 189 | H199: 1 | I199: 0 | J199: ابنیه | Q199: 0 | R199: 109 | S199: 0 | T199: 0 | U199: 0 | V199: 0 | W199: 0 | X199: 0 | AB199: 0 | AD199: 0 | AF199: 0 | AH199: 0.95 | AJ199: 0
A200: 190 | C200: 0 | D200: 0 | E200: 1 | F200: 190 | G200: 190 | H200: 1 | I200: 0 | J200: ابنیه | Q200: 0 | R200: 109 | S200: 0 | T200: 0 | U200: 0 | V200: 0 | W200: 0 | X200: 0 | AB200: 0 | AD200: 0 | AF200: 0 | AH200: 0.95 | AJ200: 0
... 611 more rows

Sheet 1 (hidden)
A1: 1
A2: 1 | F2: 1 | G2: جدول | H2: یک | J2: ="خلاصه اطلاعات تعدیل صورت وضعیت "&Anterpoleh!N8&Anterpoleh!O8 -> خلاصه اطلاعات تعدیل صورت وضعیت 0
A3: 1 | F3: 2 | G3: 0
A4: 1 | F4: 3 | G4: 1- | H4: مشخصات پیمان | K4: 2- | L4: مشخصات صورت وضعيت و دوره ها
A5: 1 | F5: 5 | G5: 1-1 | H5: ="موضوع پیمان : "&Anterpoleh!A3 -> موضوع پیمان : | K5: 1-2 | L5: ="تاريخ صورت وضعيت فعلی "&Anterpoleh!N8&Anterpoleh!O8&" "&Anterpoleh!T8 -> تاريخ صورت وضعيت فعلی 0 //
A6: 1 | F6: 5 | G6: 2-1 | H6: ="نام کارفرما : "&Anterpoleh!A4 -> نام کارفرما : | K6: 2-2 | L6: ="تاريخ صورت وضعيت قبلی "&Anterpoleh!N7&Anterpoleh!O7&" "&Anterpoleh!T7 -> تاريخ صورت وضعيت قبلی 0 //
A7: 1 | C7: =Anterpoleh!AE282 -> 7 | F7: 6 | G7: 3-1 | H7: ="نام مشاور يا دستگاه نظارت : "&Anterpoleh!A5 -> نام مشاور يا دستگاه نظارت : | K7: 3-2 | L7: ="مدت كاركرد : "&Anterpoleh!T9&" روز" -> مدت كاركرد : 0 روز
A8: =IF(D8+E8>0,1,0) -> 1 | C8: =C7 -> 7 | D8: =IF(B9<=C8,B9,0) -> 1 | F8: =E8+D8 -> 1 | G8: 4-1 | H8: ="نام سازنده يا پیمانکار : "&Anterpoleh!A6 -> نام سازنده يا پیمانکار : | K8: =IFERROR(VLOOKUP(D8,doreh,3,0),"") -> 4-2 | L8: =IFERROR(VLOOKUP(D8,doreh,4,0),"") -> مدت کارکرد در دوره های سه ماهه مربوط به صورت وضعیت
A9: =IF(D9+E9>0,1,0) -> 1 | B9: 1 | C9: 7 | D9: 2 | F9: =E9+D9 -> 2 | G9: 5-1 | H9: ="مدت مندرج در پيمان : "&Anterpoleh!A7&" ماه "&Anterpoleh!B7&" روز" -> مدت مندرج در پيمان : ماه 0 روز | K9: 5-2 | L9: نسبت مدت کارکرد در هردوره سه ماهه به مدت کارکرد: | M9: =IFERROR(VLOOKUP(D9,doreh,5,0),"") -> 0
A10: 1 | B10: 2 | C10: 7 | D10: 3 | F10: 3 | G10: 6-1 | H10: ="مدت پيمان به انضمام مدتهاي تمديد شده :"&Anterpoleh!A7+Anterpoleh!C7&" ماه "&Anterpoleh!B7+Anterpoleh!D7&" روز" -> مدت پيمان به انضمام مدتهاي تمديد شده :0 ماه 0 روز
A11: 1 | B11: 3 | C11: 7 | D11: 4 | F11: 4 | G11: 7-1 | H11: ="دوره مبناي پيمان :سه ماهه "&Anterpoleh!C8&" سال "&Anterpoleh!D8 -> دوره مبناي پيمان :سه ماهه چهارم سال 1394 | K11: - 4 | L11: وضعيت تعديل قرارداد تا اين صورت وضعيت | M11: مبلغ تعديل به ريال
A12: 1 | B12: 4 | C12: 7 | D12: 5 | F12: =E12+D12 -> 5 | G12: 8-1 | H12: ="تاريخ شروع بكار : "&Anterpoleh!T2 -> تاريخ شروع بكار : 1398/06/01 | K12: جـمـع | L12: مبالغ تعدیل لغایت صورت وضعیت قبلی 0 | M12: 0
A13: 1 | B13: 5 | C13: 7 | D13: 6 | F13: 6 | G13: 9-1 | H13: ="شماره پيمان : "&Anterpoleh!A1 -> شماره پيمان : | K13: تعدیل ما | L13: به التفاوت صورت وضعیت 0وصورت وضعیت قبل ازآن | M13: 0
A14: 1 | B14: 6 | C14: 7 | D14: 7 | F14: 7 | G14: 0 | K14: جـمـع | L14: مبالغ تعديل تا صورت وضعیت 0 | M14: 0
A15: 1 | B15: 7 | C15: 7 | D15: 0 | E15: =Anterpoleh!E149+1 -> 6 | F15: =E15+D15 -> 6 | G15: 3- | H15: خلاصه محاسبات تعديل
A16: 0 | B16: 8 | C16: 7 | D16: =IF(B17<=C16,B17,0) -> 0 | F16: =E16+D16 -> 0 | G16: فهرست بهاي منضم به پيمان | I16: مبلغ تعديل به ريال
A17: 1 | B17: 9 | C17: 7 | D17: 0 | E17: =IF(E15>0,1,0) -> 1 | F17: 1 | G17: =IF(H17="جـــمـع",0,IF(E17>0,"فهرست","")) -> فهرست | H17: =VLOOKUP(E17,rshte1,3,0) -> بهای ابنیه | I17: =IF(VLOOKUP(E17,rshte1,4,0)=0,IF(E17>0,"-",0),+VLOOKUP(E17,rshte1,4,0)) -> -
A18: 1 | B18: 10 | C18: 7 | D18: 0 | E18: =IF(E17=0,0,IF(E15>E17,E17+1,0)) -> 2 | F18: 2 | G18: =IF(H18="جـــمـع",0,IF(E18>0,"فهرست","")) -> فهرست | H18: =VLOOKUP(E18,rshte1,3,0) -> بهای تاسیسات مکانیکی | I18: -
A19: 1 | B19: 11 | C19: 7 | D19: 0 | E19: =IF(E18=0,0,IF(E15>E18,E18+1,0)) -> 3 | F19: 3 | G19: فهرست | H19: بهای تاسیسات برقی | I19: -
A20: 1 | B20: 12 | C20: 7 | D20: =IF(B21<=C20,B21,0) -> 0 | E20: =IF(E19=0,0,IF(E15>E19,E19+1,0)) -> 4 | F20: 4 | G20: فهرست | H20: بهای راه، راه آهن و باند فرودگاه | I20: -
A21: 1 | B21: 13 | C21: 7 | D21: =IF(B22<=C21,B22,0) -> 0 | E21: =IF(E20=0,0,IF(E15>E20,E20+1,0)) -> 5 | F21: 5 | G21: فهرست | H21: بهای راهداری | I21: -
A22: 1 | B22: 14 | C22: 7 | D22: 0 | E22: =IF(E21=0,0,IF(E15>E21,E21+1,0)) -> 6 | F22: 6 | G22: 0 | H22: جـــمـع | I22: -
A23: 0 | B23: 15 | C23: 7 | D23: 0 | E23: =IF(E22=0,0,IF(E15>E22,E22+1,0)) -> 0 | F23: 0 | I23: 0
A24: 0 | B24: 16 | C24: 7 | D24: 0 | E24: =IF(E23=0,0,IF(E15>E23,E23+1,0)) -> 0 | F24: 0 | I24: 0
A25: 0 | B25: 17 | C25: 7 | D25: 0 | E25: =IF(E24=0,0,IF(E15>E24,E24+1,0)) -> 0 | F25: 0 | I25: 0 | L25: =IFERROR(VLOOKUP(D25,doreh,4,0),"") -> 
A26: 0 | B26: 18 | C26: 7 | D26: 0 | E26: =IF(E25=0,0,IF(E15>E25,E25+1,0)) -> 0 | F26: 0 | I26: 0
A27: 0 | B27: 19 | C27: 7 | D27: 0 | E27: =IF(E26=0,0,IF(E15>E26,E26+1,0)) -> 0 | F27: 0 | I27: 0
A28: 0 | B28: 20 | C28: 7 | D28: 0 | E28: =IF(E27=0,0,IF(E15>E27,E27+1,0)) -> 0 | F28: 0 | I28: 0
A29: 0 | B29: 21 | C29: 7 | D29: 0 | E29: =IF(E28=0,0,IF(E15>E28,E28+1,0)) -> 0 | F29: 0 | I29: 0
A30: 0 | B30: 22 | C30: 7 | D30: 0 | E30: =IF(E29=0,0,IF(E15>E29,E29+1,0)) -> 0 | F30: 0 | G30: =IF(H30="جـــمـع",0,IF(E30>0,"فهرست","")) ->  | I30: 0
A31: 0 | B31: 23 | C31: 7 | D31: 0 | E31: =IF(E30=0,0,IF(E15>E30,E30+1,0)) -> 0 | F31: 0 | I31: 0
A32: 0 | B32: 24 | C32: 7 | D32: 0 | E32: =IF(E31=0,0,IF(E15>E31,E31+1,0)) -> 0 | F32: 0 | I32: 0
A33: 0 | B33: 25 | C33: 7 | D33: 0 | E33: =IF(E32=0,0,IF(E15>E32,E32+1,0)) -> 0 | F33: 0 | I33: 0
A34: 0 | B34: 26 | C34: 7 | D34: 0 | E34: =IF(E33=0,0,IF(E15>E33,E33+1,0)) -> 0 | F34: 0 | I34: 0
A35: 0 | B35: 27 | C35: 7 | D35: 0 | E35: =IF(E34=0,0,IF(E15>E34,E34+1,0)) -> 0 | F35: 0 | I35: 0
A36: 0 | B36: 28 | C36: 7 | D36: 0 | E36: =IF(E35=0,0,IF(E15>E35,E35+1,0)) -> 0 | F36: 0 | I36: 0
A37: 0 | B37: 29 | C37: 7 | D37: 0 | F37: 0 | I37: 0
A38: 0 | B38: 30 | C38: 7 | D38: 0 | F38: 0 | I38: 0
A39: 0 | B39: 31 | C39: 7 | D39: 0 | F39: 0 | I39: 0
A40: 0 | B40: 32 | C40: 7 | D40: 0 | F40: 0 | I40: 0 | K40: =IFERROR(VLOOKUP(D40,doreh,3,0),"") ->  | L40: =IFERROR(VLOOKUP(D40,doreh,4,0),"") -> 
A41: 0 | B41: 33 | C41: 7 | D41: 0 | F41: 0 | I41: 0 | M41: =IFERROR(VLOOKUP(D41,doreh,5,0),"") -> 
A42: 0 | B42: 34 | C42: 7 | D42: 0 | F42: 0 | I42: 0
A43: 0 | B43: 35 | C43: 7 | D43: 0 | F43: 0 | I43: 0
A44: 0 | B44: 36 | C44: 7 | D44: 0 | F44: 0 | I44: 0
A45: 0 | B45: 37 | C45: 7 | D45: 0 | F45: 0 | I45: 0
A46: 0 | B46: 38 | C46: 7 | D46: 0 | F46: 0 | I46: 0
A47: 0 | B47: 39 | C47: 7 | D47: 0 | F47: 0 | I47: 0
A48: 0 | B48: 40 | C48: 7 | D48: 0 | F48: 0 | I48: 0
A49: 0 | B49: 41 | C49: 7 | D49: 0 | F49: 0 | H49: =VLOOKUP(E49,rshte1,3,0) ->  | I49: =IF(VLOOKUP(E49,rshte1,4,0)=0,IF(E49>0,"-",0),+VLOOKUP(E49,rshte1,4,0)) -> 0
A50: 0 | B50: 42 | C50: 7 | D50: 0 | F50: 0 | I50: 0
A51: 0 | B51: 43 | C51: 7 | D51: 0 | F51: 0 | I51: 0
A52: 0 | B52: 44 | C52: 7 | D52: 0 | F52: 0 | I52: 0
A53: 0 | B53: 45 | C53: 7 | D53: 0 | F53: 0 | I53: 0
A54: 0 | B54: 46 | C54: 7 | D54: 0 | F54: 0 | I54: 0
A55: 0 | B55: 47 | C55: 7 | D55: 0 | F55: 0 | I55: 0
A56: 0 | B56: 48 | C56: 7 | D56: 0 | F56: 0 | I56: 0
A57: 0 | B57: 49 | C57: 7 | D57: 0 | F57: 0 | I57: 0
A58: 0 | B58: 50 | C58: 7 | D58: 0 | F58: 0 | I58: 0
A59: 0 | B59: 51 | C59: 7 | D59: 0 | F59: 0 | I59: 0
A60: 0 | B60: 52 | C60: 7 | D60: 0 | F60: 0 | I60: 0
A61: 0 | B61: 53 | C61: 7 | D61: 0 | F61: 0 | I61: 0
A62: 0 | B62: 54 | C62: 7 | D62: 0 | F62: 0 | I62: 0
A63: 0 | B63: 55 | C63: 7 | D63: 0 | F63: 0 | I63: 0
A64: 0 | B64: 56 | C64: 7 | D64: 0 | F64: 0 | I64: 0
A65: 0 | B65: 57 | C65: 7 | D65: 0 | F65: 0 | I65: 0
A66: 0 | B66: 58 | C66: 7 | D66: 0 | F66: 0 | I66: 0
A67: 0 | B67: 59 | C67: 7 | D67: 0 | F67: 0 | I67: 0
A68: 0 | B68: 60 | C68: 7 | D68: 0 | F68: 0 | I68: 0
A69: 0 | B69: 61 | C69: 7 | D69: 0 | F69: 0 | I69: 0
A70: 0 | B70: 62 | C70: 7 | D70: 0 | F70: 0 | I70: 0
A71: 0 | B71: 63 | C71: 7 | D71: 0 | F71: 0 | I71: 0
A72: 0 | B72: 64 | C72: =C71 -> 7 | D72: =IF(B73<=C72,B73,0) -> 0 | F72: 0 | I72: 0 | K72: =IFERROR(VLOOKUP(D72,doreh,3,0),"") ->  | L72: =IFERROR(VLOOKUP(D72,doreh,4,0),"") -> 
A73: =IF(D73+E73>0,1,0) -> 0 | B73: 65 | C73: 7 | D73: 0 | F73: 0 | I73: 0 | M73: =IFERROR(VLOOKUP(D73,doreh,5,0),"") -> 
A74: 0 | B74: 66 | C74: 7 | D74: 0 | F74: 0 | I74: 0
A75: 0 | B75: 67 | C75: 7 | D75: 0 | F75: 0 | I75: 0
A76: 0 | B76: 68 | C76: 7 | D76: 0 | F76: 0 | I76: 0
A77: 0 | B77: 69 | C77: 7 | D77: 0 | F77: 0 | I77: 0
A78: 0 | B78: 70 | C78: 7 | D78: 0 | F78: 0 | I78: 0
A79: 0 | B79: 71 | C79: 7 | D79: 0 | F79: 0 | I79: 0
A80: 0 | B80: 72 | C80: 7 | D80: 0 | F80: =E80+D80 -> 0 | I80: 0
A81: 0 | B81: 73 | C81: 7 | D81: 0 | F81: 0 | H81: =VLOOKUP(E81,rshte1,3,0) ->  | I81: =IF(VLOOKUP(E81,rshte1,4,0)=0,IF(E81>0,"-",0),+VLOOKUP(E81,rshte1,4,0)) -> 0
A82: 0 | B82: 74 | C82: 7 | D82: 0 | F82: 0 | I82: 0
A83: 0 | B83: 75 | C83: 7 | D83: 0 | F83: 0 | I83: 0
A84: 0 | B84: 76 | C84: 7 | D84: 0 | F84: 0 | I84: 0
A85: 0 | B85: 77 | C85: 7 | D85: 0 | F85: 0 | I85: 0
A86: 0 | B86: 78 | C86: 7 | D86: 0 | F86: 0 | I86: 0
A87: 0 | B87: 79 | C87: 7 | D87: 0 | F87: 0 | I87: 0
A88: 0 | B88: 80 | C88: 7 | D88: 0 | F88: 0 | I88: 0
A89: 0 | B89: 81 | C89: 7 | D89: 0 | F89: 0 | I89: 0
A90: 0 | B90: 82 | C90: 7 | D90: 0 | F90: 0 | I90: 0
A91: 0 | B91: 83 | C91: 7 | D91: 0 | F91: 0 | I91: 0
A92: 0 | B92: 84 | C92: 7 | D92: 0 | F92: 0 | I92: 0
A93: 0 | B93: 85 | C93: 7 | D93: 0 | F93: 0 | I93: 0
A94: 0 | B94: 86 | C94: 7 | D94: 0 | F94: 0 | G94: =IF(H94="جـــمـع",0,IF(E94>0,"فهرست","")) ->  | I94: 0
A95: 0 | B95: 87 | C95: 7 | D95: 0 | F95: 0 | I95: 0
A96: 0 | B96: 88 | C96: 7 | D96: 0 | F96: 0 | I96: 0
A97: 0 | B97: 89 | C97: 7 | D97: 0 | F97: 0 | I97: 0
A98: 0 | B98: 90 | C98: 7 | D98: 0 | F98: 0 | I98: 0
A99: 0 | B99: 91 | C99: 7 | D99: 0 | F99: 0 | I99: 0
A100: 0 | B100: 92 | C100: 7 | D100: 0 | F100: 0 | I100: 0
A101: 0 | B101: 93 | C101: 7 | D101: 0 | F101: 0 | I101: 0
A102: 0 | B102: 94 | C102: 7 | D102: 0 | F102: 0 | I102: 0
A103: 0 | B103: 95 | C103: 7 | D103: 0 | F103: 0 | I103: 0
A104: 0 | B104: 96 | C104: 7 | D104: 0 | F104: 0 | I104: 0 | K104: =IFERROR(VLOOKUP(D104,doreh,3,0),"") ->  | L104: =IFERROR(VLOOKUP(D104,doreh,4,0),"") -> 
A105: 0 | B105: 97 | C105: 7 | D105: 0 | F105: 0 | I105: 0 | M105: =IFERROR(VLOOKUP(D105,doreh,5,0),"") -> 
A106: 0 | B106: 98 | C106: 7 | D106: 0 | F106: 0 | I106: 0
A107: 0 | B107: 99 | C107: 7 | D107: 0 | F107: 0 | I107: 0
A108: 0 | B108: 100 | C108: 7 | D108: 0 | F108: 0 | I108: 0
A109: 0 | B109: 101 | C109: 7 | D109: 0 | F109: 0 | I109: 0
A110: 0 | B110: 102 | C110: 7 | D110: 0 | F110: 0 | I110: 0
A111: 0 | B111: 103 | C111: 7 | D111: 0 | F111: 0 | I111: 0
A112: 0 | B112: 104 | C112: 7 | D112: 0 | F112: 0 | I112: 0
A113: 0 | B113: 105 | C113: 7 | D113: 0 | F113: 0 | H113: =VLOOKUP(E113,rshte1,3,0) ->  | I113: =IF(VLOOKUP(E113,rshte1,4,0)=0,IF(E113>0,"-",0),+VLOOKUP(E113,rshte1,4,0)) -> 0
A114: 0 | B114: 106 | C114: 7 | D114: 0 | F114: 0 | I114: 0
A115: 0 | B115: 107 | C115: 7 | D115: 0 | F115: 0 | I115: 0
A116: 0 | B116: 108 | C116: 7 | D116: 0 | F116: 0 | I116: 0
A117: 0 | B117: 109 | C117: 7 | D117: 0 | F117: 0 | I117: 0
A118: 0 | B118: 110 | C118: 7 | D118: 0 | F118: 0 | I118: 0
A119: 0 | B119: 111 | C119: 7 | D119: 0 | F119: 0 | I119: 0
A120: 0 | B120: 112 | C120: 7 | D120: 0 | F120: 0 | I120: 0
A121: 0 | B121: 113 | C121: 7 | D121: 0 | F121: 0 | I121: 0
A122: 0 | B122: 114 | C122: 7 | D122: 0 | F122: 0 | I122: 0
A123: 0 | B123: 115 | C123: 7 | D123: 0 | F123: 0 | I123: 0
A124: 0 | B124: 116 | C124: 7 | D124: 0 | F124: 0 | I124: 0
A125: 0 | B125: 117 | C125: 7 | D125: 0 | F125: 0 | I125: 0
A126: 0 | B126: 118 | C126: 7 | D126: 0 | F126: 0 | I126: 0
A127: 0 | B127: 119 | C127: 7 | D127: 0 | F127: 0 | I127: 0
A128: 0 | B128: 120 | C128: 7 | D128: 0 | F128: 0 | I128: 0
A129: 0 | B129: 121 | C129: 7 | D129: 0 | F129: 0 | I129: 0
A130: 0 | B130: 122 | C130: 7 | D130: 0 | F130: 0 | I130: 0
A131: 0 | B131: 123 | C131: 7 | D131: 0 | F131: 0 | I131: 0
A132: 0 | B132: 124 | C132: 7 | D132: 0 | F132: 0 | I132: 0
A133: 0 | B133: 125 | C133: 7 | D133: 0 | F133: 0 | I133: 0
A134: 0 | B134: 126 | C134: 7 | D134: 0 | F134: 0 | I134: 0
A135: 0 | B135: 127 | C135: 7 | D135: 0 | F135: 0 | I135: 0
A136: 0 | B136: 128 | C136: =C135 -> 7 | D136: =IF(B137<=C136,B137,0) -> 0 | F136: 0 | I136: 0 | K136: =IFERROR(VLOOKUP(D136,doreh,3,0),"") ->  | L136: =IFERROR(VLOOKUP(D136,doreh,4,0),"") -> 
A137: =IF(D137+E137>0,1,0) -> 0 | B137: 129 | C137: 7 | D137: 0 | F137: 0 | I137: 0 | M137: =IFERROR(VLOOKUP(D137,doreh,5,0),"") -> 
A138: 0 | B138: 130 | C138: 7 | D138: 0 | F138: 0 | I138: 0
A139: 0 | B139: 131 | C139: 7 | D139: 0 | F139: 0 | I139: 0
A140: 0 | B140: 132 | C140: 7 | D140: 0 | F140: 0 | I140: 0
A141: 0 | B141: 133 | C141: 7 | D141: 0 | F141: 0 | I141: 0
A142: 0 | B142: 134 | C142: 7 | D142: 0 | F142: 0 | I142: 0
A143: 0 | B143: 135 | C143: 7 | D143: 0 | F143: 0 | I143: 0
A144: 0 | B144: 136 | C144: 7 | D144: 0 | F144: =E144+D144 -> 0 | I144: 0
A145: 0 | B145: 137 | C145: 7 | D145: 0 | F145: 0 | H145: =VLOOKUP(E145,rshte1,3,0) ->  | I145: =IF(VLOOKUP(E145,rshte1,4,0)=0,IF(E145>0,"-",0),+VLOOKUP(E145,rshte1,4,0)) -> 0
A146: 0 | B146: 138 | C146: 7 | D146: 0 | F146: 0 | I146: 0
A147: 0 | B147: 139 | C147: 7 | D147: 0 | F147: 0 | I147: 0
A148: 0 | B148: 140 | C148: 7 | D148: 0 | F148: 0 | I148: 0
A149: 0 | B149: 141 | C149: 7 | D149: 0 | F149: 0 | I149: 0
A150: 0 | B150: 142 | C150: 7 | F150: 0 | I150: 0

Sheet Mali
A2: 2 | B2: راه، راه آهن و باند فرودگاه | C2: اول | F2: شماره فصل | G2: نام رشته | H2: =" فهرست بهای "&B2&CHAR(10)&"عنوان فصل" -> فهرست بهای راه، راه آهن و باند فرودگاه عنوان فصل | I2: مبلغ صورت وضعیت قبلی پس از اعمال ضرایب و احتساب پایکار مربوط | J2: مبلغ صورت وضعیت اول پس از اعمال ضرایب و احتساب پایکار مربوط | K2: مبلغ صورت وضعیت دوم پس از اعمال ضرایب و احتساب پایکار مربوط | L2: مبلغ صورت وضعیت سوم پس از اعمال ضرایب و احتساب پایکار مربوط | M2: مبلغ صورت وضعیت چهارم پس از اعمال ضرایب و احتساب پایکار مربوط | N2: مبلغ صورت وضعیت پنجم پس از اعمال ضرایب و احتساب پایکار مربوط | O2: مبلغ صورت وضعیت ششم پس از اعمال ضرایب و احتساب پایکار مربوط | P2: مبلغ صورت وضعیت هفتم پس از اعمال ضرایب و احتساب پایکار مربوط | Q2: مبلغ صورت وضعیت هشتم پس از اعمال ضرایب و احتساب پایکار مربوط | R2: مبلغ صورت وضعیت نهم پس از اعمال ضرایب و احتساب پایکار مربوط | S2: مبلغ صورت وضعیت دهم پس از اعمال ضرایب و احتساب پایکار مربوط | U2: 1
A3: =IF(B3=G3,1,0) -> 0 | B3: =B2 -> راه، راه آهن و باند فرودگاه | C3: =D3 -> 0 | D3: =IF(INDEX(I3:S3,0,$A$2)="",D2,D2+1) -> 0 | E3: =G3&F3 -> ابنیه1 | F3: 1 | G3: ابنیه | H3: عملیات تخریب | X3: اول
A4: 0 | B4: =B3 -> راه، راه آهن و باند فرودگاه | C4: =IF(D4=D3,0,D4) -> 0 | D4: 0 | E4: ابنیه2 | F4: 2 | G4: ابنیه | H4: عملیات خاکی بادست | X4: دوم
A5: 0 | B5: =B4 -> راه، راه آهن و باند فرودگاه | C5: 0 | D5: 0 | E5: ابنیه3 | F5: 3 | G5: ابنیه | H5: عملیات خاکی باماشین | X5: سوم
A6: 0 | B6: راه، راه آهن و باند فرودگاه | C6: 0 | D6: 0 | E6: ابنیه4 | F6: 4 | G6: ابنیه | H6: عملیات بنایی باسنگ | X6: چهارم
A7: 0 | B7: راه، راه آهن و باند فرودگاه | C7: 0 | D7: 0 | E7: ابنیه5 | F7: 5 | G7: ابنیه | H7: قالب بندی چوبی | X7: پنجم
A8: 0 | B8: راه، راه آهن و باند فرودگاه | C8: 0 | D8: 0 | E8: ابنیه6 | F8: 6 | G8: ابنیه | H8: قالب بندی فلزی | X8: ششم
A9: 0 | B9: راه، راه آهن و باند فرودگاه | C9: 0 | D9: 0 | E9: ابنیه7 | F9: 7 | G9: ابنیه | H9: کارهای فولادی بامیلگرد | X9: هفتم
A10: 0 | B10: راه، راه آهن و باند فرودگاه | C10: 0 | D10: 0 | E10: ابنیه8 | F10: 8 | G10: ابنیه | H10: بتن درجا | X10: هشتم
A11: 0 | B11: راه، راه آهن و باند فرودگاه | C11: 0 | D11: 0 | E11: ابنیه9 | F11: 9 | G11: ابنیه | H11: کارهای فولادی سنگین | X11: نهم
A12: 0 | B12: راه، راه آهن و باند فرودگاه | C12: 0 | D12: 0 | E12: ابنیه10 | F12: 10 | G12: ابنیه | H12: سقف سبک بتنی | X12: دهم
A13: 0 | B13: راه، راه آهن و باند فرودگاه | C13: 0 | D13: 0 | E13: ابنیه11 | F13: 11 | G13: ابنیه | H13: آجرکاری وشفته ریزی
A14: 0 | B14: راه، راه آهن و باند فرودگاه | C14: 0 | D14: 0 | E14: ابنیه12 | F14: 12 | G14: ابنیه | H14: بتن پیش ساخته وبلوک چینی
A15: 0 | B15: راه، راه آهن و باند فرودگاه | C15: 0 | D15: 0 | E15: ابنیه13 | F15: 13 | G15: ابنیه | H15: عایق کاری رطوبتی
A16: 0 | B16: راه، راه آهن و باند فرودگاه | C16: 0 | D16: 0 | E16: ابنیه14 | F16: 14 | G16: ابنیه | H16: عایق کاری حرارتی
A17: 0 | B17: راه، راه آهن و باند فرودگاه | C17: 0 | D17: 0 | E17: ابنیه15 | F17: 15 | G17: ابنیه | H17: کارهای آزبست سیمان
A18: 0 | B18: راه، راه آهن و باند فرودگاه | C18: 0 | D18: 0 | E18: ابنیه16 | F18: 16 | G18: ابنیه | H18: کارهای فولادی سبک
A19: 0 | B19: راه، راه آهن و باند فرودگاه | C19: 0 | D19: 0 | E19: ابنیه17 | F19: 17 | G19: ابنیه | H19: کارهای آلومینیومی
A20: 0 | B20: راه، راه آهن و باند فرودگاه | C20: 0 | D20: 0 | E20: ابنیه18 | F20: 18 | G20: ابنیه | H20: اندودکاری و بندکشی
A21: =IF(B21=G21,1,0) -> 0 | B21: =B20 -> راه، راه آهن و باند فرودگاه | C21: 0 | D21: 0 | E21: ابنیه19 | F21: 19 | G21: ابنیه | H21: کارهای چوبی
A22: 0 | B22: راه، راه آهن و باند فرودگاه | C22: 0 | D22: 0 | E22: ابنیه20 | F22: 20 | G22: ابنیه | H22: کاشی وسرامیک کاری
A23: 0 | B23: راه، راه آهن و باند فرودگاه | C23: 0 | D23: 0 | E23: ابنیه21 | F23: 21 | G23: ابنیه | H23: فرش کف باموزاییک
A24: 0 | B24: راه، راه آهن و باند فرودگاه | C24: 0 | D24: 0 | E24: ابنیه22 | F24: 22 | G24: ابنیه | H24: کارهای سنگی باسنگ پلاک
A25: 0 | B25: راه، راه آهن و باند فرودگاه | C25: 0 | D25: 0 | E25: ابنیه23 | F25: 23 | G25: ابنیه | H25: کارهای پلاستیکی
A26: 0 | B26: راه، راه آهن و باند فرودگاه | C26: 0 | D26: 0 | E26: ابنیه24 | F26: 24 | G26: ابنیه | H26: برش ونصب شیشه
A27: 0 | B27: راه، راه آهن و باند فرودگاه | C27: 0 | D27: 0 | E27: ابنیه25 | F27: 25 | G27: ابنیه | H27: رنگ آمیزی
A28: 0 | B28: راه، راه آهن و باند فرودگاه | C28: 0 | D28: 0 | E28: ابنیه26 | F28: 26 | G28: ابنیه | H28: زیراساس واساس
A29: 0 | B29: راه، راه آهن و باند فرودگاه | C29: 0 | D29: 0 | E29: ابنیه27 | F29: 27 | G29: ابنیه | H29: آسفالت
A30: 0 | B30: راه، راه آهن و باند فرودگاه | C30: 0 | D30: 0 | E30: ابنیه28 | F30: 28 | G30: ابنیه | H30: حمل ونقل
A31: 0 | B31: راه، راه آهن و باند فرودگاه | C31: 0 | D31: 0 | E31: ابنیه29 | F31: 29 | G31: ابنیه | H31: کارهای دستمزدی
A32: 0 | B32: راه، راه آهن و باند فرودگاه | C32: 0 | D32: 0 | E32: ابنیهتجهیز | F32: تجهیز | G32: ابنیه | H32: تجهیز و برچیدن کارگاه
A33: 1 | B33: راه، راه آهن و باند فرودگاه | C33: 0 | D33: 0 | E33: راه، راه آهن و باند فرودگاه1 | F33: 1 | G33: راه، راه آهن و باند فرودگاه | H33: عملیات تخریب
A34: 1 | B34: راه، راه آهن و باند فرودگاه | C34: 0 | D34: 0 | E34: راه، راه آهن و باند فرودگاه2 | F34: 2 | G34: راه، راه آهن و باند فرودگاه | H34: عملیات خاکی بادست
A35: 1 | B35: راه، راه آهن و باند فرودگاه | C35: 0 | D35: 0 | E35: راه، راه آهن و باند فرودگاه3 | F35: 3 | G35: راه، راه آهن و باند فرودگاه | H35: عملیات خاکی باماشین
A36: 1 | B36: راه، راه آهن و باند فرودگاه | C36: 0 | D36: 0 | E36: راه، راه آهن و باند فرودگاه4 | F36: 4 | G36: راه، راه آهن و باند فرودگاه | H36: حفاری تونل
A37: 1 | B37: راه، راه آهن و باند فرودگاه | C37: 0 | D37: 0 | E37: راه، راه آهن و باند فرودگاه5 | F37: 5 | G37: راه، راه آهن و باند فرودگاه | H37: حفاری،شمع کوبی وسپرکوبی
A38: 1 | B38: راه، راه آهن و باند فرودگاه | C38: 0 | D38: 0 | E38: راه، راه آهن و باند فرودگاه6 | F38: 6 | G38: راه، راه آهن و باند فرودگاه | H38: عملیات بنایی باسنگ
A39: 1 | B39: راه، راه آهن و باند فرودگاه | C39: 0 | D39: 0 | E39: راه، راه آهن و باند فرودگاه7 | F39: 7 | G39: راه، راه آهن و باند فرودگاه | H39: اندودوبندکشی
A40: 1 | B40: راه، راه آهن و باند فرودگاه | C40: 0 | D40: 0 | E40: راه، راه آهن و باند فرودگاه8 | F40: 8 | G40: راه، راه آهن و باند فرودگاه | H40: قالب بندی وچوب بست
A41: 1 | B41: راه، راه آهن و باند فرودگاه | C41: 0 | D41: 0 | E41: راه، راه آهن و باند فرودگاه9 | F41: 9 | G41: راه، راه آهن و باند فرودگاه | H41: کارهای فولادی بامیلگرد
A42: 1 | B42: راه، راه آهن و باند فرودگاه | C42: 0 | D42: 0 | E42: راه، راه آهن و باند فرودگاه10 | F42: 10 | G42: راه، راه آهن و باند فرودگاه | H42: کارهای فولادی سنگین
A43: 1 | B43: راه، راه آهن و باند فرودگاه | C43: 0 | D43: 0 | E43: راه، راه آهن و باند فرودگاه11 | F43: 11 | G43: راه، راه آهن و باند فرودگاه | H43: کارهای فولادی سبک
A44: 1 | B44: =B43 -> راه، راه آهن و باند فرودگاه | C44: =IF(D44=D43,0,D44) -> 0 | D44: =IF(INDEX(I44:S44,0,$A$2)="",D43,D43+1) -> 0 | E44: راه، راه آهن و باند فرودگاه12 | F44: 12 | G44: راه، راه آهن و باند فرودگاه | H44: بتن درجا
A45: 1 | B45: راه، راه آهن و باند فرودگاه | C45: 0 | D45: 0 | E45: راه، راه آهن و باند فرودگاه13 | F45: 13 | G45: راه، راه آهن و باند فرودگاه | H45: بتن پیش ساخته
A46: =IF(B46=G46,1,0) -> 1 | B46: راه، راه آهن و باند فرودگاه | C46: =IF(D46=D45,0,D46) -> 0 | D46: =IF(INDEX(I46:S46,0,$A$2)="",D45,D45+1) -> 0 | E46: =G46&F46 -> راه، راه آهن و باند فرودگاه13.2 | F46: 13.2 | G46: راه، راه آهن و باند فرودگاه | H46: بتن پیش ساخته-تهیه مصالح و ساخت تراورس
A47: 1 | B47: =B45 -> راه، راه آهن و باند فرودگاه | C47: =IF(D47=D45,0,D47) -> 0 | D47: =IF(INDEX(I47:S47,0,$A$2)="",D45,D45+1) -> 0 | E47: راه، راه آهن و باند فرودگاه14 | F47: 14 | G47: راه، راه آهن و باند فرودگاه | H47: .زیراساس،اساس وبالاست
A48: 1 | B48: راه، راه آهن و باند فرودگاه | C48: 0 | D48: 0 | E48: راه، راه آهن و باند فرودگاه15.1 | F48: 15.1 | G48: راه، راه آهن و باند فرودگاه | H48: آسفالت
A49: 1 | B49: راه، راه آهن و باند فرودگاه | C49: 0 | D49: 0 | E49: راه، راه آهن و باند فرودگاه15.2 | F49: 15.2 | G49: راه، راه آهن و باند فرودگاه | H49: آسفالت
A50: 1 | B50: راه، راه آهن و باند فرودگاه | C50: 0 | D50: 0 | E50: راه، راه آهن و باند فرودگاه16 | F50: 16 | G50: راه، راه آهن و باند فرودگاه | H50: عایقکاری
A51: 1 | B51: راه، راه آهن و باند فرودگاه | C51: 0 | D51: 0 | E51: راه، راه آهن و باند فرودگاه17 | F51: 17 | G51: راه، راه آهن و باند فرودگاه | H51: تأسیسات تونلها،پلها،نقاط مه گیروسطوح پروازی
A52: 1 | B52: راه، راه آهن و باند فرودگاه | C52: 0 | D52: 0 | E52: راه، راه آهن و باند فرودگاه18 | F52: 18 | G52: راه، راه آهن و باند فرودگاه | H52: ساختمانها،علایم وتجهیزات ایمنی
A53: =IF(B53=G53,1,0) -> 1 | B53: راه، راه آهن و باند فرودگاه | C53: =IF(D53=D52,0,D53) -> 0 | D53: =IF(INDEX(I53:S53,0,$A$2)="",D52,D52+1) -> 0 | E53: =G53&F53 -> راه، راه آهن و باند فرودگاه18.2 | F53: 18.2 | G53: راه، راه آهن و باند فرودگاه | H53: ساختمانها،علایم وتجهیزات ایمنی-تهیه تابلوها
A54: 1 | B54: =B52 -> راه، راه آهن و باند فرودگاه | C54: =IF(D54=D52,0,D54) -> 0 | D54: =IF(INDEX(I54:S54,0,$A$2)="",D52,D52+1) -> 0 | E54: راه، راه آهن و باند فرودگاه19 | F54: 19 | G54: راه، راه آهن و باند فرودگاه | H54: متفرقه
A55: 1 | B55: راه، راه آهن و باند فرودگاه | C55: 0 | D55: 0 | E55: راه، راه آهن و باند فرودگاه20 | F55: 20 | G55: راه، راه آهن و باند فرودگاه | H55: حمل ونقل
A56: 1 | B56: راه، راه آهن و باند فرودگاه | C56: 0 | D56: 0 | E56: راه، راه آهن و باند فرودگاه21 | F56: 21 | G56: راه، راه آهن و باند فرودگاه | H56: کارهای دستمزدی
A57: 1 | B57: راه، راه آهن و باند فرودگاه | C57: =IF(D57=D56,0,D57) -> 0 | D57: 0 | E57: راه، راه آهن و باند فرودگاه22 | F57: 22 | G57: راه، راه آهن و باند فرودگاه | H57: ريل، سون و ملحقات
A58: 1 | B58: راه، راه آهن و باند فرودگاه | C58: =IF(D58=D57,0,D58) -> 0 | D58: 0 | E58: راه، راه آهن و باند فرودگاه23 | F58: 23 | G58: راه، راه آهن و باند فرودگاه | H58: اجراي روسازي راه آهن
A59: 1 | B59: راه، راه آهن و باند فرودگاه | C59: =IF(D59=D58,0,D59) -> 0 | D59: 0 | E59: راه، راه آهن و باند فرودگاه24 | F59: 24 | G59: راه، راه آهن و باند فرودگاه | H59: ژئوسنتتیکها
A60: 1 | B60: =B56 -> راه، راه آهن و باند فرودگاه | C60: =IF(D60=D56,0,D60) -> 0 | D60: 0 | E60: راه، راه آهن و باند فرودگاهتجهیز | F60: تجهیز | G60: راه، راه آهن و باند فرودگاه | H60: تجهیز و برچیدن کارگاه
A61: 0 | B61: راه، راه آهن و باند فرودگاه | C61: 0 | D61: 0 | E61: تاسیسات مکانیکی1 | F61: 1 | G61: تاسیسات مکانیکی | H61: لوله های فولادی
A62: 0 | B62: راه، راه آهن و باند فرودگاه | C62: 0 | D62: 0 | E62: تاسیسات مکانیکی2 | F62: 2 | G62: تاسیسات مکانیکی | H62: لوله های چدنی
A63: 0 | B63: راه، راه آهن و باند فرودگاه | C63: 0 | D63: 0 | E63: تاسیسات مکانیکی3 | F63: 3 | G63: تاسیسات مکانیکی | H63: لوله های پی.وی.سی
A64: 0 | B64: راه، راه آهن و باند فرودگاه | C64: 0 | D64: 0 | E64: تاسیسات مکانیکی4 | F64: 4 | G64: تاسیسات مکانیکی | H64: لوله های پلی اتیلن
A65: 0 | B65: راه، راه آهن و باند فرودگاه | C65: 0 | D65: 0 | E65: تاسیسات مکانیکی5 | F65: 5 | G65: تاسیسات مکانیکی | H65: لوله های آزبست سیمان
A66: 0 | B66: راه، راه آهن و باند فرودگاه | C66: 0 | D66: 0 | E66: تاسیسات مکانیکی6 | F66: 6 | G66: تاسیسات مکانیکی | H66: لوله های مسی
A67: 0 | B67: راه، راه آهن و باند فرودگاه | C67: 0 | D67: 0 | E67: تاسیسات مکانیکی7 | F67: 7 | G67: تاسیسات مکانیکی | H67: شیرها
A68: 0 | B68: راه، راه آهن و باند فرودگاه | C68: 0 | D68: 0 | E68: تاسیسات مکانیکی8 | F68: 8 | G68: تاسیسات مکانیکی | H68: قطعه انبساط
A69: 0 | B69: راه، راه آهن و باند فرودگاه | C69: 0 | D69: =IF(INDEX(I69:S69,0,$A$2)="",D68,D68+1) -> 0 | E69: =G69&F69 -> تاسیسات مکانیکی9 | F69: 9 | G69: تاسیسات مکانیکی | H69: لرزه گیر
A70: =IF(B70=G70,1,0) -> 0 | B70: راه، راه آهن و باند فرودگاه | C70: =IF(D70=D69,0,D70) -> 0 | D70: 0 | E70: تاسیسات مکانیکی11 | F70: 11 | G70: تاسیسات مکانیکی | H70: صافی
A71: 0 | B71: =B70 -> راه، راه آهن و باند فرودگاه | C71: 0 | D71: 0 | E71: تاسیسات مکانیکی12 | F71: 12 | G71: تاسیسات مکانیکی | H71: دیگ حرارتی آب گرم
A72: 0 | B72: راه، راه آهن و باند فرودگاه | C72: 0 | D72: 0 | E72: تاسیسات مکانیکی13 | F72: 13 | G72: تاسیسات مکانیکی | H72: دیگ بخار
A73: 0 | B73: راه، راه آهن و باند فرودگاه | C73: 0 | D73: 0 | E73: تاسیسات مکانیکی14 | F73: 14 | G73: تاسیسات مکانیکی | H73: مشعل-دستگاههای گرم کننده تابشی
A74: 0 | B74: راه، راه آهن و باند فرودگاه | C74: 0 | D74: 0 | E74: تاسیسات مکانیکی15 | F74: 15 | G74: تاسیسات مکانیکی | H74: دستگاههای کنترل واندازه گیری
A75: 0 | B75: راه، راه آهن و باند فرودگاه | C75: 0 | D75: 0 | E75: تاسیسات مکانیکی16 | F75: 16 | G75: تاسیسات مکانیکی | H75: آب گرم کن(نفتی وگازی)
A76: 0 | B76: راه، راه آهن و باند فرودگاه | C76: 0 | D76: 0 | E76: تاسیسات مکانیکی17 | F76: 17 | G76: تاسیسات مکانیکی | H76: رادیاتور
A77: 0 | B77: راه، راه آهن و باند فرودگاه | C77: 0 | D77: 0 | E77: تاسیسات مکانیکی18 | F77: 18 | G77: تاسیسات مکانیکی | H77: آب سردکن
A78: 0 | B78: راه، راه آهن و باند فرودگاه | C78: 0 | D78: 0 | E78: تاسیسات مکانیکی19 | F78: 19 | G78: تاسیسات مکانیکی | H78: کانال هوا،دریچه هوا و دودکش
A79: 0 | B79: راه، راه آهن و باند فرودگاه | C79: 0 | D79: 0 | E79: تاسیسات مکانیکی20 | F79: 20 | G79: تاسیسات مکانیکی | H79: هواکش
A80: 0 | B80: راه، راه آهن و باند فرودگاه | C80: 0 | D80: 0 | E80: تاسیسات مکانیکی21 | F80: 21 | G80: تاسیسات مکانیکی | H80: فن کویل، یونیت هیتر
A81: 0 | B81: راه، راه آهن و باند فرودگاه | C81: 0 | D81: 0 | E81: تاسیسات مکانیکی22 | F81: 22 | G81: تاسیسات مکانیکی | H81: کولرآبی
A82: 0 | B82: راه، راه آهن و باند فرودگاه | C82: 0 | D82: 0 | E82: تاسیسات مکانیکی23 | F82: 23 | G82: تاسیسات مکانیکی | H82: کولرگازی
A83: 0 | B83: راه، راه آهن و باند فرودگاه | C83: 0 | D83: 0 | E83: تاسیسات مکانیکی24 | F83: 24 | G83: تاسیسات مکانیکی | H83: الکتروپمپ
A84: 0 | B84: راه، راه آهن و باند فرودگاه | C84: 0 | D84: 0 | E84: تاسیسات مکانیکی25 | F84: 25 | G84: تاسیسات مکانیکی | H84: عایق
A85: 0 | B85: راه، راه آهن و باند فرودگاه | C85: 0 | D85: 0 | E85: تاسیسات مکانیکی27 | F85: 27 | G85: تاسیسات مکانیکی | H85: دستگاههای مبرد
A86: 0 | B86: راه، راه آهن و باند فرودگاه | C86: 0 | D86: 0 | E86: تاسیسات مکانیکی28 | F86: 28 | G86: تاسیسات مکانیکی | H86: برجهای خنک کننده
A87: 0 | B87: راه، راه آهن و باند فرودگاه | C87: 0 | D87: 0 | E87: تاسیسات مکانیکی29 | F87: 29 | G87: تاسیسات مکانیکی | H87: لوازم بهداشتی ،شیرهای بهداشتی
A88: 0 | B88: راه، راه آهن و باند فرودگاه | C88: 0 | D88: 0 | E88: تاسیسات مکانیکی30 | F88: 30 | G88: تاسیسات مکانیکی | H88: وسایل آتش نشانی
A89: 0 | B89: راه، راه آهن و باند فرودگاه | C89: 0 | D89: 0 | E89: تاسیسات مکانیکی31 | F89: 31 | G89: تاسیسات مکانیکی | H89: لوازم آشپزخانه
A90: 0 | B90: راه، راه آهن و باند فرودگاه | C90: 0 | D90: 0 | E90: تاسیسات مکانیکی32 | F90: 32 | G90: تاسیسات مکانیکی | H90: سختی گیر
A91: 0 | B91: راه، راه آهن و باند فرودگاه | C91: 0 | D91: 0 | E91: تاسیسات مکانیکی33 | F91: 33 | G91: تاسیسات مکانیکی | H91: مخازن و مبدلها
A92: 0 | B92: راه، راه آهن و باند فرودگاه | C92: 0 | D92: 0 | E92: تاسیسات مکانیکی34 | F92: 34 | G92: تاسیسات مکانیکی | H92: بستها و تکیه گاهها
A93: 0 | B93: راه، راه آهن و باند فرودگاه | C93: 0 | D93: 0 | E93: تاسیسات مکانیکی35 | F93: 35 | G93: تاسیسات مکانیکی | H93: کارهای دستمزدی
A94: 0 | B94: راه، راه آهن و باند فرودگاه | C94: 0 | D94: 0 | E94: تاسیسات مکانیکیتجهیز | F94: تجهیز | G94: تاسیسات مکانیکی | H94: تجهیز و برچیدن کارگاه
A95: 0 | B95: راه، راه آهن و باند فرودگاه | C95: 0 | D95: 0 | E95: تاسیسات برقی1 | F95: 1 | G95: تاسیسات برقی | H95: چراغهای فلورسنت
A96: 0 | B96: راه، راه آهن و باند فرودگاه | C96: 0 | D96: 0 | E96: تاسیسات برقی2 | F96: 2 | G96: تاسیسات برقی | H96: چراغ ها با لامپ رشته ای و کم مصرف
A97: 0 | B97: راه، راه آهن و باند فرودگاه | C97: 0 | D97: 0 | E97: تاسیسات برقی3 | F97: 3 | G97: تاسیسات برقی | H97: چراغهای صنعتی
A98: 0 | B98: راه، راه آهن و باند فرودگاه | C98: 0 | D98: 0 | E98: تاسیسات برقی4 | F98: 4 | G98: تاسیسات برقی | H98: چراغهای فضای آزاد
A99: 0 | B99: راه، راه آهن و باند فرودگاه | C99: 0 | D99: 0 | E99: تاسیسات برقی5 | F99: 5 | G99: تاسیسات برقی | H99: چراغهای مخصوص
A100: 0 | B100: راه، راه آهن و باند فرودگاه | C100: 0 | D100: 0 | E100: تاسیسات برقی6 | F100: 6 | G100: تاسیسات برقی | H100: سیمها
A101: 0 | B101: راه، راه آهن و باند فرودگاه | C101: 0 | D101: 0 | E101: تاسیسات برقی7 | F101: 7 | G101: تاسیسات برقی | H101: کابلهای فشارضعیف
A102: 0 | B102: راه، راه آهن و باند فرودگاه | C102: 0 | D102: 0 | E102: تاسیسات برقی8 | F102: 8 | G102: تاسیسات برقی | H102: کابلشوها
A103: 0 | B103: راه، راه آهن و باند فرودگاه | C103: 0 | D103: 0 | E103: تاسیسات برقی9 | F103: 9 | G103: تاسیسات برقی | H103: کابلهای فشارمتوسط
A104: 0 | B104: راه، راه آهن و باند فرودگاه | C104: 0 | D104: 0 | E104: تاسیسات برقی10 | F104: 10 | G104: تاسیسات برقی | H104: سرکابل هاو مفصل ها
A105: 0 | B105: راه، راه آهن و باند فرودگاه | C105: 0 | D105: 0 | E105: تاسیسات برقی11 | F105: 11 | G105: تاسیسات برقی | H105: کلیدهاو پریزها
A106: 0 | B106: راه، راه آهن و باند فرودگاه | C106: 0 | D106: 0 | E106: تاسیسات برقی12 | F106: 12 | G106: تاسیسات برقی | H106: لوله های فولادی
A107: 0 | B107: راه، راه آهن و باند فرودگاه | C107: 0 | D107: 0 | E107: تاسیسات برقی13 | F107: 13 | G107: تاسیسات برقی | H107: لوله های پی.وی.سی
A108: 0 | B108: راه، راه آهن و باند فرودگاه | C108: 0 | D108: 0 | E108: تاسیسات برقی14 | F108: 14 | G108: تاسیسات برقی | H108: وسایل فشارضعیف تابلویی
A109: 0 | B109: راه، راه آهن و باند فرودگاه | C109: 0 | D109: 0 | E109: تاسیسات برقی15 | F109: 15 | G109: تاسیسات برقی | H109: وسایل اندازه گیری
A110: 0 | B110: راه، راه آهن و باند فرودگاه | C110: 0 | D110: 0 | E110: تاسیسات برقی16 | F110: 16 | G110: تاسیسات برقی | H110: تابلوهای فشارمتوسط
A111: 0 | B111: راه، راه آهن و باند فرودگاه | C111: 0 | D111: 0 | E111: تاسیسات برقی17 | F111: 17 | G111: تاسیسات برقی | H111: مولدهای برق
A112: 0 | B112: راه، راه آهن و باند فرودگاه | C112: 0 | D112: 0 | E112: تاسیسات برقی18 | F112: 18 | G112: تاسیسات برقی | H112: خازنهای صنعتی ومنابع تغذیه جریان مستقیم
A113: 0 | B113: راه، راه آهن و باند فرودگاه | C113: 0 | D113: 0 | E113: تاسیسات برقی19 | F113: 19 | G113: تاسیسات برقی | H113: ترانسفورماتورهای فشارمتوسط
A114: 0 | B114: راه، راه آهن و باند فرودگاه | C114: 0 | D114: 0 | E114: تاسیسات برقی20 | F114: 20 | G114: تاسیسات برقی | H114: وسایل شبکه
A115: 0 | B115: راه، راه آهن و باند فرودگاه | C115: 0 | D115: 0 | E115: تاسیسات برقی21 | F115: 21 | G115: تاسیسات برقی | H115: کابلهای تلفن
A116: 0 | B116: راه، راه آهن و باند فرودگاه | C116: 0 | D116: 0 | E116: تاسیسات برقی22 | F116: 22 | G116: تاسیسات برقی | H116: وسایل ارتباطی
A117: 0 | B117: راه، راه آهن و باند فرودگاه | C117: 0 | D117: 0 | E117: تاسیسات برقی23 | F117: 23 | G117: تاسیسات برقی | H117: سیستم احضار و دربازکن
A118: 0 | B118: راه، راه آهن و باند فرودگاه | C118: 0 | D118: 0 | E118: تاسیسات برقی24 | F118: 24 | G118: تاسیسات برقی | H118: سیستم آنتن تلویزیون
A119: 0 | B119: راه، راه آهن و باند فرودگاه | C119: 0 | D119: 0 | E119: تاسیسات برقی25 | F119: 25 | G119: تاسیسات برقی | H119: سیستم مادرساعت
A120: 0 | B120: راه، راه آهن و باند فرودگاه | C120: 0 | D120: 0 | E120: تاسیسات برقی26 | F120: 26 | G120: تاسیسات برقی | H120: وسایل اعلام و اطفای حریق
A121: 0 | B121: راه، راه آهن و باند فرودگاه | C121: 0 | D121: 0 | E121: تاسیسات برقی27 | F121: 27 | G121: تاسیسات برقی | H121: وسایل صوتی
A122: 0 | B122: راه، راه آهن و باند فرودگاه | C122: 0 | D122: 0 | E122: تاسیسات برقی28 | F122: 28 | G122: تاسیسات برقی | H122: وسایل متفرقه
A123: 0 | B123: راه، راه آهن و باند فرودگاه | C123: 0 | D123: 0 | E123: تاسیسات برقی29 | F123: 29 | G123: تاسیسات برقی | H123: سیستم شبکه های اطلاع رسانی
A124: 0 | B124: راه، راه آهن و باند فرودگاه | C124: 0 | D124: 0 | E124: تاسیسات برقی39 | F124: 39 | G124: تاسیسات برقی | H124: کارهای دستمزدی
A125: 0 | B125: راه، راه آهن و باند فرودگاه | C125: 0 | D125: 0 | E125: تاسیسات برقیتجهیز | F125: تجهیز | G125: تاسیسات برقی | H125: تجهیز و برچیدن کارگاه
A126: 0 | B126: راه، راه آهن و باند فرودگاه | C126: 0 | D126: 0 | E126: چاه1 | F126: 1 | G126: چاه | H126: تجهیز و برچیدن کارگاه
A127: 0 | B127: راه، راه آهن و باند فرودگاه | C127: 0 | D127: 0 | E127: چاه2 | F127: 2 | G127: چاه | H127: حفاری به روش دستی
A128: 0 | B128: راه، راه آهن و باند فرودگاه | C128: 0 | D128: 0 | E128: چاه3 | F128: 3 | G128: چاه | H128: حفاری به روش ضربه ای
A129: 0 | B129: راه، راه آهن و باند فرودگاه | C129: 0 | D129: 0 | E129: چاه4 | F129: 4 | G129: چاه | H129: حفاری به روش دورانی و دورانی ضربه ای
A130: 0 | B130: راه، راه آهن و باند فرودگاه | C130: 0 | D130: 0 | E130: چاه5 | F130: 5 | G130: چاه | H130: تهیه و نصب لوله
A131: 0 | B131: راه، راه آهن و باند فرودگاه | C131: 0 | D131: 0 | E131: چاه6 | F131: 6 | G131: چاه | H131: آزمایش و عملیات صحرایی
A132: 0 | B132: راه، راه آهن و باند فرودگاه | C132: 0 | D132: 0 | E132: چاه7 | F132: 7 | G132: چاه | H132: کارهای متفرقه
A133: 0 | B133: راه، راه آهن و باند فرودگاه | C133: 0 | D133: =IF(INDEX(I133:S133,0,$A$2)="",D132,D132+1) -> 0 | E133: چاه8 | F133: 8 | G133: چاه | H133: کارهای دستمزدی
A134: =IF(B134=G134,1,0) -> 0 | B134: راه، راه آهن و باند فرودگاه | C134: 0 | D134: 0 | E134: چاه9 | F134: 9 | G134: چاه | H134: حفاری و اجرای چاه مخزنی
A135: 0 | B135: =B134 -> راه، راه آهن و باند فرودگاه | C135: 0 | D135: 0 | E135: خطوط انتقال آب1 | F135: 1 | G135: خطوط انتقال آب | H135: عملیات لوله گذاری با لوله های آزبست سیمان
A136: 0 | B136: راه، راه آهن و باند فرودگاه | C136: 0 | D136: 0 | E136: خطوط انتقال آب2 | F136: 2 | G136: خطوط انتقال آب | H136: عملیات لوله گذاری با لوله های چدنی نشکن:داکتیل؛
A137: 0 | B137: راه، راه آهن و باند فرودگاه | C137: 0 | D137: 0 | E137: =G137&F137 -> خطوط انتقال آب3 | F137: 3 | G137: خطوط انتقال آب | H137: عملیات لوله گذاری بالوله های فولادی اتصال مکانیکی
A138: 0 | B138: راه، راه آهن و باند فرودگاه | C138: =IF(D138=D137,0,D138) -> 0 | D138: =IF(INDEX(I138:S138,0,$A$2)="",D137,D137+1) -> 0 | E138: خطوط انتقال آب4 | F138: 4 | G138: خطوط انتقال آب | H138: عملیات لوله گذاری با لوله های فولادی اتصال جوشی
A139: 0 | B139: راه، راه آهن و باند فرودگاه | C139: 0 | D139: 0 | E139: خطوط انتقال آب5 | F139: 5 | G139: خطوط انتقال آب | H139: عملیات لوله گذاری با لوله های بتنی مسلح
A140: 0 | B140: راه، راه آهن و باند فرودگاه | C140: 0 | D140: 0 | E140: خطوط انتقال آب6 | F140: 6 | G140: خطوط انتقال آب | H140: عملیات لوله گذاری با لوله های فایبرگلاس(G.R.P)
A141: 0 | B141: راه، راه آهن و باند فرودگاه | C141: 0 | D141: 0 | E141: خطوط انتقال آب8 | F141: 8 | G141: خطوط انتقال آب | H141: نصب شیرها
A142: 0 | B142: راه، راه آهن و باند فرودگاه | C142: 0 | D142: 0 | E142: خطوط انتقال آب9 | F142: 9 | G142: خطوط انتقال آب | H142: احداث حوضچه های شیر
A143: 0 | B143: راه، راه آهن و باند فرودگاه | C143: 0 | D143: 0 | E143: خطوط انتقال آب10 | F143: 10 | G143: خطوط انتقال آب | H143: حفاظت لوله ها
A144: 0 | B144: راه، راه آهن و باند فرودگاه | C144: 0 | D144: 0 | E144: خطوط انتقال آب11 | F144: 11 | G144: خطوط انتقال آب | H144: عملیات خاکی و مرمت نوار حفاری
A145: 0 | B145: راه، راه آهن و باند فرودگاه | C145: 0 | D145: 0 | E145: خطوط انتقال آب12 | F145: 12 | G145: خطوط انتقال آب | H145: کارهای فولادی
A146: 0 | B146: راه، راه آهن و باند فرودگاه | C146: 0 | D146: 0 | E146: خطوط انتقال آب13 | F146: 13 | G146: خطوط انتقال آب | H146: کارهای بتنی و قالب بندی
A147: 0 | B147: راه، راه آهن و باند فرودگاه | C147: 0 | D147: 0 | E147: خطوط انتقال آب14 | F147: 14 | G147: خطوط انتقال آب | H147: حمل و نقل
A148: 0 | B148: راه، راه آهن و باند فرودگاه | C148: =IF(D148=D147,0,D148) -> 0 | D148: 0 | E148: =G148&F148 -> خطوط انتقال آب15 | F148: 15 | G148: خطوط انتقال آب | H148: تهیه لوله های چدنی نشکن (داکتیل)، اتصالی ها و متعلقات
A149: 0 | B149: راه، راه آهن و باند فرودگاه | C149: =IF(D149=D148,0,D149) -> 0 | D149: 0 | E149: =G149&F149 -> خطوط انتقال آب16 | F149: 16 | G149: خطوط انتقال آب | H149: تهیه لوله های فولادی،اتصالی ها و متعلقات
A150: 0 | B150: راه، راه آهن و باند فرودگاه | C150: =IF(D150=D149,0,D150) -> 0 | D150: 0 | E150: =G150&F150 -> خطوط انتقال آب17 | F150: 17 | G150: خطوط انتقال آب | H150: تهیه لوله های بتنی مسلح پیش تنیده، اتصالی ها و متعلقات
A151: 0 | B151: راه، راه آهن و باند فرودگاه | C151: =IF(D151=D150,0,D151) -> 0 | D151: 0 | E151: =G151&F151 -> خطوط انتقال آب18 | F151: 18 | G151: خطوط انتقال آب | H151: تهیه لوله های فایبر گلاس(GRP)،اتصالی ها و متعلقات
A152: 0 | B152: =B147 -> راه، راه آهن و باند فرودگاه | C152: =IF(D152=D147,0,D152) -> 0 | D152: 0 | E152: خطوط انتقال آبتجهیز | F152: تجهیز | G152: خطوط انتقال آب | H152: تجهیز و برچیدن کارگاه
A153: 0 | B153: راه، راه آهن و باند فرودگاه | C153: 0 | D153: 0 | E153: شبکه توزیع آب1 | F153: 1 | G153: شبکه توزیع آب | H153: عملیات لوله گذاری با لوله های آزبست سیمان
A154: 0 | B154: راه، راه آهن و باند فرودگاه | C154: 0 | D154: 0 | E154: شبکه توزیع آب2 | F154: 2 | G154: شبکه توزیع آب | H154: عملیات لوله گذاری با لوله های چدنی نشکن؛داکتیل؛
A155: 0 | B155: راه، راه آهن و باند فرودگاه | C155: 0 | D155: 0 | E155: شبکه توزیع آب3 | F155: 3 | G155: شبکه توزیع آب | H155: عملیات لوله گذاری با لوله های فایبرگلاس (G.R.P)
A156: 0 | B156: راه، راه آهن و باند فرودگاه | C156: 0 | D156: 0 | E156: شبکه توزیع آب4 | F156: 4 | G156: شبکه توزیع آب | H156: عملیات لوله گذاری با لوله های پلی اتیلن و پی وی سی
A157: 0 | B157: راه، راه آهن و باند فرودگاه | C157: 0 | D157: 0 | E157: شبکه توزیع آب5 | F157: 5 | G157: شبکه توزیع آب | H157: نصب شیرها
A158: 0 | B158: راه، راه آهن و باند فرودگاه | C158: 0 | D158: 0 | E158: شبکه توزیع آب6 | F158: 6 | G158: شبکه توزیع آب | H158: احداث حوضچه های شیر
A159: 0 | B159: راه، راه آهن و باند فرودگاه | C159: 0 | D159: 0 | E159: شبکه توزیع آب7 | F159: 7 | G159: شبکه توزیع آب | H159: نصب انشعابها
A160: 0 | B160: راه، راه آهن و باند فرودگاه | C160: 0 | D160: 0 | E160: شبکه توزیع آب8 | F160: 8 | G160: شبکه توزیع آب | H160: عملیات خاکی و مرمت نوار حفاری
A161: 0 | B161: راه، راه آهن و باند فرودگاه | C161: 0 | D161: 0 | E161: شبکه توزیع آب9 | F161: 9 | G161: شبکه توزیع آب | H161: کارهای فولادی
A162: 0 | B162: راه، راه آهن و باند فرودگاه | C162: 0 | D162: 0 | E162: شبکه توزیع آب10 | F162: 10 | G162: شبکه توزیع آب | H162: کارهای بتنی و قالب بندی
A163: 0 | B163: راه، راه آهن و باند فرودگاه | C163: 0 | D163: 0 | E163: شبکه توزیع آب11 | F163: 11 | G163: شبکه توزیع آب | H163: حمل و نقل
A164: 0 | B164: راه، راه آهن و باند فرودگاه | C164: =IF(D164=D163,0,D164) -> 0 | D164: 0 | E164: =G164&F164 -> شبکه توزیع آب12 | F164: 12 | G164: شبکه توزیع آب | H164: تهیه لوله های چدنی نشکن (داکتیل)، اتصالی ها و متعلقات
A165: 0 | B165: راه، راه آهن و باند فرودگاه | C165: =IF(D165=D164,0,D165) -> 0 | D165: 0 | E165: =G165&F165 -> شبکه توزیع آب13 | F165: 13 | G165: شبکه توزیع آب | H165: تهیه لوله های فایبر گلاس (G.R.P)، اتصالی ها و متعلقات
A166: 0 | B166: راه، راه آهن و باند فرودگاه | C166: =IF(D166=D165,0,D166) -> 0 | D166: 0 | E166: =G166&F166 -> شبکه توزیع آب14 | F166: 14 | G166: شبکه توزیع آب | H166: تهیه لوله های پلی اتیلن و پی وی سی سخت ( U.P.V.C) ، اتصالی ها و متعلقات
A167: 0 | B167: =B163 -> راه، راه آهن و باند فرودگاه | C167: =IF(D167=D163,0,D167) -> 0 | D167: 0 | E167: شبکه توزیع آبتجهیز | F167: تجهیز | G167: شبکه توزیع آب | H167: تجهیز و برچیدن کارگاه
A168: 0 | B168: راه، راه آهن و باند فرودگاه | C168: 0 | D168: 0 | E168: آبیاری و زهکشی1 | F168: 1 | G168: آبیاری و زهکشی | H168: عملیات تخریب
A169: 0 | B169: راه، راه آهن و باند فرودگاه | C169: 0 | D169: 0 | E169: آبیاری و زهکشی2 | F169: 2 | G169: آبیاری و زهکشی | H169: عملیات خاکی بادست
A170: 0 | B170: راه، راه آهن و باند فرودگاه | C170: 0 | D170: 0 | E170: آبیاری و زهکشی3 | F170: 3 | G170: آبیاری و زهکشی | H170: عملیات خاکی باماشین
A171: 0 | B171: راه، راه آهن و باند فرودگاه | C171: 0 | D171: 0 | E171: آبیاری و زهکشی4 | F171: 4 | G171: آبیاری و زهکشی | H171: عملیات بنایی باسنگ
A172: 0 | B172: راه، راه آهن و باند فرودگاه | C172: 0 | D172: 0 | E172: آبیاری و زهکشی5 | F172: 5 | G172: آبیاری و زهکشی | H172: اندودوبندکشی
A173: 0 | B173: راه، راه آهن و باند فرودگاه | C173: 0 | D173: 0 | E173: آبیاری و زهکشی6 | F173: 6 | G173: آبیاری و زهکشی | H173: قالب بندی
A174: 0 | B174: راه، راه آهن و باند فرودگاه | C174: 0 | D174: 0 | E174: آبیاری و زهکشی7 | F174: 7 | G174: آبیاری و زهکشی | H174: کارهای فولادی بامیلگرد
A175: 0 | B175: راه، راه آهن و باند فرودگاه | C175: 0 | D175: 0 | E175: آبیاری و زهکشی8 | F175: 8 | G175: آبیاری و زهکشی | H175: کارهای فولادی
A176: 0 | B176: راه، راه آهن و باند فرودگاه | C176: 0 | D176: 0 | E176: آبیاری و زهکشی9 | F176: 9 | G176: آبیاری و زهکشی | H176: بتن درجا
A177: 0 | B177: راه، راه آهن و باند فرودگاه | C177: 0 | D177: 0 | E177: آبیاری و زهکشی10 | F177: 10 | G177: آبیاری و زهکشی | H177: بتن پیش ساخته
A178: 0 | B178: راه، راه آهن و باند فرودگاه | C178: 0 | D178: 0 | E178: آبیاری و زهکشی11 | F178: 11 | G178: آبیاری و زهکشی | H178: کانالهای نیم لوله نیم بیضی بتنی پیش ساخته
A179: 0 | B179: راه، راه آهن و باند فرودگاه | C179: 0 | D179: 0 | E179: آبیاری و زهکشی12 | F179: 12 | G179: آبیاری و زهکشی | H179: زهکشها وجمع کننده های زیرزمینی
A180: 0 | B180: راه، راه آهن و باند فرودگاه | C180: 0 | D180: 0 | E180: آبیاری و زهکشی13 | F180: 13 | G180: آبیاری و زهکشی | H180: عایقکاری
A181: 0 | B181: راه، راه آهن و باند فرودگاه | C181: 0 | D181: 0 | E181: آبیاری و زهکشی14 | F181: 14 | G181: آبیاری و زهکشی | H181: کارهای متفرقه
A182: 0 | B182: راه، راه آهن و باند فرودگاه | C182: 0 | D182: 0 | E182: آبیاری و زهکشی15 | F182: 15 | G182: آبیاری و زهکشی | H182: حمل ونقل
A183: 0 | B183: راه، راه آهن و باند فرودگاه | C183: 0 | D183: 0 | E183: آبیاری و زهکشی16 | F183: 16 | G183: آبیاری و زهکشی | H183: کارهای دستمزدی
A184: 0 | B184: راه، راه آهن و باند فرودگاه | C184: 0 | D184: =IF(INDEX(I184:S184,0,$A$2)="",D183,D183+1) -> 0 | E184: آبیاری و زهکشی17 | F184: 17 | G184: آبیاری و زهکشی | H184: ژئوسنتتیکها
A185: 0 | B185: =B183 -> راه، راه آهن و باند فرودگاه | C185: =IF(D185=D183,0,D185) -> 0 | D185: =IF(INDEX(I185:S185,0,$A$2)="",D184,D184+1) -> 0 | E185: آبیاری و زهکشیتجهیز | F185: تجهیز | G185: آبیاری و زهکشی | H185: تجهیز و برچیدن کارگاه
A186: 0 | B186: راه، راه آهن و باند فرودگاه | C186: 0 | D186: =IF(INDEX(I186:S186,0,$A$2)="",D185,D185+1) -> 0 | E186: شبکه جمع آوری و انتقال فاضلاب1 | F186: 1 | G186: شبکه جمع آوری و انتقال فاضلاب | H186: عملیات لوله گذاری با لوله های آزبست سیمان فاضلابی
A187: 0 | B187: راه، راه آهن و باند فرودگاه | C187: 0 | D187: 0 | E187: شبکه جمع آوری و انتقال فاضلاب2 | F187: 2 | G187: شبکه جمع آوری و انتقال فاضلاب | H187: عملیات لوله گذاری با لوله های بتنی فاضلابی
A188: 0 | B188: راه، راه آهن و باند فرودگاه | C188: 0 | D188: 0 | E188: شبکه جمع آوری و انتقال فاضلاب3 | F188: 3 | G188: شبکه جمع آوری و انتقال فاضلاب | H188: عملیات لوله گذاری با لوله های پی وی سی فاضلابی
A189: 0 | B189: راه، راه آهن و باند فرودگاه | C189: 0 | D189: 0 | E189: شبکه جمع آوری و انتقال فاضلاب4 | F189: 4 | G189: شبکه جمع آوری و انتقال فاضلاب | H189: عملیات لوله گذاری با لوله های پلی اتیلن فاضلابی
A190: 0 | B190: راه، راه آهن و باند فرودگاه | C190: 0 | D190: 0 | E190: شبکه جمع آوری و انتقال فاضلاب5 | F190: 5 | G190: شبکه جمع آوری و انتقال فاضلاب | H190: عملیات لوله گذاری به در نقب
A191: 0 | B191: راه، راه آهن و باند فرودگاه | C191: 0 | D191: 0 | E191: شبکه جمع آوری و انتقال فاضلاب6 | F191: 6 | G191: شبکه جمع آوری و انتقال فاضلاب | H191: عملیات لوله گذاری با لوله های فایبرگلاس (G.R.P) فاضلابی
A192: 0 | B192: راه، راه آهن و باند فرودگاه | C192: 0 | D192: 0 | E192: شبکه جمع آوری و انتقال فاضلاب7 | F192: 7 | G192: شبکه جمع آوری و انتقال فاضلاب | H192: احداث آدم روها و شفت‌های بتنی
A193: 0 | B193: راه، راه آهن و باند فرودگاه | C193: 0 | D193: 0 | E193: شبکه جمع آوری و انتقال فاضلاب8 | F193: 8 | G193: شبکه جمع آوری و انتقال فاضلاب | H193: عملیات خاکی ومرمت نوار حفاری | T193: 1
A194: 0 | B194: راه، راه آهن و باند فرودگاه | C194: 0 | D194: 0 | E194: شبکه جمع آوری و انتقال فاضلاب9 | F194: 9 | G194: شبکه جمع آوری و انتقال فاضلاب | H194: کارهای فولادی
A195: 0 | B195: راه، راه آهن و باند فرودگاه | C195: 0 | D195: 0 | E195: شبکه جمع آوری و انتقال فاضلاب10 | F195: 10 | G195: شبکه جمع آوری و انتقال فاضلاب | H195: کارهای سپر کوبی با سپر فولادی
A196: 0 | B196: راه، راه آهن و باند فرودگاه | C196: 0 | D196: 0 | E196: شبکه جمع آوری و انتقال فاضلاب11 | F196: 11 | G196: شبکه جمع آوری و انتقال فاضلاب | H196: کارهای بتنی وقالب بندی
A197: 0 | B197: راه، راه آهن و باند فرودگاه | C197: 0 | D197: =IF(INDEX(I197:S197,0,$A$2)="",D196,D196+1) -> 0 | E197: شبکه جمع آوری و انتقال فاضلاب12 | F197: 12 | G197: شبکه جمع آوری و انتقال فاضلاب | H197: حمل ونقل
A198: 0 | B198: راه، راه آهن و باند فرودگاه | C198: 0 | D198: 0 | E198: شبکه جمع آوری و انتقال فاضلاب13 | F198: 13 | G198: شبکه جمع آوری و انتقال فاضلاب | H198: عملیات لوله رانی
A199: =IF(B199=G199,1,0) -> 0 | B199: =B198 -> راه، راه آهن و باند فرودگاه | C199: 0 | D199: 0 | E199: شبکه جمع آوری و انتقال فاضلاب14 | F199: 14 | G199: شبکه جمع آوری و انتقال فاضلاب | H199: تهیه لوله های بتنی فاضلابی مخصوص لوله رانی
A200: 0 | B200: راه، راه آهن و باند فرودگاه | C200: 0 | D200: 0 | E200: شبکه جمع آوری و انتقال فاضلاب15 | F200: 15 | G200: شبکه جمع آوری و انتقال فاضلاب | H200: تهیه لوله های پلی اتیلن فاضلابی
A201: 0 | B201: راه، راه آهن و باند فرودگاه | C201: =IF(D201=D200,0,D201) -> 0 | D201: 0 | E201: =G201&F201 -> شبکه جمع آوری و انتقال فاضلاب16 | F201: 16 | G201: شبکه جمع آوری و انتقال فاضلاب | H201: تهیه لوله های آزبست سیمان فاضلابی، اتصالی ها و متعلقات
... 125 more rows

Sheet Index
A1: 1 | B1: 2 | C1: 3 | E1: 5 | F1: 6 | G1: 7 | H1: 8 | I1: 9 | J1: 10 | K1: 11 | L1: 12 | M1: 13 | N1: 14 | O1: 15 | P1: 16 | Q1: 17 | R1: 18 | S1: 19 | T1: 20 | U1: 21 | V1: 22 | W1: 23 | X1: 24 | Y1: 25 | Z1: 26 | AA1: 27 | AB1: 28 | AC1: 29 | AD1: 30 | AE1: 31 | AF1: 32 | AG1: 33 | AH1: 34 | AI1: 35 | AJ1: 36 | AK1: 37 | AL1: 38 | AM1: 39 | AN1: 40 | AO1: 41 | AP1: 42 | AQ1: 43 | AR1: 44 | AS1: 45 | AT1: 46 | AU1: 47 | AV1: 48 | AW1: 49 | AX1: 50 | AY1: 51 | AZ1: 52 | BA1: 53 | BB1: 54 | BC1: 55 | BD1: 56 | BE1: 57 | BF1: 58 | BG1: 59 | BH1: 60 | BI1: 61 | BJ1: 62 | BK1: 63 | BL1: 64 | BM1: 65 | BN1: 66 | BO1: 67 | BP1: 68 | BQ1: 69 | BR1: 70 | BS1: 71 | BT1: 72 | BU1: 73 | BV1: 74 | BW1: 75 | BX1: 76 | BY1: 77 | BZ1: 78 | CA1: 79 | CB1: 80 | CC1: 81 | CD1: 82 | CE1: 83 | CF1: 84 | CG1: 85 | CH1: 86 | CI1: 87 | CJ1: 88 | CK1: 89 | CL1: 90 | CM1: 91 | CN1: 92 | CO1: 93 | CP1: 94 | CQ1: 95 | CR1: 96 | CS1: 97 | CT1: 98 | CU1: 99 | CV1: 100 | CW1: 101 | CX1: 102 | CY1: 103 | CZ1: 104 | DA1: 105 | DB1: 106 | DC1: 107 | DD1: 108 | DE1: 109 | DF1: 110 | DG1: 111 | DH1: 112 | DI1: 113 | DJ1: 114 | DK1: 115 | DL1: 116 | DM1: 117 | DN1: 118 | DO1: 119 | DP1: 120 | DQ1: 121 | DR1: 122 | DS1: 123 | DT1: 124 | DU1: 125 | DV1: 126 | DW1: 127 | DX1: 128 | DY1: 129 | DZ1: 130 | EA1: 131 | EB1: 132 | EC1: 133 | ED1: 134 | EE1: 135 | EF1: 136 | EG1: 137 | EH1: 138 | EI1: 139 | EJ1: 140 | EK1: 141 | EL1: 142 | EM1: 143 | EN1: 144 | EO1: 145 | EP1: 146 | EQ1: 147 | ER1: 148 | ES1: 149 | ET1: 150 | EU1: 151 | EV1: 152 | EW1: 153 | EX1: 154 | EY1: 155 | EZ1: 156 | FA1: 157 | FB1: 158 | FC1: 159 | FD1: 160 | FE1: 161 | FF1: 162 | FG1: 163 | FH1: 164 | FI1: 165 | FJ1: 166 | FK1: 167 | FL1: 168 | FM1: 169 | FN1: 170 | FO1: 171 | FP1: 172 | FQ1: 173 | FR1: 174 | FS1: 175 | FT1: 176 | FU1: 177 | FV1: 178 | FW1: 179 | FX1: 180 | FY1: 181 | FZ1: 182 | GA1: 183 | GB1: 184 | GC1: 185 | GD1: 186 | GE1: 187 | GF1: 188 | GG1: 189 | GH1: 190 | GI1: 191 | GJ1: 192 | GK1: 193 | GL1: 194 | GM1: 195 | GN1: 196 | GO1: 197 | GP1: 198 | GQ1: 199 | GR1: 200 | GS1: 201 | GT1: 202 | GU1: 203 | GV1: 204 | GW1: 205 | GX1: 206 | GY1: 207 | GZ1: 208 | HA1: 209 | HB1: 210 | HC1: 211 | HD1: 212 | HE1: 213 | HF1: 214 | HG1: 215 | HH1: 216 | HI1: 217 | HJ1: 218 | HK1: 219 | HL1: 220 | HM1: 221 | HN1: 222 | HO1: 223 | HP1: 224 | HQ1: 225 | HR1: 226 | HS1: 227 | HT1: 228 | HU1: 229 | HV1: 230 | HW1: 231 | HX1: 232 | HY1: 233 | HZ1: 234 | IA1: 235 | IB1: 236 | IC1: 237 | ID1: 238 | IE1: 239 | IF1: 240 | IG1: 241 | IH1: 242 | II1: 243 | IJ1: 244 | IK1: 245 | IL1: 246 | IM1: 247 | IN1: 248 | IO1: 249 | IP1: 250 | IQ1: 251 | IR1: 252 | IS1: 253 | IT1: 254 | IU1: 255 | IV1: 256 | IW1: 257 | IX1: 258 | IY1: 259 | IZ1: 260 | JA1: 261 | JB1: 262 | JC1: 263 | JD1: 264 | JE1: 265 | JF1: 266 | JG1: 267 | JH1: 268 | JI1: 269 | JJ1: 270 | JK1: 271 | JL1: 272 | JM1: 273 | JN1: 274 | JO1: 275 | JP1: 276 | JQ1: 277 | JR1: 278 | JS1: 279 | JT1: 280 | JU1: 281 | JV1: 282 | JW1: 283 | JX1: 284 | JY1: 285 | JZ1: 286 | KA1: 287 | KB1: 288 | KC1: 289 | KD1: 290 | KE1: 291 | KF1: 292 | KG1: 293 | KH1: 294 | KI1: 295 | KJ1: 296 | KK1: 297 | KL1: 298 | KM1: 299 | KN1: 300 | KO1: 301 | KP1: 302 | KQ1: 303 | KR1: 304 | KS1: 305 | KT1: 306 | KU1: 307 | KV1: 308 | KW1: 309 | KX1: 310 | KY1: 311 | KZ1: 312 | LA1: 313 | LB1: 314 | LC1: 315 | LD1: 316 | LE1: 317 | LF1: 318 | LG1: 319 | LH1: 320 | LI1: 321 | LJ1: 322 | LK1: 323 | LL1: 324 | LM1: 325 | LN1: 326 | LO1: 327 | LP1: 328 | LQ1: 329 | LR1: 330 | LS1: 331 | LT1: 332 | LU1: 333 | LV1: 334 | LW1: 335 | LX1: 336 | LY1: 337 | LZ1: 338 | MA1: 339 | MB1: 340 | MC1: 341 | MD1: 342 | ME1: 343 | MF1: 344 | MG1: 345 | MH1: 346 | MI1: 347 | MJ1: 348 | MK1: 349 | ML1: 350 | MM1: 351 | MN1: 352 | MO1: 353 | MP1: 354 | MQ1: 355 | MR1: 356 | MS1: 357 | MT1: 358 | MU1: 359 | MV1: 360 | MW1: 361 | MX1: 362 | MY1: 363 | MZ1: 364 | NA1: 365 | NB1: 366 | NC1: 367 | ND1: 368 | NE1: 369 | NF1: 370 | NG1: 371 | NH1: 372 | NI1: 373 | NJ1: 374 | NK1: 375 | NL1: 376 | NM1: 377 | NN1: 378 | NO1: 379 | NP1: 380 | NQ1: 381 | NR1: 382 | NS1: 383 | NT1: 384 | NU1: 385 | NV1: 386 | NW1: 387 | NX1: 388 | NY1: 389 | NZ1: 390 | OA1: 391 | OB1: 392 | OC1: 393 | OD1: 394 | OE1: 395 | OF1: 396 | OG1: 397 | OH1: 398 | OI1: 399 | OJ1: 400 | OK1: 401 | OL1: 402 | OM1: 403 | ON1: 404 | OO1: 405 | OP1: 406 | OQ1: 407 | OR1: 408 | OS1: 409 | OT1: 410 | OU1: 411 | OV1: 412 | OW1: 413 | OX1: 414 | OY1: 415 | OZ1: 416 | PA1: 417 | PB1: 418 | PC1: 419 | PD1: 420 | PE1: 421 | PF1: 422 | PG1: 423 | PH1: 424 | PI1: 425 | PJ1: 426 | PK1: 427 | PL1: 428 | PM1: 429 | PN1: 430 | PO1: 431 | PP1: 432 | PQ1: 433 | PR1: 434 | PS1: 435 | PT1: 436 | PU1: 437 | PV1: 438 | PW1: 439 | PX1: 440 | PY1: 441 | PZ1: 442 | QA1: 443 | QB1: 444 | QC1: 445 | QD1: 446 | QE1: 447 | QF1: 448 | QG1: 449 | QH1: 450 | QI1: 451 | QJ1: 452 | QK1: 453 | QL1: 454 | QM1: 455 | QN1: 456
B2: فصل | D2: ="عنوان فصول فهرست بهای "&FG11 -> عنوان فصول فهرست بهای راهداری | E2: چهارم | F2: سوم | G2: دوم | H2: اول | I2: چهارم | J2: سوم | K2: دوم | L2: اول | M2: چهارم | N2: سوم | O2: دوم | P2: اول | Q2: چهارم | R2: سوم | S2: دوم | T2: اول | U2: چهارم | V2: سوم | W2: دوم | X2: اول | Y2: چهارم | Z2: سوم | AA2: دوم | AB2: اول | AC2: چهارم | AD2: سوم | AE2: دوم | AF2: اول | AG2: چهارم | AH2: سوم | AI2: دوم | AJ2: اول | AK2: چهارم | AL2: سوم | AM2: دوم | AN2: اول | AO2: چهارم | AP2: سوم | AQ2: دوم | AR2: اول | AS2: چهارم | AT2: سوم | AU2: دوم | AV2: اول | AW2: چهارم | AX2: سوم | AY2: دوم | AZ2: اول | BA2: چهارم | BB2: سوم | BC2: دوم | BD2: اول | BE2: چهارم | BF2: سوم | BG2: دوم | BH2: اول | BI2: چهارم | BJ2: سوم | BK2: دوم | BL2: اول | BM2: چهارم | BN2: سوم | BO2: دوم | BP2: اول | BQ2: چهارم | BR2: سوم | BS2: دوم | BT2: اول | BU2: چهارم | BV2: سوم | BW2: دوم | BX2: اول | BY2: چهارم | BZ2: سوم | CA2: دوم | CB2: اول | CC2: چهارم | CD2: سوم | CE2: دوم | CF2: اول | CG2: چهارم | CH2: سوم | CI2: دوم | CJ2: اول | CK2: چهارم | CL2: سوم | CM2: دوم | CN2: اول | CO2: چهارم | CP2: سوم | CQ2: دوم | CR2: اول | CS2: چهارم | CT2: سوم | CU2: دوم | CV2: اول | CW2: چهارم | CX2: سوم | CY2: دوم | CZ2: اول | DA2: چهارم | DB2: سوم | DC2: دوم | DD2: اول | DE2: چهارم | DF2: سوم | DG2: دوم | DH2: اول | DI2: چهارم | DJ2: سوم | DK2: دوم | DL2: اول | DM2: چهارم | DN2: سوم | DO2: دوم | DP2: اول | DQ2: چهارم | DR2: سوم | DS2: دوم | DT2: اول | DU2: چهارم | DV2: سوم | DW2: دوم | DX2: اول | DY2: چهارم | DZ2: سوم | EA2: دوم | EB2: اول | EC2: چهارم | ED2: سوم | EE2: دوم | EF2: اول | EG2: چهارم | EH2: سوم | EI2: دوم | EJ2: اول | EK2: چهارم | EL2: سوم | EM2: دوم | EN2: اول | EO2: چهارم | EP2: سوم | EQ2: دوم | ER2: اول | ES2: چهارم | ET2: سوم | EU2: دوم | EV2: اول | EW2: چهارم | EX2: سوم | EY2: دوم | EZ2: اول | FA2: چهارم | FB2: سوم | FC2: دوم | FD2: اول | FE2: میانگین | FF2: 1 | FM2: اسفند | FN2: بهمن | FO2: دی | FP2: آذر | FQ2: آبان | FR2: مهر | FS2: شهریور | FT2: مرداد | FU2: تیر | FV2: خرداد | FW2: اردیبهشت | FX2: فروردین | FY2: اسفند | FZ2: بهمن | GA2: دی | GB2: آذر | GC2: آبان | GD2: مهر | GE2: شهریور | GF2: مرداد | GG2: تیر | GH2: خرداد | GI2: اردیبهشت | GJ2: فروردین | GK2: اسفند | GL2: بهمن | GM2: دی | GN2: آذر | GO2: آبان | GP2: مهر | GQ2: شهریور | GR2: مرداد | GS2: تیر | GT2: خرداد | GU2: اردیبهشت | GV2: فروردین | GW2: اسفند | GX2: بهمن | GY2: دی | GZ2: آذر | HA2: آبان | HB2: مهر | HC2: شهریور | HD2: مرداد | HE2: تیر | HF2: خرداد | HG2: اردیبهشت | HH2: فروردین | HI2: اسفند | HJ2: بهمن | HK2: دی | HL2: آذر | HM2: آبان | HN2: مهر | HO2: شهریور | HP2: مرداد | HQ2: تیر | HR2: خرداد | HS2: اردیبهشت | HT2: فروردین | HU2: اسفند | HV2: بهمن | HW2: دی | HX2: آذر | HY2: آبان | HZ2: مهر | IA2: شهریور | IB2: مرداد | IC2: تیر | ID2: خرداد | IE2: اردیبهشت | IF2: فروردین | IG2: اسفند | IH2: بهمن | II2: دی | IJ2: آذر | IK2: آبان | IL2: مهر | IM2: شهریور | IN2: مرداد | IO2: تیر | IP2: خرداد | IQ2: اردیبهشت | IR2: فروردین | IS2: اسفند | IT2: بهمن | IU2: دی | IV2: آذر | IW2: آبان | IX2: مهر | IY2: شهریور | IZ2: مرداد | JA2: تیر | JB2: خرداد | JC2: اردیبهشت | JD2: فروردین | JE2: اسفند | JF2: بهمن | JG2: دی | JH2: آذر | JI2: آبان | JJ2: مهر | JK2: شهریور | JL2: مرداد | JM2: تیر | JN2: خرداد | JO2: اردیبهشت | JP2: فروردین | JQ2: اسفند | JR2: بهمن | JS2: دی | JT2: آذر | JU2: آبان | JV2: مهر | JW2: شهریور | JX2: مرداد | JY2: تیر | JZ2: خرداد | KA2: اردیبهشت | KB2: فروردین | KC2: اسفند | KD2: بهمن | KE2: دی | KF2: آذر | KG2: آبان | KH2: مهر | KI2: شهریور | KJ2: مرداد | KK2: تیر | KL2: خرداد | KM2: اردیبهشت | KN2: فروردین | KO2: اسفند | KP2: بهمن | KQ2: دی | KR2: آذر | KS2: آبان | KT2: مهر | KU2: شهریور | KV2: مرداد | KW2: تیر | KX2: خرداد | KY2: اردیبهشت | KZ2: فروردین | LA2: اسفند | LB2: بهمن | LC2: دی | LD2: آذر | LE2: آبان | LF2: مهر | LG2: شهریور | LH2: مرداد | LI2: تیر | LJ2: خرداد | LK2: اردیبهشت | LL2: فروردین | LM2: اسفند | LN2: بهمن | LO2: دی | LP2: آذر | LQ2: آبان | LR2: مهر | LS2: شهریور | LT2: مرداد | LU2: تیر | LV2: خرداد | LW2: اردیبهشت | LX2: فروردین | LY2: اسفند | LZ2: بهمن | MA2: دی | MB2: آذر | MC2: آبان | MD2: مهر | ME2: شهریور | MF2: مرداد | MG2: تیر | MH2: خرداد | MI2: اردیبهشت | MJ2: فروردین | MK2: اسفند | ML2: بهمن | MM2: دی | MN2: آذر | MO2: آبان | MP2: مهر | MQ2: شهریور | MR2: مرداد | MS2: تیر | MT2: خرداد | MU2: اردیبهشت | MV2: فروردین | MW2: اسفند | MX2: بهمن | MY2: دی | MZ2: آذر | NA2: آبان | NB2: مهر | NC2: شهریور | ND2: مرداد | NE2: تیر | NF2: خرداد | NG2: اردیبهشت | NH2: فروردین | NI2: اسفند | NJ2: بهمن | NK2: دی | NL2: آذر | NM2: آبان | NN2: مهر | NO2: شهریور | NP2: مرداد | NQ2: تیر | NR2: خرداد | NS2: اردیبهشت | NT2: فروردین | NU2: اسفند | NV2: بهمن | NW2: دی | NX2: آذر | NY2: آبان | NZ2: مهر | OA2: شهریور | OB2: مرداد | OC2: تیر | OD2: خرداد | OE2: اردیبهشت | OF2: فروردین | OG2: اسفند | OH2: بهمن | OI2: دی | OJ2: آذر | OK2: آبان | OL2: مهر | OM2: شهریور | ON2: مرداد | OO2: تیر | OP2: خرداد | OQ2: اردیبهشت | OR2: فروردین | OS2: اسفند | OT2: بهمن | OU2: دی | OV2: آذر | OW2: آبان | OX2: مهر | OY2: شهریور | OZ2: مرداد | PA2: تیر | PB2: خرداد | PC2: اردیبهشت | PD2: فروردین | PE2: اسفند | PF2: بهمن | PG2: دی | PH2: آذر | PI2: آبان | PJ2: مهر | PK2: شهریور | PL2: مرداد | PM2: تیر | PN2: خرداد | PO2: اردیبهشت | PP2: فروردین | PQ2: اسفند | PR2: بهمن | PS2: دی | PT2: آذر | PU2: آبان | PV2: مهر | PW2: شهریور | PX2: مرداد | PY2: تیر | PZ2: خرداد | QA2: اردیبهشت | QB2: فروردین | QC2: اسفند | QD2: بهمن | QE2: دی | QF2: آذر | QG2: آبان | QH2: مهر | QI2: شهریور | QJ2: مرداد | QK2: تیر | QL2: خرداد | QM2: اردیبهشت | QN2: فروردین
B3: 1398 | D3: سه ماهه | E3: 1420-4 | F3: 1420-3 | G3: 1420-2 | H3: 1420-1 | I3: 1419-4 | J3: 1419-3 | K3: 1419-2 | L3: 1419-1 | M3: 1418-4 | N3: 1418-3 | O3: 1418-2 | P3: 1418-1 | Q3: 1417-4 | R3: 1417-3 | S3: 1417-2 | T3: 1417-1 | U3: 1416-4 | V3: 1416-3 | W3: 1416-2 | X3: 1416-1 | Y3: 1415-4 | Z3: 1415-3 | AA3: 1415-2 | AB3: 1415-1 | AC3: 1414-4 | AD3: 1414-3 | AE3: 1414-2 | AF3: 1414-1 | AG3: 1413-4 | AH3: 1413-3 | AI3: 1413-2 | AJ3: 1413-1 | AK3: 1412-4 | AL3: 1412-3 | AM3: 1412-2 | AN3: 1412-1 | AO3: 1411-4 | AP3: 1411-3 | AQ3: 1411-2 | AR3: 1411-1 | AS3: 1410-4 | AT3: 1410-3 | AU3: 1410-2 | AV3: 1410-1 | AW3: 1409-4 | AX3: 1409-3 | AY3: 1409-2 | AZ3: 1409-1 | BA3: 1408-4 | BB3: 1408-3 | BC3: 1408-2 | BD3: 1408-1 | BE3: 1407-4 | BF3: 1407-3 | BG3: 1407-2 | BH3: 1407-1 | BI3: 1406-4 | BJ3: 1406-3 | BK3: 1406-2 | BL3: 1406-1 | BM3: 1405-4 | BN3: 1405-3 | BO3: 1405-2 | BP3: 1405-1 | BQ3: 1404-4 | BR3: 1404-3 | BS3: 1404-2 | BT3: 1404-1 | BU3: 1403-4 | BV3: 1403-3 | BW3: 1403-2 | BX3: 1403-1 | BY3: 1402-4 | BZ3: 1402-3 | CA3: 1402-2 | CB3: 1402-1 | CC3: 1401-4 | CD3: 1401-3 | CE3: 1401-2 | CF3: 1401-1 | CG3: 1400-4 | CH3: 1400-3 | CI3: 1400-2 | CJ3: 1400-1 | CK3: 1399-4 | CL3: 1399-3 | CM3: 1399-2 | CN3: 1399-1 | CO3: 1398-4 | CP3: 1398-3 | CQ3: 1398-2 | CR3: 1398-1 | CS3: 1397-4 | CT3: 1397-3 | CU3: 1397-2 | CV3: 1397-1 | CW3: 1396-4 | CX3: 1396-3 | CY3: 1396-2 | CZ3: 1396-1 | DA3: 1395-4 | DB3: 1395-3 | DC3: 1395-2 | DD3: 1395-1 | DE3: 1394-4 | DF3: 1394-3 | DG3: 1394-2 | DH3: 1394-1 | DI3: 1393-4 | DJ3: 1393-3 | DK3: 1393-2 | DL3: 1393-1 | DM3: 1392-4 | DN3: 1392-3 | DO3: 1392-2 | DP3: 1392-1 | DQ3: 1391-4 | DR3: 1391-3 | DS3: 1391-2 | DT3: 1391-1 | DU3: 1390-4 | DV3: 1390-3 | DW3: 1390-2 | DX3: 1390-1 | DY3: 1389-4 | DZ3: 1389-3 | EA3: 1389-2 | EB3: 1389-1 | EC3: 1388-4 | ED3: 1388-3 | EE3: 1388-2 | EF3: 1388-1 | EG3: 1387-4 | EH3: 1387-3 | EI3: 1387-2 | EJ3: 1387-1 | EK3: 1386-4 | EL3: 1386-3 | EM3: 1386-2 | EN3: 1386-1 | EO3: 1385-4 | EP3: 1385-3 | EQ3: 1385-2 | ER3: 1385-1 | ES3: 1384-4 | ET3: 1384-3 | EU3: 1384-2 | EV3: 1384-1 | EW3: 1383-4 | EX3: 1383-3 | EY3: 1383-2 | EZ3: 1383-1 | FA3: 1382-4 | FB3: 1382-3 | FC3: 1382-2 | FD3: 1382-1 | FE3: دوره پیمان | FM3: 1420 | FN3: 1420 | FO3: 1420 | FP3: 1420 | FQ3: 1420 | FR3: 1420 | FS3: 1420 | FT3: 1420 | FU3: 1420 | FV3: 1420 | FW3: 1420 | FX3: 1420 | FY3: 1419 | FZ3: 1419 | GA3: 1419 | GB3: 1419 | GC3: 1419 | GD3: 1419 | GE3: 1419 | GF3: 1419 | GG3: 1419 | GH3: 1419 | GI3: 1419 | GJ3: 1419 | GK3: =GJ3-1 -> 1418 | GL3: =GK3 -> 1418 | GM3: =GL3 -> 1418 | GN3: 1418 | GO3: 1418 | GP3: 1418 | GQ3: 1418 | GR3: 1418 | GS3: 1418 | GT3: 1418 | GU3: 1418 | GV3: 1418 | GW3: =GV3-1 -> 1417 | GX3: =GW3 -> 1417 | GY3: =GX3 -> 1417 | GZ3: 1417 | HA3: 1417 | HB3: 1417 | HC3: 1417 | HD3: 1417 | HE3: 1417 | HF3: 1417 | HG3: 1417 | HH3: 1417 | HI3: =HH3-1 -> 1416 | HJ3: =HI3 -> 1416 | HK3: 1416 | HL3: 1416 | HM3: 1416 | HN3: 1416 | HO3: 1416 | HP3: 1416 | HQ3: 1416 | HR3: 1416 | HS3: 1416 | HT3: 1416 | HU3: =HT3-1 -> 1415 | HV3: =HU3 -> 1415 | HW3: 1415 | HX3: 1415 | HY3: 1415 | HZ3: 1415 | IA3: 1415 | IB3: 1415 | IC3: 1415 | ID3: 1415 | IE3: 1415 | IF3: 1415 | IG3: =IF3-1 -> 1414 | IH3: =IG3 -> 1414 | II3: 1414 | IJ3: 1414 | IK3: 1414 | IL3: 1414 | IM3: 1414 | IN3: 1414 | IO3: 1414 | IP3: 1414 | IQ3: 1414 | IR3: 1414 | IS3: =IR3-1 -> 1413 | IT3: =IS3 -> 1413 | IU3: 1413 | IV3: 1413 | IW3: 1413 | IX3: 1413 | IY3: 1413 | IZ3: 1413 | JA3: 1413 | JB3: 1413 | JC3: 1413 | JD3: 1413 | JE3: =JD3-1 -> 1412 | JF3: =JE3 -> 1412 | JG3: 1412 | JH3: 1412 | JI3: 1412 | JJ3: 1412 | JK3: 1412 | JL3: 1412 | JM3: 1412 | JN3: 1412 | JO3: 1412 | JP3: 1412 | JQ3: =JP3-1 -> 1411 | JR3: =JQ3 -> 1411 | JS3: 1411 | JT3: 1411 | JU3: 1411 | JV3: =JU3 -> 1411 | JW3: 1411 | JX3: 1411 | JY3: 1411 | JZ3: 1411 | KA3: 1411 | KB3: 1411 | KC3: =KB3-1 -> 1410 | KD3: =KC3 -> 1410 | KE3: 1410 | KF3: 1410 | KG3: 1410 | KH3: 1410 | KI3: 1410 | KJ3: 1410 | KK3: 1410 | KL3: 1410 | KM3: 1410 | KN3: 1410 | KO3: =KN3-1 -> 1409 | KP3: =KO3 -> 1409 | KQ3: 1409 | KR3: 1409 | KS3: 1409 | KT3: 1409 | KU3: 1409 | KV3: 1409 | KW3: 1409 | KX3: 1409 | KY3: 1409 | KZ3: 1409 | LA3: =KZ3-1 -> 1408 | LB3: =LA3 -> 1408 | LC3: 1408 | LD3: 1408 | LE3: 1408 | LF3: 1408 | LG3: 1408 | LH3: 1408 | LI3: 1408 | LJ3: 1408 | LK3: 1408 | LL3: 1408 | LM3: =LL3-1 -> 1407 | LN3: =LM3 -> 1407 | LO3: 1407 | LP3: 1407 | LQ3: 1407 | LR3: 1407 | LS3: 1407 | LT3: 1407 | LU3: 1407 | LV3: 1407 | LW3: 1407 | LX3: 1407 | LY3: =LX3-1 -> 1406 | LZ3: =LY3 -> 1406 | MA3: 1406 | MB3: 1406 | MC3: 1406 | MD3: 1406 | ME3: 1406 | MF3: 1406 | MG3: 1406 | MH3: =MG3 -> 1406 | MI3: 1406 | MJ3: 1406 | MK3: =MJ3-1 -> 1405 | ML3: =MK3 -> 1405 | MM3: 1405 | MN3: 1405 | MO3: 1405 | MP3: 1405 | MQ3: 1405 | MR3: 1405 | MS3: 1405 | MT3: 1405 | MU3: 1405 | MV3: 1405 | MW3: =MV3-1 -> 1404 | MX3: =MW3 -> 1404 | MY3: 1404 | MZ3: 1404 | NA3: 1404 | NB3: 1404 | NC3: 1404 | ND3: 1404 | NE3: 1404 | NF3: 1404 | NG3: 1404 | NH3: 1404 | NI3: =NH3-1 -> 1403 | NJ3: =NI3 -> 1403 | NK3: 1403 | NL3: 1403 | NM3: 1403 | NN3: 1403 | NO3: 1403 | NP3: 1403 | NQ3: 1403 | NR3: 1403 | NS3: 1403 | NT3: 1403 | NU3: =NT3-1 -> 1402 | NV3: =NU3 -> 1402 | NW3: 1402 | NX3: 1402 | NY3: 1402 | NZ3: 1402 | OA3: 1402 | OB3: 1402 | OC3: 1402 | OD3: 1402 | OE3: 1402 | OF3: 1402 | OG3: =OF3-1 -> 1401 | OH3: =OG3 -> 1401 | OI3: 1401 | OJ3: 1401 | OK3: 1401 | OL3: 1401 | OM3: 1401 | ON3: 1401 | OO3: 1401 | OP3: 1401 | OQ3: 1401 | OR3: 1401 | OS3: =OR3-1 -> 1400 | OT3: =OS3 -> 1400 | OU3: 1400 | OV3: 1400 | OW3: 1400 | OX3: 1400 | OY3: 1400 | OZ3: 1400 | PA3: 1400 | PB3: 1400 | PC3: 1400 | PD3: 1400 | PE3: =PD3-1 -> 1399 | PF3: =PE3 -> 1399 | PG3: 1399 | PH3: 1399 | PI3: 1399 | PJ3: 1399 | PK3: 1399 | PL3: 1399 | PM3: 1399 | PN3: 1399 | PO3: 1399 | PP3: 1399 | PQ3: =PP3-1 -> 1398 | PR3: =PQ3 -> 1398 | PS3: 1398 | PT3: 1398 | PU3: 1398 | PV3: 1398 | PW3: 1398 | PX3: 1398 | PY3: 1398 | PZ3: 1398 | QA3: 1398 | QB3: 1398 | QC3: =QB3-1 -> 1397 | QD3: =QC3 -> 1397 | QE3: 1397 | QF3: 1397 | QG3: 1397 | QH3: 1397 | QI3: 1397 | QJ3: 1397 | QK3: 1397 | QL3: 1397 | QM3: 1397 | QN3: 1397
D4: =IF(D3="سه ماهه",(((1422-B3)*4)-1)+1,457-((B3-1397)*12)-1) -> 96 | CO4: سه ماهه | CP4: سه ماهه | CQ4: سه ماهه | CR4: سه ماهه | CS4: سه ماهه | CT4: سه ماهه | CU4: ماهیانه | CV4: سه ماهه | CW4: سه ماهه | CX4: سه ماهه | CY4: سه ماهه | CZ4: سه ماهه | DA4: سه ماهه | DB4: سه ماهه | DC4: سه ماهه | DD4: سه ماهه | DE4: سه ماهه | DF4: سه ماهه | DG4: سه ماهه | DH4: سه ماهه | DI4: سه ماهه | DJ4: سه ماهه | DK4: سه ماهه | DL4: سه ماهه | DM4: سه ماهه | DN4: سه ماهه | DO4: سه ماهه | DP4: سه ماهه | DQ4: سه ماهه | DR4: سه ماهه | DS4: سه ماهه | DT4: سه ماهه | DU4: سه ماهه | DV4: سه ماهه | DW4: سه ماهه | DX4: سه ماهه | DY4: سه ماهه | DZ4: سه ماهه | EA4: سه ماهه | EB4: سه ماهه | EC4: سه ماهه | ED4: سه ماهه | EE4: سه ماهه | EF4: سه ماهه | EG4: سه ماهه | EH4: سه ماهه | EI4: سه ماهه | EJ4: سه ماهه | EK4: سه ماهه | EL4: سه ماهه | EM4: سه ماهه | EN4: سه ماهه | EO4: سه ماهه | EP4: سه ماهه | EQ4: سه ماهه | ER4: سه ماهه | ES4: سه ماهه | ET4: سه ماهه | EU4: سه ماهه | EV4: سه ماهه | EW4: سه ماهه | EX4: سه ماهه | EY4: سه ماهه | EZ4: سه ماهه | FA4: سه ماهه | FB4: سه ماهه | FC4: سه ماهه | FD4: سه ماهه
D5: =IF(D3="سه ماهه",(((1422-B3)*4)-4)+1,457-((B3-1397)*12)-12) -> 93 | E5: ابنیه | F5: =E5 -> ابنیه | G5: ابنیه | H5: ابنیه | I5: ابنیه | J5: ابنیه | K5: ابنیه | L5: ابنیه | M5: ابنیه | N5: ابنیه | O5: ابنیه | P5: ابنیه | Q5: ابنیه | R5: ابنیه | S5: ابنیه | T5: ابنیه | U5: ابنیه | V5: ابنیه | W5: ابنیه | X5: ابنیه | Y5: ابنیه | Z5: ابنیه | AA5: ابنیه | AB5: ابنیه | AC5: =AB5 -> ابنیه | AD5: ابنیه | AE5: ابنیه | AF5: ابنیه | AG5: ابنیه | AH5: ابنیه | AI5: ابنیه | AJ5: ابنیه | AK5: ابنیه | AL5: ابنیه | AM5: ابنیه | AN5: ابنیه | AO5: ابنیه | AP5: ابنیه | AQ5: ابنیه | AR5: ابنیه | AS5: ابنیه | AT5: ابنیه | AU5: ابنیه | AV5: ابنیه | AW5: ابنیه | AX5: ابنیه | AY5: ابنیه | AZ5: ابنیه | BA5: ابنیه | BB5: ابنیه | BC5: ابنیه | BD5: ابنیه | BE5: ابنیه | BF5: ابنیه | BG5: ابنیه | BH5: ابنیه | BI5: ابنیه | BJ5: ابنیه | BK5: ابنیه | BL5: ابنیه | BM5: ابنیه | BN5: =BM5 -> ابنیه | BO5: =BN5 -> ابنیه | BP5: ابنیه | BQ5: ابنیه | BR5: ابنیه | BS5: ابنیه | BT5: ابنیه | BU5: ابنیه | BV5: ابنیه | BW5: ابنیه | BX5: ابنیه | BY5: ابنیه | BZ5: ابنیه | CA5: ابنیه | CB5: ابنیه | CC5: ابنیه | CD5: ابنیه | CE5: ابنیه | CF5: ابنیه | CG5: ابنیه | CH5: ابنیه | CI5: ابنیه | CJ5: ابنیه | CK5: ابنیه | CL5: ابنیه | CM5: ابنیه | CN5: ابنیه | CO5: ابنیه | CP5: ابنیه | CQ5: ابنیه | CR5: ابنیه | CS5: ابنیه | CT5: ابنیه | CU5: ابنیه | CV5: ابنیه | CW5: ابنیه | CX5: ابنیه | CY5: ابنیه | CZ5: ابنیه | DA5: ابنیه | DB5: ابنیه | DC5: ابنیه | DD5: ابنیه | DE5: ابنیه | DF5: ابنیه | DG5: ابنیه | DH5: ابنیه | DI5: ابنیه | DJ5: ابنیه | DK5: ابنیه | DL5: ابنیه | DM5: ابنیه | DN5: ابنیه | DO5: ابنیه | DP5: ابنیه | DQ5: ابنیه | DR5: ابنیه | DS5: ابنیه | DT5: ابنیه | DU5: ابنیه | DV5: ابنیه | DW5: ابنیه | DX5: ابنیه | DY5: ابنیه | DZ5: ابنیه | EA5: =DZ5 -> ابنیه | EB5: ابنیه | EC5: ابنیه | ED5: ابنیه | EE5: ابنیه | EF5: ابنیه | EG5: ابنیه | EH5: ابنیه | EI5: ابنیه | EJ5: ابنیه | EK5: ابنیه | EL5: ابنیه | EM5: ابنیه | EN5: ابنیه | EO5: ابنیه | EP5: ابنیه | EQ5: ابنیه | ER5: ابنیه | ES5: ابنیه | ET5: ابنیه | EU5: ابنیه | EV5: ابنیه | EW5: ابنیه | EX5: ابنیه | EY5: ابنیه | EZ5: ابنیه | FA5: ابنیه | FB5: ابنیه | FC5: ابنیه | FD5: ابنیه | FM5: =FD5 -> ابنیه | FN5: =FM5 -> ابنیه | FO5: =FN5 -> ابنیه | FP5: ابنیه | FQ5: ابنیه | FR5: ابنیه | FS5: ابنیه | FT5: ابنیه | FU5: ابنیه | FV5: ابنیه | FW5: ابنیه | FX5: ابنیه | FY5: ابنیه | FZ5: ابنیه | GA5: ابنیه | GB5: ابنیه | GC5: ابنیه | GD5: ابنیه | GE5: ابنیه | GF5: ابنیه | GG5: ابنیه | GH5: ابنیه | GI5: ابنیه | GJ5: ابنیه | GK5: ابنیه | GL5: ابنیه | GM5: ابنیه | GN5: ابنیه | GO5: ابنیه | GP5: ابنیه | GQ5: ابنیه | GR5: ابنیه | GS5: ابنیه | GT5: ابنیه | GU5: ابنیه | GV5: ابنیه | GW5: ابنیه | GX5: ابنیه | GY5: ابنیه | GZ5: ابنیه | HA5: ابنیه | HB5: ابنیه | HC5: ابنیه | HD5: ابنیه | HE5: ابنیه | HF5: ابنیه | HG5: ابنیه | HH5: ابنیه | HI5: ابنیه | HJ5: ابنیه | HK5: ابنیه | HL5: ابنیه | HM5: ابنیه | HN5: ابنیه | HO5: ابنیه | HP5: ابنیه | HQ5: ابنیه | HR5: ابنیه | HS5: ابنیه | HT5: ابنیه | HU5: ابنیه | HV5: ابنیه | HW5: ابنیه | HX5: ابنیه | HY5: ابنیه | HZ5: ابنیه | IA5: =HZ5 -> ابنیه | IB5: ابنیه | IC5: ابنیه | ID5: ابنیه | IE5: ابنیه | IF5: ابنیه | IG5: ابنیه | IH5: ابنیه | II5: ابنیه | IJ5: ابنیه | IK5: ابنیه | IL5: ابنیه | IM5: ابنیه | IN5: ابنیه | IO5: ابنیه | IP5: ابنیه | IQ5: ابنیه | IR5: ابنیه | IS5: ابنیه | IT5: ابنیه | IU5: ابنیه | IV5: ابنیه | IW5: ابنیه | IX5: ابنیه | IY5: ابنیه | IZ5: ابنیه | JA5: ابنیه | JB5: ابنیه | JC5: ابنیه | JD5: ابنیه | JE5: ابنیه | JF5: ابنیه | JG5: ابنیه | JH5: ابنیه | JI5: ابنیه | JJ5: ابنیه | JK5: ابنیه | JL5: ابنیه | JM5: ابنیه | JN5: ابنیه | JO5: ابنیه | JP5: ابنیه | JQ5: ابنیه | JR5: ابنیه | JS5: ابنیه | JT5: ابنیه | JU5: ابنیه | JV5: ابنیه | JW5: ابنیه | JX5: ابنیه | JY5: ابنیه | JZ5: ابنیه | KA5: ابنیه | KB5: ابنیه | KC5: ابنیه | KD5: ابنیه | KE5: ابنیه | KF5: ابنیه | KG5: ابنیه | KH5: ابنیه | KI5: ابنیه | KJ5: ابنیه | KK5: ابنیه | KL5: ابنیه | KM5: =KL5 -> ابنیه | KN5: ابنیه | KO5: ابنیه | KP5: ابنیه | KQ5: ابنیه | KR5: ابنیه | KS5: ابنیه | KT5: ابنیه | KU5: ابنیه | KV5: ابنیه | KW5: ابنیه | KX5: ابنیه | KY5: ابنیه | KZ5: ابنیه | LA5: ابنیه | LB5: ابنیه | LC5: ابنیه | LD5: ابنیه | LE5: ابنیه | LF5: ابنیه | LG5: ابنیه | LH5: ابنیه | LI5: ابنیه | LJ5: ابنیه | LK5: ابنیه | LL5: ابنیه | LM5: ابنیه | LN5: ابنیه | LO5: ابنیه | LP5: ابنیه | LQ5: ابنیه | LR5: ابنیه | LS5: ابنیه | LT5: ابنیه | LU5: ابنیه | LV5: ابنیه | LW5: ابنیه | LX5: ابنیه | LY5: ابنیه | LZ5: ابنیه | MA5: ابنیه | MB5: ابنیه | MC5: ابنیه | MD5: ابنیه | ME5: ابنیه | MF5: ابنیه | MG5: ابنیه | MH5: ابنیه | MI5: ابنیه | MJ5: ابنیه | MK5: ابنیه | ML5: ابنیه | MM5: ابنیه | MN5: ابنیه | MO5: ابنیه | MP5: ابنیه | MQ5: ابنیه | MR5: ابنیه | MS5: ابنیه | MT5: ابنیه | MU5: ابنیه | MV5: ابنیه | MW5: ابنیه | MX5: ابنیه | MY5: =MX5 -> ابنیه | MZ5: ابنیه | NA5: ابنیه | NB5: ابنیه | NC5: ابنیه | ND5: ابنیه | NE5: ابنیه | NF5: ابنیه | NG5: ابنیه | NH5: ابنیه | NI5: ابنیه | NJ5: ابنیه | NK5: ابنیه | NL5: ابنیه | NM5: ابنیه | NN5: ابنیه | NO5: ابنیه | NP5: ابنیه | NQ5: ابنیه | NR5: ابنیه | NS5: ابنیه | NT5: ابنیه | NU5: ابنیه | NV5: ابنیه | NW5: ابنیه | NX5: ابنیه | NY5: ابنیه | NZ5: ابنیه | OA5: ابنیه | OB5: ابنیه | OC5: ابنیه | OD5: ابنیه | OE5: ابنیه | OF5: ابنیه | OG5: ابنیه | OH5: ابنیه | OI5: ابنیه | OJ5: ابنیه | OK5: ابنیه | OL5: ابنیه | OM5: ابنیه | ON5: ابنیه | OO5: ابنیه | OP5: ابنیه | OQ5: ابنیه | OR5: ابنیه | OS5: ابنیه | OT5: ابنیه | OU5: ابنیه | OV5: ابنیه | OW5: ابنیه | OX5: ابنیه | OY5: ابنیه | OZ5: ابنیه | PA5: ابنیه | PB5: ابنیه | PC5: ابنیه | PD5: ابنیه | PE5: ابنیه | PF5: ابنیه | PG5: ابنیه | PH5: ابنیه | PI5: ابنیه | PJ5: ابنیه | PK5: =PJ5 -> ابنیه | PL5: ابنیه | PM5: ابنیه | PN5: ابنیه | PO5: ابنیه | PP5: ابنیه | PQ5: ابنیه | PR5: ابنیه | PS5: ابنیه | PT5: ابنیه | PU5: ابنیه | PV5: ابنیه | PW5: ابنیه | PX5: ابنیه | PY5: ابنیه | PZ5: ابنیه | QA5: ابنیه | QB5: ابنیه | QC5: ابنیه | QD5: ابنیه | QE5: ابنیه | QF5: ابنیه | QG5: ابنیه | QH5: ابنیه | QI5: ابنیه | QJ5: ابنیه | QK5: ابنیه | QL5: ابنیه | QM5: ابنیه | QN5: ابنیه
E6: ابنیه | F6: =E6 -> ابنیه | G6: ابنیه | H6: ابنیه | I6: ابنیه | J6: ابنیه | K6: ابنیه | L6: ابنیه | M6: ابنیه | N6: ابنیه | O6: ابنیه | P6: ابنیه | Q6: ابنیه | R6: ابنیه | S6: ابنیه | T6: ابنیه | U6: ابنیه | V6: ابنیه | W6: ابنیه | X6: ابنیه | Y6: ابنیه | Z6: ابنیه | AA6: ابنیه | AB6: ابنیه | AC6: =AB6 -> ابنیه | AD6: ابنیه | AE6: ابنیه | AF6: ابنیه | AG6: ابنیه | AH6: ابنیه | AI6: ابنیه | AJ6: ابنیه | AK6: ابنیه | AL6: ابنیه | AM6: ابنیه | AN6: ابنیه | AO6: ابنیه | AP6: ابنیه | AQ6: ابنیه | AR6: ابنیه | AS6: ابنیه | AT6: ابنیه | AU6: ابنیه | AV6: ابنیه | AW6: ابنیه | AX6: ابنیه | AY6: ابنیه | AZ6: ابنیه | BA6: ابنیه | BB6: ابنیه | BC6: ابنیه | BD6: ابنیه | BE6: ابنیه | BF6: ابنیه | BG6: ابنیه | BH6: ابنیه | BI6: ابنیه | BJ6: ابنیه | BK6: ابنیه | BL6: ابنیه | BM6: ابنیه | BN6: =BM6 -> ابنیه | BO6: ابنیه | BP6: ابنیه | BQ6: ابنیه | BR6: ابنیه | BS6: ابنیه | BT6: ابنیه | BU6: ابنیه | BV6: ابنیه | BW6: ابنیه | BX6: ابنیه | BY6: ابنیه | BZ6: ابنیه | CA6: ابنیه | CB6: ابنیه | CC6: ابنیه | CD6: ابنیه | CE6: ابنیه | CF6: ابنیه | CG6: ابنیه | CH6: ابنیه | CI6: ابنیه | CJ6: ابنیه | CK6: ابنیه | CL6: ابنیه | CM6: ابنیه | CN6: ابنیه | CO6: ابنیه | CP6: ابنیه | CQ6: ابنیه | CR6: ابنیه | CS6: ابنیه | CT6: ابنیه | CU6: ابنیه | CV6: ابنیه | CW6: ابنیه | CX6: ابنیه | CY6: ابنیه | CZ6: ابنیه | DA6: ابنیه | DB6: ابنیه | DC6: ابنیه | DD6: ابنیه | DE6: ابنیه | DF6: ابنیه | DG6: ابنیه | DH6: ابنیه | DI6: ابنیه | DJ6: ابنیه | DK6: ابنیه | DL6: ابنیه | DM6: ابنیه | DN6: ابنیه | DO6: ابنیه | DP6: ابنیه | DQ6: ابنیه | DR6: ابنیه | DS6: ابنیه | DT6: ابنیه | DU6: ابنیه | DV6: ابنیه | DW6: ابنیه | DX6: ابنیه | DY6: ابنیه | DZ6: ابنیه | EA6: ابنیه | EB6: ابنیه | EC6: ابنیه | ED6: ابنیه | EE6: ابنیه | EF6: ابنیه | EG6: ابنیه | EH6: ابنیه | EI6: ابنیه | EJ6: ابنیه | EK6: ابنیه | EL6: ابنیه | EM6: ابنیه | EN6: ابنیه | EO6: ابنیه | EP6: ابنیه | EQ6: ابنیه | ER6: ابنیه | ES6: ابنیه | ET6: ابنیه | EU6: ابنیه | EV6: ابنیه | EW6: ابنیه | EX6: ابنیه | EY6: ابنیه | EZ6: ابنیه | FA6: ابنیه | FB6: ابنیه | FC6: ابنیه | FD6: ابنیه | FM6: =FD6 -> ابنیه | FN6: =FM6 -> ابنیه | FO6: =FN6 -> ابنیه | FP6: ابنیه | FQ6: ابنیه | FR6: ابنیه | FS6: ابنیه | FT6: ابنیه | FU6: ابنیه | FV6: ابنیه | FW6: ابنیه | FX6: ابنیه | FY6: ابنیه | FZ6: ابنیه | GA6: ابنیه | GB6: ابنیه | GC6: ابنیه | GD6: ابنیه | GE6: ابنیه | GF6: ابنیه | GG6: ابنیه | GH6: ابنیه | GI6: ابنیه | GJ6: ابنیه | GK6: ابنیه | GL6: ابنیه | GM6: ابنیه | GN6: ابنیه | GO6: ابنیه | GP6: ابنیه | GQ6: ابنیه | GR6: ابنیه | GS6: ابنیه | GT6: ابنیه | GU6: ابنیه | GV6: ابنیه | GW6: ابنیه | GX6: ابنیه | GY6: ابنیه | GZ6: ابنیه | HA6: ابنیه | HB6: ابنیه | HC6: ابنیه | HD6: ابنیه | HE6: ابنیه | HF6: ابنیه | HG6: ابنیه | HH6: ابنیه | HI6: ابنیه | HJ6: ابنیه | HK6: ابنیه | HL6: ابنیه | HM6: ابنیه | HN6: ابنیه | HO6: ابنیه | HP6: ابنیه | HQ6: ابنیه | HR6: ابنیه | HS6: ابنیه | HT6: ابنیه | HU6: ابنیه | HV6: ابنیه | HW6: ابنیه | HX6: ابنیه | HY6: ابنیه | HZ6: ابنیه | IA6: =HZ6 -> ابنیه | IB6: ابنیه | IC6: ابنیه | ID6: ابنیه | IE6: ابنیه | IF6: ابنیه | IG6: ابنیه | IH6: ابنیه | II6: ابنیه | IJ6: ابنیه | IK6: ابنیه | IL6: ابنیه | IM6: ابنیه | IN6: ابنیه | IO6: ابنیه | IP6: ابنیه | IQ6: ابنیه | IR6: ابنیه | IS6: ابنیه | IT6: ابنیه | IU6: ابنیه | IV6: ابنیه | IW6: ابنیه | IX6: ابنیه | IY6: ابنیه | IZ6: ابنیه | JA6: ابنیه | JB6: ابنیه | JC6: ابنیه | JD6: ابنیه | JE6: ابنیه | JF6: ابنیه | JG6: ابنیه | JH6: ابنیه | JI6: ابنیه | JJ6: ابنیه | JK6: ابنیه | JL6: ابنیه | JM6: ابنیه | JN6: ابنیه | JO6: ابنیه | JP6: ابنیه | JQ6: ابنیه | JR6: ابنیه | JS6: ابنیه | JT6: ابنیه | JU6: ابنیه | JV6: ابنیه | JW6: ابنیه | JX6: ابنیه | JY6: ابنیه | JZ6: ابنیه | KA6: ابنیه | KB6: ابنیه | KC6: ابنیه | KD6: ابنیه | KE6: ابنیه | KF6: ابنیه | KG6: ابنیه | KH6: ابنیه | KI6: ابنیه | KJ6: ابنیه | KK6: ابنیه | KL6: ابنیه | KM6: =KL6 -> ابنیه | KN6: ابنیه | KO6: ابنیه | KP6: ابنیه | KQ6: ابنیه | KR6: ابنیه | KS6: ابنیه | KT6: ابنیه | KU6: ابنیه | KV6: ابنیه | KW6: ابنیه | KX6: ابنیه | KY6: ابنیه | KZ6: ابنیه | LA6: ابنیه | LB6: ابنیه | LC6: ابنیه | LD6: ابنیه | LE6: ابنیه | LF6: ابنیه | LG6: ابنیه | LH6: ابنیه | LI6: ابنیه | LJ6: ابنیه | LK6: ابنیه | LL6: ابنیه | LM6: ابنیه | LN6: ابنیه | LO6: ابنیه | LP6: ابنیه | LQ6: ابنیه | LR6: ابنیه | LS6: ابنیه | LT6: ابنیه | LU6: ابنیه | LV6: ابنیه | LW6: ابنیه | LX6: ابنیه | LY6: ابنیه | LZ6: ابنیه | MA6: ابنیه | MB6: ابنیه | MC6: ابنیه | MD6: ابنیه | ME6: ابنیه | MF6: ابنیه | MG6: ابنیه | MH6: ابنیه | MI6: ابنیه | MJ6: ابنیه | MK6: ابنیه | ML6: ابنیه | MM6: ابنیه | MN6: ابنیه | MO6: ابنیه | MP6: ابنیه | MQ6: ابنیه | MR6: ابنیه | MS6: ابنیه | MT6: ابنیه | MU6: ابنیه | MV6: ابنیه | MW6: ابنیه | MX6: ابنیه | MY6: =MX6 -> ابنیه | MZ6: ابنیه | NA6: ابنیه | NB6: ابنیه | NC6: ابنیه | ND6: ابنیه | NE6: ابنیه | NF6: ابنیه | NG6: ابنیه | NH6: ابنیه | NI6: ابنیه | NJ6: ابنیه | NK6: ابنیه | NL6: ابنیه | NM6: ابنیه | NN6: ابنیه | NO6: ابنیه | NP6: ابنیه | NQ6: ابنیه | NR6: ابنیه | NS6: ابنیه | NT6: ابنیه | NU6: ابنیه | NV6: ابنیه | NW6: ابنیه | NX6: ابنیه | NY6: ابنیه | NZ6: ابنیه | OA6: ابنیه | OB6: ابنیه | OC6: ابنیه | OD6: ابنیه | OE6: ابنیه | OF6: ابنیه | OG6: ابنیه | OH6: ابنیه | OI6: ابنیه | OJ6: ابنیه | OK6: ابنیه | OL6: ابنیه | OM6: ابنیه | ON6: ابنیه | OO6: ابنیه | OP6: ابنیه | OQ6: ابنیه | OR6: ابنیه | OS6: ابنیه | OT6: ابنیه | OU6: ابنیه | OV6: ابنیه | OW6: ابنیه | OX6: ابنیه | OY6: ابنیه | OZ6: ابنیه | PA6: ابنیه | PB6: ابنیه | PC6: ابنیه | PD6: ابنیه | PE6: ابنیه | PF6: ابنیه | PG6: ابنیه | PH6: ابنیه | PI6: ابنیه | PJ6: ابنیه | PK6: =PJ6 -> ابنیه | PL6: ابنیه | PM6: ابنیه | PN6: ابنیه | PO6: ابنیه | PP6: ابنیه | PQ6: ابنیه | PR6: ابنیه | PS6: ابنیه | PT6: ابنیه | PU6: ابنیه | PV6: ابنیه | PW6: ابنیه | PX6: ابنیه | PY6: ابنیه | PZ6: ابنیه | QA6: ابنیه | QB6: ابنیه | QC6: ابنیه | QD6: ابنیه | QE6: ابنیه | QF6: ابنیه | QG6: ابنیه | QH6: ابنیه | QI6: ابنیه | QJ6: ابنیه | QK6: ابنیه | QL6: ابنیه | QM6: ابنیه | QN6: ابنیه
E7: =Anterpoleh!U2 -> 95 | F7: =E7 -> 95 | G7: =F7 -> 95 | H7: 95 | I7: 95 | J7: 95 | K7: 95 | L7: 95 | M7: 95 | N7: 95 | O7: 95 | P7: 95 | Q7: 95 | R7: 95 | S7: 95 | T7: 95 | U7: 95 | V7: 95 | W7: 95 | X7: 95 | Y7: 95 | Z7: 95 | AA7: 95 | AB7: 95 | AC7: =AB7 -> 95 | AD7: 95 | AE7: 95 | AF7: 95 | AG7: 95 | AH7: 95 | AI7: 95 | AJ7: 95 | AK7: 95 | AL7: 95 | AM7: 95 | AN7: 95 | AO7: 95 | AP7: 95 | AQ7: 95 | AR7: 95 | AS7: 95 | AT7: 95 | AU7: 95 | AV7: 95 | AW7: 95 | AX7: 95 | AY7: 95 | AZ7: 95 | BA7: 95 | BB7: 95 | BC7: 95 | BD7: 95 | BE7: 95 | BF7: 95 | BG7: 95 | BH7: 95 | BI7: 95 | BJ7: 95 | BK7: 95 | BL7: 95 | BM7: 95 | BN7: =BM7 -> 95 | BO7: 95 | BP7: 95 | BQ7: 95 | BR7: 95 | BS7: 95 | BT7: 95 | BU7: 95 | BV7: 95 | BW7: 95 | BX7: 95 | BY7: 95 | BZ7: 95 | CA7: 95 | CB7: 95 | CC7: 95 | CD7: 95 | CE7: 95 | CF7: 95 | CG7: 95 | CH7: 95 | CI7: 95 | CJ7: 95 | CK7: 95 | CL7: 95 | CM7: 95 | CN7: 95 | CO7: 95 | CP7: 95 | CQ7: 95 | CR7: 95 | CS7: 95 | CT7: 95 | CU7: 95 | CV7: 95 | CW7: 95 | CX7: 95 | CY7: 95 | CZ7: 95 | DA7: 95 | DB7: 95 | DC7: 95 | DD7: 95 | DE7: 95 | DF7: 95 | DG7: 95 | DH7: 95 | DI7: 95 | DJ7: 95 | DK7: 95 | DL7: 95 | DM7: 95 | DN7: 95 | DO7: 95 | DP7: 95 | DQ7: 95 | DR7: 95 | DS7: 95 | DT7: 95 | DU7: 95 | DV7: 95 | DW7: 95 | DX7: 95 | DY7: 95 | DZ7: 95 | EA7: 95 | EB7: 95 | EC7: 95 | ED7: 95 | EE7: 95 | EF7: 95 | EG7: 95 | EH7: 95 | EI7: 95 | EJ7: 95 | EK7: 95 | EL7: 95 | EM7: 95 | EN7: 95 | EO7: 95 | EP7: 95 | EQ7: 95 | ER7: 95 | ES7: 95 | ET7: 95 | EU7: 95 | EV7: 95 | EW7: 95 | EX7: 95 | EY7: 95 | EZ7: 95 | FA7: 95 | FB7: 95 | FC7: 95 | FD7: 95 | FL7: =Anterpoleh!W2 -> 439 | FM7: =FL7 -> 439 | FN7: 439 | FO7: 439 | FP7: 439 | FQ7: 439 | FR7: 439 | FS7: 439 | FT7: 439 | FU7: 439 | FV7: 439 | FW7: 439 | FX7: 439 | FY7: 439 | FZ7: 439 | GA7: 439 | GB7: 439 | GC7: 439 | GD7: 439 | GE7: 439 | GF7: 439 | GG7: 439 | GH7: 439 | GI7: 439 | GJ7: 439 | GK7: 439 | GL7: 439 | GM7: 439 | GN7: 439 | GO7: 439 | GP7: 439 | GQ7: 439 | GR7: 439 | GS7: 439 | GT7: 439 | GU7: 439 | GV7: 439 | GW7: 439 | GX7: 439 | GY7: 439 | GZ7: 439 | HA7: 439 | HB7: 439 | HC7: 439 | HD7: 439 | HE7: 439 | HF7: 439 | HG7: 439 | HH7: 439 | HI7: 439 | HJ7: 439 | HK7: 439 | HL7: 439 | HM7: 439 | HN7: 439 | HO7: 439 | HP7: 439 | HQ7: 439 | HR7: 439 | HS7: 439 | HT7: 439 | HU7: 439 | HV7: 439 | HW7: 439 | HX7: 439 | HY7: =HX7 -> 439 | HZ7: 439 | IA7: 439 | IB7: 439 | IC7: 439 | ID7: 439 | IE7: 439 | IF7: 439 | IG7: 439 | IH7: 439 | II7: 439 | IJ7: 439 | IK7: 439 | IL7: 439 | IM7: 439 | IN7: 439 | IO7: 439 | IP7: 439 | IQ7: 439 | IR7: 439 | IS7: 439 | IT7: 439 | IU7: 439 | IV7: 439 | IW7: 439 | IX7: 439 | IY7: 439 | IZ7: 439 | JA7: 439 | JB7: 439 | JC7: 439 | JD7: 439 | JE7: 439 | JF7: 439 | JG7: 439 | JH7: 439 | JI7: 439 | JJ7: 439 | JK7: 439 | JL7: 439 | JM7: 439 | JN7: 439 | JO7: 439 | JP7: 439 | JQ7: 439 | JR7: 439 | JS7: 439 | JT7: 439 | JU7: 439 | JV7: 439 | JW7: 439 | JX7: 439 | JY7: 439 | JZ7: 439 | KA7: 439 | KB7: 439 | KC7: 439 | KD7: 439 | KE7: 439 | KF7: 439 | KG7: 439 | KH7: 439 | KI7: 439 | KJ7: 439 | KK7: =KJ7 -> 439 | KL7: 439 | KM7: 439 | KN7: 439 | KO7: 439 | KP7: 439 | KQ7: 439 | KR7: 439 | KS7: 439 | KT7: 439 | KU7: 439 | KV7: 439 | KW7: 439 | KX7: 439 | KY7: 439 | KZ7: 439 | LA7: 439 | LB7: 439 | LC7: 439 | LD7: 439 | LE7: 439 | LF7: 439 | LG7: 439 | LH7: 439 | LI7: 439 | LJ7: 439 | LK7: 439 | LL7: 439 | LM7: 439 | LN7: 439 | LO7: 439 | LP7: 439 | LQ7: 439 | LR7: 439 | LS7: 439 | LT7: 439 | LU7: 439 | LV7: 439 | LW7: 439 | LX7: 439 | LY7: 439 | LZ7: 439 | MA7: 439 | MB7: 439 | MC7: 439 | MD7: 439 | ME7: 439 | MF7: 439 | MG7: 439 | MH7: 439 | MI7: 439 | MJ7: 439 | MK7: 439 | ML7: 439 | MM7: 439 | MN7: 439 | MO7: 439 | MP7: 439 | MQ7: 439 | MR7: 439 | MS7: 439 | MT7: 439 | MU7: 439 | MV7: 439 | MW7: =MV7 -> 439 | MX7: 439 | MY7: 439 | MZ7: 439 | NA7: 439 | NB7: 439 | NC7: 439 | ND7: 439 | NE7: 439 | NF7: 439 | NG7: 439 | NH7: 439 | NI7: 439 | NJ7: 439 | NK7: 439 | NL7: 439 | NM7: 439 | NN7: 439 | NO7: 439 | NP7: 439 | NQ7: 439 | NR7: 439 | NS7: 439 | NT7: 439 | NU7: 439 | NV7: 439 | NW7: 439 | NX7: 439 | NY7: 439 | NZ7: 439 | OA7: 439 | OB7: 439 | OC7: 439 | OD7: 439 | OE7: 439 | OF7: 439 | OG7: 439 | OH7: 439 | OI7: 439 | OJ7: 439 | OK7: 439 | OL7: 439 | OM7: 439 | ON7: 439 | OO7: 439 | OP7: 439 | OQ7: 439 | OR7: 439 | OS7: 439 | OT7: 439 | OU7: 439 | OV7: 439 | OW7: 439 | OX7: 439 | OY7: 439 | OZ7: 439 | PA7: 439 | PB7: 439 | PC7: 439 | PD7: 439 | PE7: 439 | PF7: 439 | PG7: 439 | PH7: 439 | PI7: =PH7 -> 439 | PJ7: 439 | PK7: 439 | PL7: 439 | PM7: 439 | PN7: 439 | PO7: 439 | PP7: 439 | PQ7: 439 | PR7: 439 | PS7: 439 | PT7: 439 | PU7: 439 | PV7: 439 | PW7: 439 | PX7: 439 | PY7: 439 | PZ7: 439 | QA7: 439 | QB7: 439 | QC7: 439 | QD7: 439 | QE7: 439 | QF7: 439 | QG7: 439 | QH7: 439 | QI7: 439 | QJ7: 439 | QK7: 439 | QL7: 439 | QM7: 439 | QN7: 439
E8: =Anterpoleh!U3 -> 95 | F8: =E8 -> 95 | G8: 95 | H8: 95 | I8: 95 | J8: 95 | K8: 95 | L8: 95 | M8: 95 | N8: 95 | O8: 95 | P8: =O8 -> 95 | Q8: 95 | R8: 95 | S8: 95 | T8: 95 | U8: 95 | V8: 95 | W8: 95 | X8: 95 | Y8: 95 | Z8: 95 | AA8: 95 | AB8: 95 | AC8: =AB8 -> 95 | AD8: 95 | AE8: 95 | AF8: 95 | AG8: 95 | AH8: 95 | AI8: 95 | AJ8: 95 | AK8: 95 | AL8: 95 | AM8: 95 | AN8: 95 | AO8: 95 | AP8: 95 | AQ8: 95 | AR8: 95 | AS8: 95 | AT8: 95 | AU8: 95 | AV8: 95 | AW8: 95 | AX8: 95 | AY8: 95 | AZ8: 95 | BA8: 95 | BB8: 95 | BC8: 95 | BD8: 95 | BE8: 95 | BF8: 95 | BG8: 95 | BH8: 95 | BI8: 95 | BJ8: 95 | BK8: 95 | BL8: 95 | BM8: 95 | BN8: =BM8 -> 95 | BO8: 95 | BP8: 95 | BQ8: 95 | BR8: 95 | BS8: 95 | BT8: 95 | BU8: 95 | BV8: 95 | BW8: 95 | BX8: 95 | BY8: 95 | BZ8: 95 | CA8: 95 | CB8: 95 | CC8: 95 | CD8: 95 | CE8: 95 | CF8: 95 | CG8: 95 | CH8: 95 | CI8: 95 | CJ8: 95 | CK8: 95 | CL8: 95 | CM8: 95 | CN8: 95 | CO8: 95 | CP8: 95 | CQ8: 95 | CR8: 95 | CS8: 95 | CT8: 95 | CU8: 95 | CV8: 95 | CW8: 95 | CX8: 95 | CY8: 95 | CZ8: 95 | DA8: 95 | DB8: 95 | DC8: 95 | DD8: 95 | DE8: 95 | DF8: 95 | DG8: 95 | DH8: 95 | DI8: 95 | DJ8: 95 | DK8: 95 | DL8: 95 | DM8: 95 | DN8: 95 | DO8: 95 | DP8: 95 | DQ8: 95 | DR8: 95 | DS8: 95 | DT8: 95 | DU8: 95 | DV8: 95 | DW8: 95 | DX8: 95 | DY8: 95 | DZ8: =DY8 -> 95 | EA8: 95 | EB8: 95 | EC8: 95 | ED8: 95 | EE8: 95 | EF8: 95 | EG8: 95 | EH8: 95 | EI8: 95 | EJ8: 95 | EK8: 95 | EL8: 95 | EM8: 95 | EN8: 95 | EO8: 95 | EP8: 95 | EQ8: 95 | ER8: 95 | ES8: 95 | ET8: 95 | EU8: 95 | EV8: 95 | EW8: 95 | EX8: 95 | EY8: 95 | EZ8: 95 | FA8: 95 | FB8: 95 | FC8: 95 | FD8: 95 | FL8: =Anterpoleh!W3 -> 439 | FM8: =FL8 -> 439 | FN8: 439 | FO8: 439 | FP8: 439 | FQ8: 439 | FR8: 439 | FS8: 439 | FT8: 439 | FU8: 439 | FV8: 439 | FW8: 439 | FX8: 439 | FY8: 439 | FZ8: 439 | GA8: 439 | GB8: 439 | GC8: 439 | GD8: 439 | GE8: 439 | GF8: 439 | GG8: 439 | GH8: 439 | GI8: 439 | GJ8: 439 | GK8: 439 | GL8: 439 | GM8: 439 | GN8: 439 | GO8: 439 | GP8: 439 | GQ8: 439 | GR8: 439 | GS8: 439 | GT8: 439 | GU8: 439 | GV8: 439 | GW8: 439 | GX8: 439 | GY8: 439 | GZ8: 439 | HA8: 439 | HB8: 439 | HC8: 439 | HD8: 439 | HE8: 439 | HF8: 439 | HG8: 439 | HH8: 439 | HI8: 439 | HJ8: 439 | HK8: 439 | HL8: 439 | HM8: 439 | HN8: 439 | HO8: 439 | HP8: 439 | HQ8: 439 | HR8: 439 | HS8: 439 | HT8: 439 | HU8: 439 | HV8: 439 | HW8: 439 | HX8: 439 | HY8: =HX8 -> 439 | HZ8: 439 | IA8: 439 | IB8: 439 | IC8: 439 | ID8: 439 | IE8: 439 | IF8: 439 | IG8: 439 | IH8: 439 | II8: 439 | IJ8: 439 | IK8: 439 | IL8: 439 | IM8: 439 | IN8: 439 | IO8: 439 | IP8: 439 | IQ8: 439 | IR8: 439 | IS8: 439 | IT8: 439 | IU8: 439 | IV8: 439 | IW8: 439 | IX8: 439 | IY8: 439 | IZ8: 439 | JA8: 439 | JB8: 439 | JC8: 439 | JD8: 439 | JE8: 439 | JF8: 439 | JG8: 439 | JH8: 439 | JI8: 439 | JJ8: 439 | JK8: 439 | JL8: 439 | JM8: 439 | JN8: 439 | JO8: 439 | JP8: 439 | JQ8: 439 | JR8: 439 | JS8: 439 | JT8: 439 | JU8: 439 | JV8: 439 | JW8: 439 | JX8: 439 | JY8: 439 | JZ8: 439 | KA8: 439 | KB8: 439 | KC8: 439 | KD8: 439 | KE8: 439 | KF8: 439 | KG8: 439 | KH8: 439 | KI8: 439 | KJ8: 439 | KK8: =KJ8 -> 439 | KL8: 439 | KM8: 439 | KN8: 439 | KO8: 439 | KP8: 439 | KQ8: 439 | KR8: 439 | KS8: 439 | KT8: 439 | KU8: 439 | KV8: 439 | KW8: 439 | KX8: 439 | KY8: 439 | KZ8: 439 | LA8: 439 | LB8: 439 | LC8: 439 | LD8: 439 | LE8: 439 | LF8: 439 | LG8: 439 | LH8: 439 | LI8: 439 | LJ8: 439 | LK8: 439 | LL8: 439 | LM8: 439 | LN8: 439 | LO8: 439 | LP8: 439 | LQ8: 439 | LR8: 439 | LS8: 439 | LT8: 439 | LU8: 439 | LV8: 439 | LW8: 439 | LX8: 439 | LY8: 439 | LZ8: 439 | MA8: 439 | MB8: 439 | MC8: 439 | MD8: 439 | ME8: 439 | MF8: 439 | MG8: 439 | MH8: 439 | MI8: 439 | MJ8: 439 | MK8: 439 | ML8: 439 | MM8: 439 | MN8: 439 | MO8: 439 | MP8: 439 | MQ8: 439 | MR8: 439 | MS8: 439 | MT8: 439 | MU8: 439 | MV8: 439 | MW8: =MV8 -> 439 | MX8: 439 | MY8: 439 | MZ8: 439 | NA8: 439 | NB8: 439 | NC8: 439 | ND8: 439 | NE8: 439 | NF8: 439 | NG8: 439 | NH8: 439 | NI8: 439 | NJ8: 439 | NK8: 439 | NL8: 439 | NM8: 439 | NN8: 439 | NO8: 439 | NP8: 439 | NQ8: 439 | NR8: 439 | NS8: 439 | NT8: 439 | NU8: 439 | NV8: 439 | NW8: 439 | NX8: 439 | NY8: 439 | NZ8: 439 | OA8: 439 | OB8: 439 | OC8: 439 | OD8: 439 | OE8: 439 | OF8: 439 | OG8: 439 | OH8: 439 | OI8: 439 | OJ8: 439 | OK8: 439 | OL8: 439 | OM8: 439 | ON8: 439 | OO8: 439 | OP8: 439 | OQ8: 439 | OR8: 439 | OS8: 439 | OT8: 439 | OU8: 439 | OV8: 439 | OW8: 439 | OX8: 439 | OY8: 439 | OZ8: 439 | PA8: 439 | PB8: 439 | PC8: 439 | PD8: 439 | PE8: 439 | PF8: 439 | PG8: 439 | PH8: 439 | PI8: =PH8 -> 439 | PJ8: 439 | PK8: 439 | PL8: 439 | PM8: 439 | PN8: 439 | PO8: 439 | PP8: 439 | PQ8: 439 | PR8: 439 | PS8: 439 | PT8: 439 | PU8: 439 | PV8: 439 | PW8: 439 | PX8: 439 | PY8: 439 | PZ8: 439 | QA8: 439 | QB8: 439 | QC8: 439 | QD8: 439 | QE8: 439 | QF8: 439 | QG8: 439 | QH8: 439 | QI8: 439 | QJ8: 439 | QK8: 439 | QL8: 439 | QM8: 439 | QN8: 439
C9: قطعی | D9: برای میانگین | E9: =AND(E1<=E7,E1>=E8) -> FALSE | F9: FALSE | G9: FALSE | H9: FALSE | I9: FALSE | J9: FALSE | K9: FALSE | L9: FALSE | M9: FALSE | N9: FALSE | O9: FALSE | P9: FALSE | Q9: FALSE | R9: FALSE | S9: FALSE | T9: FALSE | U9: FALSE | V9: FALSE | W9: FALSE | X9: FALSE | Y9: FALSE | Z9: FALSE | AA9: FALSE | AB9: FALSE | AC9: FALSE | AD9: FALSE | AE9: FALSE | AF9: FALSE | AG9: FALSE | AH9: FALSE | AI9: FALSE | AJ9: FALSE | AK9: FALSE | AL9: =AND(AL1<=AL7,AL1>=AL8) -> FALSE | AM9: FALSE | AN9: FALSE | AO9: FALSE | AP9: FALSE | AQ9: FALSE | AR9: FALSE | AS9: FALSE | AT9: FALSE | AU9: FALSE | AV9: FALSE | AW9: FALSE | AX9: FALSE | AY9: FALSE | AZ9: FALSE | BA9: FALSE | BB9: FALSE | BC9: FALSE | BD9: FALSE | BE9: FALSE | BF9: FALSE | BG9: FALSE | BH9: FALSE | BI9: FALSE | BJ9: FALSE | BK9: FALSE | BL9: FALSE | BM9: FALSE | BN9: FALSE | BO9: FALSE | BP9: FALSE | BQ9: FALSE | BR9: =AND(BR1<=BR7,BR1>=BR8) -> FALSE | BS9: FALSE | BT9: FALSE | BU9: FALSE | BV9: FALSE | BW9: FALSE | BX9: FALSE | BY9: FALSE | BZ9: FALSE | CA9: FALSE | CB9: FALSE | CC9: FALSE | CD9: FALSE | CE9: FALSE | CF9: FALSE | CG9: FALSE | CH9: FALSE | CI9: FALSE | CJ9: FALSE | CK9: FALSE | CL9: FALSE | CM9: FALSE | CN9: FALSE | CO9: FALSE | CP9: FALSE | CQ9: TRUE | CR9: FALSE | CS9: FALSE | CT9: FALSE | CU9: FALSE | CV9: =AND(CV1<=CV7,CV1>=CV8) -> FALSE | CW9: FALSE | CX9: =AND(CX1<=CX7,CX1>=CX8) -> FALSE | CY9: FALSE | CZ9: FALSE | DA9: FALSE | DB9: FALSE | DC9: FALSE | DD9: FALSE | DE9: FALSE | DF9: FALSE | DG9: FALSE | DH9: FALSE | DI9: FALSE | DJ9: FALSE | DK9: FALSE | DL9: FALSE | DM9: FALSE | DN9: FALSE | DO9: FALSE | DP9: FALSE | DQ9: FALSE | DR9: FALSE | DS9: FALSE | DT9: FALSE | DU9: FALSE | DV9: FALSE | DW9: FALSE | DX9: FALSE | DY9: FALSE | DZ9: FALSE | EA9: FALSE | EB9: FALSE | EC9: FALSE | ED9: =AND(ED1<=ED7,ED1>=ED8) -> FALSE | EE9: FALSE | EF9: FALSE | EG9: FALSE | EH9: FALSE | EI9: FALSE | EJ9: FALSE | EK9: FALSE | EL9: FALSE | EM9: FALSE | EN9: FALSE | EO9: FALSE | EP9: FALSE | EQ9: FALSE | ER9: FALSE | ES9: FALSE | ET9: FALSE | EU9: FALSE | EV9: FALSE | EW9: FALSE | EX9: FALSE | EY9: FALSE | EZ9: FALSE | FA9: FALSE | FB9: FALSE | FC9: FALSE | FD9: FALSE | FE9: میانگین1 | FK9: میانگین | FL9: میانگین2 | FM9: =AND(FM1<=FM7,FM1>=FM8) -> FALSE | FN9: FALSE | FO9: FALSE | FP9: FALSE | FQ9: FALSE | FR9: FALSE | FS9: FALSE | FT9: FALSE | FU9: FALSE | FV9: FALSE | FW9: =AND(FW1<=FW7,FW1>=FW8) -> FALSE | FX9: FALSE | FY9: FALSE | FZ9: FALSE | GA9: FALSE | GB9: FALSE | GC9: FALSE | GD9: FALSE | GE9: FALSE | GF9: FALSE | GG9: FALSE | GH9: FALSE | GI9: FALSE | GJ9: FALSE | GK9: FALSE | GL9: FALSE | GM9: FALSE | GN9: FALSE | GO9: FALSE | GP9: FALSE | GQ9: FALSE | GR9: FALSE | GS9: FALSE | GT9: FALSE | GU9: FALSE | GV9: FALSE | GW9: FALSE | GX9: FALSE | GY9: FALSE | GZ9: FALSE | HA9: FALSE | HB9: FALSE | HC9: FALSE | HD9: FALSE | HE9: FALSE | HF9: FALSE | HG9: FALSE | HH9: FALSE | HI9: FALSE | HJ9: FALSE | HK9: FALSE | HL9: FALSE | HM9: FALSE | HN9: FALSE | HO9: FALSE | HP9: FALSE | HQ9: FALSE | HR9: FALSE | HS9: FALSE | HT9: FALSE | HU9: FALSE | HV9: FALSE | HW9: FALSE | HX9: FALSE | HY9: FALSE | HZ9: FALSE | IA9: FALSE | IB9: FALSE | IC9: FALSE | ID9: FALSE | IE9: FALSE | IF9: FALSE | IG9: FALSE | IH9: FALSE | II9: =AND(II1<=II7,II1>=II8) -> FALSE | IJ9: FALSE | IK9: FALSE | IL9: FALSE | IM9: FALSE | IN9: FALSE | IO9: FALSE | IP9: FALSE | IQ9: FALSE | IR9: FALSE | IS9: FALSE | IT9: FALSE | IU9: FALSE | IV9: FALSE | IW9: FALSE | IX9: FALSE | IY9: FALSE | IZ9: FALSE | JA9: FALSE | JB9: FALSE | JC9: FALSE | JD9: FALSE | JE9: FALSE | JF9: FALSE | JG9: FALSE | JH9: FALSE | JI9: FALSE | JJ9: FALSE | JK9: FALSE | JL9: FALSE | JM9: FALSE | JN9: FALSE | JO9: FALSE | JP9: FALSE | JQ9: FALSE | JR9: FALSE | JS9: FALSE | JT9: FALSE | JU9: FALSE | JV9: FALSE | JW9: FALSE | JX9: FALSE | JY9: FALSE | JZ9: FALSE | KA9: FALSE | KB9: FALSE | KC9: FALSE | KD9: FALSE | KE9: FALSE | KF9: FALSE | KG9: FALSE | KH9: FALSE | KI9: FALSE | KJ9: FALSE | KK9: FALSE | KL9: FALSE | KM9: FALSE | KN9: FALSE | KO9: FALSE | KP9: FALSE | KQ9: FALSE | KR9: FALSE | KS9: FALSE | KT9: FALSE | KU9: =AND(KU1<=KU7,KU1>=KU8) -> FALSE | KV9: FALSE | KW9: FALSE | KX9: FALSE | KY9: FALSE | KZ9: FALSE | LA9: FALSE | LB9: FALSE | LC9: FALSE | LD9: FALSE | LE9: FALSE | LF9: FALSE | LG9: FALSE | LH9: FALSE | LI9: FALSE | LJ9: FALSE | LK9: FALSE | LL9: FALSE | LM9: FALSE | LN9: FALSE | LO9: FALSE | LP9: FALSE | LQ9: FALSE | LR9: FALSE | LS9: FALSE | LT9: FALSE | LU9: FALSE | LV9: FALSE | LW9: FALSE | LX9: FALSE | LY9: FALSE | LZ9: FALSE | MA9: FALSE | MB9: FALSE | MC9: FALSE | MD9: FALSE | ME9: FALSE | MF9: FALSE | MG9: FALSE | MH9: FALSE | MI9: FALSE | MJ9: FALSE | MK9: FALSE | ML9: FALSE | MM9: FALSE | MN9: FALSE | MO9: FALSE | MP9: FALSE | MQ9: FALSE | MR9: FALSE | MS9: FALSE | MT9: FALSE | MU9: FALSE | MV9: FALSE | MW9: FALSE | MX9: FALSE | MY9: FALSE | MZ9: FALSE | NA9: FALSE | NB9: FALSE | NC9: FALSE | ND9: FALSE | NE9: FALSE | NF9: FALSE | NG9: =AND(NG1<=NG7,NG1>=NG8) -> FALSE | NH9: FALSE | NI9: FALSE | NJ9: FALSE | NK9: FALSE | NL9: FALSE | NM9: FALSE | NN9: FALSE | NO9: FALSE | NP9: FALSE | NQ9: FALSE | NR9: FALSE | NS9: FALSE | NT9: FALSE | NU9: FALSE | NV9: FALSE | NW9: FALSE | NX9: FALSE | NY9: FALSE | NZ9: FALSE | OA9: FALSE | OB9: FALSE | OC9: FALSE | OD9: FALSE | OE9: FALSE | OF9: FALSE | OG9: FALSE | OH9: FALSE | OI9: FALSE | OJ9: FALSE | OK9: FALSE | OL9: FALSE | OM9: FALSE | ON9: FALSE | OO9: FALSE | OP9: FALSE | OQ9: FALSE | OR9: FALSE | OS9: FALSE | OT9: FALSE | OU9: FALSE | OV9: FALSE | OW9: FALSE | OX9: FALSE | OY9: FALSE | OZ9: FALSE | PA9: FALSE | PB9: FALSE | PC9: FALSE | PD9: FALSE | PE9: FALSE | PF9: FALSE | PG9: FALSE | PH9: FALSE | PI9: FALSE | PJ9: FALSE | PK9: FALSE | PL9: FALSE | PM9: FALSE | PN9: FALSE | PO9: FALSE | PP9: FALSE | PQ9: FALSE | PR9: FALSE | PS9: =AND(PS1<=PS7,PS1>=PS8) -> FALSE | PT9: FALSE | PU9: FALSE | PV9: FALSE | PW9: TRUE | PX9: FALSE | PY9: FALSE | PZ9: FALSE | QA9: FALSE | QB9: FALSE | QC9: FALSE | QD9: FALSE | QE9: FALSE | QF9: FALSE | QG9: FALSE | QH9: FALSE | QI9: FALSE | QJ9: FALSE | QK9: FALSE | QL9: FALSE | QM9: FALSE | QN9: FALSE
C10: نوع شاخص | D10: برای شماره ستون فعال | E10: =AND(E1>=$D$5,E1<=$D$4) -> FALSE | F10: =AND(F1>=$D$5,F1<=$D$4) -> FALSE | G10: FALSE | H10: FALSE | I10: FALSE | J10: FALSE | K10: FALSE | L10: FALSE | M10: FALSE | N10: FALSE | O10: FALSE | P10: FALSE | Q10: FALSE | R10: FALSE | S10: FALSE | T10: FALSE | U10: FALSE | V10: FALSE | W10: FALSE | X10: FALSE | Y10: FALSE | Z10: FALSE | AA10: FALSE | AB10: FALSE | AC10: FALSE | AD10: FALSE | AE10: FALSE | AF10: FALSE | AG10: FALSE | AH10: FALSE | AI10: FALSE | AJ10: FALSE | AK10: FALSE | AL10: FALSE | AM10: FALSE | AN10: FALSE | AO10: FALSE | AP10: FALSE | AQ10: FALSE | AR10: FALSE | AS10: FALSE | AT10: FALSE | AU10: FALSE | AV10: FALSE | AW10: FALSE | AX10: FALSE | AY10: FALSE | AZ10: FALSE | BA10: FALSE | BB10: FALSE | BC10: FALSE | BD10: FALSE | BE10: FALSE | BF10: FALSE | BG10: FALSE | BH10: FALSE | BI10: FALSE | BJ10: FALSE | BK10: FALSE | BL10: FALSE | BM10: FALSE | BN10: FALSE | BO10: FALSE | BP10: FALSE | BQ10: FALSE | BR10: =AND(BR1>=$D$5,BR1<=$D$4) -> FALSE | BS10: FALSE | BT10: FALSE | BU10: FALSE | BV10: FALSE | BW10: FALSE | BX10: FALSE | BY10: FALSE | BZ10: FALSE | CA10: FALSE | CB10: FALSE | CC10: FALSE | CD10: FALSE | CE10: FALSE | CF10: FALSE | CG10: FALSE | CH10: FALSE | CI10: FALSE | CJ10: FALSE | CK10: FALSE | CL10: FALSE | CM10: FALSE | CN10: FALSE | CO10: TRUE | CP10: TRUE | CQ10: TRUE | CR10: TRUE | CS10: FALSE | CT10: FALSE | CU10: FALSE | CV10: FALSE | CW10: FALSE | CX10: FALSE | CY10: FALSE | CZ10: FALSE | DA10: FALSE | DB10: FALSE | DC10: FALSE | DD10: FALSE | DE10: FALSE | DF10: FALSE | DG10: FALSE | DH10: FALSE | DI10: FALSE | DJ10: FALSE | DK10: FALSE | DL10: FALSE | DM10: FALSE | DN10: FALSE | DO10: FALSE | DP10: FALSE | DQ10: FALSE | DR10: FALSE | DS10: FALSE | DT10: FALSE | DU10: FALSE | DV10: FALSE | DW10: FALSE | DX10: FALSE | DY10: FALSE | DZ10: FALSE | EA10: FALSE | EB10: FALSE | EC10: FALSE | ED10: =AND(ED1>=$D$5,ED1<=$D$4) -> FALSE | EE10: FALSE | EF10: FALSE | EG10: FALSE | EH10: FALSE | EI10: FALSE | EJ10: FALSE | EK10: FALSE | EL10: FALSE | EM10: FALSE | EN10: FALSE | EO10: FALSE | EP10: FALSE | EQ10: FALSE | ER10: FALSE | ES10: FALSE | ET10: FALSE | EU10: FALSE | EV10: FALSE | EW10: FALSE | EX10: FALSE | EY10: FALSE | EZ10: FALSE | FA10: FALSE | FB10: FALSE | FC10: FALSE | FD10: FALSE | FE10: FALSE | FF10: 1 | FG10: FALSE | FH10: FALSE | FI10: FALSE | FJ10: FALSE | FK10: FALSE | FL10: FALSE | FM10: FALSE | FN10: FALSE | FO10: FALSE | FP10: FALSE | FQ10: FALSE | FR10: FALSE | FS10: FALSE | FT10: FALSE | FU10: FALSE | FV10: FALSE | FW10: FALSE | FX10: FALSE | FY10: FALSE | FZ10: FALSE | GA10: FALSE | GB10: FALSE | GC10: FALSE | GD10: FALSE | GE10: FALSE | GF10: FALSE | GG10: FALSE | GH10: FALSE | GI10: FALSE | GJ10: FALSE | GK10: FALSE | GL10: FALSE | GM10: FALSE | GN10: FALSE | GO10: FALSE | GP10: =AND(GP1>=$D$5,GP1<=$D$4) -> FALSE | GQ10: FALSE | GR10: FALSE | GS10: FALSE | GT10: FALSE | GU10: FALSE | GV10: FALSE | GW10: FALSE | GX10: FALSE | GY10: FALSE | GZ10: FALSE | HA10: FALSE | HB10: FALSE | HC10: FALSE | HD10: FALSE | HE10: FALSE | HF10: FALSE | HG10: FALSE | HH10: FALSE | HI10: FALSE | HJ10: FALSE | HK10: FALSE | HL10: FALSE | HM10: FALSE | HN10: FALSE | HO10: FALSE | HP10: FALSE | HQ10: FALSE | HR10: FALSE | HS10: FALSE | HT10: FALSE | HU10: FALSE | HV10: FALSE | HW10: FALSE | HX10: FALSE | HY10: FALSE | HZ10: FALSE | IA10: FALSE | IB10: FALSE | IC10: FALSE | ID10: FALSE | IE10: FALSE | IF10: FALSE | IG10: FALSE | IH10: FALSE | II10: FALSE | IJ10: FALSE | IK10: FALSE | IL10: FALSE | IM10: FALSE | IN10: FALSE | IO10: FALSE | IP10: FALSE | IQ10: FALSE | IR10: FALSE | IS10: FALSE | IT10: FALSE | IU10: FALSE | IV10: FALSE | IW10: FALSE | IX10: FALSE | IY10: FALSE | IZ10: FALSE | JA10: FALSE | JB10: =AND(JB1>=$D$5,JB1<=$D$4) -> FALSE | JC10: FALSE | JD10: FALSE | JE10: FALSE | JF10: FALSE | JG10: FALSE | JH10: FALSE | JI10: FALSE | JJ10: FALSE | JK10: FALSE | JL10: FALSE | JM10: FALSE | JN10: FALSE | JO10: FALSE | JP10: FALSE | JQ10: FALSE | JR10: FALSE | JS10: FALSE | JT10: FALSE | JU10: FALSE | JV10: FALSE | JW10: FALSE | JX10: FALSE | JY10: FALSE | JZ10: FALSE | KA10: FALSE | KB10: FALSE | KC10: FALSE | KD10: FALSE | KE10: FALSE | KF10: FALSE | KG10: FALSE | KH10: FALSE | KI10: FALSE | KJ10: FALSE | KK10: FALSE | KL10: FALSE | KM10: FALSE | KN10: FALSE | KO10: FALSE | KP10: FALSE | KQ10: FALSE | KR10: FALSE | KS10: FALSE | KT10: FALSE | KU10: FALSE | KV10: FALSE | KW10: FALSE | KX10: FALSE | KY10: FALSE | KZ10: FALSE | LA10: FALSE | LB10: FALSE | LC10: FALSE | LD10: FALSE | LE10: FALSE | LF10: FALSE | LG10: FALSE | LH10: FALSE | LI10: FALSE | LJ10: FALSE | LK10: FALSE | LL10: FALSE | LM10: FALSE | LN10: =AND(LN1>=$D$5,LN1<=$D$4) -> FALSE | LO10: FALSE | LP10: FALSE | LQ10: FALSE | LR10: FALSE | LS10: FALSE | LT10: FALSE | LU10: FALSE | LV10: FALSE | LW10: FALSE | LX10: FALSE | LY10: FALSE | LZ10: FALSE | MA10: FALSE | MB10: FALSE | MC10: FALSE | MD10: FALSE | ME10: FALSE | MF10: FALSE | MG10: FALSE | MH10: FALSE | MI10: FALSE | MJ10: FALSE | MK10: FALSE | ML10: FALSE | MM10: FALSE | MN10: FALSE | MO10: FALSE | MP10: FALSE | MQ10: FALSE | MR10: FALSE | MS10: FALSE | MT10: FALSE | MU10: FALSE | MV10: FALSE | MW10: FALSE | MX10: FALSE | MY10: FALSE | MZ10: FALSE | NA10: FALSE | NB10: FALSE | NC10: FALSE | ND10: FALSE | NE10: FALSE | NF10: FALSE | NG10: FALSE | NH10: FALSE | NI10: FALSE | NJ10: FALSE | NK10: FALSE | NL10: FALSE | NM10: FALSE | NN10: FALSE | NO10: FALSE | NP10: FALSE | NQ10: FALSE | NR10: FALSE | NS10: FALSE | NT10: FALSE | NU10: FALSE | NV10: FALSE | NW10: FALSE | NX10: FALSE | NY10: FALSE | NZ10: =AND(NZ1>=$D$5,NZ1<=$D$4) -> FALSE | OA10: FALSE | OB10: FALSE | OC10: FALSE | OD10: FALSE | OE10: FALSE | OF10: FALSE | OG10: FALSE | OH10: FALSE | OI10: FALSE | OJ10: FALSE | OK10: FALSE | OL10: FALSE | OM10: FALSE | ON10: FALSE | OO10: FALSE | OP10: FALSE | OQ10: FALSE | OR10: FALSE | OS10: FALSE | OT10: FALSE | OU10: FALSE | OV10: FALSE | OW10: FALSE | OX10: FALSE | OY10: FALSE | OZ10: FALSE | PA10: FALSE | PB10: FALSE | PC10: FALSE | PD10: FALSE | PE10: FALSE | PF10: FALSE | PG10: FALSE | PH10: FALSE | PI10: FALSE | PJ10: FALSE | PK10: FALSE | PL10: FALSE | PM10: FALSE | PN10: FALSE | PO10: FALSE | PP10: FALSE | PQ10: FALSE | PR10: FALSE | PS10: FALSE | PT10: FALSE | PU10: FALSE | PV10: FALSE | PW10: FALSE | PX10: FALSE | PY10: FALSE | PZ10: FALSE | QA10: FALSE | QB10: FALSE | QC10: FALSE | QD10: FALSE | QE10: FALSE | QF10: FALSE | QG10: FALSE | QH10: FALSE | QI10: FALSE | QJ10: FALSE | QK10: FALSE | QL10: =AND(QL1>=$D$5,QL1<=$D$4) -> FALSE | QM10: =AND(QM1>=$D$5,QM1<=$D$4) -> FALSE | QN10: =AND(QN1>=$D$5,QN1<=$D$4) -> FALSE
A11: =C11&B11 -> ابنیه1 | B11: 1 | C11: ابنیه | D11: عملیات تخریب | CO11: 1636.7 | CP11: 1598.3 | CQ11: 1572.1 | CR11: 1508.8 | CS11: 1211.8 | CT11: 1180.8 | CV11: 1120.3 | CW11: 971.1 | CX11: 962.5 | CY11: 945.1 | CZ11: 945 | DA11: 860.1 | DB11: 852.3 | DC11: 844.6 | DD11: 836.8 | DE11: 775.4 | DF11: 768.8 | DG11: 762.3 | DH11: 755.6 | DI11: 681.5 | DJ11: 670.8 | DK11: 660.1 | DL11: 649.1 | DM11: 547.1 | DN11: 537.2 | DO11: 526 | DP11: 516.8 | DQ11: 450.5 | DR11: 442.6 | DS11: 423.4 | DT11: 406.7 | DU11: 362 | DV11: 358.3 | DW11: 354.4 | DX11: 344.6 | DY11: 319.8 | DZ11: 311.6 | EA11: 300.9 | EB11: 299.5 | EC11: 281.2 | ED11: 277.5 | EE11: 273.8 | EF11: 271.3 | EG11: 246.8 | EH11: 246.8 | EI11: 242.5 | EJ11: 239.3 | EK11: 214.6 | EL11: 210.5 | EM11: 200.7 | EN11: 198.1 | EO11: 178.5 | EP11: 178.1 | EQ11: 175.3 | ER11: 173.7 | ES11: 159.4 | ET11: 158.4 | EU11: 155.3 | EV11: 152.7 | EW11: 142.8 | EX11: 142.8 | EY11: 139.2 | EZ11: 135.7 | FA11: 118 | FB11: 116 | FC11: 114 | FD11: 111 | FE11: =IFERROR(AVERAGEIF($E$9:$FD$9,TRUE,E11:FD11),0) -> 1572.1 | FF11: =IF(C11=FG11,1,IF(FG11="کلیه رشته ها",1,0)) -> 0 | FG11: راهداری | FJ11: =AVERAGE(FK11,FE11) -> 786.1 | FK11: =IFERROR(AVERAGEIF($FM$9:$QN$9,TRUE,FM11:QN11),0) -> 0 | FL11: 1382 | QI11: 1161.4 | QJ11: 1159.5 | QK11: 1157.5
A12: =C12&B12 -> ابنیه2 | B12: 2 | C12: ابنیه | D12: عملیات خاکی بادست | CO12: 1498.7 | CP12: 1457.5 | CQ12: 1416.8 | CR12: 1355 | CS12: 1105.4 | CT12: 1075.6 | CV12: 986.4 | CW12: 861.2 | CX12: 854.3 | CY12: 841.5 | CZ12: 837.8 | DA12: 768.7 | DB12: 762.5 | DC12: 756.3 | DD12: 749.4 | DE12: 699 | DF12: 694.4 | DG12: 688 | DH12: 682.2 | DI12: 625 | DJ12: 617 | DK12: 608.3 | DL12: 599.1 | DM12: 518.1 | DN12: 506.4 | DO12: 497.4 | DP12: 489.3 | DQ12: 433.5 | DR12: 423 | DS12: 397.6 | DT12: 381.9 | DU12: 344.4 | DV12: 338.7 | DW12: 331.5 | DX12: 323.8 | DY12: 303.2 | DZ12: 287.1 | EA12: 281.1 | EB12: 279.4 | EC12: 261.3 | ED12: 258 | EE12: 254.1 | EF12: 251.1 | EG12: 232.6 | EH12: 231.9 | EI12: 228 | EJ12: 225.4 | EK12: 203.1 | EL12: 198.4 | EM12: 191 | EN12: 188.5 | EO12: 170.9 | EP12: 170.6 | EQ12: 168.1 | ER12: 166.9 | ES12: 154.4 | ET12: 153.4 | EU12: 150.4 | EV12: 148.1 | EW12: 139.6 | EX12: 139.6 | EY12: 136.9 | EZ12: 133.2 | FA12: 116.2 | FB12: 114.1 | FC12: 112 | FD12: 108.5 | FE12: =IFERROR(AVERAGEIF($E$9:$FD$9,TRUE,E12:FD12),0) -> 1416.8 | FF12: =IF(C12=FG12,1,IF(FG12="کلیه رشته ها",1,0)) -> 0 | FG12: =FG11 -> راهداری | FJ12: =AVERAGE(FK12,FE12) -> 708.4 | FK12: =IFERROR(AVERAGEIF($FM$9:$QN$9,TRUE,FM12:QN12),0) -> 0 | FL12: 1383 | QI12: 1051.6 | QJ12: 1044 | QK12: 1031.4
A13: ابنیه3 | B13: 3 | C13: ابنیه | D13: عملیات خاکی باماشین | CO13: 1953.4 | CP13: 1840.5 | CQ13: 1724.8 | CR13: 1628.7 | CS13: 1415.7 | CT13: 1397.4 | CV13: 1104.1 | CW13: 996.3 | CX13: 987.2 | CY13: 960.1 | CZ13: 960.1 | DA13: 905.6 | DB13: 897.2 | DC13: 888.8 | DD13: 880.4 | DE13: 838.4 | DF13: 838.3 | DG13: 839.1 | DH13: 835.1 | DI13: 783.3 | DJ13: 776.4 | DK13: 771.5 | DL13: 755.7 | DM13: 686.8 | DN13: 674.8 | DO13: 662.9 | DP13: 645 | DQ13: 597 | DR13: 566.6 | DS13: 503.2 | DT13: 471 | DU13: 436 | DV13: 412.4 | DW13: 386.9 | DX13: 368.7 | DY13: 365 | DZ13: 283.5 | EA13: 283.5 | EB13: 282.1 | EC13: 267.4 | ED13: 266.6 | EE13: 265.6 | EF13: 259.9 | EG13: 251 | EH13: 250.8 | EI13: 249.7 | EJ13: 246.9 | EK13: 227.6 | EL13: 218.6 | EM13: 209.4 | EN13: 207.3 | EO13: 192.5 | EP13: 192.3 | EQ13: 190 | ER13: 189.9 | ES13: 180.7 | ET13: 179.1 | EU13: 174.2 | EV13: 171 | EW13: 161.3 | EX13: 161.3 | EY13: 157.8 | EZ13: 151.7 | FA13: 121.8 | FB13: 119.7 | FC13: 117.7 | FD13: 111.8 | FE13: 1724.8 | FF13: 0 | FG13: =FG12 -> راهداری | FJ13: 862.4 | FK13: 0 | FL13: 1384 | QI13: 1393.6 | QJ13: 1324.3 | QK13: 1252.9
A14: ابنیه4 | B14: 4 | C14: ابنیه | D14: عملیات بنایی باسنگ | CO14: 1312.9 | CP14: 1268.7 | CQ14: 1177.7 | CR14: 1098 | CS14: 945.4 | CT14: 917.6 | CV14: 783.7 | CW14: 700.1 | CX14: 690.9 | CY14: 681.9 | CZ14: 671.8 | DA14: 624.9 | DB14: 620.4 | DC14: 612.8 | DD14: 607.2 | DE14: 577.5 | DF14: 575.7 | DG14: 564.3 | DH14: 558.8 | DI14: 537.2 | DJ14: 535.4 | DK14: 518.3 | DL14: 500.7 | DM14: 453.7 | DN14: 445.5 | DO14: 428.9 | DP14: 423.7 | DQ14: 385.8 | DR14: 371.8 | DS14: 355 | DT14: 341.3 | DU14: 318.4 | DV14: 287.2 | DW14: 285.2 | DX14: 278.9 | DY14: 263.9 | DZ14: 247 | EA14: 244.5 | EB14: 243.4 | EC14: 233.9 | ED14: 232.1 | EE14: 228.5 | EF14: 227.3 | EG14: 214.5 | EH14: 213.9 | EI14: 213.8 | EJ14: 209.3 | EK14: 191.3 | EL14: 189 | EM14: 181.3 | EN14: 179.4 | EO14: 161.6 | EP14: 161.5 | EQ14: 158.3 | ER14: 157.5 | ES14: 152.2 | ET14: 151.5 | EU14: 148.6 | EV14: 147 | EW14: 143.3 | EX14: 143.3 | EY14: 140.3 | EZ14: 137.7 | FA14: 118.5 | FB14: 116.2 | FC14: 114.3 | FD14: 111.8 | FE14: 1177.7 | FF14: 0 | FG14: =FG13 -> راهداری | FJ14: 588.9 | FK14: 0 | FL14: 1385 | QI14: 866.7 | QJ14: 858 | QK14: 831.7
A15: ابنیه5 | B15: 5 | C15: ابنیه | D15: قالب بندی چوبی | CO15: 1031 | CP15: 998.6 | CQ15: 988.2 | CR15: 968.3 | CS15: 849.2 | CT15: 839.6 | CV15: 668.2 | CW15: 583.4 | CX15: 578.4 | CY15: 567.4 | CZ15: 564.6 | DA15: 528.5 | DB15: 525.8 | DC15: 517.7 | DD15: 514.9 | DE15: 489.2 | DF15: 487.3 | DG15: 482.1 | DH15: 479.8 | DI15: 456.3 | DJ15: 452.8 | DK15: 448.4 | DL15: 440.9 | DM15: 397.5 | DN15: 393.1 | DO15: 382 | DP15: 378.4 | DQ15: 348.4 | DR15: 342.8 | DS15: 327.6 | DT15: 308.8 | DU15: 288.5 | DV15: 276.8 | DW15: 271.1 | DX15: 268.9 | DY15: 255.2 | DZ15: 249.8 | EA15: 248.3 | EB15: 247.3 | EC15: 219.5 | ED15: 218.2 | EE15: 216.4 | EF15: 215.7 | EG15: 210.2 | EH15: 210.9 | EI15: 200.1 | EJ15: 198.9 | EK15: 190.4 | EL15: 181.7 | EM15: 170.9 | EN15: 170.1 | EO15: 156.6 | EP15: 156.5 | EQ15: 152.6 | ER15: 152.6 | ES15: 140.2 | ET15: 139.9 | EU15: 138.8 | EV15: 138.3 | EW15: 131.1 | EX15: 131.2 | EY15: 125.3 | EZ15: 124.2 | FA15: 107.2 | FB15: 106.4 | FC15: 109.6 | FD15: 108.4 | FE15: 988.2 | FF15: 0 | FG15: راهداری | FJ15: 494.1 | FK15: 0 | FL15: 1386 | QI15: 841.3 | QJ15: 801 | QK15: 746.8
A16: ابنیه6 | B16: 6 | C16: ابنیه | D16: قالب بندی فلزی | CO16: 1472.8 | CP16: 1255.3 | CQ16: 1241.9 | CR16: 1300.5 | CS16: 1100 | CT16: 1036 | CV16: 865.2 | CW16: 769.6 | CX16: 742.2 | CY16: 717.2 | CZ16: 660.4 | DA16: 638.7 | DB16: 629.8 | DC16: 595.4 | DD16: 593.9 | DE16: 527.6 | DF16: 538.2 | DG16: 553.5 | DH16: 554.5 | DI16: 540.8 | DJ16: 560.2 | DK16: 559.7 | DL16: 563.8 | DM16: 510 | DN16: 508.8 | DO16: 464.6 | DP16: 464.7 | DQ16: 446.5 | DR16: 430.6 | DS16: 381.8 | DT16: 342.3 | DU16: 313.9 | DV16: 296.5 | DW16: 281.7 | DX16: 269.6 | DY16: 256.2 | DZ16: 251.9 | EA16: 237.5 | EB16: 234.1 | EC16: 218 | ED16: 215.5 | EE16: 215 | EF16: 205.5 | EG16: 206.1 | EH16: 243 | EI16: 272.6 | EJ16: 255.7 | EK16: 220.8 | EL16: 215.3 | EM16: 207 | EN16: 202.3 | EO16: 167.7 | EP16: 163.7 | EQ16: 150.1 | ER16: 144.3 | ES16: 137.2 | ET16: 139.5 | EU16: 143 | EV16: 146.3 | EW16: 147.2 | EX16: 149.4 | EY16: 139.8 | EZ16: 132.3 | FA16: 113.9 | FB16: 106.8 | FC16: 100.3 | FD16: 102.1 | FE16: 1241.9 | FF16: 0 | FG16: راهداری | FJ16: 621 | FK16: 0 | FL16: 1387 | QI16: 985.9 | QJ16: 970.5 | QK16: 960.6
A17: ابنیه7 | B17: 7 | C17: ابنیه | D17: کارهای فولادی بامیلگرد | CO17: 1702.4 | CP17: 1349.6 | CQ17: 1295.6 | CR17: 1470.6 | CS17: 1246.5 | CT17: 1267.2 | CV17: 886.3 | CW17: 724.9 | CX17: 681.7 | CY17: 655.3 | CZ17: 531.7 | DA17: 519.1 | DB17: 530.2 | DC17: 499.8 | DD17: 500.9 | DE17: 417.8 | DF17: 450.6 | DG17: 475.4 | DH17: 492.1 | DI17: 523.2 | DJ17: 566.7 | DK17: 569.7 | DL17: 587.1 | DM17: 540.1 | DN17: 576.5 | DO17: 585.5 | DP17: 586.7 | DQ17: 583.9 | DR17: 584.2 | DS17: 507.2 | DT17: 406.3 | DU17: 350.4 | DV17: 300.2 | DW17: 289.7 | DX17: 273 | DY17: 266.6 | DZ17: 271.4 | EA17: 249.1 | EB17: 240.5 | EC17: 218.8 | ED17: 189.5 | EE17: 194.7 | EF17: 188.9 | EG17: 204 | EH17: 252.2 | EI17: 359.6 | EJ17: 313.7 | EK17: 250.3 | EL17: 226.7 | EM17: 201.3 | EN17: 213.6 | EO17: 199.2 | EP17: 195.8 | EQ17: 180.1 | ER17: 151.7 | ES17: 127 | ET17: 126 | EU17: 127.1 | EV17: 135.9 | EW17: 142.1 | EX17: 150.2 | EY17: 146.2 | EZ17: 140.3 | FA17: 116.4 | FB17: 98 | FC17: 97.4 | FD17: 98.6 | FE17: 1295.6 | FF17: 0 | FG17: راهداری | FJ17: 647.8 | FK17: 0 | FL17: 1388 | QI17: 1366.6 | QJ17: 1317.2 | QK17: 1039.3
A18: ابنیه8 | B18: 8 | C18: ابنیه | D18: بتن درجا | CO18: 1281.7 | CP18: 1247.8 | CQ18: 1189.6 | CR18: 1055.5 | CS18: 925.8 | CT18: 906.6 | CV18: 790.2 | CW18: 705.5 | CX18: 700.4 | CY18: 693.6 | CZ18: 685.2 | DA18: 636.9 | DB18: 629.6 | DC18: 603.7 | DD18: 595.9 | DE18: 578.1 | DF18: 576.8 | DG18: 580.5 | DH18: 577.8 | DI18: 560.5 | DJ18: 558.3 | DK18: 559.2 | DL18: 511.3 | DM18: 478.7 | DN18: 472.5 | DO18: 459.7 | DP18: 441.9 | DQ18: 406.7 | DR18: 398.2 | DS18: 357.3 | DT18: 345.8 | DU18: 326.6 | DV18: 309.8 | DW18: 306 | DX18: 288.1 | DY18: 279.5 | DZ18: 261.7 | EA18: 258.1 | EB18: 257.1 | EC18: 250.3 | ED18: 249.3 | EE18: 247.5 | EF18: 246.5 | EG18: 241.3 | EH18: 241.1 | EI18: 234.9 | EJ18: 220.9 | EK18: 200 | EL18: 197.8 | EM18: 193.4 | EN18: 192.2 | EO18: 175.3 | EP18: 175.2 | EQ18: 172.6 | ER18: 172.6 | ES18: 168.4 | ET18: 167.9 | EU18: 166.3 | EV18: 161.1 | EW18: 152.9 | EX18: 152.9 | EY18: 150.9 | EZ18: 149.2 | FA18: 134.6 | FB18: 123.6 | FC18: 115.6 | FD18: 113.3 | FE18: 1189.6 | FF18: 0 | FG18: راهداری | FJ18: 594.8 | FK18: 0 | FL18: 1389 | QI18: 874.6 | QJ18: 868.4 | QK18: 825.4
A19: ابنیه9 | B19: 9 | C19: ابنیه | D19: کارهای فولادی سنگین | CO19: 1994.5 | CP19: 1568.6 | CQ19: 1502.9 | CR19: 1578.8 | CS19: 1309.8 | CT19: 1239.2 | CV19: 901.1 | CW19: 794.1 | CX19: 761.7 | CY19: 725.8 | CZ19: 671.3 | DA19: 656 | DB19: 626.9 | DC19: 584 | DD19: 580.7 | DE19: 528.9 | DF19: 550.5 | DG19: 570 | DH19: 583.8 | DI19: 580.1 | DJ19: 588.6 | DK19: 588.4 | DL19: 594.8 | DM19: 561.7 | DN19: 568.3 | DO19: 572.4 | DP19: 577 | DQ19: 546.8 | DR19: 498.1 | DS19: 404.1 | DT19: 352.4 | DU19: 335.8 | DV19: 318.9 | DW19: 302.3 | DX19: 275.2 | DY19: 257.6 | DZ19: 247.7 | EA19: 234.7 | EB19: 231.1 | EC19: 218.4 | ED19: 211.7 | EE19: 213.4 | EF19: 196.9 | EG19: 201 | EH19: 232 | EI19: 291 | EJ19: 272.9 | EK19: 233.6 | EL19: 223.5 | EM19: 209.2 | EN19: 210.9 | EO19: 188.4 | EP19: 180 | EQ19: 173 | ER19: 158.5 | ES19: 141.2 | ET19: 143.9 | EU19: 143.6 | EV19: 147.8 | EW19: 147.8 | EX19: 151.3 | EY19: 145.5 | EZ19: 140.3 | FA19: 120.8 | FB19: 108 | FC19: 101.4 | FD19: 103.6 | FE19: 1502.9 | FF19: 0 | FG19: راهداری | FJ19: 751.5 | FK19: 0 | FL19: 1390 | QI19: 1220.4 | QJ19: 1187.4 | QK19: 1009.4
A20: ابنیه10 | B20: 10 | C20: ابنیه | D20: سقف سبک بتنی | CO20: 1174.2 | CP20: 1140.4 | CQ20: 1096.8 | CR20: 999.7 | CS20: 862.4 | CT20: 845 | CV20: 743.3 | CW20: 657 | CX20: 652.6 | CY20: 646 | CZ20: 639.5 | DA20: 593 | DB20: 587.4 | DC20: 571 | DD20: 565 | DE20: 541.5 | DF20: 539.6 | DG20: 539.5 | DH20: 536.5 | DI20: 511.9 | DJ20: 508.6 | DK20: 503.2 | DL20: 474.3 | DM20: 436.5 | DN20: 430.7 | DO20: 420.5 | DP20: 408.8 | DQ20: 376 | DR20: 368.5 | DS20: 339.7 | DT20: 323.6 | DU20: 303.2 | DV20: 293.3 | DW20: 289.6 | DX20: 277.2 | DY20: 266.2 | DZ20: 248.2 | EA20: 243.3 | EB20: 241.9 | EC20: 225.8 | ED20: 224.4 | EE20: 222.4 | EF20: 223.1 | EG20: 223.3 | EH20: 229.2 | EI20: 231 | EJ20: 222.1 | EK20: 204.5 | EL20: 195.8 | EM20: 181.7 | EN20: 174.7 | EO20: 161 | EP20: 160.8 | EQ20: 157.3 | ER20: 157.2 | ES20: 151.7 | ET20: 151.2 | EU20: 149.7 | EV20: 146.7 | EW20: 139.2 | EX20: 139.2 | EY20: 139.3 | EZ20: 137.5 | FA20: 121.8 | FB20: 115.8 | FC20: 111.9 | FD20: 110.2 | FE20: 1096.8 | FF20: 0 | FG20: راهداری | FJ20: 548.4 | FK20: 0 | FL20: 1391 | QI20: 822.6 | QJ20: 813.6 | QK20: 782.1
A21: ابنیه11 | B21: 11 | C21: ابنیه | D21: آجرکاری وشفته ریزی | CO21: 1446.4 | CP21: 1403.4 | CQ21: 1288.7 | CR21: 1201.1 | CS21: 1033.9 | CT21: 1007.3 | CV21: 898.8 | CW21: 801 | CX21: 797.3 | CY21: 793 | CZ21: 783.3 | DA21: 738.6 | DB21: 736.1 | DC21: 729 | DD21: 723.3 | DE21: 696.9 | DF21: 695.3 | DG21: 688.1 | DH21: 682.7 | DI21: 663.2 | DJ21: 661.8 | DK21: 658.9 | DL21: 640.6 | DM21: 587.6 | DN21: 580 | DO21: 578.3 | DP21: 571.2 | DQ21: 525.5 | DR21: 510.5 | DS21: 479.8 | DT21: 451.8 | DU21: 426.3 | DV21: 418.7 | DW21: 425.3 | DX21: 410.6 | DY21: 370 | DZ21: 284.1 | EA21: 268.3 | EB21: 264.2 | EC21: 281.2 | ED21: 279.8 | EE21: 277.9 | EF21: 283.8 | EG21: 297.8 | EH21: 301.9 | EI21: 308.7 | EJ21: 302.5 | EK21: 284.3 | EL21: 273.6 | EM21: 221.8 | EN21: 201.2 | EO21: 164.9 | EP21: 164.8 | EQ21: 161.5 | ER21: 160.8 | ES21: 156.7 | ET21: 156.2 | EU21: 154.2 | EV21: 153 | EW21: 146.3 | EX21: 146.3 | EY21: 144.5 | EZ21: 142.4 | FA21: 117.4 | FB21: 115.4 | FC21: 113.8 | FD21: 111.5 | FE21: 1288.7 | FF21: 0 | FG21: راهداری | FJ21: 644.4 | FK21: 0 | FL21: 1392 | QI21: 969.9 | QJ21: 964 | QK21: 949.7
A22: ابنیه12 | B22: 12 | C22: ابنیه | D22: بتن پیش ساخته وبلوک چینی | CO22: 1345.6 | CP22: 1315.1 | CQ22: 1276.5 | CR22: 1170.2 | CS22: 1031.2 | CT22: 1012 | CV22: 884.2 | CW22: 791.8 | CX22: 783.7 | CY22: 766.8 | CZ22: 759.3 | DA22: 705.7 | DB22: 702.1 | DC22: 680.9 | DD22: 676.3 | DE22: 653.1 | DF22: 651.3 | DG22: 649.4 | DH22: 646.2 | DI22: 623.2 | DJ22: 620.2 | DK22: 615.8 | DL22: 601.1 | DM22: 537 | DN22: 531.7 | DO22: 522 | DP22: 514.8 | DQ22: 458.7 | DR22: 444.7 | DS22: 400.4 | DT22: 381.9 | DU22: 364.4 | DV22: 350.8 | DW22: 346.3 | DX22: 339.7 | DY22: 324 | DZ22: 311.8 | EA22: 298.1 | EB22: 297.2 | EC22: 287.1 | ED22: 285.8 | EE22: 284.1 | EF22: 283 | EG22: 277 | EH22: 276.4 | EI22: 283.5 | EJ22: 270.5 | EK22: 230 | EL22: 217.7 | EM22: 214.4 | EN22: 210.2 | EO22: 182.7 | EP22: 182.6 | EQ22: 179.7 | ER22: 179.7 | ES22: 165.1 | ET22: 164.7 | EU22: 162.4 | EV22: 161 | EW22: 143.4 | EX22: 143.4 | EY22: 140.2 | EZ22: 138.6 | FA22: 115.1 | FB22: 112.8 | FC22: 109.3 | FD22: 107.7 | FE22: 1276.5 | FF22: 0 | FG22: راهداری | FJ22: 638.3 | FK22: 0 | FL22: 1393 | QI22: 984.8 | QJ22: 971.6 | QK22: 951.4
A23: ابنیه13 | B23: 13 | C23: ابنیه | D23: عایق کاری رطوبتی | CO23: 1372 | CP23: 1346.3 | CQ23: 1367 | CR23: 1474.3 | CS23: 1302.4 | CT23: 1390.4 | CV23: 939.3 | CW23: 811.3 | CX23: 763.7 | CY23: 732.4 | CZ23: 729.3 | DA23: 715.7 | DB23: 690.2 | DC23: 651.2 | DD23: 637.6 | DE23: 619.5 | DF23: 661.2 | DG23: 698.4 | DH23: 700.3 | DI23: 685.2 | DJ23: 714.2 | DK23: 744.9 | DL23: 735.8 | DM23: 691.2 | DN23: 693.4 | DO23: 676.7 | DP23: 675.9 | DQ23: 622.7 | DR23: 482.6 | DS23: 443.8 | DT23: 423.6 | DU23: 377.6 | DV23: 363.7 | DW23: 347 | DX23: 332.8 | DY23: 301.2 | DZ23: 282.8 | EA23: 277.9 | EB23: 279 | EC23: 266.6 | ED23: 264.4 | EE23: 251.3 | EF23: 242.6 | EG23: 251.6 | EH23: 262.9 | EI23: 265 | EJ23: 233.3 | EK23: 159.8 | EL23: 155.4 | EM23: 148.9 | EN23: 148.2 | EO23: 123.1 | EP23: 123 | EQ23: 121.2 | ER23: 121.2 | ES23: 118.6 | ET23: 118.4 | EU23: 117.7 | EV23: 117.3 | EW23: 118.2 | EX23: 118.2 | EY23: 114.5 | EZ23: 113.6 | FA23: 104.4 | FB23: 103.9 | FC23: 103.3 | FD23: 102.3 | FE23: 1367 | FF23: 0 | FG23: راهداری | FJ23: 683.5 | FK23: 0 | FL23: 1394 | QI23: 1358.7 | QJ23: 1182.7 | QK23: 1144.3
A24: ابنیه14 | B24: 14 | C24: ابنیه | D24: عایق کاری حرارتی | CO24: 848.5 | CP24: 841.8 | CQ24: 818.3 | CR24: 738.2 | CS24: 636.4 | CT24: 623.7 | CV24: 432.8 | CW24: 398.9 | CX24: 398.1 | CY24: 384.9 | CZ24: 383.6 | DA24: 368.9 | DB24: 368.4 | DC24: 349.9 | DD24: 349 | DE24: 343.8 | DF24: 343.3 | DG24: 336.7 | DH24: 335.8 | DI24: 334.4 | DJ24: 333.8 | DK24: 329.7 | DL24: 328.4 | DM24: 318.5 | DN24: 317.4 | DO24: 312.6 | DP24: 311.6 | DQ24: 305.8 | DR24: 299.8 | DS24: 258.6 | DT24: 243.4 | DU24: 225.1 | DV24: 208.3 | DW24: 200.1 | DX24: 199.5 | DY24: 197.2 | DZ24: 195.6 | EA24: 195.3 | EB24: 177.6 | EC24: 184.3 | ED24: 187.6 | EE24: 188.1 | EF24: 181.8 | EG24: 168.3 | EH24: 168.3 | EI24: 160.7 | EJ24: 160.6 | EK24: 156.4 | EL24: 156.3 | EM24: 156.1 | EN24: 156 | EO24: 138.2 | EP24: 138.2 | EQ24: 134.7 | ER24: 134.7 | ES24: 129.5 | ET24: 129.4 | EU24: 129.2 | EV24: 129.2 | EW24: 117.5 | EX24: 117.5 | EY24: 117.4 | EZ24: 113.4 | FA24: 110.4 | FB24: 110.3 | FC24: 110.2 | FD24: 110 | FE24: 818.3 | FF24: 0 | FG24: راهداری | FJ24: 409.2 | FK24: 0 | FL24: 1395 | QI24: 580.6 | QJ24: 572.3 | QK24: 478.9
A25: ابنیه15 | B25: 15 | C25: ابنیه | D25: کارهای آزبست سیمان | CO25: 344 | CP25: 343 | CQ25: 342 | CR25: 341 | CS25: 340 | CT25: 339 | CV25: 336 | CW25: 335 | CX25: 334 | CY25: 333 | CZ25: 332 | DA25: 331 | DB25: 330 | DC25: 329 | DD25: 328 | DE25: 327 | DF25: 326 | DG25: 325 | DH25: 324 | DI25: 323 | DJ25: 322 | DK25: 320.8 | DL25: 318.8 | DM25: 304.3 | DN25: 302.1 | DO25: 300.2 | DP25: 298.5 | DQ25: 288.2 | DR25: 286.2 | DS25: 282.6 | DT25: 277.7 | DU25: 271 | DV25: 270 | DW25: 269 | DX25: 268.4 | DY25: 264.1 | DZ25: 262.5 | EA25: 261.9 | EB25: 261.4 | EC25: 257.7 | ED25: 256.9 | EE25: 255.8 | EF25: 255.4 | EG25: 252.3 | EH25: 252 | EI25: 251.2 | EJ25: 226.5 | EK25: 211.8 | EL25: 210.7 | EM25: 197.6 | EN25: 180.8 | EO25: 170 | EP25: 169.9 | EQ25: 165 | ER25: 165 | ES25: 154.8 | ET25: 154.7 | EU25: 154.2 | EV25: 154 | EW25: 138.6 | EX25: 138.6 | EY25: 136.5 | EZ25: 135.8 | FA25: 115.5 | FB25: 112.2 | FC25: 110.3 | FD25: 109.6 | FE25: 342 | FF25: 0 | FG25: راهداری | FJ25: 171 | FK25: 0 | FL25: 1396 | QI25: 339 | QJ25: 338 | QK25: 337
A26: ابنیه16 | B26: 16 | C26: ابنیه | D26: کارهای فولادی سبک | CO26: 1628.5 | CP26: 1355.5 | CQ26: 1337.3 | CR26: 1405.4 | CS26: 1214.4 | CT26: 1233.5 | CV26: 808.3 | CW26: 699.2 | CX26: 671.9 | CY26: 638.4 | CZ26: 573.4 | DA26: 560.7 | DB26: 551.4 | DC26: 515.5 | DD26: 520.7 | DE26: 456.9 | DF26: 478.8 | DG26: 490.9 | DH26: 504.7 | DI26: 523.8 | DJ26: 547.6 | DK26: 541 | DL26: 549.8 | DM26: 503.7 | DN26: 510.7 | DO26: 521.3 | DP26: 533.3 | DQ26: 507.7 | DR26: 486.6 | DS26: 407.8 | DT26: 345.1 | DU26: 318.3 | DV26: 296.2 | DW26: 289.2 | DX26: 272.5 | DY26: 252.3 | DZ26: 247.7 | EA26: 234.4 | EB26: 227.9 | EC26: 213.3 | ED26: 204.2 | EE26: 205.9 | EF26: 193.9 | EG26: 203.9 | EH26: 232.3 | EI26: 288.3 | EJ26: 271.9 | EK26: 231.6 | EL26: 223.1 | EM26: 206.6 | EN26: 205.1 | EO26: 184.3 | EP26: 177.6 | EQ26: 160.8 | ER26: 146.9 | ES26: 136.5 | ET26: 142 | EU26: 142.1 | EV26: 147.3 | EW26: 149.6 | EX26: 152.2 | EY26: 142.1 | EZ26: 133.6 | FA26: 114.3 | FB26: 102.4 | FC26: 101.7 | FD26: 103 | FE26: 1337.3 | FF26: 0 | FG26: راهداری | FJ26: 668.7 | FK26: 0 | FL26: 1397 | QI26: 1207.1 | QJ26: 1155.1 | QK26: 929.1
A27: ابنیه17 | B27: 17 | C27: ابنیه | D27: کارهای آلومینیومی | CO27: 884.8 | CP27: 873.2 | CQ27: 866.8 | CR27: 864.9 | CS27: 775.3 | CT27: 774.2 | CV27: 455.9 | CW27: 410.2 | CX27: 399.1 | CY27: 393.9 | CZ27: 391.5 | DA27: 368.3 | DB27: 367.9 | DC27: 350.2 | DD27: 349.7 | DE27: 339.9 | DF27: 339.7 | DG27: 360.9 | DH27: 368.6 | DI27: 376.2 | DJ27: 375.8 | DK27: 361.3 | DL27: 353.4 | DM27: 342.5 | DN27: 341.9 | DO27: 355.1 | DP27: 354.8 | DQ27: 349.6 | DR27: 332.2 | DS27: 276.3 | DT27: 241.3 | DU27: 235.3 | DV27: 234.9 | DW27: 227.4 | DX27: 227.8 | DY27: 214.8 | DZ27: 214.4 | EA27: 213.5 | EB27: 212.8 | EC27: 210.3 | ED27: 209.4 | EE27: 198.6 | EF27: 198.2 | EG27: 185.1 | EH27: 185.9 | EI27: 216.8 | EJ27: 216 | EK27: 202.4 | EL27: 201.6 | EM27: 200.8 | EN27: 200.7 | EO27: 194.7 | EP27: 194.7 | EQ27: 191.1 | ER27: 191.1 | ES27: 146.4 | ET27: 146.3 | EU27: 143.7 | EV27: 143.6 | EW27: 134.6 | EX27: 133.9 | EY27: 115.8 | EZ27: 113.4 | FA27: 107.1 | FB27: 106.5 | FC27: 103.6 | FD27: 103.1 | FE27: 866.8 | FF27: 0 | FG27: راهداری | FJ27: 433.4 | FK27: 0 | FL27: 1398 | QI27: 819.1 | QJ27: 765.7 | QK27: 528.6
A28: ابنیه18 | B28: 18 | C28: ابنیه | D28: اندودکاری و بندکشی | CO28: 1274.9 | CP28: 1249.8 | CQ28: 1225.2 | CR28: 1152.9 | CS28: 959.1 | CT28: 941.1 | CV28: 863.8 | CW28: 753.8 | CX28: 747.9 | CY28: 740.8 | CZ28: 733.5 | DA28: 676.1 | DB28: 670.1 | DC28: 660.2 | DD28: 654 | DE28: 610.7 | DF28: 606.7 | DG28: 603.3 | DH28: 598.8 | DI28: 552.3 | DJ28: 545.5 | DK28: 538.4 | DL28: 520.1 | DM28: 456.9 | DN28: 447.6 | DO28: 438 | DP28: 428.7 | DQ28: 381.5 | DR28: 373.1 | DS28: 348.2 | DT28: 332.7 | DU28: 304.1 | DV28: 297.3 | DW28: 292.2 | DX28: 285.7 | DY28: 268.4 | DZ28: 257.3 | EA28: 254.4 | EB28: 252.8 | EC28: 237.9 | ED28: 233.9 | EE28: 229.3 | EF28: 227.5 | EG28: 218.4 | EH28: 220.7 | EI28: 219.9 | EJ28: 211.6 | EK28: 189.3 | EL28: 185.4 | EM28: 180.8 | EN28: 179.6 | EO28: 161.1 | EP28: 160.9 | EQ28: 157.1 | ER28: 155.8 | ES28: 147.7 | ET28: 147.4 | EU28: 145.3 | EV28: 143.3 | EW28: 136.3 | EX28: 136.3 | EY28: 133.6 | EZ28: 131.6 | FA28: 118.7 | FB28: 114.4 | FC28: 111.9 | FD28: 109.3 | FE28: 1225.2 | FF28: 0 | FG28: راهداری | FJ28: 612.6 | FK28: 0 | FL28: 1399 | QI28: 913 | QJ28: 908.8 | QK28: 896
A29: ابنیه19 | B29: 19 | C29: ابنیه | D29: کارهای چوبی | CO29: 1051.1 | CP29: 999.2 | CQ29: 994.2 | CR29: 983.4 | CS29: 935.9 | CT29: 932.2 | CV29: 638.6 | CW29: 555.3 | CX29: 552.5 | CY29: 543.7 | CZ29: 542.2 | DA29: 511 | DB29: 499.7 | DC29: 483.3 | DD29: 481.9 | DE29: 464.8 | DF29: 463.7 | DG29: 448.2 | DH29: 447 | DI29: 435 | DJ29: 433.2 | DK29: 428 | DL29: 425.9 | DM29: 399.5 | DN29: 397.2 | DO29: 403 | DP29: 401.3 | DQ29: 378.4 | DR29: 363.6 | DS29: 316.1 | DT29: 293 | DU29: 279.3 | DV29: 250.1 | DW29: 236.8 | DX29: 236 | DY29: 230.7 | DZ29: 228.5 | EA29: 227.8 | EB29: 227.3 | EC29: 204.3 | ED29: 203 | EE29: 201.1 | EF29: 200.4 | EG29: 195.2 | EH29: 194.4 | EI29: 186.3 | EJ29: 185.5 | EK29: 177.4 | EL29: 171.5 | EM29: 166.3 | EN29: 165.3 | EO29: 152.6 | EP29: 152.5 | EQ29: 149.6 | ER29: 149.6 | ES29: 136.6 | ET29: 136.4 | EU29: 140.1 | EV29: 139.7 | EW29: 130.5 | EX29: 130.5 | EY29: 127.4 | EZ29: 126.3 | FA29: 111.5 | FB29: 110.9 | FC29: 110.2 | FD29: 109 | FE29: 994.2 | FF29: 0 | FG29: راهداری | FJ29: 497.1 | FK29: 0 | FL29: 1400 | QI29: 930 | QJ29: 884.2 | QK29: 802.9
A30: ابنیه20 | B30: 20 | C30: ابنیه | D30: کاشی وسرامیک کاری | CO30: 771.7 | CP30: 749.7 | CQ30: 724.2 | CR30: 689.2 | CS30: 603.6 | CT30: 599 | CV30: 523.1 | CW30: 463.4 | CX30: 461.8 | CY30: 460.1 | CZ30: 457.7 | DA30: 431.4 | DB30: 429.7 | DC30: 426.9 | DD30: 425.1 | DE30: 412.3 | DF30: 411.1 | DG30: 410.1 | DH30: 408.7 | DI30: 395 | DJ30: 393.1 | DK30: 389.6 | DL30: 380.6 | DM30: 339.7 | DN30: 337 | DO30: 332.9 | DP30: 330.3 | DQ30: 287.3 | DR30: 279.2 | DS30: 241.2 | DT30: 225.2 | DU30: 210.6 | DV30: 202.9 | DW30: 201.7 | DX30: 200 | DY30: 195 | DZ30: 192.3 | EA30: 191.4 | EB30: 186.3 | EC30: 172.8 | ED30: 171.7 | EE30: 169.9 | EF30: 169.3 | EG30: 164.6 | EH30: 163.8 | EI30: 162.5 | EJ30: 160.1 | EK30: 153.6 | EL30: 152.6 | EM30: 150.5 | EN30: 149.1 | EO30: 135.4 | EP30: 135.3 | EQ30: 131.1 | ER30: 129.5 | ES30: 126.9 | ET30: 126.7 | EU30: 126 | EV30: 125.3 | EW30: 121.6 | EX30: 121.6 | EY30: 118.4 | EZ30: 117.4 | FA30: 109.7 | FB30: 108.4 | FC30: 106.6 | FD30: 105.5 | FE30: 724.2 | FF30: 0 | FG30: راهداری | FJ30: 362.1 | FK30: 0 | FL30: 1401 | QI30: 606.6 | QJ30: 574.6 | QK30: 571.8
A31: ابنیه21 | B31: 21 | C31: ابنیه | D31: فرش کف باموزاییک | CO31: 1150.4 | CP31: 1138.6 | CQ31: 1110.4 | CR31: 1041.3 | CS31: 886.4 | CT31: 876.5 | CV31: 738.6 | CW31: 677.9 | CX31: 675.8 | CY31: 647.3 | CZ31: 643.1 | DA31: 622.1 | DB31: 620 | DC31: 630.9 | DD31: 624.4 | DE31: 599.5 | DF31: 598.3 | DG31: 578.6 | DH31: 576.4 | DI31: 562 | DJ31: 560.3 | DK31: 556.3 | DL31: 532.3 | DM31: 479.8 | DN31: 476.6 | DO31: 470.3 | DP31: 466.3 | DQ31: 397.8 | DR31: 386.2 | DS31: 309.5 | DT31: 302.6 | DU31: 291.2 | DV31: 284.2 | DW31: 275.8 | DX31: 272.2 | DY31: 260.8 | DZ31: 254.8 | EA31: 253.5 | EB31: 252.9 | EC31: 234.6 | ED31: 233.5 | EE31: 226.4 | EF31: 225.7 | EG31: 226.5 | EH31: 225.7 | EI31: 224.9 | EJ31: 240.3 | EK31: 233.4 | EL31: 209.2 | EM31: 205.8 | EN31: 204.9 | EO31: 168.9 | EP31: 168.9 | EQ31: 165.8 | ER31: 165.8 | ES31: 151.7 | ET31: 151.4 | EU31: 150.3 | EV31: 149.3 | EW31: 146.8 | EX31: 146.8 | EY31: 143.8 | EZ31: 142.6 | FA31: 120.7 | FB31: 118.7 | FC31: 117.2 | FD31: 115.9 | FE31: 1110.4 | FF31: 0 | FG31: راهداری | FJ31: 555.2 | FK31: 0 | FL31: 1402 | QI31: 832.8 | QJ31: 794.7 | QK31: 778
A32: ابنیه22 | B32: 22 | C32: ابنیه | D32: کارهای سنگی باسنگ پلاک | CO32: 955.8 | CP32: 873 | CQ32: 845.1 | CR32: 798.5 | CS32: 703.4 | CT32: 699.4 | CV32: 573.7 | CW32: 506.7 | CX32: 488.9 | CY32: 470.2 | CZ32: 468.8 | DA32: 443.7 | DB32: 443 | DC32: 437 | DD32: 435.9 | DE32: 429.5 | DF32: 429.1 | DG32: 428.4 | DH32: 427.5 | DI32: 420.8 | DJ32: 420 | DK32: 409.1 | DL32: 404.2 | DM32: 367.2 | DN32: 361.4 | DO32: 353.9 | DP32: 352.3 | DQ32: 321.7 | DR32: 295.2 | DS32: 264.6 | DT32: 258.5 | DU32: 248 | DV32: 242.9 | DW32: 230.3 | DX32: 219.5 | DY32: 217.2 | DZ32: 204.9 | EA32: 205.3 | EB32: 205 | EC32: 202.9 | ED32: 202.3 | EE32: 201.3 | EF32: 200.8 | EG32: 198.5 | EH32: 199 | EI32: 242.7 | EJ32: 191 | EK32: 160.7 | EL32: 160 | EM32: 158.5 | EN32: 158 | EO32: 141.1 | EP32: 141.1 | EQ32: 138.3 | ER32: 138.3 | ES32: 137 | ET32: 136.9 | EU32: 136.3 | EV32: 135.7 | EW32: 132.8 | EX32: 132.8 | EY32: 130 | EZ32: 129.3 | FA32: 109.6 | FB32: 108.7 | FC32: 108.2 | FD32: 108.1 | FE32: 845.1 | FF32: 0 | FG32: راهداری | FJ32: 422.6 | FK32: 0 | FL32: 1403 | QI32: 677.1 | QJ32: 670.1 | QK32: 650.7
A33: ابنیه23 | B33: 23 | C33: ابنیه | D33: کارهای پلاستیکی | CO33: 1180.1 | CP33: 1088.6 | CQ33: 1056.8 | CR33: 1083.2 | CS33: 918.4 | CT33: 915.2 | CV33: 632.2 | CW33: 546.4 | CX33: 533.8 | CY33: 518.9 | CZ33: 512.5 | DA33: 490.1 | DB33: 483 | DC33: 457 | DD33: 454 | DE33: 435.2 | DF33: 437.8 | DG33: 432.9 | DH33: 435.5 | DI33: 429.7 | DJ33: 428.7 | DK33: 421.3 | DL33: 419.5 | DM33: 374.4 | DN33: 375.7 | DO33: 361.2 | DP33: 364.5 | DQ33: 341 | DR33: 339.5 | DS33: 292.8 | DT33: 278.1 | DU33: 250.5 | DV33: 244.7 | DW33: 233.9 | DX33: 230.4 | DY33: 219.6 | DZ33: 216.4 | EA33: 214 | EB33: 206.1 | EC33: 193.2 | ED33: 192.5 | EE33: 191.3 | EF33: 186.2 | EG33: 185.3 | EH33: 190.2 | EI33: 203.8 | EJ33: 204.8 | EK33: 177.1 | EL33: 176.4 | EM33: 167.8 | EN33: 165.4 | EO33: 145.2 | EP33: 145.1 | EQ33: 143.1 | ER33: 143.1 | ES33: 133.1 | ET33: 133 | EU33: 124.6 | EV33: 124.5 | EW33: 123.6 | EX33: 123.6 | EY33: 121 | EZ33: 120.7 | FA33: 106.2 | FB33: 106 | FC33: 101.6 | FD33: 101.2 | FE33: 1056.8 | FF33: 0 | FG33: راهداری | FJ33: 528.4 | FK33: 0 | FL33: 1404 | QI33: 852.2 | QJ33: 751.9 | QK33: 681.9
A34: ابنیه24 | B34: 24 | C34: ابنیه | D34: برش ونصب شیشه | CO34: 655.1 | CP34: 645.3 | CQ34: 634.8 | CR34: 620.1 | CS34: 554.7 | CT34: 547.9 | CV34: 443.8 | CW34: 390.2 | CX34: 388.1 | CY34: 385.7 | CZ34: 381 | DA34: 354.7 | DB34: 353 | DC34: 348.9 | DD34: 346.9 | DE34: 330.2 | DF34: 328.7 | DG34: 326.7 | DH34: 324.8 | DI34: 307.1 | DJ34: 304.7 | DK34: 296.5 | DL34: 293.6 | DM34: 271.1 | DN34: 267.8 | DO34: 265.5 | DP34: 263.2 | DQ34: 239.3 | DR34: 236.6 | DS34: 218.8 | DT34: 209.7 | DU34: 194.6 | DV34: 180.9 | DW34: 169.5 | DX34: 166.2 | DY34: 157.3 | DZ34: 154.8 | EA34: 153.8 | EB34: 153.1 | EC34: 145 | ED34: 145 | EE34: 145.7 | EF34: 149.1 | EG34: 151.6 | EH34: 146.3 | EI34: 145.7 | EJ34: 145.4 | EK34: 128.5 | EL34: 126.4 | EM34: 123.9 | EN34: 123.5 | EO34: 119.6 | EP34: 119.6 | EQ34: 120.1 | ER34: 119.6 | ES34: 123.7 | ET34: 123.5 | EU34: 122.7 | EV34: 122.5 | EW34: 117.8 | EX34: 117.8 | EY34: 122 | EZ34: 121.3 | FA34: 105.1 | FB34: 104.7 | FC34: 101.9 | FD34: 101.2 | FE34: 634.8 | FF34: 0 | FG34: راهداری | FJ34: 317.4 | FK34: 0 | FL34: 1405 | QI34: 491.9 | QJ34: 490.3 | QK34: 482.7
A35: ابنیه25 | B35: 25 | C35: ابنیه | D35: رنگ آمیزی | CO35: 1181.3 | CP35: 1155.1 | CQ35: 1135.4 | CR35: 1100.9 | CS35: 938.4 | CT35: 922.4 | CV35: 788.7 | CW35: 640 | CX35: 629.1 | CY35: 617.8 | CZ35: 613.9 | DA35: 573.8 | DB35: 570 | DC35: 563.3 | DD35: 559.6 | DE35: 529.9 | DF35: 527.3 | DG35: 524.2 | DH35: 521.3 | DI35: 488.9 | DJ35: 484.1 | DK35: 477.4 | DL35: 471.6 | DM35: 431.4 | DN35: 423.6 | DO35: 416.7 | DP35: 411.7 | DQ35: 364 | DR35: 358.6 | DS35: 336.2 | DT35: 317.5 | DU35: 284.7 | DV35: 281.4 | DW35: 272.5 | DX35: 263.2 | DY35: 252.6 | DZ35: 246.1 | EA35: 244.4 | EB35: 243.2 | EC35: 231.5 | ED35: 219.5 | EE35: 216.3 | EF35: 214.8 | EG35: 204.3 | EH35: 205.9 | EI35: 209 | EJ35: 207.9 | EK35: 195.8 | EL35: 176 | EM35: 169.4 | EN35: 168.1 | EO35: 143.6 | EP35: 143.5 | EQ35: 141.1 | ER35: 140.9 | ES35: 134.6 | ET35: 134.2 | EU35: 130.2 | EV35: 129.3 | EW35: 124.9 | EX35: 124.9 | EY35: 116.2 | EZ35: 114.5 | FA35: 105.3 | FB35: 104.3 | FC35: 102.9 | FD35: 101 | FE35: 1135.4 | FF35: 0 | FG35: راهداری | FJ35: 567.7 | FK35: 0 | FL35: 1406 | QI35: 904.4 | QJ35: 893.7 | QK35: 856
A36: ابنیه26 | B36: 26 | C36: ابنیه | D36: زیراساس واساس | CO36: 1457.4 | CP36: 1385.2 | CQ36: 1194.6 | CR36: 1121 | CS36: 984.6 | CT36: 938.1 | CV36: 753.4 | CW36: 674.6 | CX36: 666.7 | CY36: 658.7 | CZ36: 638.9 | DA36: 608 | DB36: 608 | DC36: 608 | DD36: 600.6 | DE36: 582.1 | DF36: 582.1 | DG36: 568 | DH36: 559.4 | DI36: 556 | DJ36: 558.3 | DK36: 531.9 | DL36: 520.1 | DM36: 470.5 | DN36: 442.2 | DO36: 429.3 | DP36: 429.3 | DQ36: 421.5 | DR36: 394.1 | DS36: 383.8 | DT36: 361.4 | DU36: 325.7 | DV36: 293.2 | DW36: 291.4 | DX36: 284.4 | DY36: 273.9 | DZ36: 239.1 | EA36: 239.1 | EB36: 237.7 | EC36: 227.8 | ED36: 226.5 | EE36: 221.2 | EF36: 220.5 | EG36: 220.2 | EH36: 220.2 | EI36: 223.1 | EJ36: 220.2 | EK36: 195 | EL36: 192.9 | EM36: 184.8 | EN36: 182.2 | EO36: 164.6 | EP36: 164.6 | EQ36: 162.2 | ER36: 160.9 | ES36: 157.2 | ET36: 156.4 | EU36: 152.2 | EV36: 151.3 | EW36: 150.3 | EX36: 150.3 | EY36: 146.1 | EZ36: 143 | FA36: 120.8 | FB36: 119.7 | FC36: 118.7 | FD36: 115.5 | FE36: 1194.6 | FF36: 0 | FG36: راهداری | FJ36: 597.3 | FK36: 0 | FL36: 1407 | QI36: 895.9 | QJ36: 891.6 | QK36: 829.4
A37: ابنیه27 | B37: 27 | C37: ابنیه | D37: آسفالت | CO37: 1914.8 | CP37: 1902.5 | CQ37: 1901.7 | CR37: 1876.6 | CS37: 1681.8 | CT37: 1688.6 | CV37: 1061.5 | CW37: 964.2 | CX37: 869 | CY37: 841.8 | CZ37: 839.1 | DA37: 800.7 | DB37: 708.7 | DC37: 656.1 | DD37: 609 | DE37: 589.4 | DF37: 756.4 | DG37: 821.6 | DH37: 821.4 | DI37: 814 | DJ37: 825.9 | DK37: 870.5 | DL37: 864.3 | DM37: 848.5 | DN37: 846 | DO37: 808.5 | DP37: 803 | DQ37: 783.3 | DR37: 668.1 | DS37: 640 | DT37: 594.9 | DU37: 538.9 | DV37: 495.7 | DW37: 416.2 | DX37: 412.1 | DY37: 361.4 | DZ37: 340.3 | EA37: 339.2 | EB37: 339.5 | EC37: 323.4 | ED37: 322.3 | EE37: 315.5 | EF37: 313.2 | EG37: 312.3 | EH37: 313.1 | EI37: 313.2 | EJ37: 309.9 | EK37: 133.6 | EL37: 132.9 | EM37: 124.1 | EN37: 123.7 | EO37: 120.8 | EP37: 120.7 | EQ37: 119.2 | ER37: 119.2 | ES37: 118.9 | ET37: 118.7 | EU37: 117.9 | EV37: 117.6 | EW37: 116.8 | EX37: 116.8 | EY37: 116.1 | EZ37: 115.4 | FA37: 104.9 | FB37: 104.6 | FC37: 104.3 | FD37: 103.6 | FE37: 1901.7 | FF37: 0 | FG37: راهداری | FJ37: 950.9 | FK37: 0 | FL37: 1408 | QI37: 1808.5 | QJ37: 1283.8 | QK37: 1172.5
A38: ابنیه28 | B38: 28 | C38: ابنیه | D38: حمل ونقل | CO38: 1658 | CP38: 1592.1 | CQ38: 1363.1 | CR38: 1295.3 | CS38: 1148.6 | CT38: 1055.1 | CV38: 824.6 | CW38: 738.7 | CX38: 731.9 | CY38: 725.2 | CZ38: 700.8 | DA38: 671.5 | DB38: 669.2 | DC38: 661 | DD38: 640.5 | DE38: 628.4 | DF38: 628.4 | DG38: 608.6 | DH38: 594 | DI38: 584 | DJ38: 587 | DK38: 573.9 | DL38: 559.7 | DM38: 505.6 | DN38: 499.9 | DO38: 491.3 | DP38: 474.3 | DQ38: 419.1 | DR38: 402.4 | DS38: 396.1 | DT38: 373.1 | DU38: 335.3 | DV38: 315.4 | DW38: 307.4 | DX38: 297 | DY38: 284.2 | DZ38: 247.1 | EA38: 247.1 | EB38: 245.6 | EC38: 228 | ED38: 226.9 | EE38: 217.9 | EF38: 217.1 | EG38: 214.9 | EH38: 214.9 | EI38: 217.9 | EJ38: 214.2 | EK38: 199.8 | EL38: 195.4 | EM38: 192.2 | EN38: 188.7 | EO38: 168.3 | EP38: 168.1 | EQ38: 166.1 | ER38: 162.8 | ES38: 158 | ET38: 156.6 | EU38: 149.2 | EV38: 147.8 | EW38: 146.3 | EX38: 146.3 | EY38: 147.3 | EZ38: 142.1 | FA38: 118.1 | FB38: 116 | FC38: 114 | FD38: 108.1 | FE38: 1363.1 | FF38: 0 | FG38: راهداری | FJ38: 681.6 | FK38: 0 | FL38: 1409 | QI38: 1006.7 | QJ38: 992.6 | QK38: 901.2
A39: ابنیه29 | B39: 29 | C39: ابنیه | D39: کارهای دستمزدی | CO39: 1493.5 | CP39: 1459.2 | CQ39: 1432.8 | CR39: 1371.5 | CS39: 1125.6 | CT39: 1097.3 | CV39: 1015.2 | CW39: 884.3 | CX39: 876.4 | CY39: 863.8 | CZ39: 859.5 | DA39: 789.6 | DB39: 782.5 | DC39: 775.4 | DD39: 768.3 | DE39: 710.7 | DF39: 705.3 | DG39: 700.2 | DH39: 694.3 | DI39: 629.2 | DJ39: 619.6 | DK39: 610.2 | DL39: 599.7 | DM39: 517 | DN39: 505.7 | DO39: 495.3 | DP39: 486.1 | DQ39: 429.7 | DR39: 420.3 | DS39: 399.9 | DT39: 380.3 | DU39: 342.6 | DV39: 337.1 | DW39: 329.7 | DX39: 323.1 | DY39: 302.1 | DZ39: 290.9 | EA39: 285.5 | EB39: 283.5 | EC39: 264.5 | ED39: 259.4 | EE39: 255.7 | EF39: 251.6 | EG39: 234.3 | EH39: 233.1 | EI39: 228.4 | EJ39: 226 | EK39: 203 | EL39: 198.6 | EM39: 192.2 | EN39: 189.7 | EO39: 171.7 | EP39: 171.4 | EQ39: 170.5 | ER39: 166.8 | ES39: 153.3 | ET39: 152.5 | EU39: 149.9 | EV39: 147.8 | EW39: 139.8 | EX39: 139.8 | EY39: 137.1 | EZ39: 133.4 | FA39: 117 | FB39: 114.9 | FC39: 112.8 | FD39: 109 | FE39: 1432.8 | FF39: 0 | FG39: راهداری | FJ39: 716.4 | FK39: 0 | FL39: 1410 | QI39: 1080.2 | QJ39: 1070.9 | QK39: 1061.2
A40: راه، راه آهن و باند فرودگاه1 | B40: 1 | C40: راه، راه آهن و باند فرودگاه | D40: عملیات تخریب | CO40: 1622.4 | CP40: 1567.5 | CQ40: 1522.7 | CR40: 1449.1 | CS40: 1205.5 | CT40: 1164 | CV40: 1036.5 | CW40: 909.8 | CX40: 901.6 | CY40: 885.4 | CZ40: 882.5 | DA40: 814.9 | DB40: 807.5 | DC40: 800.2 | DD40: 792.8 | DE40: 739 | DF40: 734.8 | DG40: 730.6 | DH40: 725.1 | DI40: 663 | DJ40: 654.1 | DK40: 645.6 | DL40: 633.9 | DM40: 552.9 | DN40: 541.9 | DO40: 531.2 | DP40: 520.1 | DQ40: 465.2 | DR40: 451.3 | DS40: 419.5 | DT40: 400.1 | DU40: 362.5 | DV40: 353.2 | DW40: 342.4 | DX40: 332.9 | DY40: 315.4 | DZ40: 284.1 | EA40: 279.3 | EB40: 277.5 | EC40: 260 | ED40: 257 | EE40: 253.2 | EF40: 249.8 | EG40: 233.1 | EH40: 232.3 | EI40: 228.7 | EJ40: 226.1 | EK40: 204.4 | EL40: 199.2 | EM40: 192 | EN40: 189.6 | EO40: 172.3 | EP40: 172 | EQ40: 171 | ER40: 169.3 | ES40: 156.5 | ET40: 155.5 | EU40: 152.3 | EV40: 150.1 | EW40: 141.7 | EX40: 141.7 | EY40: 138.9 | EZ40: 135 | FA40: 117.3 | FB40: 115 | FC40: 112.7 | FD40: 109 | FE40: 1522.7 | FF40: 0 | FG40: راهداری | FJ40: 761.4 | FK40: 0 | FL40: 1411 | QI40: 1146.4 | QJ40: 1125.4 | QK40: 1103.1
A41: راه، راه آهن و باند فرودگاه2 | B41: 2 | C41: راه، راه آهن و باند فرودگاه | D41: عملیات خاکی بادست | CO41: 1505.8 | CP41: 1465.5 | CQ41: 1435.8 | CR41: 1374.9 | CS41: 1134.9 | CT41: 1102.1 | CV41: 1001.8 | CW41: 881.3 | CX41: 873.9 | CY41: 856.9 | CZ41: 854.3 | DA41: 789 | DB41: 782.4 | DC41: 775.7 | DD41: 769.1 | DE41: 717.6 | DF41: 712.9 | DG41: 708.4 | DH41: 703.1 | DI41: 643.6 | DJ41: 635 | DK41: 624.8 | DL41: 611.9 | DM41: 534.2 | DN41: 524.5 | DO41: 510.3 | DP41: 501.3 | DQ41: 449.1 | DR41: 439.2 | DS41: 403 | DT41: 387.2 | DU41: 347.5 | DV41: 341.6 | DW41: 332.1 | DX41: 324.5 | DY41: 306 | DZ41: 288.8 | EA41: 283.1 | EB41: 281.4 | EC41: 262.7 | ED41: 259.6 | EE41: 256.1 | EF41: 253.4 | EG41: 236.2 | EH41: 235.5 | EI41: 231.7 | EJ41: 227.4 | EK41: 205.2 | EL41: 199.7 | EM41: 192.6 | EN41: 188.6 | EO41: 171.7 | EP41: 170.6 | EQ41: 168.3 | ER41: 166.7 | ES41: 152.7 | ET41: 151.6 | EU41: 148.3 | EV41: 146.3 | EW41: 138.6 | EX41: 138.2 | EY41: 135.5 | EZ41: 132.1 | FA41: 115.9 | FB41: 113.9 | FC41: 112 | FD41: 108.8 | FE41: 1435.8 | FF41: 0 | FG41: راهداری | FJ41: 717.9 | FK41: 0 | FL41: 1412 | QI41: 1076.4 | QJ41: 1065.5 | QK41: 1054.2
A42: راه، راه آهن و باند فرودگاه3 | B42: 3 | C42: راه، راه آهن و باند فرودگاه | D42: عملیات خاکی باماشین | CO42: 1875.3 | CP42: 1769.7 | CQ42: 1661.8 | CR42: 1570.9 | CS42: 1364.8 | CT42: 1348.5 | CV42: 1068.8 | CW42: 965.7 | CX42: 957.1 | CY42: 930.5 | CZ42: 930.3 | DA42: 878.1 | DB42: 870.2 | DC42: 862.2 | DD42: 854.3 | DE42: 813.9 | DF42: 813.8 | DG42: 814.4 | DH42: 810.6 | DI42: 761 | DJ42: 754.4 | DK42: 749 | DL42: 733.1 | DM42: 667.2 | DN42: 655.8 | DO42: 643 | DP42: 626.2 | DQ42: 580.4 | DR42: 551.9 | DS42: 488 | DT42: 457.8 | DU42: 423 | DV42: 400.9 | DW42: 376.3 | DX42: 359.3 | DY42: 355.3 | DZ42: 279.4 | EA42: 279.3 | EB42: 277.9 | EC42: 263 | ED42: 262.2 | EE42: 261.4 | EF42: 255.9 | EG42: 247.2 | EH42: 247 | EI42: 245.9 | EJ42: 242.6 | EK42: 223.5 | EL42: 214.5 | EM42: 205.7 | EN42: 203 | EO42: 188.4 | EP42: 188 | EQ42: 186.8 | ER42: 186 | ES42: 175.8 | ET42: 174.3 | EU42: 169.5 | EV42: 166.5 | EW42: 157.3 | EX42: 157.1 | EY42: 153.8 | EZ42: 148.3 | FA42: 120.6 | FB42: 118.5 | FC42: 116.4 | FD42: 111 | FE42: 1661.8 | FF42: 0 | FG42: راهداری | FJ42: 830.9 | FK42: 0 | FL42: 1413 | QI42: 1341.7 | QJ42: 1276.9 | QK42: 1210.3
A43: راه، راه آهن و باند فرودگاه4 | B43: 4 | C43: راه، راه آهن و باند فرودگاه | D43: حفاری تونل | CO43: 1423.2 | CP43: 1368.1 | CQ43: 1321.7 | CR43: 1263.3 | CS43: 1103.3 | CT43: 1095.9 | CV43: 886.4 | CW43: 820.9 | CX43: 815.9 | CY43: 787.3 | CZ43: 786.5 | DA43: 752.7 | DB43: 748.1 | DC43: 743.4 | DD43: 738.8 | DE43: 712.4 | DF43: 711.7 | DG43: 711.5 | DH43: 709 | DI43: 677.2 | DJ43: 673 | DK43: 660 | DL43: 637.5 | DM43: 595.6 | DN43: 588.8 | DO43: 563.8 | DP43: 554.6 | DQ43: 525.7 | DR43: 514.2 | DS43: 425.9 | DT43: 409.3 | DU43: 369.4 | DV43: 361.9 | DW43: 346.3 | DX43: 339.1 | DY43: 326 | DZ43: 291.6 | EA43: 288.1 | EB43: 286.7 | EC43: 264.8 | ED43: 262.7 | EE43: 261.6 | EF43: 258.9 | EG43: 247.1 | EH43: 246.8 | EI43: 244.6 | EJ43: 236.3 | EK43: 215.1 | EL43: 206.1 | EM43: 198.8 | EN43: 189.7 | EO43: 176.8 | EP43: 172.8 | EQ43: 168.8 | ER43: 167.7 | ES43: 153.7 | ET43: 152.5 | EU43: 147.6 | EV43: 146.1 | EW43: 140.2 | EX43: 138.3 | EY43: 135.6 | EZ43: 132.7 | FA43: 116 | FB43: 114.4 | FC43: 112.7 | FD43: 110.1 | FE43: 1321.7 | FF43: 0 | FG43: راهداری | FJ43: 660.9 | FK43: 0 | FL43: 1414 | QI43: 1048.4 | QJ43: 1016.8 | QK43: 984.1
A44: راه، راه آهن و باند فرودگاه5 | B44: 5 | C44: راه، راه آهن و باند فرودگاه | D44: حفاری،شمع کوبی وسپرکوبی | CO44: 1900.9 | CP44: 1796 | CQ44: 1705 | CR44: 1597.3 | CS44: 1382.2 | CT44: 1296.5 | CV44: 1028.7 | CW44: 925 | CX44: 916.6 | CY44: 892.7 | CZ44: 892.2 | DA44: 839.4 | DB44: 831.7 | DC44: 823.9 | DD44: 816.2 | DE44: 775 | DF44: 774.5 | DG44: 774.6 | DH44: 770.7 | DI44: 720.6 | DJ44: 713.9 | DK44: 708.9 | DL44: 694.6 | DM44: 628.6 | DN44: 617.4 | DO44: 606.3 | DP44: 590.4 | DQ44: 544.5 | DR44: 518 | DS44: 462.3 | DT44: 433.7 | DU44: 400.6 | DV44: 380.2 | DW44: 358 | DX44: 342.1 | DY44: 336.9 | DZ44: 260 | EA44: 259.4 | EB44: 258.1 | EC44: 244.2 | ED44: 243.2 | EE44: 241.9 | EF44: 236.9 | EG44: 227.8 | EH44: 227.5 | EI44: 226.1 | EJ44: 223.6 | EK44: 205.5 | EL44: 197.8 | EM44: 189.7 | EN44: 187.7 | EO44: 173.9 | EP44: 173.8 | EQ44: 173.1 | ER44: 172.2 | ES44: 162.6 | ET44: 161.2 | EU44: 157 | EV44: 154.2 | EW44: 145.6 | EX44: 145.6 | EY44: 143.2 | EZ44: 138.6 | FA44: 117.9 | FB44: 114.9 | FC44: 112 | FD44: 108.1 | FE44: 1705 | FF44: 0 | FG44: راهداری | FJ44: 852.5 | FK44: 0 | FL44: 1415 | QI44: 1278.1 | QJ44: 1219 | QK44: 1158.2
A45: راه، راه آهن و باند فرودگاه6 | B45: 6 | C45: راه، راه آهن و باند فرودگاه | D45: عملیات بنایی باسنگ | CO45: 1388.3 | CP45: 1346.1 | CQ45: 1312.2 | CR45: 1237 | CS45: 1042 | CT45: 1022.8 | CV45: 905.4 | CW45: 796.5 | CX45: 788.2 | CY45: 778.1 | CZ45: 773.8 | DA45: 715.9 | DB45: 709.6 | DC45: 696.4 | DD45: 689.4 | DE45: 633.8 | DF45: 630.8 | DG45: 629.1 | DH45: 627.4 | DI45: 584.1 | DJ45: 578.7 | DK45: 580.6 | DL45: 562.5 | DM45: 504.1 | DN45: 497.1 | DO45: 474.1 | DP45: 460.1 | DQ45: 417.1 | DR45: 410.8 | DS45: 383 | DT45: 364.6 | DU45: 331.5 | DV45: 326.9 | DW45: 316.2 | DX45: 305.6 | DY45: 291 | DZ45: 279.3 | EA45: 275.1 | EB45: 272.5 | EC45: 257.7 | ED45: 255.2 | EE45: 252.2 | EF45: 250.8 | EG45: 239.3 | EH45: 238.4 | EI45: 236.5 | EJ45: 227 | EK45: 205.3 | EL45: 199.8 | EM45: 194.1 | EN45: 191.3 | EO45: 175.3 | EP45: 174.3 | EQ45: 167.5 | ER45: 166.4 | ES45: 156.1 | ET45: 155.4 | EU45: 153.4 | EV45: 150.4 | EW45: 142.6 | EX45: 142.4 | EY45: 138.7 | EZ45: 136.1 | FA45: 122.8 | FB45: 117.1 | FC45: 112.9 | FD45: 110.3 | FE45: 1312.2 | FF45: 0 | FG45: راهداری | FJ45: 656.1 | FK45: 0 | FL45: 1416 | QI45: 982.8 | QJ45: 968 | QK45: 942.6
A46: راه، راه آهن و باند فرودگاه7 | B46: 7 | C46: راه، راه آهن و باند فرودگاه | D46: اندودوبندکشی | CO46: 1331.6 | CP46: 1306.3 | CQ46: 1263.9 | CR46: 1153.1 | CS46: 995.1 | CT46: 978.8 | CV46: 883.6 | CW46: 773 | CX46: 767.8 | CY46: 760.6 | CZ46: 756.2 | DA46: 699 | DB46: 689.8 | DC46: 666.7 | DD46: 658 | DE46: 619.3 | DF46: 615.8 | DG46: 618.6 | DH46: 614.8 | DI46: 572.2 | DJ46: 566 | DK46: 573 | DL46: 541.5 | DM46: 488.1 | DN46: 480 | DO46: 473.1 | DP46: 454.2 | DQ46: 406.9 | DR46: 400.3 | DS46: 361.1 | DT46: 350.4 | DU46: 325.2 | DV46: 321.1 | DW46: 315.1 | DX46: 299.2 | DY46: 285.4 | DZ46: 272.2 | EA46: 269.7 | EB46: 268.1 | EC46: 254.6 | ED46: 252 | EE46: 248.3 | EF46: 246.4 | EG46: 234.7 | EH46: 233.7 | EI46: 227.6 | EJ46: 210.3 | EK46: 195 | EL46: 191.7 | EM46: 188.2 | EN46: 186.5 | EO46: 173.8 | EP46: 173.6 | EQ46: 172.2 | ER46: 171.1 | ES46: 162.2 | ET46: 161.7 | EU46: 160 | EV46: 155.1 | EW46: 146.3 | EX46: 146.3 | EY46: 144.5 | EZ46: 141.8 | FA46: 130.8 | FB46: 120.4 | FC46: 113.2 | FD46: 110.4 | FE46: 1263.9 | FF46: 0 | FG46: راهداری | FJ46: 632 | FK46: 0 | FL46: 1417 | QI46: 954.5 | QJ46: 947.1 | QK46: 914.9
A47: راه، راه آهن و باند فرودگاه8 | B47: 8 | C47: راه، راه آهن و باند فرودگاه | D47: قالب بندی وچوب بست | CO47: 1277.8 | CP47: 1147.3 | CQ47: 1128.1 | CR47: 1139.8 | CS47: 989.2 | CT47: 931.8 | CV47: 781.9 | CW47: 691.8 | CX47: 673.2 | CY47: 653.3 | CZ47: 626.2 | DA47: 591.3 | DB47: 584.4 | DC47: 562 | DD47: 559.5 | DE47: 513.8 | DF47: 519 | DG47: 523.4 | DH47: 522.5 | DI47: 508 | DJ47: 515.7 | DK47: 511.2 | DL47: 511.3 | DM47: 461 | DN47: 458.9 | DO47: 450 | DP47: 447.2 | DQ47: 420.8 | DR47: 409.1 | DS47: 374.2 | DT47: 336.9 | DU47: 312.6 | DV47: 293.2 | DW47: 281.7 | DX47: 274.4 | DY47: 259.4 | DZ47: 254.4 | EA47: 246.7 | EB47: 243.5 | EC47: 222.6 | ED47: 219.9 | EE47: 219.1 | EF47: 213.5 | EG47: 209.5 | EH47: 227.2 | EI47: 239.1 | EJ47: 230.8 | EK47: 207.7 | EL47: 200.3 | EM47: 190.3 | EN47: 188 | EO47: 166.4 | EP47: 164.1 | EQ47: 157.3 | ER47: 152.9 | ES47: 141.7 | ET47: 142.6 | EU47: 140.6 | EV47: 142 | EW47: 138.7 | EX47: 139.9 | EY47: 132.6 | EZ47: 128.3 | FA47: 110.9 | FB47: 106.5 | FC47: 105.2 | FD47: 105.2 | FE47: 1128.1 | FF47: 0 | FG47: راهداری | FJ47: 564.1 | FK47: 0 | FL47: 1418 | QI47: 893.1 | QJ47: 876.6 | QK47: 852.3
A48: راه، راه آهن و باند فرودگاه9 | B48: 9 | C48: راه، راه آهن و باند فرودگاه | D48: کارهای فولادی بامیلگرد | CO48: 1703.9 | CP48: 1353 | CQ48: 1300.3 | CR48: 1473.1 | CS48: 1249.4 | CT48: 1270.4 | CV48: 885.2 | CW48: 723.6 | CX48: 680.7 | CY48: 654 | CZ48: 531 | DA48: 520.4 | DB48: 530.8 | DC48: 500.3 | DD48: 501.3 | DE48: 419.4 | DF48: 452.2 | DG48: 477.1 | DH48: 493.8 | DI48: 525.2 | DJ48: 568.1 | DK48: 571.1 | DL48: 588 | DM48: 541.1 | DN48: 577.2 | DO48: 587.3 | DP48: 589.2 | DQ48: 584.9 | DR48: 584.7 | DS48: 506.5 | DT48: 405.6 | DU48: 350 | DV48: 299.9 | DW48: 289.5 | DX48: 272.9 | DY48: 266.4 | DZ48: 271.3 | EA48: 249.5 | EB48: 240.7 | EC48: 219 | ED48: 187 | EE48: 193.1 | EF48: 186.3 | EG48: 201.8 | EH48: 247.3 | EI48: 363.7 | EJ48: 317 | EK48: 251.6 | EL48: 227.1 | EM48: 201.5 | EN48: 215.6 | EO48: 201.3 | EP48: 196.3 | EQ48: 185.1 | ER48: 153.7 | ES48: 127.7 | ET48: 126.9 | EU48: 128.2 | EV48: 137 | EW48: 144 | EX48: 150.9 | EY48: 148.3 | EZ48: 142.6 | FA48: 118.2 | FB48: 98.8 | FC48: 98.3 | FD48: 99.4 | FE48: 1300.3 | FF48: 0 | FG48: راهداری | FJ48: 650.2 | FK48: 0 | FL48: 1419 | QI48: 1366 | QJ48: 1317.4 | QK48: 1036.1
A49: راه، راه آهن و باند فرودگاه10 | B49: 10 | C49: راه، راه آهن و باند فرودگاه | D49: کارهای فولادی سنگین | CO49: 2006.9 | CP49: 1618.3 | CQ49: 1470.5 | CR49: 1580.9 | CS49: 1287.2 | CT49: 1207 | CV49: 873.6 | CW49: 775.2 | CX49: 728.8 | CY49: 686.3 | CZ49: 642.6 | DA49: 627.5 | DB49: 596.1 | DC49: 565.5 | DD49: 568.8 | DE49: 524 | DF49: 538.9 | DG49: 559.3 | DH49: 574.7 | DI49: 571.8 | DJ49: 573.8 | DK49: 571.5 | DL49: 581.7 | DM49: 540.8 | DN49: 546.7 | DO49: 562.3 | DP49: 589.4 | DQ49: 565.1 | DR49: 524.6 | DS49: 388.3 | DT49: 341.5 | DU49: 325.9 | DV49: 304.2 | DW49: 293.7 | DX49: 274.9 | DY49: 250.8 | DZ49: 235.8 | EA49: 221.8 | EB49: 221.2 | EC49: 204.9 | ED49: 200.4 | EE49: 200.2 | EF49: 190.7 | EG49: 200.1 | EH49: 218.2 | EI49: 284.1 | EJ49: 268.6 | EK49: 226.4 | EL49: 216.5 | EM49: 206.2 | EN49: 205.6 | EO49: 179.1 | EP49: 172.5 | EQ49: 167.1 | ER49: 158.8 | ES49: 141.1 | ET49: 147.5 | EU49: 145.3 | EV49: 152.7 | EW49: 158.1 | EX49: 171.6 | EY49: 156.7 | EZ49: 144.7 | FA49: 122.6 | FB49: 104.1 | FC49: 100.4 | FD49: 101.8 | FE49: 1470.5 | FF49: 0 | FG49: راهداری | FJ49: 735.3 | FK49: 0 | FL49: 1420 | QI49: 1181.2 | QJ49: 1144.2 | QK49: 989.1
A50: راه، راه آهن و باند فرودگاه11 | B50: 11 | C50: راه، راه آهن و باند فرودگاه | D50: کارهای فولادی سبک | CO50: 1890.9 | CP50: 1469.2 | CQ50: 1502.9 | CR50: 1637.5 | CS50: 1402.6 | CT50: 1405.5 | CV50: 874.2 | CW50: 781.7 | CX50: 768.2 | CY50: 729.9 | CZ50: 674.2 | DA50: 647.9 | DB50: 617.3 | DC50: 576.9 | DD50: 574 | DE50: 519.9 | DF50: 526.4 | DG50: 531 | DH50: 531 | DI50: 530.4 | DJ50: 535.3 | DK50: 527.4 | DL50: 528.8 | DM50: 493 | DN50: 495.9 | DO50: 546 | DP50: 548.8 | DQ50: 525.8 | DR50: 484.1 | DS50: 403.5 | DT50: 379.6 | DU50: 341.8 | DV50: 336.7 | DW50: 291.6 | DX50: 285.9 | DY50: 270.4 | DZ50: 267.5 | EA50: 262.4 | EB50: 258.9 | EC50: 252.1 | ED50: 249.4 | EE50: 249.1 | EF50: 251 | EG50: 260 | EH50: 286.6 | EI50: 318.7 | EJ50: 323 | EK50: 276.9 | EL50: 267.9 | EM50: 251.8 | EN50: 252.5 | EO50: 224 | EP50: 216.1 | EQ50: 182.8 | ER50: 176.3 | ES50: 150.7 | ET50: 148 | EU50: 147.2 | EV50: 146.1 | EW50: 145.6 | EX50: 146.1 | EY50: 141.7 | EZ50: 139.5 | FA50: 113.6 | FB50: 108.6 | FC50: 106.9 | FD50: 107.7 | FE50: 1502.9 | FF50: 0 | FG50: راهداری | FJ50: 751.5 | FK50: 0 | QI50: 1238 | QJ50: 1201.1 | QK50: 951.6
A51: راه، راه آهن و باند فرودگاه12 | B51: 12 | C51: راه، راه آهن و باند فرودگاه | D51: بتن درجا | CO51: 1334.2 | CP51: 1292.8 | CQ51: 1227.7 | CR51: 1071.2 | CS51: 977.5 | CT51: 958.9 | CV51: 815.7 | CW51: 724.4 | CX51: 720.5 | CY51: 711.1 | CZ51: 709.5 | DA51: 663.7 | DB51: 653.4 | DC51: 622.7 | DD51: 613 | DE51: 592.3 | DF51: 591.4 | DG51: 600.3 | DH51: 598.3 | DI51: 574.2 | DJ51: 570.9 | DK51: 587.5 | DL51: 544.1 | DM51: 508.3 | DN51: 503.2 | DO51: 483.9 | DP51: 459.3 | DQ51: 422.9 | DR51: 414.1 | DS51: 363.8 | DT51: 350.5 | DU51: 333.1 | DV51: 324.9 | DW51: 315.8 | DX51: 291.1 | DY51: 286.4 | DZ51: 259.3 | EA51: 258.1 | EB51: 257.4 | EC51: 248.7 | ED51: 247.9 | EE51: 247 | EF51: 244.9 | EG51: 239.6 | EH51: 239.6 | EI51: 233.9 | EJ51: 208.8 | EK51: 199.6 | EL51: 195.5 | EM51: 191.4 | EN51: 190.2 | EO51: 180.5 | EP51: 180.4 | EQ51: 178.7 | ER51: 178.4 | ES51: 173.5 | ET51: 172.9 | EU51: 170.6 | EV51: 163.5 | EW51: 153.4 | EX51: 153.4 | EY51: 151.3 | EZ51: 149.2 | FA51: 138.6 | FB51: 124 | FC51: 113.9 | FD51: 112 | FE51: 1227.7 | FF51: 0 | FG51: راهداری | FJ51: 613.9 | FK51: 0 | QI51: 952.3 | QJ51: 930.7 | QK51: 870
A52: راه، راه آهن و باند فرودگاه13 | B52: 13 | C52: راه، راه آهن و باند فرودگاه | D52: بتن پیش ساخته | CO52: 1505.7 | CP52: 1449.9 | CQ52: 1387.5 | CR52: 1273.6 | CS52: 1105.8 | CT52: 1065.5 | CV52: 913.2 | CW52: 807.7 | CX52: 801.7 | CY52: 788.4 | CZ52: 785.3 | DA52: 731.4 | DB52: 722.6 | DC52: 703.7 | DD52: 695.3 | DE52: 658.1 | DF52: 655.9 | DG52: 659 | DH52: 655.4 | DI52: 613.4 | DJ52: 607.4 | DK52: 611.1 | DL52: 584.6 | DM52: 528.4 | DN52: 520.2 | DO52: 507.2 | DP52: 489.7 | DQ52: 445.6 | DR52: 432.8 | DS52: 390.6 | DT52: 372.5 | DU52: 345.6 | DV52: 336.1 | DW52: 325 | DX52: 308 | DY52: 298.2 | DZ52: 266.5 | EA52: 263.6 | EB52: 262.3 | EC52: 249.8 | ED52: 248 | EE52: 245.6 | EF52: 242.5 | EG52: 232.3 | EH52: 233.4 | EI52: 231.2 | EJ52: 218.1 | EK52: 200.9 | EL52: 196.1 | EM52: 190.8 | EN52: 189.1 | EO52: 175.4 | EP52: 175.2 | EQ52: 173.4 | ER52: 172.5 | ES52: 164 | ET52: 163.1 | EU52: 160.4 | EV52: 155.9 | EW52: 147.1 | EX52: 147.1 | EY52: 144.8 | EZ52: 141.6 | FA52: 126.7 | FB52: 118.5 | FC52: 112.6 | FD52: 109.7 | FE52: 1387.5 | FF52: 0 | FG52: راهداری | FJ52: 693.8 | FK52: 0 | QI52: 1046.5 | QJ52: 1021.7 | QK52: 978.1
A53: راه، راه آهن و باند فرودگاه13.2 | B53: 13.2 | C53: راه، راه آهن و باند فرودگاه | D53: بتن پیش ساخته-تهیه مصالح و ساخت تراورس | CO53: 1505.7 | CP53: 1449.9 | CQ53: 1387.5 | CR53: 1273.6 | FE53: 1387.5 | FF53: 0 | FG53: راهداری | FJ53: =AVERAGE(FK53,FE53) -> 693.8 | FK53: 0
A54: راه، راه آهن و باند فرودگاه14 | B54: 14 | C54: راه، راه آهن و باند فرودگاه | D54: .زیراساس،اساس وبالاست | CO54: 1692.6 | CP54: 1597.6 | CQ54: 1492.1 | CR54: 1405.1 | CS54: 1225.3 | CT54: 1176.6 | CV54: 946.2 | CW54: 857.8 | CX54: 848.9 | CY54: 834.8 | CZ54: 830.3 | DA54: 783.6 | DB54: 777 | DC54: 767.2 | DD54: 760.6 | DE54: 725.8 | DF54: 725.6 | DG54: 727.4 | DH54: 724.2 | DI54: 679.9 | DJ54: 675.3 | DK54: 668 | DL54: 655.8 | DM54: 589.4 | DN54: 579.8 | DO54: 562.8 | DP54: 548.2 | DQ54: 507.1 | DR54: 482.8 | DS54: 432 | DT54: 405.9 | DU54: 376.1 | DV54: 357.4 | DW54: 337.2 | DX54: 322.6 | DY54: 318.3 | DZ54: 250.4 | EA54: 250.2 | EB54: 248.9 | EC54: 236.3 | ED54: 235.5 | EE54: 234.6 | EF54: 229.8 | EG54: 221.7 | EH54: 221.5 | EI54: 220.5 | EJ54: 218.1 | EK54: 201.7 | EL54: 194.4 | EM54: 187.1 | EN54: 185.2 | EO54: 171.1 | EP54: 171 | EQ54: 169.5 | ER54: 168.8 | ES54: 160.2 | ET54: 158.9 | EU54: 155.1 | EV54: 152.7 | EW54: 145.2 | EX54: 145.2 | EY54: 142.2 | EZ54: 137.7 | FA54: 116.8 | FB54: 114.5 | FC54: 112.3 | FD54: 108.2 | FE54: 1492.1 | FF54: 0 | FG54: =FG52 -> راهداری | FJ54: 746.1 | FK54: 0 | QI54: 1166.3 | QJ54: 1113.9 | QK54: 1060.1
A55: راه، راه آهن و باند فرودگاه15.1 | B55: 15.1 | C55: راه، راه آهن و باند فرودگاه | D55: آسفالت | CO55: 510.6 | CP55: 506.1 | CQ55: 501.7 | CR55: 470 | CS55: 451.9 | CT55: 449.1 | CV55: 420.1 | CW55: 407.5 | CX55: 403.6 | CY55: 397 | CZ55: 395.8 | DA55: 377.5 | DB55: 374.9 | DC55: 371.9 | DD55: 369.2 | DE55: 353.5 | DF55: 353.3 | DG55: 357.8 | DH55: 356 | DI55: 338.7 | DJ55: 337.1 | DK55: 333.4 | DL55: 328.5 | DM55: 298.5 | DN55: 294.7 | DO55: 286.7 | DP55: 281.1 | DQ55: 265.5 | DR55: 258.8 | DS55: 244.9 | DT55: 235.2 | DU55: 222.9 | DV55: 215.9 | DW55: 208.2 | DX55: 203 | DY55: 198.2 | DZ55: 158.9 | EA55: 160.7 | EB55: 160.1 | EC55: 155.1 | ED55: 154.4 | EE55: 154.4 | EF55: 152.4 | EG55: 149.5 | EH55: 149.5 | EI55: 149 | EJ55: 148.2 | EK55: 142.1 | EL55: 139.9 | EM55: 136.8 | EN55: 135.9 | EO55: 130.9 | EP55: 130.8 | EQ55: 130 | ER55: 129.9 | ES55: 126.9 | ET55: 126.1 | EU55: 123.5 | EV55: 122.8 | EW55: 120 | EX55: 120 | EY55: 115.5 | EZ55: 114 | FA55: 106.1 | FB55: 105.3 | FC55: 104.5 | FD55: 103.2 | FE55: 501.7 | FF55: 0 | FG55: راهداری | FJ55: 250.9 | FK55: 0 | QI55: 448.7 | QJ55: 441.7 | QK55: 434.8
A56: راه، راه آهن و باند فرودگاه15.2 | B56: 15.2 | C56: راه، راه آهن و باند فرودگاه | D56: آسفالت | CO56: 624.4 | CP56: 618 | CQ56: 613.4 | CR56: 574.7 | CS56: 552.6 | CT56: 549.1 | CV56: 513.7 | CW56: 498.3 | CX56: 424.9 | CY56: 378.5 | CZ56: 372.5 | DA56: 375.9 | DB56: 333.8 | DC56: 306.3 | DD56: 285.5 | DE56: 268.3 | DF56: 342.4 | DG56: 372.5 | DH56: 377.8 | DI56: 377.1 | DJ56: 419.9 | DK56: 500 | FE56: 613.4 | FF56: 0 | FG56: راهداری | FJ56: 306.7 | FK56: 0 | QI56: 548.6 | QJ56: 540.2 | QK56: 531.7
A57: =C57&B57 -> راه، راه آهن و باند فرودگاه16 | B57: 16 | C57: راه، راه آهن و باند فرودگاه | D57: عایقکاری | CO57: 1691.1 | CP57: 1682.3 | CQ57: 1752.9 | CR57: 1957.8 | CS57: 1729.9 | CT57: 1942.4 | CV57: 1202.3 | CW57: 1045.2 | CX57: 934 | CY57: 861.8 | CZ57: 856.3 | DA57: 840.7 | DB57: 781.7 | DC57: 726.5 | DD57: 695.8 | DE57: 665.5 | DF57: 765.6 | DG57: 817.9 | DH57: 823.8 | DI57: 805.6 | DJ57: 876.4 | DK57: 955.8 | DL57: 919.8 | DM57: 874.6 | DN57: 882.5 | DO57: 861.5 | DP57: 861.4 | DQ57: 777.8 | DR57: 568.4 | DS57: 546.9 | DT57: 533.9 | DU57: 484.1 | DV57: 452.1 | DW57: 433.1 | DX57: 415.6 | DY57: 365.1 | DZ57: 321.3 | EA57: 310.5 | EB57: 313.7 | EC57: 296.9 | ED57: 293.5 | EE57: 269 | EF57: 252.4 | EG57: 268.8 | EH57: 284.9 | EI57: 283.4 | EJ57: 248.9 | EK57: 166.7 | EL57: 165.5 | EM57: 163.7 | EN57: 162.9 | EO57: 129.6 | EP57: 129.5 | EQ57: 128.4 | ER57: 128.1 | ES57: 124 | ET57: 123.7 | EU57: 122.9 | EV57: 122.3 | EW57: 118.9 | EX57: 118.9 | EY57: 112.2 | EZ57: 111.1 | FA57: 105.6 | FB57: 105 | FC57: 104.3 | FD57: 103.1 | FE57: 1752.9 | FF57: 0 | FG57: راهداری | FJ57: 876.5 | FK57: 0 | QI57: 1882.9 | QJ57: 1469.2 | QK57: 1379.9
A58: راه، راه آهن و باند فرودگاه17 | B58: 17 | C58: راه، راه آهن و باند فرودگاه | D58: تأسیسات تونلها،پلها،نقاط مه گیروسطوح پروازی | CO58: 1675.1 | CP58: 1566.5 | CQ58: 1489.2 | CR58: 1428.2 | CS58: 1235 | CT58: 1192.4 | CV58: 934 | CW58: 827.1 | CX58: 816.5 | CY58: 792.7 | CZ58: 786.3 | DA58: 738.3 | DB58: 726.5 | DC58: 710 | DD58: 704.2 | DE58: 668 | DF58: 669.6 | DG58: 680.6 | DH58: 677.1 | DI58: 636.3 | DJ58: 630.8 | DK58: 622.7 | DL58: 609.4 | DM58: 548.7 | DN58: 542.2 | DO58: 535.8 | DP58: 531.8 | DQ58: 492.9 | DR58: 477 | DS58: 425.9 | DT58: 393.3 | DU58: 360.3 | DV58: 341.5 | DW58: 325 | DX58: 316 | DY58: 299.7 | DZ58: 255.6 | EA58: 251.3 | EB58: 251.6 | EC58: 236.9 | ED58: 232.5 | EE58: 226.9 | EF58: 222 | EG58: 215 | EH58: 221.8 | EI58: 230.1 | EJ58: 225.3 | EK58: 201 | EL58: 194.5 | EM58: 189 | EN58: 189.1 | EO58: 172.8 | EP58: 172.2 | EQ58: 169.4 | ER58: 166.2 | ES58: 153.9 | ET58: 152.9 | EU58: 150 | EV58: 147.7 | EW58: 138.8 | EX58: 138.8 | EY58: 136 | EZ58: 133.7 | FA58: 116.6 | FB58: 111.3 | FC58: 109.2 | FD58: 106.1 | FE58: 1489.2 | FF58: 0 | FG58: راهداری | FJ58: 744.6 | FK58: 0 | QI58: 1149.5 | QJ58: 1092.9 | QK58: 1027.2
A59: راه، راه آهن و باند فرودگاه18 | B59: 18 | C59: راه، راه آهن و باند فرودگاه | D59: ساختمانها،علایم وتجهیزات ایمنی | CO59: 840 | CP59: 857.3 | CQ59: 894.7 | CR59: 891.5 | CS59: 749.4 | CT59: 746.8 | CV59: 620.6 | CW59: 430.3 | CX59: 420.8 | CY59: 410.1 | CZ59: 412.6 | DA59: 391.7 | DB59: 391.5 | DC59: 372.5 | DD59: 372.3 | DE59: 361.2 | DF59: 361.1 | DG59: 305.6 | DH59: 305.5 | DI59: 359.2 | DJ59: 359 | DK59: 358.6 | DL59: 358.1 | DM59: 355.8 | DN59: 355.4 | DO59: 355.1 | DP59: 354.6 | DQ59: 309.3 | DR59: 308.2 | DS59: 294.4 | DT59: 251.4 | DU59: 223.8 | DV59: 223.2 | DW59: 195.3 | DX59: 178.3 | DY59: 177.9 | DZ59: 175.9 | EA59: 175.9 | EB59: 175.8 | EC59: 175.3 | ED59: 158.1 | EE59: 156.5 | EF59: 156.3 | EG59: 155.1 | EH59: 158.4 | EI59: 164 | EJ59: 164 | EK59: 163.4 | EL59: 145.3 | EM59: 135.9 | EN59: 135.9 | EO59: 122.1 | EP59: 122.1 | EQ59: 121.5 | ER59: 121.5 | ES59: 120.6 | ET59: 120.6 | EU59: 109.4 | EV59: 109.3 | EW59: 107.1 | EX59: 107.1 | EY59: 102.1 | EZ59: 102 | FA59: 96.6 | FB59: 96.6 | FC59: 95.9 | FD59: 95.7 | FE59: 894.7 | FF59: 0 | FG59: راهداری | FJ59: 447.4 | FK59: 0 | QI59: 745.9 | QJ59: 750.8 | QK59: 679.8
A60: راه، راه آهن و باند فرودگاه18.2 | B60: 18.2 | C60: راه، راه آهن و باند فرودگاه | D60: ساختمانها،علایم وتجهیزات ایمنی-تهیه تابلوها | CO60: 840 | CP60: 857.3 | CQ60: 894.7 | CR60: 891.5 | FE60: 894.7 | FF60: =IF(C60=FG60,1,IF(FG60="کلیه رشته ها",1,0)) -> 0 | FG60: راهداری | FJ60: =AVERAGE(FK60,FE60) -> 447.4 | FK60: =IFERROR(AVERAGEIF($FM$9:$QN$9,TRUE,FM60:QN60),0) -> 0
A61: راه، راه آهن و باند فرودگاه19 | B61: 19 | C61: راه، راه آهن و باند فرودگاه | D61: متفرقه | CO61: 1123.9 | CP61: 1106.5 | CQ61: 1058.9 | CR61: 1131.4 | CS61: 939.8 | CT61: 925.5 | CV61: 745.3 | CW61: 635.4 | CX61: 574.9 | CY61: 535.7 | CZ61: 520.7 | DA61: 513.3 | DB61: 485.7 | DC61: 467.3 | DD61: 448.9 | DE61: 432.2 | DF61: 491.7 | DG61: 513.4 | DH61: 517.1 | DI61: 511.7 | DJ61: 510.1 | DK61: 507.4 | DL61: 491.9 | DM61: 476.4 | DN61: 474 | DO61: 479.7 | DP61: 477.9 | DQ61: 426.9 | DR61: 349.1 | DS61: 328.2 | DT61: 300.1 | DU61: 280.4 | DV61: 264.6 | DW61: 235.1 | DX61: 233 | DY61: 221.5 | DZ61: 218.5 | EA61: 217.9 | EB61: 217.5 | EC61: 209.3 | ED61: 207 | EE61: 205.9 | EF61: 205.4 | EG61: 203.4 | EH61: 196.3 | EI61: 195.9 | EJ61: 195.5 | EK61: 181.9 | EL61: 178 | EM61: 176.4 | EN61: 173.3 | EO61: 165.9 | EP61: 165.8 | EQ61: 144.5 | ER61: 144.5 | ES61: 140 | ET61: 139.9 | EU61: 138.3 | EV61: 138 | EW61: 123.2 | EX61: 123.2 | EY61: 109.2 | EZ61: 108.6 | FA61: 105.1 | FB61: 104.7 | FC61: 101.7 | FD61: 101 | FE61: 1058.9 | FF61: 0 | FG61: =FG59 -> راهداری | FJ61: 529.5 | FK61: 0 | QI61: 903.6 | QJ61: 890.3 | QK61: 819.9
